Workbook

Sheet Input
A1: 15 ÅRS PRISHISTORIKK FOR DEFINERT UNIVERS
A2: I USD
A3: Hentet fra Factset
A4: Dato | B4: Advance Auto Parts Inc | C4: Amazon Com Inc | D4: Autoliv Inc | E4: Autozone Inc | F4: Best Buy Inc | G4: Booking Hldgs Inc | H4: Borgwarner Inc | I4: Carmax Inc | J4: Carnival Corp | K4: D R Horton Inc | L4: Darden Restaurants Inc | M4: Dollar Tree Inc | N4: Dominos Pizza Inc | O4: Ebay Inc | P4: Ford Mtr Co Del | Q4: Gap Inc | R4: Garmin Ltd | S4: Genuine Parts Co | T4: Harley Davidson Inc | U4: Hasbro Inc | V4: Home Depot Inc | W4: Kohls Corp | X4: Las Vegas Sands Corp | Y4: Leggett & Platt Inc | Z4: Lennar Corp | AA4: Lkq Corp | AB4: Lowes Cos Inc | AC4: Marriott Intl Inc New | AD4: Mcdonalds Corp | AE4: Mgm Resorts International | AF4: Mohawk Inds Inc | AG4: Newell Brands Inc | AH4: Nike Inc | AI4: Nordstrom Inc | AJ4: Nvr Inc | AK4: O Reilly Automotive Inc New | AL4: Polaris Inc | AM4: Pulte Group Inc | AN4: Pvh Corporation | AO4: Ralph Lauren Corp | AP4: Ross Stores Inc | AQ4: Royal Caribbean Cruises Ltd | AR4: Starbucks Corp | AS4: Tapestry Inc | AT4: Target Corp | AU4: Tiffany & Co New | AV4: Tjx Cos Inc New | AW4: Tractor Supply Co | AX4: Vail Resorts Inc | AY4: V F Corp | AZ4: Whirlpool Corp | BA4: Wynn Resorts Ltd | BB4: Yum Brands Inc | BC4: Altria Group Inc | BD4: Archer Daniels Midland Co | BE4: Brown Forman Corp | BF4: Bunge Limited | BG4: Campbell Soup Co | BH4: Church & Dwight Inc | BI4: Clorox Co Del | BJ4: Coca Cola Co | BK4: Colgate Palmolive Co | BL4: Conagra Brands Inc | BM4: Constellation Brands Inc | BN4: Costco Whsl Corp New | BO4: General Mls Inc | BP4: Hershey Co | BQ4: Hormel Foods Corp | BR4: Ingredion Inc | BS4: Kellogg Co | BT4: Kimberly Clark Corp | BU4: Kroger Co | BV4: Lauder Estee Cos Inc | BW4: Mccormick & Co Inc | BX4: Molson Coors Beverage Co | BY4: Mondelez Intl Inc | BZ4: Monster Beverage Corp New | CA4: Pepsico Inc | CB4: Procter & Gamble Co | CC4: Smucker J M Co | CD4: Sysco Corp | CE4: Tyson Foods Inc | CF4: Walgreens Boots Alliance In | CG4: Walmart Inc
A5: 20050131 | B5: 28.733332 | C5: 43.22 | D5: 33.96499 | E5: 89.25 | F5: 35.86 | G5: 22.59 | H5: 13.4225 | I5: 14.465 | J5: 57.6 | K5: 29.835 | L5: 26.468794 | M5: 9.076667 | N5: 16.68 | O5: 17.150778 | P5: 13.17 | Q5: 22.01 | R5: 27.5 | S5: 42.33 | T5: 60.11 | U5: 19.6 | V5: 41.26 | W5: 47.01 | X5: 43.4 | Y5: 28.5 | Z5: 55.507427 | AA5: 2.09125 | AB5: 28.495 | AC5: 29.452957 | AD5: 32.39 | AE5: 35.905 | AF5: 88.51 | AG5: 21.52 | AH5: 10.82875 | AI5: 24.125 | AJ5: 791.25 | AK5: 22.865 | AL5: 33.75 | AM5: 33.04 | AN5: 27.21 | AO5: 38.95 | AP5: 7.155 | AQ5: 53 | AR5: 13.5 | AS5: 28.05 | AT5: 50.77 | AU5: 31.43 | AV5: 6.26 | AW5: 8.95 | AX5: 23.97 | AY5: 12.506823 | AZ5: 68.26 | BA5: 65.56 | BB5: 16.664082 | BC5: 14.774065 | BD5: 24.2 | BE5: 10.289067 | BF5: 56.54 | BG5: 29.32 | BH5: 8.6075 | BI5: 59.42 | BJ5: 20.745 | BK5: 26.27 | BL5: 22.955406 | BM5: 25.96 | BN5: 47.27 | BO5: 26.495 | BP5: 58.49 | BQ5: 7.875 | BR5: 29.36 | BS5: 44.64 | BT5: 62.78902 | BU5: 8.55 | BV5: 22.57 | BW5: 37.17 | BX5: 37.3 | BY5: 22.232561 | BZ5: 0.8520834 | CA5: 53.7 | CB5: 53.23 | CC5: 46.65 | CD5: 34.97 | CE5: 17.17 | CF5: 42.61 | CG5: 52.4
A6: 20050228 | B6: 33.586666 | C6: 35.18 | D6: 35.974792 | E6: 96.9 | F6: 36.013332 | G6: 22.47 | H6: 13.1875 | I6: 16.5 | J6: 54.38 | K6: 32.82 | L6: 23.997417 | M6: 8.983334 | N6: 17.07 | O6: 18.030413 | P6: 12.65 | Q6: 21.33 | R6: 25.625 | S6: 43.28 | T6: 61.88 | U6: 21.12 | V6: 40.02 | W6: 47.87 | X6: 47.9 | Y6: 27.67 | Z6: 59.78328 | AA6: 2.27375 | AB6: 29.39 | AC6: 29.88184 | AD6: 33.08 | AE6: 37.085 | AF6: 89.74 | AG6: 22.29 | AH6: 10.86875 | AI6: 26.88 | AJ6: 792.25 | AK6: 25.45 | AL6: 34.895 | AM6: 39.01 | AN6: 27.73 | AO6: 39.4 | AP6: 7 | AQ6: 47.25 | AR6: 12.9525 | AS6: 27.765 | AT6: 50.82 | AU6: 30.15 | AV6: 6.105 | AW6: 10.6475 | AX6: 24.34 | AY6: 14.062233 | AZ6: 63.75 | BA6: 71.57 | BB6: 17.537731 | BC6: 15.195321 | BD6: 24.1 | BE6: 10.858667 | BF6: 54.71 | BG6: 27.7 | BH6: 8.8425 | BI6: 60.04 | BJ6: 21.4 | BK6: 26.46 | BL6: 21.25904 | BM6: 26.765 | BN6: 46.59 | BO6: 26.185 | BP6: 63 | BQ6: 7.7875 | BR6: 27.97 | BS6: 44 | BT6: 63.2395 | BU6: 8.995 | BV6: 21.99 | BW6: 37.99 | BX6: 34.765 | BY6: 21.885792 | BZ6: 0.911875 | CA6: 53.86 | CB6: 53.09 | CC6: 49.16 | CD6: 34.42 | CE6: 17.02 | CF6: 42.83 | CG6: 51.61
A7: 20050331 | B7: 33.633335 | C7: 34.27 | D7: 34.32517 | E7: 85.7 | F7: 36.006664 | G7: 25.2 | H7: 12.17 | I7: 15.75 | J7: 51.81 | K7: 29.24 | L7: 27.47167 | M7: 9.576667 | N7: 18.69 | O7: 15.681913 | P7: 11.33 | Q7: 21.84 | R7: 23.16 | S7: 43.49 | T7: 57.76 | U7: 20.45 | V7: 38.24 | W7: 51.63 | X7: 45 | Y7: 28.88 | Z7: 55.71385 | AA7: 2.50875 | AB7: 28.545 | AC7: 31.168484 | AD7: 31.14 | AE7: 35.41 | AF7: 84.3 | AG7: 21.94 | AH7: 10.41375 | AI7: 27.69 | AJ7: 785 | AK7: 24.765 | AL7: 35.115 | AM7: 36.815 | AN7: 26.64 | AO7: 38.8 | AP7: 7.285 | AQ7: 44.69 | AR7: 12.915 | AS7: 28.315 | AT7: 50.02 | AU7: 34.52 | AV7: 6.1575 | AW7: 10.9125 | AX7: 25.25 | AY7: 13.91634 | AZ7: 67.73 | BA7: 67.74 | BB7: 18.6271 | BC7: 15.135142 | BD7: 24.58 | BE7: 11.68 | BF7: 53.88 | BG7: 29.02 | BH7: 8.8675 | BI7: 62.99 | BJ7: 20.835 | BK7: 26.085 | BL7: 21.025597 | BM7: 26.435 | BN7: 44.18 | BO7: 24.575 | BP7: 60.46 | BQ7: 7.7775 | BR7: 25.99 | BS7: 43.27 | BT7: 62.99988 | BU7: 8.015 | BV7: 22.49 | BW7: 34.43 | BX7: 38.585 | BY7: 21.624079 | BZ7: 1.2490001 | CA7: 53.03 | CB7: 53 | CC7: 50.3 | CD7: 35.8 | CE7: 16.68 | CF7: 44.42 | CG7: 50.11
A8: 20050429 | B8: 35.566666 | C8: 32.36 | D8: 31.875942 | E8: 83 | F8: 33.56 | G8: 25.36 | H8: 11.43 | I8: 13.64 | J8: 48.88 | K8: 30.5 | L8: 26.862782 | M8: 8.16 | N8: 18.16 | O8: 13.346041 | P8: 9.11 | Q8: 21.35 | R8: 19.75 | S8: 42.9 | T8: 47.02 | U8: 18.92 | V8: 35.37 | W8: 47.6 | X8: 37.45 | Y8: 26.96 | Z8: 50.59266 | AA8: 2.5175 | AB8: 26.055 | AC8: 29.252502 | AD8: 29.31 | AE8: 34.905 | AF8: 77.81 | AG8: 21.73 | AH8: 9.60125 | AI8: 25.415 | AJ8: 718.35 | AK8: 25.66 | AL8: 28.78 | AM8: 35.725 | AN8: 25.88 | AO8: 35.1 | AP8: 6.68 | AQ8: 42.02 | AR8: 12.38 | AS8: 26.8 | AT8: 46.41 | AU8: 30.15 | AV8: 5.6625 | AW8: 10.055 | AX8: 25.87 | AY8: 13.316296 | AZ8: 62.06 | BA8: 52.94 | BB8: 16.883392 | BC8: 15.042558 | BD8: 17.99 | BE8: 11.840001 | BF8: 56.8 | BG8: 29.74 | BH8: 9.005 | BI8: 63.3 | BJ8: 21.72 | BK8: 24.895 | BL8: 20.815496 | BM8: 26.355 | BN8: 40.63 | BO8: 24.7 | BP8: 63.9 | BQ8: 7.785 | BR8: 22.02 | BS8: 44.95 | BT8: 59.856117 | BU8: 7.885 | BV8: 19.205 | BW8: 34.59 | BX8: 30.875 | BY8: 21.205338 | BZ8: 1.1808333 | CA8: 55.64 | CB8: 54.15 | CC8: 49.62 | CD8: 34.6 | CE8: 16.89 | CF8: 43.06 | CG8: 47.14
A9: 20050531 | B9: 39.513332 | C9: 35.51 | D9: 33.43192 | E9: 90.52 | F9: 36.286667 | G9: 23.95 | H9: 13.365 | I9: 12.765 | J9: 52.9 | K9: 34.57 | L9: 29.083437 | M9: 8.266666 | N9: 22.89 | O9: 15.993363 | P9: 9.98 | Q9: 21 | R9: 22.175 | S9: 42.96 | T9: 49.03 | U9: 20.18 | V9: 39.35 | W9: 48.69 | X9: 36.26 | Y9: 26.64 | Z9: 57.021175 | AA9: 3.1025 | AB9: 28.605 | AC9: 31.485483 | AD9: 30.94 | AE9: 38.09 | AF9: 83.42 | AG9: 22.79 | AH9: 10.275 | AI9: 30.52 | AJ9: 759 | AK9: 27.78 | AL9: 26.235 | AM9: 38.225 | AN9: 30.99 | AO9: 38.75 | AP9: 7.0475 | AQ9: 46.11 | AR9: 13.6975 | AS9: 29.04 | AT9: 53.7 | AU9: 31.13 | AV9: 5.7325 | AW9: 11.105 | AX9: 27.5 | AY9: 13.2786455 | AZ9: 68.8 | BA9: 46.85 | BB9: 18.440145 | BC9: 15.540195 | BD9: 19.85 | BE9: 12.718933 | BF9: 62.04 | BG9: 31.03 | BH9: 9.04 | BI9: 58.41 | BJ9: 22.315 | BK9: 24.985 | BL9: 20.348606 | BM9: 27.81 | BN9: 45.38 | BO9: 24.75 | BP9: 64.21 | BQ9: 7.405 | BR9: 22.09 | BS9: 45.49 | BT9: 61.65803 | BU9: 8.385 | BV9: 19.545 | BW9: 33.84 | BX9: 29.235 | BY9: 21.224964 | BZ9: 1.5529168 | CA9: 56.26 | CB9: 55.15 | CC9: 49.81 | CD9: 37.16 | CE9: 18.46 | CF9: 45.34 | CG9: 47.23
A10: 20050630 | B10: 43.033337 | C10: 33.09 | D10: 31.551779 | E10: 92.46 | F10: 45.7 | G10: 23.33 | H10: 13.4175 | I10: 13.325 | J10: 54.55 | K10: 37.61 | L10: 29.53115 | M10: 8 | N10: 22.26 | O10: 13.893182 | P10: 10.24 | Q10: 19.75 | R10: 21.375 | S10: 41.09 | T10: 49.6 | U10: 20.79 | V10: 38.9 | W10: 55.91 | X10: 35.75 | Y10: 26.58 | Z10: 62.36845 | AA10: 3.39375 | AB10: 29.11 | AC10: 31.802479 | AD10: 27.75 | AE10: 39.58 | AF10: 82.5 | AG10: 23.84 | AH10: 10.825 | AI10: 33.985 | AJ10: 810 | AK10: 29.83 | AL10: 27 | AM10: 42.125 | AN10: 32.69 | AO10: 43.11 | AP10: 7.2275 | AQ10: 48.36 | AR10: 12.915 | AS10: 33.57 | AT10: 54.41 | AU10: 32.76 | AV10: 6.0875 | AW10: 12.275 | AX10: 28.1 | AY10: 13.464541 | AZ10: 70.11 | BA10: 47.27 | BB10: 18.724173 | BC10: 14.966177 | BD10: 21.38 | BE10: 12.898134 | BF10: 63.4 | BG10: 30.77 | BH10: 9.05 | BI10: 55.72 | BJ10: 20.875 | BK10: 24.955 | BL10: 18.021938 | BM10: 29.5 | BN10: 44.73 | BO10: 23.395 | BP10: 62.1 | BQ10: 7.3325 | BR10: 23.76 | BS10: 44.44 | BT10: 59.9903 | BU10: 9.515 | BV10: 19.565 | BW10: 32.68 | BX10: 31 | BY10: 20.812767 | BZ10: 1.7650001 | CA10: 53.93 | CB10: 52.75 | CC10: 46.94 | CD10: 36.19 | CE10: 17.8 | CF10: 45.99 | CG10: 48.2
A11: 20050729 | B11: 45.97333 | C11: 45.15 | D11: 32.09205 | E11: 97.44 | F11: 51.066666 | G11: 24.84 | H11: 14.5425 | I11: 14.61 | J11: 52.4 | K11: 41.08 | L11: 31.071283 | M11: 8.33 | N11: 25.02 | O11: 17.584282 | P11: 10.74 | Q11: 21.11 | R11: 27.445 | S11: 45.79 | T11: 53.19 | U11: 21.94 | V11: 43.51 | W11: 56.35 | X11: 40.22 | Y11: 25.29 | Z11: 66.12333 | AA11: 3.85 | AB11: 33.11 | AC11: 31.919025 | AD11: 31.17 | AE11: 45.45 | AF11: 87.82 | AG11: 24.87 | AH11: 10.475 | AI11: 37.01 | AJ11: 938 | AK11: 32.26 | AL11: 27.65 | AM11: 46.81 | AN11: 33.9 | AO11: 49.24 | AP11: 6.625 | AQ11: 45.45 | AR11: 13.1375 | AS11: 35.11 | AT11: 58.75 | AU11: 34.03 | AV11: 5.8775 | AW11: 14.055 | AX11: 28.41 | AY11: 13.892809 | AZ11: 79.98 | BA11: 56.3 | BB11: 18.821243 | BC11: 15.498533 | BD11: 22.94 | BE11: 12.469335 | BF11: 61.39 | BG11: 30.85 | BH11: 9.3875 | BI11: 55.85 | BJ11: 21.88 | BK11: 26.47 | BL11: 17.671772 | BM11: 27.4 | BN11: 45.97 | BO11: 23.7 | BP11: 63.87 | BQ11: 7.4025 | BR11: 24.07 | BS11: 45.31 | BT11: 61.111702 | BU11: 9.925 | BV11: 19.57 | BW11: 34.78 | BX11: 31.35 | BY11: 19.988369 | BZ11: 1.9250001 | CA11: 54.53 | CB11: 55.63 | CC11: 47.57 | CD11: 36.06 | CE11: 18.64 | CF11: 47.86 | CG11: 49.35
A12: 20050831 | B12: 40.62 | C12: 42.7 | D12: 32.056034 | E12: 94.5 | F12: 47.66 | G12: 21.49 | H12: 14.615 | I12: 15.93 | J12: 49.34 | K12: 36.92 | L12: 28.125332 | M12: 7.59 | N12: 23 | O12: 17.041351 | P12: 9.97 | Q12: 19.01 | R12: 28.95 | S12: 45.82 | T12: 49.26 | U12: 20.7 | V12: 40.32 | W12: 52.45 | X12: 35.29 | Y12: 24.21 | Z12: 61.04146 | AA12: 3.91 | AB12: 32.155 | AC12: 29.466944 | AD12: 32.45 | AE12: 42.26 | AF12: 85.38 | AG12: 23.43 | AH12: 9.86375 | AI12: 33.58 | AJ12: 885 | AK12: 27.57 | AL12: 26.34 | AM12: 43.1 | AN12: 33.49 | AO12: 49.55 | AP12: 6.2075 | AQ12: 42.72 | AR12: 12.2575 | AS12: 33.19 | AT12: 53.75 | AU12: 37.42 | AV12: 5.2275 | AW12: 12.865 | AX12: 28.7 | AY12: 13.956344 | AZ12: 76.05 | BA12: 47.72 | BB12: 17.034395 | BC12: 16.364191 | BD12: 22.51 | BE12: 12.081067 | BF12: 58.72 | BG12: 29.4 | BH12: 9.54 | BI12: 57.57 | BJ12: 22 | BK12: 26.25 | BL12: 17.76515 | BM12: 27.52 | BN12: 43.4 | BO12: 23.06 | BP12: 59.09 | BQ12: 7.9725 | BR12: 22.52 | BS12: 45.33 | BT12: 59.731514 | BU12: 9.87 | BV12: 20.195 | BW12: 33.91 | BX12: 32.055 | BY12: 20.282797 | BZ12: 2.0687501 | CA12: 54.85 | CB12: 55.48 | CC12: 47.72 | CD12: 33.38 | CE12: 17.78 | CF12: 46.33 | CG12: 44.96
A13: 20050930 | B13: 38.68 | C13: 45.3 | D13: 31.335672 | E13: 83.25 | F13: 43.53 | G13: 19.32 | H13: 14.115 | I13: 15.635 | J13: 49.98 | K13: 36.22 | L13: 27.19409 | M13: 7.2166667 | N13: 23.32 | O13: 17.340174 | P13: 9.86 | Q13: 17.43 | R13: 33.915 | S13: 42.9 | T13: 48.44 | U13: 19.65 | V13: 38.14 | W13: 50.18 | X13: 32.91 | Y13: 20.2 | Z13: 58.741344 | AA13: 3.775 | AB13: 32.2 | AC13: 29.369047 | AD13: 33.49 | AE13: 43.77 | AF13: 80.25 | AG13: 22.65 | AH13: 10.21 | AI13: 34.32 | AJ13: 884.95 | AK13: 28.18 | AL13: 24.775 | AM13: 42.92 | AN13: 31.02 | AO13: 50.3 | AP13: 5.925 | AQ13: 43.2 | AR13: 12.525 | AS13: 31.36 | AT13: 51.93 | AU13: 39.77 | AV13: 5.12 | AW13: 11.4125 | AX13: 28.75 | AY13: 13.641026 | AZ13: 75.77 | BA13: 45.15 | BB13: 17.404707 | BC13: 17.060884 | BD13: 24.66 | BE13: 12.701867 | BF13: 52.62 | BG13: 29.75 | BH13: 9.235 | BI13: 55.54 | BJ13: 21.595 | BK13: 26.395 | BL13: 19.259197 | BM13: 26 | BN13: 43.09 | BO13: 24.1 | BP13: 56.31 | BQ13: 8.2475 | BR13: 20.17 | BS13: 46.13 | BT13: 57.057396 | BU13: 10.295 | BV13: 17.415 | BW13: 32.63 | BX13: 32.005 | BY13: 20.01454 | BZ13: 1.9616668 | CA13: 56.71 | CB13: 59.46 | CC13: 48.54 | CD13: 31.37 | CE13: 18.05 | CF13: 43.45 | CG13: 43.82
A14: 20051031 | B14: 37.5 | C14: 39.86 | D14: 30.946676 | E14: 80.9 | F14: 44.26 | G14: 18.97 | H14: 14.4975 | I14: 13.435 | J14: 49.67 | K14: 30.69 | L14: 29.02971 | M14: 7.19 | N14: 23.92 | O14: 16.670977 | P14: 8.32 | Q14: 17.28 | R14: 28.715 | S14: 44.37 | T14: 49.53 | U14: 18.84 | V14: 41.04 | W14: 48.13 | X14: 34.3 | Y14: 20.04 | Z14: 54.6326 | AA14: 3.7875 | AB14: 30.385 | AC14: 27.793373 | AD14: 31.6 | AE14: 37.37 | AF14: 78.05 | AG14: 22.99 | AH14: 10.50625 | AI14: 34.65 | AJ14: 685.5 | AK14: 28.2 | AL14: 22.545 | AM14: 37.79 | AN14: 28.45 | AO14: 49.2 | AP14: 6.76 | AQ14: 41.44 | AR14: 14.14 | AS14: 32.18 | AT14: 55.69 | AU14: 39.4 | AV14: 5.3825 | AW14: 12.125 | AX14: 33.5 | AY14: 12.295042 | AZ14: 78.5 | BA14: 46.63 | BB14: 18.289145 | BC14: 17.371042 | BD14: 24.37 | BE14: 13.512534 | BF14: 51.94 | BG14: 29.1 | BH14: 8.7625 | BI14: 54.12 | BJ14: 21.39 | BK14: 26.48 | BL14: 18.107536 | BM14: 23.54 | BN14: 48.37 | BO14: 24.13 | BP14: 56.83 | BQ14: 7.95 | BR14: 23.81 | BS14: 44.17 | BT14: 54.47913 | BU14: 9.95 | BV14: 16.585 | BW14: 30.29 | BX14: 30.85 | BY14: 18.51623 | BZ14: 2.105 | CA14: 59.08 | CB14: 55.99 | CC14: 45.71 | CD14: 31.91 | CE14: 17.8 | CF14: 45.43 | CG14: 47.31
A15: 20051130 | B15: 42.34 | C15: 48.46 | D15: 31.522964 | E15: 89.06 | F15: 48.24 | G15: 24.02 | H15: 15 | I15: 13.71 | J15: 54.49 | K15: 35.44 | L15: 32.03834 | M15: 7.653333 | N15: 25 | O15: 18.859543 | P15: 8.13 | Q15: 17.38 | R15: 27.55 | S15: 44.31 | T15: 53.86 | U15: 20.42 | V15: 41.78 | W15: 46 | X15: 41.71 | Y15: 23.48 | Z15: 56.696804 | AA15: 4.07375 | AB15: 33.74 | AC15: 30.119589 | AD15: 33.85 | AE15: 38.11 | AF15: 87.98 | AG15: 23.07 | AH15: 10.6625 | AI15: 36.88 | AJ15: 687.25 | AK15: 30.45 | AL15: 24.72 | AM15: 41.63 | AN15: 33.89 | AO15: 53.6 | AP15: 6.875 | AQ15: 45.86 | AR15: 15.225 | AS15: 34.43 | AT15: 53.51 | AU15: 40.7 | AV15: 5.6025 | AW15: 13.465 | AX15: 37.26 | AY15: 13.330414 | AZ15: 81.85 | BA15: 55.83 | BB15: 17.541328 | BC15: 16.847942 | BD15: 23.57 | BE15: 14.690134 | BF15: 53.5 | BG15: 30.21 | BH15: 8.305 | BI15: 54.28 | BJ15: 21.345 | BK15: 27.26 | BL15: 16.730211 | BM15: 23.62 | BN15: 49.95 | BO15: 23.765 | BP15: 54.22 | BQ15: 8.2 | BR15: 22.25 | BS15: 44.07 | BT15: 56.530243 | BU15: 9.73 | BV15: 16.505 | BW15: 31.22 | BX15: 33.295 | BY15: 18.934973 | BZ15: 3.235417 | CA15: 59.2 | CB15: 57.19 | CC15: 45.35 | CD15: 32.32 | CE15: 16.83 | CF15: 45.68 | CG15: 48.56
A16: 20051230 | B16: 43.46 | C16: 47.15 | D16: 32.71876 | E16: 91.75 | F16: 43.48 | G16: 22.32 | H16: 15.1575 | I16: 13.84 | J16: 53.47 | K16: 35.73 | L16: 34.814167 | M16: 7.9800005 | N16: 24.2 | O16: 18.190348 | P16: 7.72 | Q16: 17.64 | R16: 33.175 | S16: 43.92 | T16: 51.49 | U16: 20.18 | V16: 40.48 | W16: 48.6 | X16: 39.47 | Y16: 22.96 | Z16: 59.97987 | AA16: 4.3275 | AB16: 33.33 | AC16: 31.219765 | AD16: 33.72 | AE16: 36.67 | AF16: 86.98 | AG16: 23.78 | AH16: 10.84875 | AI16: 37.4 | AJ16: 702 | AK16: 32.01 | AL16: 25.1 | AM16: 39.36 | AN16: 32.4 | AO16: 56.14 | AP16: 7.225 | AQ16: 45.06 | AR16: 15.005 | AS16: 33.34 | AT16: 54.97 | AU16: 38.29 | AV16: 5.8075 | AW16: 13.235 | AX16: 33.03 | AY16: 13.022156 | AZ16: 83.76 | BA16: 54.85 | BB16: 16.854631 | BC16: 17.294659 | BD16: 24.66 | BE16: 14.788268 | BF16: 56.61 | BG16: 29.77 | BH16: 8.2575 | BI16: 56.89 | BJ16: 20.155 | BK16: 27.425 | BL16: 15.7808695 | BM16: 26.23 | BN16: 49.47 | BO16: 24.66 | BP16: 55.25 | BQ16: 8.17 | BR16: 23.89 | BS16: 43.22 | BT16: 57.172417 | BU16: 9.44 | BV16: 16.74 | BW16: 30.92 | BX16: 33.495 | BY16: 18.431173 | BZ16: 3.28375 | CA16: 59.08 | CB16: 57.88 | CC16: 44 | CD16: 31.05 | CE16: 17.1 | CF16: 44.26 | CG16: 46.8
A17: 20060131 | B17: 43.57 | C17: 44.82 | D17: 35.29045 | E17: 97.75 | F17: 50.66 | G17: 22.05 | H17: 13.7825 | I17: 14.945 | J17: 51.76 | K17: 37.32 | L17: 36.408024 | M17: 8.266666 | N17: 24.91 | O17: 18.139841 | P17: 8.58 | Q17: 18.09 | R17: 31.105 | S17: 42.53 | T17: 53.53 | U17: 21.2 | V17: 40.55 | W17: 44.39 | X17: 51.35 | Y17: 24.62 | Z17: 61.49362 | AA17: 5.6225 | AB17: 31.775 | AC17: 31.065924 | AD17: 35.01 | AE17: 37.06 | AF17: 85.04 | AG17: 23.64 | AH17: 10.11875 | AI17: 41.72 | AJ17: 794.25 | AK17: 32.82 | AL17: 27.275 | AM17: 39.9 | AN17: 36.13 | AO17: 56.64 | AP17: 7.125 | AQ17: 40.9 | AR17: 15.85 | AS17: 35.95 | AT17: 54.75 | AU17: 37.7 | AV17: 6.3825 | AW17: 12.77 | AX17: 30.39 | AY17: 13.055099 | AZ17: 80.68 | BA17: 64.58 | BB17: 17.785807 | BC17: 16.743784 | BD17: 31.5 | BE17: 15.129601 | BF17: 58.96 | BG17: 29.93 | BH17: 9.2 | BI17: 59.85 | BJ17: 20.69 | BK17: 27.445 | BL17: 16.131037 | BM17: 26.69 | BN17: 49.89 | BO17: 24.305 | BP17: 51.2 | BQ17: 8.3825 | BR17: 27.27 | BS17: 42.9 | BT17: 54.747498 | BU17: 9.2 | BV17: 18.235 | BW17: 30.21 | BX17: 31.25 | BY17: 19.262114 | BZ17: 3.6583335 | CA17: 57.18 | CB17: 59.23 | CC17: 43.5 | CD17: 30.68 | CE17: 14.33 | CF17: 43.28 | CG17: 46.11
A18: 20060228 | B18: 41.35 | C18: 37.44 | D18: 38.57529 | E18: 96.68 | F18: 53.86 | G18: 24.55 | H18: 13.9425 | I18: 15.71 | J18: 51.65 | K18: 34.11 | L18: 37.554165 | M18: 9.14 | N18: 25.5 | O18: 16.860373 | P18: 7.97 | Q18: 18.54 | R18: 34.41 | S18: 44.52 | T18: 52.51 | U18: 20.29 | V18: 42.15 | W18: 48.11 | X18: 53.35 | Y18: 23.48 | Z18: 58.83964 | AA18: 5.505 | AB18: 34.09 | AC18: 31.886395 | AD18: 34.91 | AE18: 36.97 | AF18: 86.51 | AG18: 24.87 | AH18: 10.8475 | AI18: 38 | AJ18: 753 | AK18: 32.72 | AL18: 25.025 | AM18: 38.41 | AN18: 35.5 | AO18: 57.96 | AP18: 7.08 | AQ18: 44.06 | AR18: 18.16 | AS18: 35.72 | AT18: 54.4 | AU18: 37.13 | AV18: 6.1225 | AW18: 15.795 | AX18: 33.04 | AY18: 12.895087 | AZ18: 89.79 | BA18: 66.45 | BB18: 17.149443 | BC18: 16.641943 | BD18: 31.72 | BE18: 15.010135 | BF18: 56.69 | BG18: 31.13 | BH18: 8.6325 | BI18: 60.95 | BJ18: 20.985 | BK18: 27.24 | BL18: 16.364481 | BM18: 26.34 | BN18: 51.19 | BO18: 24.625 | BP18: 51.15 | BQ18: 8.6075 | BR18: 26.96 | BS18: 44.31 | BT18: 56.721935 | BU18: 10.02 | BV18: 18.71 | BW18: 32.83 | BX18: 31.375 | BY18: 19.687399 | BZ18: 3.8891666 | CA18: 59.11 | CB18: 59.93 | CC18: 39.52 | CD18: 30.09 | CE18: 13.53 | CF18: 44.86 | CG18: 45.36
A19: 20060331 | B19: 41.64 | C19: 36.53 | D19: 40.757984 | E19: 99.69 | F19: 55.93 | G19: 24.84 | H19: 15.01 | I19: 16.34 | J19: 47.37 | K19: 33.22 | L19: 36.73933 | M19: 9.223333 | N19: 28.55 | O19: 16.414242 | P19: 7.96 | Q19: 18.68 | R19: 39.715 | S19: 43.83 | T19: 51.88 | U19: 21.1 | V19: 42.3 | W19: 53.01 | X19: 56.66 | Y19: 24.37 | Z19: 59.35078 | AA19: 5.2025 | AB19: 32.22 | AC19: 31.979628 | AD19: 34.36 | AE19: 43.09 | AF19: 80.72 | AG19: 25.19 | AH19: 10.6375 | AI19: 39.18 | AJ19: 738.95 | AK19: 36.56 | AL19: 27.28 | AM19: 38.42 | AN19: 38.21 | AO19: 60.61 | AP19: 7.2975 | AQ19: 42.02 | AR19: 18.815 | AS19: 34.58 | AT19: 52.01 | AU19: 37.54 | AV19: 6.205 | AW19: 16.585 | AX19: 38.22 | AY19: 13.389242 | AZ19: 91.47 | BA19: 76.85 | BB19: 17.566494 | BC19: 16.401226 | BD19: 33.65 | BE19: 16.420267 | BF19: 55.71 | BG19: 32.4 | BH19: 9.23 | BI19: 59.85 | BJ19: 20.935 | BK19: 28.55 | BL19: 16.699085 | BM19: 25.05 | BN19: 54.16 | BO19: 25.34 | BP19: 52.23 | BQ19: 8.45 | BR19: 29.57 | BS19: 44.04 | BT19: 55.399254 | BU19: 10.18 | BV19: 18.595 | BW19: 33.86 | BX19: 34.31 | BY19: 19.83134 | BZ19: 5.252084 | CA19: 57.79 | CB19: 57.63 | CC19: 39.7 | CD19: 32.05 | CE19: 13.74 | CF19: 43.13 | CG19: 47.24
A20: 20060428 | B20: 40.22 | C20: 35.21 | D20: 39.835922 | E20: 93.61 | F20: 56.66 | G20: 24.44 | H20: 15.1825 | I20: 17.655 | J20: 46.82 | K20: 30.02 | L20: 35.45887 | M20: 8.690001 | N20: 26.33 | O20: 14.482411 | P20: 6.95 | Q20: 18.09 | R20: 43.18 | S20: 43.65 | T20: 50.84 | U20: 19.71 | V20: 39.93 | W20: 55.84 | X20: 64.81 | Y20: 26.53 | Z20: 53.99368 | AA20: 5.26 | AB20: 31.525 | AC20: 34.06343 | AD20: 34.57 | AE20: 44.9 | AF20: 80.1 | AG20: 27.42 | AH20: 10.23 | AI20: 38.33 | AJ20: 755 | AK20: 33.88 | AL20: 23.95 | AM20: 37.35 | AN20: 40.2 | AO20: 60.72 | AP20: 7.66 | AQ20: 41.79 | AR20: 18.635 | AS20: 33.02 | AT20: 53.1 | AU20: 34.89 | AV20: 6.0325 | AW20: 16.1975 | AX20: 37.6 | AY20: 14.398729 | AZ20: 89.75 | BA20: 76.11 | BB20: 18.58036 | BC20: 16.933584 | BD20: 36.34 | BE20: 15.893335 | BF20: 53.35 | BG20: 32.14 | BH20: 9.1675 | BI20: 64.18 | BJ20: 20.98 | BK20: 29.56 | BL20: 17.648428 | BM20: 24.7 | BN20: 54.43 | BO20: 24.67 | BP20: 53.34 | BQ20: 8.39 | BR20: 28 | BS20: 46.31 | BT20: 56.098934 | BU20: 10.13 | BV20: 18.56 | BW20: 34.83 | BX20: 36.93 | BY20: 20.439825 | BZ20: 5.394167 | CA20: 58.24 | CB20: 58.21 | CC20: 39.26 | CD20: 29.89 | CE20: 14.6 | CF20: 41.93 | CG20: 45.03
A21: 20060531 | B21: 38.12 | C21: 34.61 | D21: 40.05203 | E21: 90.73 | F21: 53 | G21: 31.1 | H21: 16.445 | I21: 15.905 | J21: 39.91 | K21: 26.36 | L21: 31.707035 | M21: 8.81 | N21: 23.68 | O21: 13.809008 | P21: 7.16 | Q21: 18.2 | R21: 46.645 | S21: 43.06 | T21: 49.85 | U21: 18.54 | V21: 38.12 | W21: 53.69 | X21: 70.61 | Y21: 25.39 | Z21: 47.093338 | AA21: 4.8875 | AB21: 31.14 | AC21: 33.718464 | AD21: 33.17 | AE21: 41.46 | AF21: 73.7 | AG21: 26.46 | AH21: 10.03875 | AI21: 36.83 | AJ21: 609 | AK21: 31.69 | AL21: 22.265 | AM21: 32.47 | AN21: 35.45 | AO21: 56.5 | AP21: 7.0625 | AQ21: 38.08 | AR21: 17.825 | AS21: 29.08 | AT21: 48.92 | AU21: 34.19 | AV21: 5.9275 | AW21: 13.9025 | AX21: 35.95 | AY21: 14.808172 | AZ21: 89.92 | BA21: 71.2 | BB21: 18.120167 | BC21: 16.7461 | BD21: 41.57 | BE21: 16.277334 | BF21: 56.6 | BG21: 35.19 | BH21: 9.0375 | BI21: 63.19 | BJ21: 22.015 | BK21: 30.17 | BL21: 17.586176 | BM21: 24.7 | BN21: 52.93 | BO21: 25.945 | BP21: 56.91 | BQ21: 8.9775 | BR21: 26.68 | BS21: 47.1 | BT21: 58.150047 | BU21: 10.055 | BV21: 20.47 | BW21: 34.45 | BX21: 32.39 | BY21: 21.656792 | BZ21: 7.7029166 | CA21: 60.46 | CB21: 54.25 | CC21: 41.46 | CD21: 30.58 | CE21: 16.01 | CF21: 40.6 | CG21: 48.45
A22: 20060630 | B22: 28.9 | C22: 38.68 | D22: 40.750782 | E22: 88.2 | F22: 54.84 | G22: 29.86 | H22: 16.275 | I22: 17.73 | J22: 41.74 | K22: 23.82 | L22: 35.27979 | M22: 8.833334 | N22: 24.74 | O22: 12.327517 | P22: 6.93 | Q22: 17.4 | R22: 52.72 | S22: 41.66 | T22: 54.89 | U22: 18.11 | V22: 35.79 | W22: 59.12 | X22: 77.86 | Y22: 24.98 | Z22: 43.613678 | AA22: 4.75 | AB22: 30.335 | AC22: 35.54121 | AD22: 33.6 | AE22: 40.8 | AF22: 70.35 | AG22: 25.83 | AH22: 10.125 | AI22: 36.5 | AJ22: 491.25 | AK22: 31.19 | AL22: 21.65 | AM22: 28.79 | AN22: 38.16 | AO22: 54.9 | AP22: 7.0125 | AQ22: 38.25 | AR22: 18.88 | AS22: 29.9 | AT22: 48.87 | AU22: 33.02 | AV22: 5.715 | AW22: 13.8175 | AX22: 37.1 | AY22: 15.982377 | AZ22: 82.65 | BA22: 73.3 | BB22: 18.073427 | BC22: 16.996077 | BD22: 41.28 | BE22: 15.242667 | BF22: 50.25 | BG22: 37.11 | BH22: 9.105 | BI22: 60.97 | BJ22: 21.51 | BK22: 29.95 | BL22: 17.204884 | BM22: 25 | BN22: 57.13 | BO22: 25.83 | BP22: 55.07 | BQ22: 9.285 | BR22: 30.6 | BS22: 48.43 | BT22: 59.137268 | BU22: 10.93 | BV22: 19.335 | BW22: 33.55 | BX22: 33.94 | BY22: 20.217367 | BZ22: 7.932083 | CA22: 60.04 | CB22: 55.6 | CC22: 44.7 | CD22: 30.56 | CE22: 14.86 | CF22: 44.84 | CG22: 48.17
A23: 20060731 | B23: 30.27 | C23: 26.89 | D23: 40.462635 | E23: 87.87 | F23: 45.34 | G23: 26.88 | H23: 15 | I23: 17.4 | J23: 38.96 | K23: 21.43 | L23: 30.2654 | M23: 8.866667 | N23: 22.74 | O23: 10.130533 | P23: 6.67 | Q23: 17.35 | R23: 47.495 | S23: 41.64 | T23: 57 | U23: 18.7 | V23: 34.71 | W23: 56.63 | X23: 62.03 | Y23: 22.82 | Z23: 43.967545 | AA23: 5.6 | AB23: 28.35 | AC23: 32.8001 | AD23: 35.39 | AE23: 35.54 | AF23: 69.02 | AG23: 26.36 | AH23: 9.875 | AI23: 34.3 | AJ23: 495 | AK23: 28.35 | AL23: 19.11 | AM23: 28.5 | AN23: 35.53 | AO23: 57.04 | AP23: 6.2225 | AQ23: 33.9 | AR23: 17.115 | AS23: 28.71 | AT23: 45.92 | AU23: 31.59 | AV23: 6.0925 | AW23: 11.435 | AX23: 34.57 | AY23: 15.958847 | AZ23: 77.19 | BA23: 64.01 | BB23: 16.17872 | BC23: 18.509823 | BD23: 44 | BE23: 15.669333 | BF23: 54.58 | BG23: 36.68 | BH23: 9.125 | BI23: 59.94 | BJ23: 22.25 | BK23: 29.66 | BL23: 16.730211 | BM23: 24.46 | BN23: 52.76 | BO23: 25.95 | BP23: 54.97 | BQ23: 9.4325 | BR23: 33.26 | BS23: 48.17 | BT23: 58.514263 | BU23: 11.465 | BV23: 18.66 | BW23: 35.06 | BX23: 35.725 | BY23: 21.198795 | BZ23: 7.6650004 | CA23: 63.38 | CB23: 56.2 | CC23: 44.63 | CD23: 27.6 | CE23: 14.15 | CF23: 46.78 | CG23: 44.5
A24: 20060831 | B24: 30.12 | C24: 30.83 | D24: 40.714764 | E24: 90.3 | F24: 47 | G24: 33.4 | H24: 14.1775 | I24: 18.845 | J24: 41.9 | K24: 21.93 | L24: 31.698084 | M24: 9.593334 | N24: 24.45 | O24: 11.708826 | P24: 8.37 | Q24: 16.81 | R24: 46.76 | S24: 41.33 | T24: 58.51 | U24: 20.3 | V24: 34.29 | W24: 62.51 | X24: 69.81 | Y24: 23.05 | Z24: 44.07567 | AA24: 5.1925 | AB24: 27.06 | AC24: 35.112328 | AD24: 35.9 | AE24: 35.68 | AF24: 70.88 | AG24: 26.99 | AH24: 10.095 | AI24: 37.35 | AJ24: 513.65 | AK24: 29.69 | AL24: 19.05 | AM24: 29.67 | AN24: 38.64 | AO24: 58.99 | AP24: 6.1225 | AQ24: 36.48 | AR24: 15.505 | AS24: 30.19 | AT24: 48.39 | AU24: 31.6 | AV24: 6.6875 | AW24: 10.645 | AX24: 37.62 | AY24: 16.445942 | AZ24: 80.91 | BA24: 77.41 | BB24: 17.573685 | BC24: 19.333818 | BD24: 41.17 | BE24: 16.422401 | BF24: 56.34 | BG24: 37.57 | BH24: 9.625 | BI24: 59.81 | BJ24: 22.405 | BK24: 29.93 | BL24: 18.519955 | BM24: 27.29 | BN24: 46.79 | BO24: 27.115 | BP24: 53.96 | BQ24: 9.1625 | BR24: 34.5 | BS24: 50.7 | BT24: 60.862503 | BU24: 11.905 | BV24: 18.43 | BW24: 36.42 | BX24: 35.15 | BY24: 22.186762 | BZ24: 4.59 | CA24: 65.28 | CB24: 61.9 | CC24: 48.63 | CD24: 31.39 | CE24: 14.73 | CF24: 49.46 | CG24: 44.72
A25: 20060929 | B25: 32.94 | C25: 32.12 | D25: 39.699055 | E25: 103.3 | F25: 53.56 | G25: 36.79 | H25: 14.2925 | I25: 20.855 | J25: 47.03 | K25: 23.95 | L25: 38.028744 | M25: 10.32 | N25: 25.65 | O25: 11.9361 | P25: 8.09 | Q25: 18.95 | R25: 48.78 | S25: 43.13 | T25: 62.75 | U25: 22.75 | V25: 36.27 | W25: 64.92 | X25: 68.35 | Y25: 25.03 | Z25: 44.47868 | AA25: 5.4925 | AB25: 28.06 | AC25: 36.02603 | AD25: 39.12 | AE25: 39.49 | AF25: 74.45 | AG25: 28.32 | AH25: 10.9525 | AI25: 42.3 | AJ25: 535 | AK25: 33.21 | AL25: 20.575 | AM25: 31.86 | AN25: 41.77 | AO25: 64.69 | AP25: 6.3525 | AQ25: 38.81 | AR25: 17.025 | AS25: 34.4 | AT25: 55.25 | AU25: 33.2 | AV25: 7.0075 | AW25: 12.065 | AX25: 40.02 | AY25: 17.165995 | AZ25: 84.11 | BA25: 68.01 | BB25: 18.713387 | BC25: 17.718231 | BD25: 37.88 | BE25: 16.352003 | BF25: 57.95 | BG25: 36.5 | BH25: 9.7775 | BI25: 63 | BJ25: 22.34 | BK25: 31.05 | BL25: 19.049097 | BM25: 28.78 | BN25: 49.68 | BO25: 28.3 | BP25: 53.45 | BQ25: 8.995 | BR25: 32.54 | BS25: 49.52 | BT25: 62.64525 | BU25: 11.57 | BV25: 20.165 | BW25: 37.98 | BX25: 34.45 | BY25: 23.331758 | BZ25: 5.4133334 | CA25: 65.26 | CB25: 61.98 | CC25: 47.95 | CD25: 33.45 | CE25: 15.88 | CF25: 44.39 | CG25: 49.32
A26: 20061031 | B26: 35.02 | C26: 38.09 | D26: 40.96689 | E26: 112 | F26: 55.25 | G26: 40.29 | H26: 14.375 | I26: 22.15 | J26: 48.82 | K26: 23.43 | L26: 37.518353 | M26: 10.363334 | N26: 27.18 | O26: 13.52281 | P26: 8.28 | Q26: 21.02 | R26: 53.41 | S26: 45.52 | T26: 68.63 | U26: 25.92 | V26: 37.33 | W26: 70.6 | X26: 76.2 | Y26: 23.35 | Z26: 46.67067 | AA26: 5.785 | AB26: 30.14 | AC26: 38.94429 | AD26: 41.92 | AE26: 43.02 | AF26: 72.7 | AG26: 28.78 | AH26: 11.485 | AI26: 47.35 | AJ26: 561.5 | AK26: 32.29 | AL26: 21.41 | AM26: 30.99 | AN26: 45.76 | AO26: 71 | AP26: 7.3575 | AQ26: 40.5 | AR26: 18.875 | AS26: 39.64 | AT26: 59.18 | AU26: 35.72 | AV26: 7.2375 | AW26: 12.105 | AX26: 38.65 | AY26: 17.886051 | AZ26: 86.93 | BA26: 73.54 | BB26: 21.377481 | BC26: 18.824608 | BD26: 38.5 | BE26: 15.400535 | BF26: 64.11 | BG26: 37.38 | BH26: 10.1425 | BI26: 64.56 | BJ26: 23.36 | BK26: 31.985 | BL26: 20.348606 | BM26: 27.49 | BN26: 53.38 | BO26: 28.41 | BP26: 52.91 | BQ26: 9.0275 | BR26: 36.19 | BS26: 50.31 | BT26: 63.757065 | BU26: 11.245 | BV26: 20.195 | BW26: 37.4 | BX26: 35.59 | BY26: 22.507362 | BZ26: 5.291667 | CA26: 63.44 | CB26: 63.39 | CC26: 49 | CD26: 34.98 | CE26: 14.45 | CF26: 43.68 | CG26: 49.28
A27: 20061130 | B27: 35.6 | C27: 40.34 | D27: 42.220318 | E27: 113.61 | F27: 54.97 | G27: 39.49 | H27: 14.45 | I27: 23.07 | J27: 48.99 | K27: 26.64 | L27: 35.951355 | M27: 10.003334 | N27: 27.46 | O27: 13.611195 | P27: 8.13 | Q27: 18.72 | R27: 50.89 | S27: 46.89 | T27: 73.77 | U27: 26.75 | V27: 37.97 | W27: 69.6 | X27: 91.56 | Y27: 23.78 | Z27: 51.6051 | AA27: 5.729975 | AB27: 30.16 | AC27: 42.095634 | AD27: 41.97 | AE27: 53.77 | AF27: 77.43 | AG27: 28.49 | AH27: 12.36875 | AI27: 49.02 | AJ27: 595 | AK27: 31.67 | AL27: 22.51 | AM27: 33.74 | AN27: 49.33 | AO27: 78.2 | AP27: 7.7375 | AQ27: 42.45 | AR27: 17.6475 | AS27: 43.21 | AT27: 58.09 | AU27: 38.43 | AV27: 6.855 | AW27: 11.9 | AX27: 44.02 | AY27: 18.446093 | AZ27: 85.3 | BA27: 87.85 | BB27: 21.999464 | BC27: 19.49121 | BD27: 35.1 | BE27: 14.816001 | BF27: 70.5 | BG27: 38.07 | BH27: 10.4775 | BI27: 64 | BJ27: 23.415 | BK27: 32.525 | BL27: 19.99844 | BM27: 27.98 | BN27: 52.3 | BO27: 27.975 | BP27: 52.97 | BQ27: 9.47 | BR27: 36.32 | BS27: 49.78 | BT27: 63.709145 | BU27: 10.73 | BV27: 20.645 | BW27: 38.72 | BX27: 35.54 | BY27: 22.932646 | BZ27: 4.6883335 | CA27: 61.97 | CB27: 62.79 | CC27: 48.08 | CD27: 35.85 | CE27: 15.89 | CF27: 40.49 | CG27: 46.1
A28: 20061229 | B28: 35.56 | C28: 39.46 | D28: 43.437725 | E28: 115.56 | F28: 49.19 | G28: 43.61 | H28: 14.755 | I28: 26.815 | J28: 49.05 | K28: 26.49 | L28: 35.96926 | M28: 10.033334 | N28: 28 | O28: 12.655801 | P28: 7.51 | Q28: 19.5 | R28: 55.66 | S28: 47.43 | T28: 70.47 | U28: 27.25 | V28: 40.16 | W28: 68.43 | X28: 89.48 | Y28: 23.9 | Z28: 51.56578 | AA28: 5.7475 | AB28: 31.15 | AC28: 44.49178 | AD28: 44.33 | AE28: 57.35 | AF28: 74.86 | AG28: 28.95 | AH28: 12.37875 | AI28: 49.34 | AJ28: 645 | AK28: 32.06 | AL28: 23.415 | AM28: 33.12 | AN28: 50.17 | AO28: 77.66 | AP28: 7.325 | AQ28: 41.38 | AR28: 17.71 | AS28: 42.96 | AT28: 57.05 | AU28: 39.24 | AV28: 7.13 | AW28: 11.1775 | AX28: 44.82 | AY28: 19.314394 | AZ28: 83.02 | BA28: 93.85 | BB28: 21.140194 | BC28: 19.863861 | BD28: 31.96 | BE28: 14.131202 | BF28: 72.51 | BG28: 38.89 | BH28: 10.6625 | BI28: 64.15 | BJ28: 24.125 | BK28: 32.62 | BL28: 21.010033 | BM28: 29.02 | BN28: 52.87 | BO28: 28.8 | BP28: 49.8 | BQ28: 9.335 | BR28: 34.54 | BS28: 50.06 | BT28: 65.12767 | BU28: 11.535 | BV28: 20.41 | BW28: 38.56 | BX28: 38.22 | BY28: 23.357931 | BZ28: 5.6133337 | CA28: 62.55 | CB28: 64.27 | CC28: 48.47 | CD28: 36.76 | CE28: 16.45 | CF28: 45.89 | CG28: 46.18
A29: 20070131 | B29: 37.95 | C29: 37.67 | D29: 43.466537 | E29: 125.63 | F29: 50.4 | G29: 42.62 | H29: 17.135 | I29: 28.715 | J29: 51.56 | K29: 29.06 | L29: 35.046974 | M29: 10.483334 | N29: 28.57 | O29: 13.632238 | P29: 8.13 | Q29: 19.17 | R29: 50.22 | S29: 47.52 | T29: 68.27 | U29: 28.4 | V29: 40.74 | W29: 70.91 | X29: 104.07 | Y29: 24.24 | Z29: 53.453053 | AA29: 5.355 | AB29: 33.71 | AC29: 44.883358 | AD29: 44.35 | AE29: 69.97 | AF29: 82.42 | AG29: 29.54 | AH29: 12.35125 | AI29: 55.71 | AJ29: 692.52 | AK29: 34.91 | AL29: 23.38 | AM29: 34.34 | AN29: 55.15 | AO29: 82.05 | AP29: 8.0975 | AQ29: 44.93 | AR29: 17.47 | AS29: 45.86 | AT29: 61.36 | AU29: 39.26 | AV29: 7.3925 | AW29: 12.5825 | AX29: 46.25 | AY29: 17.853107 | AZ29: 91.43 | BA29: 111.74 | BB29: 21.575222 | BC29: 20.227253 | BD29: 32 | BE29: 13.992533 | BF29: 76.95 | BG29: 38.48 | BH29: 11.3275 | BI29: 65.42 | BJ29: 23.94 | BK29: 34.15 | BL29: 20.00622 | BM29: 24.74 | BN29: 56.16 | BO29: 28.62 | BP29: 51.04 | BQ29: 9.475 | BR29: 34.25 | BS29: 49.27 | BT29: 66.51745 | BU29: 12.8 | BV29: 23.75 | BW29: 39.04 | BX29: 40.4 | BY29: 22.847588 | BZ29: 6.3483334 | CA29: 65.24 | CB29: 64.87 | CC29: 47.49 | CD29: 34.55 | CE29: 17.75 | CF29: 45.3 | CG29: 47.69
A30: 20070228 | B30: 37.65 | C30: 39.14 | D30: 41.067738 | E30: 125.46 | F30: 46.48 | G30: 52.41 | H30: 18.41 | I30: 26.35 | J30: 46.44 | K30: 25.36 | L30: 36.703514 | M30: 11.370001 | N30: 30.86 | O30: 13.493349 | P30: 7.91 | Q30: 19.19 | R30: 54.76 | S30: 48.73 | T30: 65.86 | U30: 28.27 | V30: 39.59 | W30: 69 | X30: 86.34 | Y30: 23.81 | Z30: 48.35152 | AA30: 5.43 | AB30: 32.55 | AC30: 44.66892 | AD30: 43.69 | AE30: 71.06 | AF30: 87.52 | AG30: 30.61 | AH30: 13.05875 | AI30: 52.98 | AJ30: 676.85 | AK30: 34.43 | AL30: 23.945 | AM30: 29.56 | AN30: 54.84 | AO30: 86.98 | AP30: 8.1925 | AQ30: 40.53 | AR30: 15.45 | AS30: 47.19 | AT30: 61.53 | AU30: 43.53 | AV30: 6.875 | AW30: 12.7925 | AX30: 51.96 | AY30: 18.756704 | AZ30: 88.21 | BA30: 98.02 | BB30: 20.831 | BC30: 19.507412 | BD30: 34.35 | BE30: 13.952003 | BF30: 79.27 | BG30: 40.86 | BH30: 11.9875 | BI30: 63.39 | BJ30: 23.34 | BK30: 33.705 | BL30: 19.617146 | BM30: 23.46 | BN30: 55.89 | BO30: 28.16 | BP30: 52.9 | BQ30: 9.1225 | BR30: 31.96 | BS30: 49.84 | BT30: 65.1756 | BU30: 12.82 | BV30: 23.935 | BW30: 38.29 | BX30: 42.22 | BY30: 20.891281 | BZ30: 5.8333335 | CA30: 63.15 | CB30: 63.49 | CC30: 49.54 | CD30: 32.96 | CE30: 18.25 | CF30: 44.7 | CG30: 48.31
A31: 20070330 | B31: 38.55 | C31: 39.79 | D31: 41.139774 | E31: 128.14 | F31: 48.72 | G31: 53.26 | H31: 18.855 | I31: 24.54 | J31: 46.86 | K31: 22 | L31: 36.8826 | M31: 12.746668 | N31: 32.47 | O31: 13.952106 | P31: 7.89 | Q31: 17.21 | R31: 54.15 | S31: 49 | T31: 58.75 | U31: 28.62 | V31: 36.74 | W31: 76.61 | X31: 86.61 | Y31: 22.67 | Z31: 41.490498 | AA31: 5.465 | AB31: 31.49 | AC31: 45.64789 | AD31: 45.05 | AE31: 69.52 | AF31: 82.05 | AG31: 31.09 | AH31: 13.2825 | AI31: 52.94 | AJ31: 665 | AK31: 33.1 | AL31: 23.99 | AM31: 26.46 | AN31: 58.8 | AO31: 88.15 | AP31: 8.6 | AQ31: 42.16 | AR31: 15.68 | AS31: 50.05 | AT31: 59.26 | AU31: 45.48 | AV31: 6.74 | AW31: 12.875 | AX31: 54.33 | AY31: 19.441462 | AZ31: 84.91 | BA31: 94.86 | BB31: 20.766285 | BC31: 20.324463 | BD31: 36.7 | BE31: 13.986133 | BF31: 82.22 | BG31: 38.95 | BH31: 12.5875 | BI31: 63.69 | BJ31: 24 | BK31: 33.395 | BL31: 19.383701 | BM31: 21.18 | BN31: 53.84 | BO31: 29.11 | BP31: 54.66 | BQ31: 9.2975 | BR31: 35.59 | BS31: 51.43 | BT31: 65.64524 | BU31: 14.125 | BV31: 24.425 | BW31: 38.52 | BX31: 47.31 | BY31: 20.714624 | BZ31: 6.3133335 | CA31: 63.56 | CB31: 63.16 | CC31: 53.32 | CD31: 33.83 | CE31: 19.41 | CF31: 45.89 | CG31: 46.95
A32: 20070430 | B32: 41.2 | C32: 61.33 | D32: 41.88895 | E32: 133.04 | F32: 46.65 | G32: 55.64 | H32: 19.4775 | I32: 24.92 | J32: 48.89 | K32: 22.18 | L32: 37.142273 | M32: 13.106667 | N32: 32.25 | O32: 14.284598 | P32: 8.04 | Q32: 17.95 | R32: 58.19 | S32: 49.41 | T32: 63.32 | U32: 31.61 | V32: 37.87 | W32: 74.04 | X32: 85.19 | Y32: 23.52 | Z32: 41.981976 | AA32: 5.645 | AB32: 30.56 | AC32: 42.151573 | AD32: 48.28 | AE32: 67.25 | AF32: 90.16 | AG32: 30.67 | AH32: 13.465 | AI32: 54.92 | AJ32: 824 | AK32: 35.6 | AL32: 25.265 | AM32: 26.9 | AN32: 55.9 | AO32: 92.11 | AP32: 8.2875 | AQ32: 41.57 | AR32: 15.51 | AS32: 48.83 | AT32: 59.37 | AU32: 47.69 | AV32: 6.9725 | AW32: 12.935 | AX32: 57.02 | AY32: 20.66273 | AZ32: 106.03 | BA32: 102.21 | BB32: 22.240347 | BC32: 21.255703 | BD32: 38.7 | BE32: 13.6384 | BF32: 75.76 | BG32: 39.1 | BH32: 12.6825 | BI32: 67.08 | BJ32: 26.095 | BK32: 33.87 | BL32: 19.126911 | BM32: 22.41 | BN32: 53.57 | BO32: 29.95 | BP32: 54.96 | BQ32: 9.5225 | BR32: 39.82 | BS32: 52.91 | BT32: 68.21393 | BU32: 14.755 | BV32: 25.71 | BW32: 37.12 | BX32: 47.14 | BY32: 21.898878 | BZ32: 6.366667 | CA32: 66.09 | CB32: 64.4 | CC32: 55.82 | CD32: 32.74 | CE32: 20.96 | CF32: 43.9 | CG32: 47.92
A33: 20070531 | B33: 41.42 | C33: 69.14 | D33: 43.00551 | E33: 128.63 | F33: 48.29 | G33: 61.8399 | H33: 21.04 | I33: 24 | J33: 50.44 | K33: 23.37 | L33: 40.804565 | M33: 14.103334 | N33: 19.62 | O33: 13.703788 | P33: 8.34 | Q33: 18.52 | R33: 64.33 | S33: 51.32 | T33: 61.09 | U33: 32.15 | V33: 38.87 | W33: 75.32 | X33: 78.02 | Y33: 24.47 | Z33: 44.871864 | AA33: 6.2425 | AB33: 32.82 | AC33: 42.934746 | AD33: 50.55 | AE33: 79.53 | AF33: 102.06 | AG33: 31.77 | AH33: 14.1875 | AI33: 51.93 | AJ33: 797 | AK33: 37.99 | AL33: 27.545 | AM33: 27.29 | AN33: 61.12 | AO33: 97.53 | AP33: 8.21 | AQ33: 43.48 | AR33: 14.405 | AS33: 51.36 | AT33: 62.43 | AU33: 52.57 | AV33: 6.9925 | AW33: 13.3025 | AX33: 59.95 | AY33: 22.067541 | AZ33: 111.65 | BA33: 96.5 | BB33: 24.347176 | BC33: 21.92804 | BD33: 35.04 | BE33: 14.562134 | BF33: 78.12 | BG33: 39.7 | BH33: 12.5025 | BI33: 67.14 | BJ33: 26.495 | BK33: 33.48 | BL33: 19.84281 | BM33: 24.3 | BN33: 56.47 | BO33: 30.62 | BP33: 52.71 | BQ33: 9.3625 | BR33: 41.03 | BS33: 53.98 | BT33: 68.01265 | BU33: 15.16 | BV33: 23.65 | BW33: 37.29 | BX33: 45.785 | BY33: 22.140963 | BZ33: 6.633333 | CA33: 68.33 | CB33: 63.55 | CC33: 57.7 | CD33: 33.12 | CE33: 22.29 | CF33: 45.13 | CG33: 47.6
A34: 20070629 | B34: 40.53 | C34: 68.41 | D34: 40.96689 | E34: 136.62 | F34: 46.67 | G34: 68.74 | H34: 21.51 | I34: 25.5 | J34: 48.77 | K34: 19.93 | L34: 39.389793 | M34: 14.516666 | N34: 18.27 | O34: 13.543854 | P34: 9.42 | Q34: 19.1 | R34: 73.97 | S34: 49.6 | T34: 59.61 | U34: 31.41 | V34: 39.35 | W34: 71.03 | X34: 76.39 | Y34: 22.05 | Z34: 35.93681 | AA34: 6.165 | AB34: 30.69 | AC34: 40.314846 | AD34: 50.76 | AE34: 82.48 | AF34: 100.79 | AG34: 29.43 | AH34: 14.5725 | AI34: 51.12 | AJ34: 679.75 | AK34: 36.55 | AL34: 27.08 | AM34: 22.45 | AN34: 60.57 | AO34: 98.11 | AP34: 7.7 | AQ34: 42.98 | AR34: 13.12 | AS34: 47.39 | AT34: 63.6 | AU34: 53.06 | AV34: 6.875 | AW34: 13.0125 | AX34: 60.87 | AY34: 21.549856 | AZ34: 111.2 | BA34: 89.6499 | BB34: 23.527454 | BC34: 21.631964 | BD34: 33.09 | BE34: 15.590401 | BF34: 84.5 | BG34: 38.81 | BH34: 12.115 | BI34: 62.1 | BJ34: 26.155 | BK34: 32.425 | BL34: 20.901093 | BM34: 24.28 | BN34: 58.52 | BO34: 29.21 | BP34: 50.62 | BQ34: 9.3375 | BR34: 45.45 | BS34: 51.79 | BT34: 64.111694 | BU34: 14.065 | BV34: 22.755 | BW34: 38.18 | BX34: 46.23 | BY34: 23.063503 | BZ34: 7.1633334 | CA34: 64.85 | CB34: 61.19 | CC34: 63.66 | CD34: 32.99 | CE34: 23.04 | CF34: 43.54 | CG34: 48.11
A35: 20070731 | B35: 34.77 | C35: 78.54 | D35: 40.28975 | E35: 126.81 | F35: 44.59 | G35: 63.8 | H35: 21.6125 | I35: 23.93 | J35: 44.31 | K35: 16.32 | L35: 38.118286 | M35: 12.753333 | N35: 19.15 | O35: 13.636448 | P35: 8.51 | Q35: 17.2 | R35: 83.9 | S35: 47.58 | T35: 57.32 | U35: 28.02 | V35: 37.17 | W35: 60.8 | X35: 87.25 | Y35: 20.73 | Z35: 30.137377 | AA35: 7.1075 | AB35: 28.01 | AC35: 38.739174 | AD35: 47.87 | AE35: 73.11 | AF35: 90.01 | AG35: 26.45 | AH35: 14.1125 | AI35: 47.58 | AJ35: 578.48 | AK35: 33.31 | AL35: 24.68 | AM35: 19.34 | AN35: 52.06 | AO35: 89.35 | AP35: 7.2325 | AQ35: 38.53 | AR35: 13.34 | AS35: 45.46 | AT35: 60.57 | AU35: 48.25 | AV35: 6.9375 | AW35: 11.88 | AX35: 53.55 | AY35: 20.1874 | AZ35: 102.11 | BA35: 96.56 | BB35: 23.038498 | BC35: 20.500095 | BD35: 33.6 | BE35: 14.173868 | BF35: 90.61 | BG35: 36.83 | BH35: 12.265 | BI35: 60.46 | BJ35: 26.055 | BK35: 33 | BL35: 19.726088 | BM35: 21.93 | BN35: 59.8 | BO35: 27.81 | BP35: 46.1 | BQ35: 8.605 | BR35: 44.62 | BS35: 51.81 | BT35: 64.475914 | BU35: 12.98 | BV35: 22.51 | BW35: 34.16 | BX35: 44.47 | BY35: 21.427794 | BZ35: 6.758333 | CA35: 65.62 | CB35: 61.86 | CC35: 55.81 | CD35: 31.88 | CE35: 21.3 | CF35: 44.18 | CG35: 45.95
A36: 20070831 | B36: 35.56 | C36: 79.91 | D36: 41.32707 | E36: 121.29 | F36: 43.95 | G36: 82.98 | H36: 21.125 | I36: 22.66 | J36: 45.59 | K36: 15.11 | L36: 37.24972 | M36: 14.483334 | N36: 17.59 | O36: 14.351939 | P36: 7.81 | Q36: 18.76 | R36: 101.83 | S36: 49.68 | T36: 53.79 | U36: 28.21 | V36: 38.31 | W36: 59.3 | X36: 99.7 | Y36: 20.4 | Z36: 27.788118 | AA36: 7.745 | AB36: 31.06 | AC36: 41.415012 | AD36: 49.25 | AE36: 83.97 | AF36: 87.31 | AG36: 25.79 | AH36: 14.085 | AI36: 48.1 | AJ36: 559.5 | AK36: 35.54 | AL36: 23.875 | AM36: 16.64 | AN36: 58.23 | AO36: 75.54 | AP36: 6.9575 | AQ36: 38.03 | AR36: 13.775 | AS36: 44.53 | AT36: 65.93 | AU36: 51.33 | AV36: 7.6225 | AW36: 12.04 | AX36: 57.18 | AY36: 18.789648 | AZ36: 96.41 | BA36: 123.73 | BB36: 23.527454 | BC36: 21.406826 | BD36: 33.7 | BE36: 15.266133 | BF36: 91.44 | BG36: 37.75 | BH36: 11.2325 | BI36: 59.8 | BJ36: 26.89 | BK36: 33.16 | BL36: 20.00622 | BM36: 24.18 | BN36: 61.75 | BO36: 27.94 | BP36: 46.5 | BQ36: 8.9075 | BR36: 45.2 | BS36: 54.93 | BT36: 65.83694 | BU36: 13.29 | BV36: 20.795 | BW36: 35.84 | BX36: 44.73 | BY36: 20.976337 | BZ36: 7.485 | CA36: 68.03 | CB36: 65.31 | CC36: 55.01 | CD36: 33.38 | CE36: 21.55 | CF36: 45.07 | CG36: 43.63
A37: 20070928 | B37: 33.56 | C37: 93.15 | D37: 43.041527 | E37: 116.14 | F37: 46.02 | G37: 88.75 | H37: 22.8825 | I37: 20.33 | J37: 48.43 | K37: 12.81 | L37: 37.482533 | M37: 13.513334 | N37: 16.59 | O37: 16.422659 | P37: 8.49 | Q37: 18.44 | R37: 119.4 | S37: 50 | T37: 46.21 | U37: 27.88 | V37: 32.44 | W37: 57.33 | X37: 133.42 | Y37: 19.16 | Z37: 22.263914 | AA37: 8.7025 | AB37: 28.02 | AC37: 40.529285 | AD37: 54.47 | AE37: 89.44 | AF37: 81.3 | AG37: 28.82 | AH37: 14.665 | AI37: 46.89 | AJ37: 470.25 | AK37: 33.41 | AL37: 21.81 | AM37: 13.61 | AN37: 52.48 | AO37: 77.75 | AP37: 6.41 | AQ37: 39.03 | AR37: 13.1 | AS37: 47.27 | AT37: 63.57 | AU37: 52.35 | AV37: 7.2675 | AW37: 11.5225 | AX37: 62.29 | AY37: 19.001429 | AZ37: 89.1 | BA37: 157.56 | BB37: 24.325605 | BC37: 21.443832 | BD37: 33.08 | BE37: 15.980802 | BF37: 107.45 | BG37: 37 | BH37: 11.76 | BI37: 60.99 | BJ37: 28.735 | BK37: 35.66 | BL37: 20.333042 | BM37: 24.21 | BN37: 61.37 | BO37: 29.005 | BP37: 46.41 | BQ37: 8.945 | BR37: 45.87 | BS37: 56 | BT37: 67.34173 | BU37: 14.26 | BV37: 21.23 | BW37: 35.97 | BX37: 49.835 | BY37: 22.579332 | BZ37: 9.446667 | CA37: 73.26 | CB37: 70.34 | CC37: 53.42 | CD37: 35.59 | CE37: 17.85 | CF37: 47.24 | CG37: 43.65
A38: 20071031 | B38: 34.12 | C38: 89.15 | D38: 45.512363 | E38: 124.41 | F38: 48.52 | G38: 93.1 | H38: 26.4275 | I38: 20.87 | J38: 47.98 | K38: 12.69 | L38: 38.50332 | M38: 12.766666 | N38: 15.44 | O38: 15.193695 | P38: 8.87 | Q38: 18.9 | R38: 107.4 | S38: 49.07 | T38: 51.5 | U38: 29.85 | V38: 31.51 | W38: 54.97 | X38: 133.08 | Y38: 19.43 | Z38: 22.460505 | AA38: 9.64 | AB38: 26.89 | AC38: 38.328938 | AD38: 59.7499 | AE38: 91.61 | AF38: 85.34 | AG38: 29.16 | AH38: 16.565 | AI38: 39.44 | AJ38: 475.75 | AK38: 33.02 | AL38: 24.59 | AM38: 14.84 | AN38: 47.8 | AO38: 68.8 | AP38: 6.755 | AQ38: 42.88 | AR38: 13.34 | AS38: 36.56 | AT38: 61.36 | AU38: 54.18 | AV38: 7.2325 | AW38: 10.36 | AX38: 60.69 | AY38: 20.502718 | AZ38: 79.18 | BA38: 161.43 | BB38: 28.956314 | BC38: 22.492432 | BD38: 35.78 | BE38: 15.782401 | BF38: 115.19 | BG38: 36.98 | BH38: 11.8275 | BI38: 62.57 | BJ38: 30.88 | BK38: 38.135 | BL38: 18.465485 | BM38: 25.12 | BN38: 67.26 | BO38: 28.865 | BP38: 43.11 | BQ38: 9.12 | BR38: 42.54 | BS38: 52.79 | BT38: 67.94556 | BU38: 14.695 | BV38: 21.95 | BW38: 35.03 | BX38: 57.23 | BY38: 21.859621 | BZ38: 11.333334 | CA38: 73.72 | CB38: 69.52 | CC38: 53.43 | CD38: 34.29 | CE38: 15.8 | CF38: 39.65 | CG38: 45.21
A39: 20071130 | B39: 35.96 | C39: 90.56 | D39: 42.069042 | E39: 111.63 | F39: 51.05 | G39: 113.8 | H39: 24.1525 | I39: 22.87 | J39: 45.12 | K39: 11.97 | L39: 35.629 | M39: 9.553333 | N39: 13.86 | O39: 14.112039 | P39: 7.51 | Q39: 20.4 | R39: 107.35 | S39: 48.05 | T39: 48.02 | U39: 27.77 | V39: 28.56 | W39: 49.28 | X39: 113.4 | Y39: 20.58 | Z39: 15.569996 | AA39: 9.9275 | AB39: 24.41 | AC39: 34.96315 | AD39: 58.47 | AE39: 86.5 | AF39: 80.44 | AG39: 26.78 | AH39: 16.4125 | AI39: 33.54 | AJ39: 492 | AK39: 32.86 | AL39: 22.78 | AM39: 10.22 | AN39: 42.42 | AO39: 68.98 | AP39: 6.595 | AQ39: 40.56 | AR39: 11.695 | AS39: 37.14 | AT39: 59.97 | AU39: 46.43 | AV39: 7.335 | AW39: 10.255 | AX39: 55.51 | AY39: 17.59897 | AZ39: 80.96 | BA39: 126.94 | BB39: 26.712866 | BC39: 23.920376 | BD39: 36.35 | BE39: 15.069867 | BF39: 112.34 | BG39: 36.72 | BH39: 14.03 | BI39: 64.88 | BJ39: 31.05 | BK39: 40.04 | BL39: 19.469297 | BM39: 23.55 | BN39: 67.4 | BO39: 30.075 | BP39: 39.91 | BQ39: 9.9375 | BR39: 39.33 | BS39: 54.04 | BT39: 66.910416 | BU39: 14.375 | BV39: 22.44 | BW39: 38.21 | BX39: 53.84 | BY39: 22.605503 | BZ39: 7.235 | CA39: 77.18 | CB39: 74 | CC39: 49.13 | CD39: 32.51 | CE39: 14.91 | CF39: 36.59 | CG39: 47.9
A40: 20071231 | B40: 37.99 | C40: 92.64 | D40: 37.97019 | E40: 119.91 | F40: 52.65 | G40: 114.86 | H40: 24.205 | I40: 19.75 | J40: 44.49 | K40: 13.17 | L40: 24.812254 | M40: 8.64 | N40: 13.23 | O40: 13.96894 | P40: 6.73 | Q40: 21.28 | R40: 97 | S40: 46.3 | T40: 46.71 | U40: 25.58 | V40: 26.94 | W40: 45.8 | X40: 103.05 | Y40: 17.44 | Z40: 17.58505 | AA40: 10.51 | AB40: 22.62 | AC40: 31.86775 | AD40: 58.91 | AE40: 84.02 | AF40: 74.4 | AG40: 25.88 | AH40: 16.06 | AI40: 36.73 | AJ40: 524 | AK40: 32.43 | AL40: 23.885 | AM40: 10.54 | AN40: 36.86 | AO40: 61.79 | AP40: 6.3925 | AQ40: 42.44 | AR40: 10.235 | AS40: 30.58 | AT40: 50 | AU40: 46.03 | AV40: 7.1825 | AW40: 8.985 | AX40: 53.81 | AY40: 16.15651 | AZ40: 81.63 | BA40: 112.13 | BB40: 27.518206 | BC40: 23.309723 | BD40: 46.43 | BE40: 15.810135 | BF40: 116.41 | BG40: 35.73 | BH40: 13.5175 | BI40: 65.17 | BJ40: 30.685 | BK40: 38.98 | BL40: 18.512175 | BM40: 23.64 | BN40: 69.76 | BO40: 28.5 | BP40: 39.4 | BQ40: 10.12 | BR40: 36.75 | BS40: 52.43 | BT40: 66.45993 | BU40: 13.355 | BV40: 21.805 | BW40: 37.91 | BX40: 51.62 | BY40: 21.34928 | BZ40: 7.381667 | CA40: 75.9 | CB40: 73.42 | CC40: 51.44 | CD40: 31.21 | CE40: 15.33 | CF40: 38.08 | CG40: 47.53
A41: 20080131 | B41: 35.78 | C41: 77.7 | D41: 36.16929 | E41: 120.65 | F41: 48.73 | G41: 108.52 | H41: 25.305 | I41: 22.11 | J41: 44.4 | K41: 17.26 | L41: 25.36742 | M41: 9.336667 | N41: 13.61 | O41: 11.317409 | P41: 6.64 | Q41: 19.09 | R41: 72.15 | S41: 43.93 | T41: 40.64 | U41: 25.97 | V41: 30.64 | W41: 45.53 | X41: 87.75 | Y41: 18.98 | Z41: 20.189882 | AA41: 8.945 | AB41: 26.43 | AC41: 33.52733 | AD41: 53.58 | AE41: 72.72 | AF41: 79.92 | AG41: 24.06 | AH41: 15.3325 | AI41: 38.85 | AJ41: 631.5 | AK41: 29.43 | AL41: 21.785 | AM41: 16.35 | AN41: 42.09 | AO41: 60.68 | AP41: 7.2875 | AQ41: 40.22 | AR41: 9.455 | AS41: 32.06 | AT41: 55.42 | AU41: 39.79 | AV41: 7.9025 | AW41: 9.635 | AX41: 47.12 | AY41: 18.189604 | AZ41: 85.29 | BA41: 114.98 | BB41: 24.562893 | BC41: 23.374489 | BD41: 43.98 | BE41: 13.265067 | BF41: 117.03 | BG41: 31.56 | BH41: 13.305 | BI41: 61.34 | BJ41: 29.5 | BK41: 38.25 | BL41: 16.714647 | BM41: 20.9 | BN41: 67.94 | BO41: 27.26 | BP41: 36.17 | BQ41: 9.685 | BR41: 33.8 | BS41: 47.8 | BT41: 62.90403 | BU41: 12.725 | BV41: 21.11 | BW41: 33.61 | BX41: 44.67 | BY41: 19.150887 | BZ41: 6.426667 | CA41: 68.05 | CB41: 65.42 | CC41: 46.78 | CD41: 29 | CE41: 14.22 | CF41: 35.04 | CG41: 50.74
A42: 20080229 | B42: 33.54 | C42: 64.47 | D42: 35.94598 | E42: 115.08 | F42: 43.01 | G42: 114.02 | H42: 21.555 | I42: 18.36 | J42: 39.35 | K42: 14.03 | L42: 27.605984 | M42: 8.943334 | N42: 13.25 | O42: 11.094344 | P42: 6.53 | Q42: 20.17 | R42: 58.71 | S42: 41.25 | T42: 37.16 | U42: 25.77 | V42: 26.55 | W42: 44.44 | X42: 83.3 | Y42: 16.7 | Z42: 18.29278 | AA42: 10.62 | AB42: 23.97 | AC42: 31.793154 | AD42: 54.11 | AE42: 61.59 | AF42: 71.41 | AG42: 22.7 | AH42: 15.05 | AI42: 37.03 | AJ42: 540.68 | AK42: 26.96 | AL42: 19.09 | AM42: 13.54 | AN42: 36.51 | AO42: 62.19 | AP42: 6.9625 | AQ42: 35.01 | AR42: 8.989 | AS42: 30.32 | AT42: 52.61 | AU42: 37.64 | AV42: 8 | AW42: 9.36 | AX42: 45.25 | AY42: 17.89311 | AZ42: 84.37 | BA42: 100.7 | BB42: 24.771418 | BC42: 22.557198 | BD42: 45.1 | BE42: 13.604268 | BF42: 110.84 | BG42: 32.29 | BH42: 13.365 | BI42: 58.19 | BJ42: 29.23 | BK42: 38.045 | BL42: 17.197102 | BM42: 19.21 | BN42: 61.92 | BO42: 27.995 | BP42: 37.08 | BQ42: 10.215 | BR42: 36.71 | BS42: 50.72 | BT42: 62.472725 | BU42: 12.125 | BV42: 21.29 | BW42: 34.45 | BX42: 53.96 | BY42: 20.394026 | BZ42: 6.916667 | CA42: 69.56 | CB42: 66.18 | CC42: 51.19 | CD42: 28.06 | CE42: 14.41 | CF42: 36.51 | CG42: 49.59
A43: 20080331 | B43: 34.05 | C43: 71.3 | D43: 36.162086 | E43: 113.83 | F43: 41.46 | G43: 120.86 | H43: 21.515 | I43: 19.42 | J43: 40.48 | K43: 15.75 | L43: 29.146116 | M43: 9.196667 | N43: 13.49 | O43: 12.558999 | P43: 5.72 | Q43: 19.68 | R43: 54.01 | S43: 40.22 | T43: 37.5 | U43: 27.9 | V43: 27.97 | W43: 42.89 | X43: 73.64 | Y43: 15.25 | Z43: 18.489368 | AA43: 11.235 | AB43: 22.94 | AC43: 32.03557 | AD43: 55.77 | AE43: 58.77 | AF43: 71.61 | AG43: 22.87 | AH43: 17 | AI43: 32.6 | AJ43: 597.5 | AK43: 28.52 | AL43: 20.505 | AM43: 14.55 | AN43: 37.92 | AO43: 58.29 | AP43: 7.49 | AQ43: 32.9 | AR43: 8.75 | AS43: 30.15 | AT43: 50.68 | AU43: 41.84 | AV43: 8.2675 | AW43: 9.88 | AX43: 48.29 | AY43: 18.23902 | AZ43: 86.78 | BA43: 100.64 | BB43: 26.756006 | BC43: 22.2 | BD43: 41.16 | BE43: 14.126935 | BF43: 86.88 | BG43: 33.95 | BH43: 13.56 | BI43: 56.64 | BJ43: 30.435 | BK43: 38.955 | BL43: 18.636679 | BM43: 17.67 | BN43: 64.97 | BO43: 29.94 | BP43: 37.67 | BQ43: 10.415 | BR43: 37.14 | BS43: 52.56 | BT43: 61.868893 | BU43: 12.7 | BV43: 22.925 | BW43: 36.97 | BX43: 52.57 | BY43: 20.28934 | BZ43: 5.883333 | CA43: 72.2 | CB43: 70.07 | CC43: 50.61 | CD43: 29.02 | CE43: 15.95 | CF43: 38.09 | CG43: 52.68
A44: 20080430 | B44: 34.68 | C44: 78.63 | D44: 44.114864 | E44: 120.75 | F44: 43.02 | G44: 127.64 | H44: 24.575 | I44: 20.75 | J44: 40.17 | K44: 15.49 | L44: 31.85926 | M44: 10.533334 | N44: 13.28 | O44: 13.169272 | P44: 8.26 | Q44: 18.62 | R44: 40.9 | S44: 42.46 | T44: 38.25 | U44: 35.56 | V44: 28.8 | W44: 48.85 | X44: 76.22 | Y44: 16.6 | Z44: 18.106018 | AA44: 10.88 | AB44: 25.19 | AC44: 31.979628 | AD44: 59.58 | AE44: 51.15 | AF44: 76.19 | AG44: 20.53 | AH44: 16.7 | AI44: 35.26 | AJ44: 613.5 | AK44: 28.87 | AL44: 23.275 | AM44: 13.04 | AN44: 42.21 | AO44: 62.11 | AP44: 8.3725 | AQ44: 31.9 | AR44: 8.115 | AS44: 35.57 | AT44: 53.13 | AU44: 43.54 | AV44: 8.055 | AW44: 8.89 | AX44: 48.83 | AY44: 17.502491 | AZ44: 72.78 | BA44: 105.34 | BB44: 29.251125 | BC44: 20 | BD44: 44.06 | BE44: 14.510933 | BF44: 114.09 | BG44: 34.8 | BH44: 14.205 | BI44: 53 | BJ44: 29.435 | BK44: 35.35 | BL44: 18.333199 | BM44: 18.36 | BN44: 71.25 | BO44: 30.2 | BP44: 37.38 | BQ44: 9.8525 | BR44: 46.38 | BS44: 51.17 | BT44: 61.332153 | BU44: 13.625 | BV44: 22.805 | BW44: 37.79 | BX44: 54.84 | BY44: 20.694994 | BZ44: 5.8983335 | CA44: 68.53 | CB44: 67.05 | CC44: 49.88 | CD44: 30.57 | CE44: 17.8 | CF44: 34.85 | CG44: 57.98
A45: 20080530 | B45: 40.3 | C45: 81.62 | D45: 39.382095 | E45: 126.56 | F45: 46.69 | G45: 134.53 | H45: 25.855 | I45: 19.66 | J45: 40.06 | K45: 12.71 | L45: 30.668343 | M45: 12.300001 | N45: 13.46 | O45: 12.6305485 | P45: 6.8 | Q45: 18.25 | R45: 48.65 | S45: 44.01 | T45: 41.57 | U45: 36.24 | V45: 27.36 | W45: 44.8 | X45: 69.44 | Y45: 19.1 | Z45: 16.592268 | AA45: 11.08 | AB45: 24 | AC45: 30.683659 | AD45: 59.32 | AE45: 49.21 | AF45: 75.08 | AG45: 20.08 | AH45: 17.0925 | AI45: 34.98 | AJ45: 565.37 | AK45: 26.15 | AL45: 23.86 | AM45: 12.23 | AN45: 45.43 | AO45: 69.85 | AP45: 9.155 | AQ45: 29.72 | AR45: 9.095 | AS45: 36.3 | AT45: 53.36 | AU45: 49.03 | AV45: 8.015 | AW45: 8.5425 | AX45: 49.79 | AY45: 17.813103 | AZ45: 73.68 | BA45: 100.03 | BB45: 28.546453 | BC45: 22.26 | BD45: 39.7 | BE45: 16.0384 | BF45: 119.37 | BG45: 33.48 | BH45: 14.2325 | BI45: 57.13 | BJ45: 28.63 | BK45: 37.18 | BL45: 18.348763 | BM45: 21.32 | BN45: 71.32 | BO45: 31.6 | BP45: 39.19 | BQ45: 9.4475 | BR45: 47.01 | BS45: 51.81 | BT45: 61.150043 | BU45: 13.82 | BV45: 23.8 | BW45: 37.58 | BX45: 58 | BY45: 21.251137 | BZ45: 5.206667 | CA45: 68.3 | CB45: 66.05 | CC45: 52.79 | CD45: 30.86 | CE45: 18.84 | CF45: 36.02 | CG45: 57.74
A46: 20080630 | B46: 38.83 | C46: 73.33 | D46: 33.583195 | E46: 121.01 | F46: 39.6 | G46: 115.46 | H46: 22.19 | I46: 14.19 | J46: 32.96 | K46: 10.85 | L46: 28.599909 | M46: 10.896667 | N46: 11.5 | O46: 11.502596 | P46: 4.81 | Q46: 16.67 | R46: 42.84 | S46: 39.68 | T46: 36.26 | U46: 35.72 | V46: 23.42 | W46: 40.04 | X46: 47.44 | Y46: 16.77 | Z46: 12.129656 | AA46: 9.035 | AB46: 20.75 | AC46: 24.464882 | AD46: 56.22 | AE46: 33.89 | AF46: 64.1 | AG46: 16.79 | AH46: 14.9025 | AI46: 30.3 | AJ46: 500.08 | AK46: 22.35 | AL46: 20.19 | AM46: 9.63 | AN46: 36.62 | AO46: 62.78 | AP46: 8.88 | AQ46: 22.47 | AR46: 7.87 | AS46: 28.88 | AT46: 46.49 | AU46: 40.75 | AV46: 7.8675 | AW46: 7.26 | AX46: 42.83 | AY46: 16.749495 | AZ46: 61.73 | BA46: 81.35 | BB46: 25.231613 | BC46: 20.56 | BD46: 33.75 | BE46: 16.121601 | BF46: 107.69 | BG46: 33.46 | BH46: 14.0875 | BI46: 52.2 | BJ46: 25.99 | BK46: 34.55 | BL46: 15.00272 | BM46: 19.86 | BN46: 70.14 | BO46: 30.385 | BP46: 32.78 | BQ46: 8.6525 | BR46: 49.11 | BS46: 48.02 | BT46: 57.297012 | BU46: 14.435 | BV46: 23.225 | BW46: 35.66 | BX46: 54.33 | BY46: 18.614374 | BZ46: 4.8033333 | CA46: 63.59 | CB46: 60.81 | CC46: 40.64 | CD46: 27.51 | CE46: 14.94 | CF46: 32.51 | CG46: 56.2
A47: 20080731 | B47: 41.09 | C47: 76.34 | D47: 28.122866 | E47: 130.29 | F47: 39.72 | G47: 114.95 | H47: 20.16 | I47: 13.4 | J47: 36.94 | K47: 11.12 | L47: 29.164026 | M47: 12.5 | N47: 12.96 | O47: 10.593499 | P47: 4.8 | Q47: 16.12 | R47: 35.67 | S47: 40.11 | T47: 37.84 | U47: 38.72 | V47: 23.83 | W47: 41.91 | X47: 45.52 | Y47: 19.5 | Z47: 11.893747 | AA47: 10.25 | AB47: 20.32 | AC47: 24.157207 | AD47: 59.79 | AE47: 29.02 | AF47: 58.97 | AG47: 16.53 | AH47: 14.67 | AI47: 28.74 | AJ47: 552.32 | AK47: 25.54 | AL47: 21.4 | AM47: 12.21 | AN47: 35.4 | AO47: 59.17 | AP47: 9.49 | AQ47: 25.48 | AR47: 7.345 | AS47: 25.51 | AT47: 45.23 | AU47: 37.79 | AV47: 8.4275 | AW47: 9.5025 | AX47: 40.38 | AY47: 16.84362 | AZ47: 75.7 | BA47: 97.48 | BB47: 25.756521 | BC47: 20.35 | BD47: 28.63 | BE47: 15.351468 | BF47: 98.92 | BG47: 36.38 | BH47: 13.7175 | BI47: 54.5 | BJ47: 25.75 | BK47: 37.135 | BL47: 16.87028 | BM47: 21.52 | BN47: 62.68 | BO47: 32.195 | BP47: 36.77 | BQ47: 9.0425 | BR47: 46.51 | BS47: 53.06 | BT47: 55.42801 | BU47: 14.14 | BV47: 22.05 | BW47: 40.1 | BX47: 53.97 | BY47: 20.81931 | BZ47: 3.8100002 | CA47: 66.56 | CB47: 65.48 | CC47: 48.74 | CD47: 28.36 | CE47: 14.9 | CF47: 34.34 | CG47: 58.62
A48: 20080829 | B48: 43.04 | C48: 80.81 | D48: 27.65463 | E48: 137.23 | F48: 44.77 | G48: 92.98 | H48: 20.675 | I48: 14.8 | J48: 37.06 | K48: 12.46 | L48: 26.22703 | M48: 12.786667 | N48: 13.4 | O48: 10.492489 | P48: 4.46 | Q48: 19.45 | R48: 34.76 | S48: 42.42 | T48: 39.78 | U48: 37.4 | V48: 27.12 | W48: 49.17 | X48: 47.41 | Y48: 22.31 | Z48: 12.925848 | AA48: 9.365 | AB48: 24.64 | AC48: 26.30161 | AD48: 62 | AE48: 35.19 | AF48: 69.05 | AG48: 18.1 | AH48: 15.1525 | AI48: 31.1 | AJ48: 597.73 | AK48: 29.12 | AL48: 22.545 | AM48: 14.51 | AN48: 38.06 | AO48: 75.88 | AP48: 10.0525 | AQ48: 27.18 | AR48: 7.78 | AS48: 28.99 | AT48: 53.02 | AU48: 44.17 | AV48: 9.06 | AW48: 10.655 | AX48: 43.99 | AY48: 18.64846 | AZ48: 81.36 | BA48: 95.42 | BB48: 25.655855 | BC48: 21.03 | BD48: 25.46 | BE48: 15.362134 | BF48: 89.36 | BG48: 36.81 | BH48: 15.625 | BI48: 59.1 | BJ48: 26.035 | BK48: 38.015 | BL48: 16.551237 | BM48: 21.11 | BN48: 67.06 | BO48: 33.09 | BP48: 36.09 | BQ48: 8.915 | BR48: 44.79 | BS48: 54.44 | BT48: 59.1181 | BU48: 13.81 | BV48: 24.885 | BW48: 40.45 | BX48: 47.65 | BY48: 20.616482 | BZ48: 4.58 | CA48: 68.48 | CB48: 69.77 | CC48: 54.23 | CD48: 31.83 | CE48: 14.52 | CF48: 36.43 | CG48: 59.07
A49: 20080930 | B49: 39.66 | C49: 72.76 | D49: 24.312159 | E49: 123.34 | F49: 37.5 | G49: 68.43 | H49: 16.385 | I49: 14 | J49: 35.35 | K49: 13.02 | L49: 25.636047 | M49: 12.120001 | N49: 12.14 | O49: 9.41925 | P49: 5.2 | Q49: 17.78 | R49: 33.94 | S49: 40.21 | T49: 37.3 | U49: 34.72 | V49: 25.89 | W49: 46.08 | X49: 36.11 | Y49: 21.79 | Z49: 14.931075 | AA49: 8.485 | AB49: 23.69 | AC49: 24.325031 | AD49: 61.7 | AE49: 28.5 | AF49: 67.39 | AG49: 17.26 | AH49: 16.725 | AI49: 28.82 | AJ49: 572 | AK49: 26.77 | AL49: 22.745 | AM49: 13.97 | AN49: 37.91 | AO49: 66.64 | AP49: 9.2025 | AQ49: 20.75 | AR49: 7.435 | AS49: 25.04 | AT49: 49.05 | AU49: 35.52 | AV49: 7.63 | AW49: 10.5125 | AX49: 34.95 | AY49: 18.191956 | AZ49: 79.29 | BA49: 81.64 | BB49: 23.448359 | BC49: 19.84 | BD49: 21.91 | BE49: 15.319468 | BF49: 63.18 | BG49: 38.6 | BH49: 15.5225 | BI49: 62.69 | BJ49: 26.44 | BK49: 37.675 | BL49: 15.142786 | BM49: 21.46 | BN49: 64.93 | BO49: 34.36 | BP49: 39.54 | BQ49: 9.07 | BR49: 32.28 | BS49: 56.1 | BT49: 62.146843 | BU49: 13.74 | BV49: 24.955 | BW49: 38.45 | BX49: 46.75 | BY49: 21.427794 | BZ49: 5.041667 | CA49: 71.27 | CB49: 69.69 | CC49: 50.69 | CD49: 30.83 | CE49: 11.94 | CF49: 30.96 | CG49: 59.89
A50: 20081031 | B50: 31.2 | C50: 57.24 | D50: 15.386896 | E50: 127.29 | F50: 26.88 | G50: 52.63 | H50: 11.235 | I50: 10.62 | J50: 25.4 | K50: 7.38 | L50: 19.851595 | M50: 12.673334 | N50: 5.95 | O50: 6.426807 | P50: 2.19 | Q50: 12.94 | R50: 22.45 | S50: 39.35 | T50: 24.48 | U50: 29.09 | V50: 23.59 | W50: 35.13 | X50: 14.19 | Y50: 17.36 | Z50: 7.6080656 | AA50: 5.72 | AB50: 21.7 | AC50: 19.45816 | AD50: 57.93 | AE50: 16.46 | AF50: 48.38 | AG50: 13.75 | AH50: 14.4075 | AI50: 18.04 | AJ50: 490.21 | AK50: 27.11 | AL50: 16.835 | AM50: 11.14 | AN50: 24.51 | AO50: 47.17 | AP50: 8.1725 | AQ50: 13.56 | AR50: 6.565 | AS50: 20.6 | AT50: 40.12 | AU50: 27.45 | AV50: 6.69 | AW50: 10.39 | AX50: 33.26 | AY50: 12.96568 | AZ50: 46.65 | BA50: 60.4 | BB50: 20.859764 | BC50: 19.19 | BD50: 20.73 | BE50: 12.1066675 | BF50: 38.41 | BG50: 37.95 | BH50: 14.7725 | BI50: 60.81 | BJ50: 22.03 | BK50: 31.38 | BL50: 13.555362 | BM50: 12.54 | BN50: 57.01 | BO50: 33.87 | BP50: 37.24 | BQ50: 7.065 | BR50: 24.32 | BS50: 50.42 | BT50: 58.744297 | BU50: 13.73 | BV50: 18.02 | BW50: 33.66 | BX50: 37.36 | BY50: 19.092001 | BZ50: 4.2200003 | CA50: 57.01 | CB50: 64.54 | CC50: 44.56 | CD50: 26.2 | CE50: 8.74 | CF50: 25.46 | CG50: 55.81
A51: 20081128 | B51: 30.36 | C51: 42.7 | D51: 13.7516775 | E51: 109.22 | F51: 20.71 | G51: 69 | H51: 11.83 | I51: 7.61 | J51: 21 | K51: 6.87 | L51: 16.377342 | M51: 14.096667 | N51: 3.86 | O51: 5.5261283 | P51: 2.69 | Q51: 13.02 | R51: 17.03 | S51: 39.15 | T51: 17.01 | U51: 26.8 | V51: 23.11 | W51: 32.66 | X51: 5.17 | Y51: 14.6 | Z51: 6.988805 | AA51: 5.21 | AB51: 20.66 | AC51: 15.654167 | AD51: 58.75 | AE51: 11.98 | AF51: 30.74 | AG51: 13.36 | AH51: 13.3125 | AI51: 11.37 | AJ51: 434.25 | AK51: 26.07 | AL51: 13.65 | AM51: 10.65 | AN51: 17.44 | AO51: 43.2 | AP51: 6.625 | AQ51: 9.42 | AR51: 4.465 | AS51: 17.9 | AT51: 33.76 | AU51: 19.79 | AV51: 5.705 | AW51: 9.595 | AX51: 21.75 | AY51: 12.304455 | AZ51: 39.38 | BA51: 39.82 | BB51: 19.37132 | BC51: 16.08 | BD51: 27.38 | BE51: 11.704 | BF51: 42.46 | BG51: 32.05 | BH51: 14.86 | BI51: 59.16 | BJ51: 23.435 | BK51: 32.535 | BL51: 11.477703 | BM51: 12.76 | BN51: 51.47 | BO51: 31.585 | BP51: 36 | BQ51: 6.64 | BR51: 27.4 | BS51: 43.43 | BT51: 55.38967 | BU51: 13.83 | BV51: 13.95 | BW51: 29.77 | BX51: 44.47 | BY51: 17.80306 | BZ51: 4.9583335 | CA51: 56.7 | CB51: 64.35 | CC51: 45.37 | CD51: 23.45 | CE51: 6.71 | CF51: 24.74 | CG51: 55.88
A52: 20081231 | B52: 33.65 | C52: 51.28 | D52: 15.458931 | E52: 139.47 | F52: 28.11 | G52: 73.65 | H52: 10.885 | I52: 7.88 | J52: 24.32 | K52: 7.07 | L52: 25.233107 | M52: 13.896667 | N52: 4.71 | O52: 5.875457 | P52: 2.29 | Q52: 13.39 | R52: 19.17 | S52: 37.86 | T52: 16.97 | U52: 29.17 | V52: 23.02 | W52: 36.2 | X52: 5.93 | Y52: 15.19 | Z52: 8.522214 | AA52: 5.83 | AB52: 21.52 | AC52: 18.134222 | AD52: 62.19 | AE52: 13.76 | AF52: 42.97 | AG52: 9.78 | AH52: 12.75 | AI52: 13.31 | AJ52: 456.25 | AK52: 30.74 | AL52: 14.325 | AM52: 10.93 | AN52: 20.13 | AO52: 45.41 | AP52: 7.4325 | AQ52: 13.75 | AR52: 4.73 | AS52: 20.77 | AT52: 34.53 | AU52: 23.63 | AV52: 5.1425 | AW52: 9.035 | AX52: 26.6 | AY52: 12.888028 | AZ52: 41.35 | BA52: 42.26 | BB52: 22.650208 | BC52: 15.06 | BD52: 28.83 | BE52: 13.730667 | BF52: 51.77 | BG52: 30.01 | BH52: 14.03 | BI52: 55.56 | BJ52: 22.635 | BK52: 34.27 | BL52: 12.839464 | BM52: 15.77 | BN52: 52.5 | BO52: 30.375 | BP52: 34.74 | BQ52: 7.77 | BR52: 28.85 | BS52: 43.85 | BT52: 50.549427 | BU52: 13.205 | BV52: 15.48 | BW52: 31.86 | BX52: 48.92 | BY52: 17.56752 | BZ52: 5.588333 | CA52: 54.77 | CB52: 61.82 | CC52: 43.36 | CD52: 22.94 | CE52: 8.76 | CF52: 24.67 | CG52: 56.06
A53: 20090130 | B53: 32.73 | C53: 58.82 | D53: 13.247425 | E53: 132.89 | F53: 28.02 | G53: 67.09 | H53: 8.44 | I53: 8.27 | J53: 18.19 | K53: 5.96 | L53: 23.47807 | M53: 14.236667 | N53: 6.69 | O53: 5.058954 | P53: 1.87 | Q53: 11.28 | R53: 17.53 | S53: 32.02 | T53: 12.18 | U53: 24.13 | V53: 21.53 | W53: 36.71 | X53: 5.15 | Y53: 12.49 | Z53: 7.5589185 | AA53: 5.775 | AB53: 18.27 | AC53: 15.20664 | AD53: 58.02 | AE53: 8 | AF53: 32.11 | AG53: 8.08 | AH53: 11.3125 | AI53: 12.69 | AJ53: 426.09 | AK53: 29.07 | AL53: 10.635 | AM53: 10.15 | AN53: 19.02 | AO53: 41.03 | AP53: 7.355 | AQ53: 6.49 | AR53: 4.72 | AS53: 14.6 | AT53: 31.2 | AU53: 20.75 | AV53: 4.855 | AW53: 8.4275 | AX53: 23.32 | AY53: 13.182167 | AZ53: 33.43 | BA53: 30.08 | BB53: 20.579332 | BC53: 16.54 | BD53: 27.38 | BE53: 12.109334 | BF53: 42.94 | BG53: 30.37 | BH53: 13.3075 | BI53: 50.15 | BJ53: 21.36 | BK53: 32.52 | BL53: 13.3063545 | BM53: 14.52 | BN53: 45.03 | BO53: 29.575 | BP53: 37.28 | BQ53: 7.4575 | BR53: 23.15 | BS53: 43.69 | BT53: 49.332176 | BU53: 11.25 | BV53: 13.125 | BW53: 32.04 | BX53: 40.27 | BY53: 18.35266 | BZ53: 5.5833335 | CA53: 50.23 | CB53: 54.5 | CC53: 45.15 | CD53: 22.29 | CE53: 8.85 | CF53: 27.41 | CG53: 47.12
A54: 20090227 | B54: 38.25 | C54: 64.79 | D54: 10.718961 | E54: 142.23 | F54: 28.82 | G54: 84.86 | H54: 8.625 | I54: 9.43 | J54: 19.56 | K54: 8.45 | L54: 24.301863 | M54: 12.940001 | N54: 6.83 | O54: 4.5749435 | P54: 2 | Q54: 10.79 | R54: 17.12 | S54: 28.14 | T54: 10.1 | U54: 22.89 | V54: 20.89 | W54: 35.14 | X54: 2.28 | Y54: 11.43 | Z54: 6.5661345 | AA54: 6.75 | AB54: 15.84 | AC54: 13.2020855 | AD54: 52.25 | AE54: 3.5 | AF54: 22.59 | AG54: 5.65 | AH54: 10.3825 | AI54: 13.47 | AJ54: 332.77 | AK54: 33.36 | AL54: 9.205 | AM54: 9.18 | AN54: 16.57 | AO54: 34.47 | AP54: 7.38 | AQ54: 6 | AR54: 4.575 | AS54: 13.98 | AT54: 28.31 | AU54: 19.04 | AV54: 5.5675 | AW54: 7.81 | AX54: 18.88 | AY54: 12.212683 | AZ54: 22.23 | BA54: 20.95 | BB54: 18.896746 | BC54: 15.44 | BD54: 26.66 | BE54: 11.461333 | BF54: 46.88 | BG54: 26.77 | BH54: 12.23 | BI54: 48.6 | BJ54: 20.425 | BK54: 30.09 | BL54: 11.734492 | BM54: 13.05 | BN54: 42.34 | BO54: 26.24 | BP54: 33.69 | BQ54: 7.9575 | BR54: 20.17 | BS54: 38.92 | BT54: 45.15327 | BU54: 10.335 | BV54: 11.325 | BW54: 31.35 | BX54: 35.23 | BY54: 14.904585 | BZ54: 5.5466666 | CA54: 48.14 | CB54: 48.17 | CC54: 37.12 | CD54: 21.5 | CE54: 8.43 | CF54: 23.86 | CG54: 49.24
A55: 20090331 | B55: 41.08 | C55: 73.44 | D55: 13.37709 | E55: 162.62 | F55: 37.96 | G55: 78.78 | H55: 10.15 | I55: 12.44 | J55: 21.6 | K55: 9.7 | L55: 30.677294 | M55: 14.85 | N55: 6.55 | O55: 5.2862277 | P55: 2.63 | Q55: 12.99 | R55: 21.21 | S55: 29.86 | T55: 13.39 | U55: 25.07 | V55: 23.56 | W55: 42.32 | X55: 3.01 | Y55: 12.99 | Z55: 7.3819866 | AA55: 7.135 | AB55: 18.25 | AC55: 15.253259 | AD55: 54.57 | AE55: 2.33 | AF55: 29.87 | AG55: 6.38 | AH55: 11.7225 | AI55: 16.75 | AJ55: 427.75 | AK55: 35.01 | AL55: 10.72 | AM55: 10.93 | AN55: 22.68 | AO55: 42.25 | AP55: 8.97 | AQ55: 8.01 | AR55: 5.555 | AS55: 16.7 | AT55: 34.39 | AU55: 21.56 | AV55: 6.41 | AW55: 9.015 | AX55: 20.43 | AY55: 13.438658 | AZ55: 29.59 | BA55: 19.97 | BB55: 19.75961 | BC55: 16.02 | BD55: 27.78 | BE55: 10.354668 | BF55: 56.65 | BG55: 27.36 | BH55: 13.0575 | BI55: 51.48 | BJ55: 21.975 | BK55: 29.49 | BL55: 13.12738 | BM55: 11.9 | BN55: 46.32 | BO55: 24.94 | BP55: 34.75 | BQ55: 7.9275 | BR55: 21.2 | BS55: 36.63 | BT55: 44.194805 | BU55: 10.61 | BV55: 12.325 | BW55: 29.57 | BX55: 34.28 | BY55: 14.583985 | BZ55: 6 | CA55: 51.48 | CB55: 47.09 | CC55: 37.27 | CD55: 22.8 | CE55: 9.39 | CF55: 25.96 | CG55: 52.1
A56: 20090430 | B56: 43.75 | C56: 80.52 | D56: 17.771288 | E56: 166.39 | F56: 38.38 | G56: 97.09 | H56: 14.475 | I56: 12.76 | J56: 26.88 | K56: 13.05 | L56: 33.1039 | M56: 14.113334 | N56: 9.44 | O56: 6.9318604 | P56: 5.98 | Q56: 15.54 | R56: 25.19 | S56: 33.96 | T56: 22.16 | U56: 26.66 | V56: 26.32 | W56: 45.35 | X56: 7.82 | Y56: 14.36 | Z56: 9.573975 | AA56: 8.49 | AB56: 21.5 | AC56: 21.966183 | AD56: 53.29 | AE56: 8.38 | AF56: 47.31 | AG56: 10.45 | AH56: 13.1175 | AI56: 22.63 | AJ56: 505.37 | AK56: 38.85 | AL56: 16.725 | AM56: 11.51 | AN56: 29.03 | AO56: 53.84 | AP56: 9.485 | AQ56: 14.73 | AR56: 7.23 | AS56: 24.5 | AT56: 41.26 | AU56: 28.94 | AV56: 6.9925 | AW56: 10.095 | AX56: 29.2 | AY56: 13.946931 | AZ56: 45.16 | BA56: 39.23 | BB56: 23.980457 | BC56: 16.33 | BD56: 24.62 | BE56: 12.400001 | BF56: 48.01 | BG56: 25.72 | BH56: 13.6025 | BI56: 56.05 | BJ56: 21.525 | BK56: 29.5 | BL56: 13.773244 | BM56: 11.59 | BN56: 48.6 | BO56: 25.345 | BP56: 36.14 | BQ56: 7.8225 | BR56: 23.9 | BS56: 42.11 | BT56: 47.09895 | BU56: 10.81 | BV56: 14.95 | BW56: 29.45 | BX56: 38.25 | BY56: 15.31024 | BZ56: 6.793333 | CA56: 49.76 | CB56: 49.44 | CC56: 39.4 | CD56: 23.33 | CE56: 10.54 | CF56: 31.43 | CG56: 50.4
A57: 20090529 | B57: 42.59 | C57: 77.99 | D57: 20.011608 | E57: 152.15 | F57: 35.1 | G57: 110.11 | H57: 16.125 | I57: 11.21 | J57: 25.44 | K57: 9.21 | L57: 32.387558 | M57: 14.923334 | N57: 9.06 | O57: 7.4158707 | P57: 5.75 | Q57: 17.85 | R57: 20.86 | S57: 33.48 | T57: 16.97 | U57: 25.41 | V57: 23.16 | W57: 42.47 | X57: 9.91 | Y57: 14.68 | Z57: 9.347896 | AA57: 7.605 | AB57: 19.01 | AC57: 21.779715 | AD57: 58.99 | AE57: 7.46 | AF57: 38.27 | AG57: 11.51 | AH57: 14.2625 | AI57: 19.69 | AJ57: 494.9 | AK57: 36.05 | AL57: 15.885 | AM57: 8.8 | AN57: 29.47 | AO57: 53.82 | AP57: 9.79 | AQ57: 15.06 | AR57: 7.195 | AS57: 26.27 | AT57: 39.3 | AU57: 28.37 | AV57: 7.3775 | AW57: 9.595 | AX57: 27.49 | AY57: 13.370417 | AZ57: 42.14 | BA57: 37.06 | BB57: 24.900848 | BC57: 17.09 | BD57: 27.52 | BE57: 11.693334 | BF57: 63.27 | BG57: 27.72 | BH57: 12.5675 | BI57: 52.44 | BJ57: 24.58 | BK57: 32.975 | BL57: 14.465796 | BM57: 11.56 | BN57: 48.52 | BO57: 25.59 | BP57: 35.22 | BQ57: 8.685 | BR57: 26.41 | BS57: 43.25 | BT57: 49.73473 | BU57: 11.4 | BV57: 16.54 | BW57: 30.52 | BX57: 43.99 | BY57: 17.08335 | BZ57: 6.1133337 | CA57: 52.05 | CB57: 51.94 | CC57: 40.26 | CD57: 23.96 | CE57: 13.32 | CF57: 29.79 | CG57: 49.74
A58: 20090630 | B58: 41.49 | C58: 83.66 | D58: 20.724766 | E58: 151.11 | F58: 33.49 | G58: 111.55 | H58: 17.075 | I58: 14.7 | J58: 25.77 | K58: 9.36 | L58: 29.53115 | M58: 14.033333 | N58: 7.49 | O58: 7.2096395 | P58: 6.07 | Q58: 16.4 | R58: 23.82 | S58: 33.56 | T58: 16.21 | U58: 24.24 | V58: 23.63 | W58: 42.75 | X58: 7.86 | Y58: 15.23 | Z58: 9.524826 | AA58: 8.225 | AB58: 19.41 | AC58: 20.653397 | AD58: 57.49 | AE58: 6.39 | AF58: 35.68 | AG58: 10.41 | AH58: 12.945 | AI58: 19.89 | AJ58: 502.39 | AK58: 38.08 | AL58: 16.06 | AM58: 8.83 | AN58: 28.69 | AO58: 53.54 | AP58: 9.65 | AQ58: 13.54 | AR58: 6.945 | AS58: 26.88 | AT58: 39.47 | AU58: 25.36 | AV58: 7.865 | AW58: 10.33 | AX58: 26.82 | AY58: 13.024508 | AZ58: 42.56 | BA58: 35.3 | BB58: 23.973269 | BC58: 16.39 | BD58: 26.77 | BE58: 11.461333 | BF58: 60.25 | BG58: 29.42 | BH58: 13.5775 | BI58: 55.83 | BJ58: 23.995 | BK58: 35.37 | BL58: 14.831527 | BM58: 12.68 | BN58: 45.78 | BO58: 28.01 | BP58: 36 | BQ58: 8.635 | BR58: 26.79 | BS58: 46.57 | BT58: 50.2523 | BU58: 11.025 | BV58: 16.335 | BW58: 32.53 | BX58: 42.33 | BY58: 16.57955 | BZ58: 5.1433334 | CA58: 54.96 | CB58: 51.1 | CC58: 48.66 | CD58: 22.48 | CE58: 12.61 | CF58: 29.4 | CG58: 48.44
A59: 20090731 | B59: 46.23 | C59: 85.76 | D59: 25.796103 | E59: 153.57 | F59: 37.37 | G59: 129.62 | H59: 16.595 | I59: 16.13 | J59: 27.99 | K59: 11.59 | L59: 29.00285 | M59: 15.373333 | N59: 8.22 | O59: 8.943657 | P59: 8 | Q59: 16.32 | R59: 27.66 | S59: 35.42 | T59: 22.6 | U59: 26.5 | V59: 25.94 | W59: 48.55 | X59: 9.35 | Y59: 17.35 | Z59: 11.638179 | AA59: 8.97 | AB59: 22.46 | AC59: 20.157417 | AD59: 55.06 | AE59: 7.23 | AF59: 51.58 | AG59: 12.87 | AH59: 14.16 | AI59: 26.44 | AJ59: 601.15 | AK59: 40.66 | AL59: 18.935 | AM59: 11.37 | AN59: 35.38 | AO59: 63.05 | AP59: 11.0175 | AQ59: 14.52 | AR59: 8.85 | AS59: 29.59 | AT59: 43.62 | AU59: 29.83 | AV59: 9.0575 | AW59: 11.9925 | AX59: 28.61 | AY59: 15.2223215 | AZ59: 57.09 | BA59: 51.17 | BB59: 25.497662 | BC59: 17.53 | BD59: 30.12 | BE59: 11.72 | BF59: 69.97 | BG59: 31.03 | BH59: 14.745 | BI59: 61.01 | BJ59: 24.92 | BK59: 36.22 | BL59: 15.275071 | BM59: 13.66 | BN59: 49.5 | BO59: 29.455 | BP59: 39.95 | BQ59: 8.9775 | BR59: 28 | BS59: 47.5 | BT59: 56.02226 | BU59: 10.69 | BV59: 18.22 | BW59: 32.22 | BX59: 45.21 | BY59: 18.542402 | BZ59: 5.1683335 | CA59: 56.75 | CB59: 55.51 | CC59: 50.03 | CD59: 23.76 | CE59: 11.43 | CF59: 31.05 | CG59: 49.88
A60: 20090831 | B60: 42.3 | C60: 81.19 | D60: 23.101954 | E60: 147.25 | F60: 36.28 | G60: 153.98 | H60: 14.835 | I60: 17.31 | J60: 29.25 | K60: 13.41 | L60: 29.48638 | M60: 16.646667 | N60: 8.09 | O60: 9.318238 | P60: 7.6 | Q60: 19.65 | R60: 32.87 | S60: 37.04 | T60: 23.98 | U60: 28.39 | V60: 27.29 | W60: 51.59 | X60: 14.26 | Y60: 18.25 | Z60: 14.891757 | AA60: 8.68 | AB60: 21.5 | AC60: 22.45125 | AD60: 56.24 | AE60: 8.47 | AF60: 50.12 | AG60: 13.92 | AH60: 13.8475 | AI60: 28.04 | AJ60: 675.25 | AK60: 38.28 | AL60: 18.855 | AM60: 12.78 | AN60: 37.78 | AO60: 66.38 | AP60: 11.66 | AQ60: 19.08 | AR60: 9.495 | AS60: 28.29 | AT60: 47 | AU60: 36.38 | AV60: 8.9875 | AW60: 11.77 | AX60: 33.12 | AY60: 16.368288 | AZ60: 64.21 | BA60: 54.13 | BB60: 24.627607 | BC60: 18.28 | BD60: 28.83 | BE60: 11.925334 | BF60: 67.01 | BG60: 31.36 | BH60: 14.2825 | BI60: 59.09 | BJ60: 24.385 | BK60: 36.35 | BL60: 15.975407 | BM60: 14.79 | BN60: 50.98 | BO60: 29.865 | BP60: 39.23 | BQ60: 9.2375 | BR60: 29.66 | BS60: 47.09 | BT60: 57.94877 | BU60: 10.795 | BV60: 17.925 | BW60: 32.57 | BX60: 47.38 | BY60: 18.548944 | BZ60: 5.4433336 | CA60: 56.67 | CB60: 54.11 | CC60: 52.27 | CD60: 25.49 | CE60: 11.99 | CF60: 33.88 | CG60: 50.87
A61: 20090930 | B61: 39.28 | C61: 93.36 | D61: 24.204103 | E61: 146.22 | F61: 37.52 | G61: 165.82 | H61: 15.13 | I61: 20.9 | J61: 33.28 | K61: 11.41 | L61: 30.560892 | M61: 16.226667 | N61: 8.84 | O61: 9.932721 | P61: 7.21 | Q61: 21.4 | R61: 37.74 | S61: 38.06 | T61: 23 | U61: 27.75 | V61: 26.64 | W61: 57.05 | X61: 16.84 | Y61: 19.4 | Z61: 14.007098 | AA61: 9.27 | AB61: 20.94 | AC61: 25.917572 | AD61: 57.07 | AE61: 12.04 | AF61: 47.69 | AG61: 15.69 | AH61: 16.175 | AI61: 30.54 | AJ61: 637.37 | AK61: 36.14 | AL61: 20.39 | AM61: 10.99 | AN61: 42.79 | AO61: 76.62 | AP61: 11.9425 | AQ61: 24.08 | AR61: 10.325 | AS61: 32.92 | AT61: 46.68 | AU61: 38.53 | AV61: 9.2875 | AW61: 12.105 | AX61: 33.54 | AY61: 17.043634 | AZ61: 69.96 | BA61: 70.89 | BB61: 24.275269 | BC61: 17.81 | BD61: 29.22 | BE61: 12.858667 | BF61: 62.61 | BG61: 32.62 | BH61: 14.185 | BI61: 58.82 | BJ61: 26.85 | BK61: 38.14 | BL61: 16.87028 | BM61: 15.15 | BN61: 56.38 | BO61: 32.19 | BP61: 38.86 | BQ61: 8.88 | BR61: 28.52 | BS61: 49.23 | BT61: 56.530243 | BU61: 10.32 | BV61: 18.54 | BW61: 33.94 | BX61: 48.68 | BY61: 17.188034 | BZ61: 6.123334 | CA61: 58.66 | CB61: 57.92 | CC61: 53.01 | CD61: 24.85 | CE61: 12.63 | CF61: 37.47 | CG61: 49.09
A62: 20091030 | B62: 37.26 | C62: 118.81 | D62: 24.1897 | E62: 135.31 | F62: 38.18 | G62: 157.79 | H62: 15.16 | I62: 19.67 | J62: 29.12 | K62: 10.96 | L62: 27.140362 | M62: 15.043334 | N62: 7.34 | O62: 9.372953 | P62: 7 | Q62: 21.34 | R62: 30.26 | S62: 34.99 | T62: 24.92 | U62: 27.27 | V62: 25.09 | W62: 57.22 | X62: 15.09 | Y62: 19.33 | Z62: 12.385224 | AA62: 8.635 | AB62: 19.57 | AC62: 23.540934 | AD62: 58.61 | AE62: 9.27 | AF62: 42.83 | AG62: 14.51 | AH62: 15.545 | AI62: 31.78 | AJ62: 662.27 | AK62: 37.28 | AL62: 21.035 | AM62: 9.01 | AN62: 40.15 | AO62: 74.42 | AP62: 11.0025 | AQ62: 20.23 | AR62: 9.49 | AS62: 32.97 | AT62: 48.43 | AU62: 39.29 | AV62: 9.3375 | AW62: 11.175 | AX62: 34.44 | AY62: 16.71655 | AZ62: 71.59 | BA62: 54.22 | BB62: 23.692837 | BC62: 18.11 | BD62: 30.12 | BE62: 13.016001 | BF62: 57.06 | BG62: 31.75 | BH62: 14.22 | BI62: 59.23 | BJ62: 26.655 | BK62: 39.315 | BL62: 16.341137 | BM62: 15.82 | BN62: 56.85 | BO62: 32.96 | BP62: 37.79 | BQ62: 9.115 | BR62: 28.18 | BS62: 51.54 | BT62: 58.619698 | BU62: 11.565 | BV62: 21.25 | BW62: 35.01 | BX62: 48.97 | BY62: 18.00589 | BZ62: 6.0250006 | CA62: 60.55 | CB62: 58 | CC62: 52.73 | CD62: 26.45 | CE62: 12.52 | CF62: 37.83 | CG62: 49.68
A63: 20091130 | B63: 39.3 | C63: 135.91 | D63: 29.253832 | E63: 147.87 | F63: 42.83 | G63: 214.12 | H63: 15.105 | I63: 19.88 | J63: 32.03 | K63: 10.28 | L63: 28.14324 | M63: 16.323334 | N63: 7.87 | O63: 10.298884 | P63: 8.89 | Q63: 21.42 | R63: 29.88 | S63: 35.83 | T63: 29.14 | U63: 29.65 | V63: 27.36 | W63: 53.14 | X63: 15.32 | Y63: 19.46 | Z63: 12.454031 | AA63: 8.715 | AB63: 21.81 | AC63: 24.243355 | AD63: 63.25 | AE63: 10.57 | AF63: 41.08 | AG63: 14.51 | AH63: 16.2225 | AI63: 33.45 | AJ63: 673.15 | AK63: 38.78 | AL63: 21.815 | AM63: 9.14 | AN63: 40 | AO63: 76.85 | AP63: 10.995 | AQ63: 24.57 | AR63: 10.95 | AS63: 34.75 | AT63: 46.56 | AU63: 42.68 | AV63: 9.595 | AW63: 11.6725 | AX63: 38.79 | AY63: 17.111876 | AZ63: 74.16 | BA63: 64.54 | BB63: 25.361042 | BC63: 18.81 | BD63: 30.81 | BE63: 13.645334 | BF63: 61.9 | BG63: 34.97 | BH63: 14.76 | BI63: 60.27 | BJ63: 28.6 | BK63: 42.095 | BL63: 17.267136 | BM63: 17.11 | BN63: 59.91 | BO63: 34 | BP63: 35.37 | BQ63: 9.38 | BR63: 28.04 | BS63: 52.58 | BT63: 63.22991 | BU63: 11.37 | BV63: 23.415 | BW63: 35.68 | BX63: 45.21 | BY63: 17.390862 | BZ63: 5.828334 | CA63: 62.22 | CB63: 62.35 | CC63: 59.08 | CD63: 27.04 | CE63: 12.02 | CF63: 38.89 | CG63: 54.55
A64: 20091231 | B64: 40.48 | C64: 134.52 | D64: 31.234821 | E64: 158.07 | F64: 39.46 | G64: 218.41 | H64: 16.61 | I64: 24.25 | J64: 31.69 | K64: 10.87 | L64: 31.402592 | M64: 16.1 | N64: 8.38 | O64: 9.903259 | P64: 10 | Q64: 20.95 | R64: 30.7 | S64: 37.96 | T64: 25.2 | U64: 32.06 | V64: 28.93 | W64: 53.93 | X64: 14.94 | Y64: 20.4 | Z64: 12.552326 | AA64: 9.795 | AB64: 23.39 | AC64: 25.685514 | AD64: 62.44 | AE64: 9.12 | AF64: 47.6 | AG64: 15.01 | AH64: 16.5175 | AI64: 37.58 | AJ64: 710.71 | AK64: 38.12 | AL64: 21.815 | AM64: 10 | AN64: 40.68 | AO64: 80.98 | AP64: 10.6775 | AQ64: 25.28 | AR64: 11.53 | AS64: 36.53 | AT64: 48.37 | AU64: 43 | AV64: 9.1375 | AW64: 13.2425 | AX64: 37.8 | AY64: 17.234236 | AZ64: 80.66 | BA64: 58.23 | BB64: 25.145327 | BC64: 19.63 | BD64: 31.31 | BE64: 14.285334 | BF64: 63.83 | BG64: 33.8 | BH64: 15.1125 | BI64: 61 | BJ64: 28.5 | BK64: 41.075 | BL64: 17.936342 | BM64: 15.93 | BN64: 59.17 | BO64: 35.405 | BP64: 35.79 | BQ64: 9.6125 | BR64: 29.23 | BS64: 53.2 | BT64: 61.06378 | BU64: 10.265 | BV64: 24.18 | BW64: 36.13 | BX64: 45.16 | BY64: 17.783432 | BZ64: 6.4000006 | CA64: 60.8 | CB64: 60.63 | CC64: 61.75 | CD64: 27.94 | CE64: 12.27 | CF64: 36.72 | CG64: 53.45
A65: 20100129 | B65: 39.45 | C65: 125.41 | D65: 30.838625 | E65: 155.03 | F65: 36.65 | G65: 195.35 | H65: 17.545 | I65: 20.63 | J65: 33.33 | K65: 11.79 | L65: 33.094944 | M65: 16.506668 | N65: 11.3 | O65: 9.688612 | P65: 10.84 | Q65: 19.08 | R65: 32.31 | S65: 37.68 | T65: 22.74 | U65: 30.55 | V65: 28.01 | W65: 50.37 | X65: 15.5 | Y65: 18.26 | Z65: 15.098177 | AA65: 9.375 | AB65: 21.65 | AC65: 24.724073 | AD65: 62.43 | AE65: 11.06 | AF65: 41.41 | AG65: 13.57 | AH65: 15.9375 | AI65: 34.54 | AJ65: 684.14 | AK65: 37.8 | AL65: 22.105 | AM65: 10.52 | AN65: 39.29 | AO65: 82 | AP65: 11.4825 | AQ65: 26.09 | AR65: 10.895 | AS65: 34.88 | AT65: 51.27 | AU65: 40.61 | AV65: 9.5025 | AW65: 12.6175 | AX65: 33.7 | AY65: 16.949509 | AZ65: 75.18 | BA65: 61.88 | BB65: 24.598845 | BC65: 19.86 | BD65: 29.97 | BE65: 13.685333 | BF65: 58.79 | BG65: 33.11 | BH65: 15.0725 | BI65: 59.17 | BJ65: 27.125 | BK65: 40.015 | BL65: 17.695116 | BM65: 16.08 | BN65: 57.43 | BO65: 35.655 | BP65: 36.43 | BQ65: 9.675 | BR65: 28.42 | BS65: 54.42 | BT65: 56.923214 | BU65: 10.715 | BV65: 26.26 | BW65: 36.3 | BX65: 42 | BY65: 18.097488 | BZ65: 6.408334 | CA65: 59.62 | CB65: 61.55 | CC65: 60.07 | CD65: 27.99 | CE65: 13.82 | CF65: 36.05 | CG65: 53.43
A66: 20100226 | B66: 40.8 | C66: 118.4 | D66: 32.135273 | E66: 165.93 | F66: 36.5 | G66: 226.71 | H66: 18.73 | I66: 20.19 | J66: 35.96 | K66: 12.36 | L66: 36.309525 | M66: 18.580002 | N66: 12.49 | O66: 9.688612 | P66: 11.74 | Q66: 21.5 | R66: 31.95 | S66: 40.36 | T66: 24.61 | U66: 35.78 | V66: 31.2 | W66: 53.82 | X66: 16.63 | Y66: 18.95 | Z66: 16.13028 | AA66: 9.575 | AB66: 23.71 | AC66: 25.553553 | AD66: 63.85 | AE66: 10.54 | AF66: 51.58 | AG66: 13.75 | AH66: 16.9 | AI66: 36.94 | AJ66: 708.3 | AK66: 39.3 | AL66: 22.87 | AM66: 10.83 | AN66: 43.52 | AO66: 79.93 | AP66: 12.22875 | AQ66: 28.27 | AR66: 11.455 | AS66: 36.44 | AT66: 51.52 | AU66: 44.39 | AV66: 10.4075 | AW66: 13.68 | AX66: 36.01 | AY66: 18.208427 | AZ66: 84.16 | BA66: 63.57 | BB66: 24.24651 | BC66: 20.12 | BD66: 29.36 | BE66: 13.962668 | BF66: 59.59 | BG66: 33.33 | BH66: 16.795 | BI66: 61.31 | BJ66: 26.36 | BK66: 41.47 | BL66: 19.033533 | BM66: 15.04 | BN66: 60.97 | BO66: 36.005 | BP66: 39.76 | BQ66: 10.2775 | BR66: 32.58 | BS66: 52.15 | BT66: 58.217144 | BU66: 11.05 | BV66: 30.065 | BW66: 37.11 | BX66: 40.38 | BY66: 18.601288 | BZ66: 6.9300003 | CA66: 62.47 | CB66: 63.28 | CC66: 59.68 | CD66: 28.9 | CE66: 17.04 | CF66: 35.24 | CG66: 54.07
A67: 20100331 | B67: 41.92 | C67: 135.77 | D67: 37.120163 | E67: 173.09 | F67: 42.54 | G67: 255 | H67: 19.09 | I67: 25.12 | J67: 38.88 | K67: 12.6 | L67: 39.882275 | M67: 19.740002 | N67: 13.64 | O67: 11.350028 | P67: 12.57 | Q67: 23.11 | R67: 38.63 | S67: 42.24 | T67: 28.07 | U67: 38.28 | V67: 32.35 | W67: 54.78 | X67: 21.15 | Y67: 21.64 | Z67: 16.916641 | AA67: 10.15 | AB67: 24.24 | AC67: 29.710363 | AD67: 66.72 | AE67: 12 | AF67: 54.38 | AG67: 15.2 | AH67: 18.375 | AI67: 40.85 | AJ67: 726.5 | AK67: 41.71 | AL67: 25.58 | AM67: 11.25 | AN67: 57.36 | AO67: 85.04 | AP67: 13.3675 | AQ67: 32.99 | AR67: 12.135 | AS67: 39.52 | AT67: 52.6 | AU67: 47.49 | AV67: 10.63 | AW67: 14.5125 | AX67: 40.09 | AY67: 18.86024 | AZ67: 87.25 | BA67: 75.83 | BB67: 27.56135 | BC67: 20.52 | BD67: 28.9 | BE67: 15.853334 | BF67: 61.63 | BG67: 35.35 | BH67: 16.7375 | BI67: 64.14 | BJ67: 27.5 | BK67: 42.63 | BL67: 19.508204 | BM67: 16.44 | BN67: 59.71 | BO67: 35.395 | BP67: 42.81 | BQ67: 10.5025 | BR67: 34.66 | BS67: 53.43 | BT67: 60.268257 | BU67: 10.83 | BV67: 32.435 | BW67: 38.36 | BX67: 42.06 | BY67: 19.785542 | BZ67: 7.2300005 | CA67: 66.16 | CB67: 63.27 | CC67: 60.26 | CD67: 29.5 | CE67: 19.15 | CF67: 37.09 | CG67: 55.6
A68: 20100430 | B68: 45.1 | C68: 137.1 | D68: 39.439724 | E68: 185.01 | F68: 45.52 | G68: 262.05 | H68: 21.67 | I68: 24.57 | J68: 41.7 | K68: 14.69 | L68: 40.070316 | M68: 20.240002 | N68: 15.41 | O68: 10.008479 | P68: 13.02 | Q68: 24.73 | R68: 37.38 | S68: 42.8 | T68: 33.83 | U68: 38.36 | V68: 35.23 | W68: 54.99 | X68: 24.86 | Y68: 24.53 | Z68: 19.580448 | AA68: 10.535 | AB68: 27.12 | AC68: 34.64952 | AD68: 70.59 | AE68: 15.89 | AF68: 63.74 | AG68: 17.07 | AH68: 18.9775 | AI68: 41.33 | AJ68: 718.05 | AK68: 48.87 | AL68: 29.585 | AM68: 13.09 | AN68: 63.01 | AO68: 89.9 | AP68: 14 | AQ68: 35.84 | AR68: 12.99 | AS68: 41.75 | AT68: 56.87 | AU68: 48.48 | AV68: 11.585 | AW68: 16.7925 | AX68: 45.64 | AY68: 20.335646 | AZ68: 108.87 | BA68: 88.24 | BB68: 30.50228 | BC68: 21.19 | BD68: 27.94 | BE68: 15.514667 | BF68: 52.95 | BG68: 35.86 | BH68: 17.3125 | BI68: 64.7 | BJ68: 26.725 | BK68: 42.05 | BL68: 19.041315 | BM68: 18.27 | BN68: 59.08 | BO68: 35.58 | BP68: 47.01 | BQ68: 10.19 | BR68: 36 | BS68: 54.94 | BT68: 58.71554 | BU68: 11.115 | BV68: 32.96 | BW68: 39.57 | BX68: 44.36 | BY68: 19.3668 | BZ68: 7.3583336 | CA68: 65.22 | CB68: 62.16 | CC68: 61.07 | CD68: 31.54 | CE68: 19.59 | CF68: 35.15 | CG68: 53.64
A69: 20100528 | B69: 51.76 | C69: 125.46 | D69: 34.217113 | E69: 190.88 | F69: 42.25 | G69: 191.16 | H69: 18.63 | I69: 21.73 | J69: 36.23 | K69: 12.19 | L69: 38.413776 | M69: 20.863335 | N69: 13 | O69: 9.010998 | P69: 11.73 | Q69: 21.8 | R69: 33.58 | S69: 40.61 | T69: 30.21 | U69: 40.15 | V69: 33.86 | W69: 50.75 | X69: 23.48 | Y69: 23.28 | Z69: 17.005108 | AA69: 9.21 | AB69: 24.75 | AC69: 31.529558 | AD69: 66.87 | AE69: 12.46 | AF69: 56.16 | AG69: 16.66 | AH69: 18.095 | AI69: 39.7 | AJ69: 685.28 | AK69: 51.02 | AL69: 29.35 | AM69: 11.14 | AN69: 54.73 | AO69: 86.86 | AP69: 13.1 | AQ69: 29 | AR69: 12.945 | AS69: 41.11 | AT69: 54.53 | AU69: 45.43 | AV69: 11.365 | AW69: 16.94 | AX69: 41.61 | AY69: 18.201368 | AZ69: 104.44 | BA69: 83.88 | BB69: 29.44527 | BC69: 20.29 | BD69: 25.27 | BE69: 14.789334 | BF69: 48.76 | BG69: 35.81 | BH69: 16.4525 | BI69: 62.82 | BJ69: 25.7 | BK69: 39.045 | BL69: 18.815653 | BM69: 16.66 | BN69: 58.25 | BO69: 35.615 | BP69: 46.8 | BQ69: 9.95 | BR69: 33.35 | BS69: 53.43 | BT69: 58.178802 | BU69: 10.065 | BV69: 29.135 | BW69: 38.57 | BX69: 41.04 | BY69: 18.712517 | BZ69: 6.508333 | CA69: 62.89 | CB69: 61.09 | CC69: 55.22 | CD69: 29.81 | CE69: 17.58 | CF69: 32.04 | CG69: 50.56
A70: 20100630 | B70: 50.18 | C70: 109.26 | D70: 34.46924 | E70: 193.22 | F70: 33.86 | G70: 176.54 | H70: 18.67 | I70: 19.9 | J70: 30.24 | K70: 9.83 | L70: 34.7873 | M70: 20.815 | N70: 11.3 | O70: 8.253418 | P70: 10.08 | Q70: 19.46 | R70: 29.18 | S70: 39.45 | T70: 22.23 | U70: 41.1 | V70: 28.07 | W70: 47.5 | X70: 22.14 | Y70: 20.06 | Z70: 13.672894 | AA70: 9.64 | AB70: 20.42 | AC70: 28.221075 | AD70: 65.87 | AE70: 9.64 | AF70: 45.76 | AG70: 14.64 | AH70: 16.8875 | AI70: 32.19 | AJ70: 655.03 | AK70: 47.56 | AL70: 27.31 | AM70: 8.28 | AN70: 46.27 | AO70: 72.96 | AP70: 13.3225 | AQ70: 22.77 | AR70: 12.15 | AS70: 36.55 | AT70: 49.17 | AU70: 37.91 | AV70: 10.4875 | AW70: 15.2425 | AX70: 34.91 | AY70: 16.749495 | AZ70: 87.82 | BA70: 76.27 | BB70: 28.071878 | BC70: 20.04 | BD70: 25.82 | BE70: 15.261334 | BF70: 49.19 | BG70: 35.83 | BH70: 15.6775 | BI70: 62.16 | BJ70: 25.06 | BK70: 39.38 | BL70: 18.146442 | BM70: 15.62 | BN70: 54.83 | BO70: 35.52 | BP70: 47.93 | BQ70: 10.12 | BR70: 30.3 | BS70: 50.3 | BT70: 58.11171 | BU70: 9.845 | BV70: 27.865 | BW70: 37.96 | BX70: 42.36 | BY70: 18.319946 | BZ70: 6.5183334 | CA70: 60.95 | CB70: 59.98 | CC70: 60.22 | CD70: 28.57 | CE70: 16.39 | CF70: 26.7 | CG70: 48.07
A71: 20100730 | B71: 53.53 | C71: 117.89 | D71: 41.377495 | E71: 211.57 | F71: 34.66 | G71: 224.4 | H71: 21.93 | I71: 21.1 | J71: 34.68 | K71: 11.02 | L71: 37.509396 | M71: 22.16 | N71: 12.79 | O71: 8.800559 | P71: 12.77 | Q71: 18.11 | R71: 28.51 | S71: 42.83 | T71: 27.23 | U71: 42.15 | V71: 28.51 | W71: 47.69 | X71: 26.86 | Y71: 20.84 | Z71: 14.518235 | AA71: 9.89 | AB71: 20.74 | AC71: 31.963148 | AD71: 69.73 | AE71: 10.86 | AF71: 48.93 | AG71: 15.5 | AH71: 18.41 | AI71: 34 | AJ71: 626.5 | AK71: 49.28 | AL71: 29.85 | AM71: 8.78 | AN71: 51.89 | AO71: 79.01 | AP71: 13.165 | AQ71: 28.86 | AR71: 12.425 | AS71: 36.97 | AT71: 51.32 | AU71: 42.07 | AV71: 10.38 | AW71: 17.3775 | AX71: 37.88 | AY71: 18.667286 | AZ71: 83.3 | BA71: 87.68 | BB71: 29.69694 | BC71: 22.16 | BD71: 27.36 | BE71: 16.856 | BF71: 49.65 | BG71: 35.9 | BH71: 16.5675 | BI71: 64.88 | BJ71: 27.555 | BK71: 39.49 | BL71: 18.270947 | BM71: 17.06 | BN71: 56.71 | BO71: 34.2 | BP71: 47 | BQ71: 10.73 | BR71: 33.34 | BS71: 50.05 | BT71: 61.456753 | BU71: 10.59 | BV71: 31.125 | BW71: 39.33 | BX71: 45.01 | BY71: 19.111628 | BZ71: 6.9816666 | CA71: 64.91 | CB71: 61.16 | CC71: 61.43 | CD71: 30.97 | CE71: 17.51 | CF71: 28.55 | CG71: 51.19
A72: 20100831 | B72: 54.47 | C72: 124.83 | D72: 39.000305 | E72: 209.78 | F72: 31.39 | G72: 291.48 | H72: 21.825 | I72: 19.93 | J72: 31.18 | K72: 10.26 | L72: 36.94528 | M72: 22.63625 | N72: 12.82 | O72: 9.776996 | P72: 11.285 | Q72: 16.89 | R72: 26.61 | S72: 41.93 | T72: 24.33 | U72: 40.36 | V72: 27.82 | W72: 46.94 | X72: 28.33 | Y72: 19.17 | Z72: 12.925848 | AA72: 9.3 | AB72: 20.28 | AC72: 30.141598 | AD72: 73.06 | AE72: 9.01 | AF72: 44.31 | AG72: 15.01 | AH72: 17.5 | AI72: 28.92 | AJ72: 604.16 | AK72: 47.27 | AL72: 26.665 | AM72: 8.04 | AN72: 45.68 | AO72: 75.74 | AP72: 12.4075 | AQ72: 24.56 | AR72: 11.49 | AS72: 35.84 | AT72: 51.16 | AU72: 39.63 | AV72: 9.9225 | AW72: 16.995 | AX72: 33.03 | AY72: 16.605953 | AZ72: 74.16 | BA72: 80.61 | BB72: 29.984562 | BC72: 22.32 | BD72: 30.81 | BE72: 16.344 | BF72: 53 | BG72: 37.26 | BH72: 15.3075 | BI72: 64.82 | BJ72: 27.94125 | BK72: 36.92 | BL72: 16.800245 | BM72: 16.66 | BN72: 56.5 | BO72: 36.16 | BP72: 46.47 | BQ72: 10.7875 | BR72: 34.13 | BS72: 49.68 | BT72: 61.725124 | BU72: 9.865 | BV72: 28.035 | BW72: 39.87 | BX72: 43.56 | BY72: 19.569628 | BZ72: 7.506667 | CA72: 64.18 | CB72: 59.67 | CC72: 58.48 | CD72: 27.49 | CE72: 16.38 | CF72: 26.88 | CG72: 50.14
A73: 20100930 | B73: 58.68 | C73: 157.06 | D73: 47.06114 | E73: 228.91 | F73: 40.83 | G73: 348.34 | H73: 26.31 | I73: 27.86 | J73: 38.185 | K73: 11.12 | L73: 38.306324 | M73: 24.38 | N73: 13.22 | O73: 10.269423 | P73: 12.24 | Q73: 18.64 | R73: 30.35 | S73: 44.59 | T73: 28.44 | U73: 44.51 | V73: 31.68 | W73: 52.68 | X73: 34.85 | Y73: 22.76 | Z73: 15.117837 | AA73: 10.4 | AB73: 22.29 | AC73: 33.77292 | AD73: 74.51 | AE73: 11.28 | AF73: 53.3 | AG73: 17.81 | AH73: 20.035 | AI73: 37.2 | AJ73: 647.53 | AK73: 53.2 | AL73: 32.55 | AM73: 8.76 | AN73: 60.16 | AO73: 89.86 | AP73: 13.665 | AQ73: 31.53 | AR73: 12.775 | AS73: 42.96 | AT73: 53.44 | AU73: 46.99 | AV73: 11.1575 | AW73: 19.83 | AX73: 37.52 | AY73: 19.064962 | AZ73: 80.96 | BA73: 86.77 | BB73: 33.11964 | BC73: 24.02 | BD73: 31.92 | BE73: 16.437334 | BF73: 59.16 | BG73: 35.75 | BH73: 16.235 | BI73: 66.76 | BJ73: 29.26 | BK73: 38.43 | BL73: 17.072598 | BM73: 17.69 | BN73: 64.49 | BO73: 36.54 | BP73: 47.59 | BQ73: 11.15 | BR73: 37.5 | BS73: 50.51 | BT73: 62.348125 | BU73: 10.83 | BV73: 31.615 | BW73: 42.04 | BX73: 47.22 | BY73: 20.191196 | BZ73: 7.77 | CA73: 66.44 | CB73: 59.97 | CC73: 60.53 | CD73: 28.52 | CE73: 16.02 | CF73: 33.5 | CG73: 53.52
A74: 20101029 | B74: 64.98 | C74: 165.23 | D74: 51.36169 | E74: 237.63 | F74: 42.98 | G74: 376.81 | H74: 28.055 | I74: 30.99 | J74: 43.17 | K74: 10.43 | L74: 40.929924 | M74: 25.655 | N74: 14.84 | O74: 12.567417 | P74: 14.13 | Q74: 19.01 | R74: 32.84 | S74: 47.86 | T74: 30.66 | U74: 46.25 | V74: 30.9 | W74: 51.22 | X74: 45.88 | Y74: 20.38 | Z74: 14.262667 | AA74: 10.875 | AB74: 21.34 | AC74: 34.922874 | AD74: 77.77 | AE74: 10.93 | AF74: 57.34 | AG74: 17.65 | AH74: 20.36 | AI74: 38.51 | AJ74: 627.41 | AK74: 58.5 | AL74: 35.545 | AM74: 7.85 | AN74: 61.34 | AO74: 96.88 | AP74: 14.7475 | AQ74: 39.54 | AR74: 14.28 | AS74: 50 | AT74: 51.94 | AU74: 53 | AV74: 11.4725 | AW74: 19.79 | AX74: 40.56 | AY74: 19.587355 | AZ74: 75.83 | BA74: 107.16 | BB74: 35.63633 | BC74: 25.4175 | BD74: 33.32 | BE74: 16.216002 | BF74: 60.07 | BG74: 36.25 | BH74: 16.4625 | BI74: 66.55 | BJ74: 30.66 | BK74: 38.56 | BL74: 17.50058 | BM74: 19.73 | BN74: 62.77 | BO74: 37.56 | BP74: 49.49 | BQ74: 11.48 | BR74: 42.55 | BS74: 50.26 | BT74: 60.70915 | BU74: 11 | BV74: 35.585 | BW74: 44.2 | BX74: 47.23 | BY74: 21.113737 | BZ74: 8.535 | CA74: 65.3 | CB74: 63.57 | CC74: 64.28 | CD74: 29.46 | CE74: 15.55 | CF74: 33.88 | CG74: 54.17
A75: 20101130 | B75: 65.99 | C75: 175.4 | D75: 52.88885 | E75: 259.41 | F75: 42.72 | G75: 394.05 | H75: 30.17 | I75: 32.9 | J75: 41.31 | K75: 10.04 | L75: 43.831104 | M75: 27.475 | N75: 14.77 | O75: 12.264384 | P75: 15.94 | Q75: 21.36 | R75: 28.96 | S75: 48.14 | T75: 31.28 | U75: 47.66 | V75: 30.21 | W75: 56.42 | X75: 50.08 | Y75: 20.7 | Z75: 14.931075 | AA75: 10.7875 | AB75: 22.7 | AC75: 36.958862 | AD75: 78.3 | AE75: 12.22 | AF75: 52.54 | AG75: 16.77 | AH75: 21.5325 | AI75: 42.8 | AJ75: 619.98 | AK75: 60.18 | AL75: 36.345 | AM75: 6.26 | AN75: 67.84 | AO75: 109.24 | AP75: 16.22 | AQ75: 40.25 | AR75: 15.3 | AS75: 56.54 | AT75: 56.94 | AU75: 62.1 | AV75: 11.4025 | AW75: 21.235 | AX75: 45.28 | AY75: 19.502642 | AZ75: 73 | BA75: 101.1 | BB75: 36.01024 | BC75: 24 | BD75: 28.99 | BE75: 17.445333 | BF75: 60.82 | BG75: 33.9 | BH75: 16.3125 | BI75: 61.81 | BJ75: 31.585 | BK75: 38.275 | BL75: 16.714647 | BM75: 20.61 | BN75: 67.61 | BO75: 35.33 | BP75: 46.8 | BQ75: 12.27 | BR75: 43.12 | BS75: 49.23 | BT75: 59.319374 | BU75: 11.775 | BV75: 37.46 | BW75: 44.01 | BX75: 47.65 | BY75: 19.792084 | BZ75: 8.870001 | CA75: 64.63 | CB75: 61.07 | CC75: 63.25 | CD75: 29.02 | CE75: 15.83 | CF75: 34.85 | CG75: 54.09
A76: 20101231 | B76: 66.15 | C76: 180 | D76: 56.865242 | E76: 272.59 | F76: 34.29 | G76: 399.55 | H76: 36.18 | I76: 31.88 | J76: 46.11 | K76: 11.93 | L76: 41.583584 | M76: 28.04 | N76: 15.95 | O76: 11.713035 | P76: 16.79 | Q76: 22.14 | R76: 30.99 | S76: 51.34 | T76: 34.67 | U76: 47.18 | V76: 35.06 | W76: 54.34 | X76: 45.95 | Y76: 22.76 | Z76: 18.430393 | AA76: 11.36 | AB76: 25.08 | AC76: 39.155094 | AD76: 76.76 | AE76: 14.85 | AF76: 56.76 | AG76: 18.18 | AH76: 21.355 | AI76: 42.38 | AJ76: 691.02 | AK76: 60.42 | AL76: 39.01 | AM76: 7.52 | AN76: 63.01 | AO76: 110.92 | AP76: 15.8125 | AQ76: 47 | AR76: 16.065 | AS76: 55.31 | AT76: 60.13 | AU76: 62.27 | AV76: 11.0975 | AW76: 24.245 | AX76: 52.04 | AY76: 20.279171 | AZ76: 88.83 | BA76: 103.84 | BB76: 35.269608 | BC76: 24.62 | BD76: 30.08 | BE76: 18.565336 | BF76: 65.52 | BG76: 34.75 | BH76: 17.255 | BI76: 63.28 | BJ76: 32.885 | BK76: 40.185 | BL76: 17.570612 | BM76: 22.15 | BN76: 72.21 | BO76: 35.59 | BP76: 47.15 | BQ76: 12.815 | BR76: 46 | BS76: 51.08 | BT76: 60.42161 | BU76: 11.18 | BV76: 40.35 | BW76: 46.53 | BX76: 50.19 | BY76: 20.616482 | BZ76: 8.713333 | CA76: 65.33 | CB76: 64.33 | CC76: 65.65 | CD76: 29.4 | CE76: 17.22 | CF76: 38.96 | CG76: 53.93
A77: 20110131 | B77: 63.94 | C77: 169.64 | D77: 55.323673 | E77: 253.53 | F77: 34 | G77: 428.52 | H77: 33.7 | I77: 32.65 | J77: 44.71 | K77: 12.39 | L77: 42.18352 | M77: 25.29 | N77: 16.4 | O77: 12.777856 | P77: 15.95 | Q77: 19.27 | R77: 30.83 | S77: 51.75 | T77: 39.65 | U77: 44.09 | V77: 36.77 | W77: 50.78 | X77: 46.49 | Y77: 22.53 | Z77: 19.029995 | AA77: 12.08 | AB77: 24.8 | AC77: 37.22279 | AD77: 73.67 | AE77: 14.83 | AF77: 55.55 | AG77: 19.25 | AH77: 20.62 | AI77: 41.18 | AJ77: 765 | AK77: 56.83 | AL77: 38.46 | AM77: 7.89 | AN77: 58.37 | AO77: 107.18 | AP77: 16.3 | AQ77: 44.9 | AR77: 15.765 | AS77: 54.09 | AT77: 54.83 | AU77: 58.13 | AV77: 11.8475 | AW77: 25.655 | AX77: 48.05 | AY77: 19.464993 | AZ77: 85.5 | BA77: 116.33 | BB77: 33.622974 | BC77: 23.51 | BD77: 32.67 | BE77: 17.693335 | BF77: 68.07 | BG77: 34.14 | BH77: 17.2025 | BI77: 62.89 | BJ77: 31.425 | BK77: 38.385 | BL77: 17.376076 | BM77: 19.22 | BN77: 71.84 | BO77: 34.78 | BP77: 46.69 | BQ77: 12.35 | BR77: 46.13 | BS77: 50.3 | BT77: 62.04142 | BU77: 10.7 | BV77: 40.25 | BW77: 44.2 | BX77: 46.87 | BY77: 20.001455 | BZ77: 9.440001 | CA77: 64.31 | CB77: 63.13 | CC77: 62.16 | CD77: 29.14 | CE77: 16.45 | CF77: 40.44 | CG77: 56.07
A78: 20110228 | B78: 62.68 | C78: 173.29 | D78: 53.94778 | E78: 257.95 | F78: 32.24 | G78: 453.88 | H78: 38.805 | I78: 35.37 | J78: 42.67 | K78: 11.84 | L78: 42.20143 | M78: 25.16 | N78: 16.87 | O78: 14.101518 | P78: 15.05 | Q78: 22.53 | R78: 33.95 | S78: 52.69 | T78: 40.82 | U78: 44.9 | V78: 37.47 | W78: 53.89 | X78: 46.64 | Y78: 23.06 | Z78: 19.816359 | AA78: 11.88 | AB78: 26.17 | AC78: 36.958862 | AD78: 75.68 | AE78: 13.94 | AF78: 58.11 | AG78: 19.34 | AH78: 22.2575 | AI78: 45.26 | AJ78: 727.86 | AK78: 55.58 | AL78: 37.725 | AM78: 6.9 | AN78: 60.01 | AO78: 126.71 | AP78: 18.01 | AQ78: 43.79 | AR78: 16.49 | AS78: 54.92 | AT78: 52.55 | AU78: 61.55 | AV78: 12.4675 | AW78: 26.035 | AX78: 48.8 | AY78: 22.51228 | AZ78: 82.5 | BA78: 122.93 | BB78: 36.19 | BC78: 25.37 | BD78: 37.18 | BE78: 18.44 | BF78: 72.17 | BG78: 33.66 | BH78: 18.86 | BI78: 67.76 | BJ78: 31.96 | BK78: 39.26 | BL78: 18.021938 | BM78: 20.32 | BN78: 74.79 | BO78: 37.14 | BP78: 52.32 | BQ78: 13.7 | BR78: 48.82 | BS78: 53.56 | BT78: 63.16282 | BU78: 11.45 | BV78: 47.205 | BW78: 47.65 | BX78: 45.73 | BY78: 20.832396 | BZ78: 9.591667 | CA78: 63.42 | CB78: 63.05 | CC78: 68.84 | CD78: 27.79 | CE78: 18.63 | CF78: 43.34 | CG78: 51.98
A79: 20110331 | B79: 65.62 | C79: 180.13 | D79: 53.472347 | E79: 273.56 | F79: 28.72 | G79: 506.44 | H79: 39.845 | I79: 32.1 | J79: 38.36 | K79: 11.65 | L79: 43.992283 | M79: 27.76 | N79: 18.43 | O79: 13.064054 | P79: 14.91 | Q79: 22.66 | R79: 33.86 | S79: 53.64 | T79: 42.49 | U79: 46.84 | V79: 37.06 | W79: 53.04 | X79: 42.22 | Y79: 24.5 | Z79: 17.811132 | AA79: 12.05 | AB79: 26.43 | AC79: 33.53727 | AD79: 76.09 | AE79: 13.15 | AF79: 61.15 | AG79: 19.13 | AH79: 18.925 | AI79: 44.88 | AJ79: 756 | AK79: 57.46 | AL79: 43.51 | AM79: 7.4 | AN79: 65.03 | AO79: 123.65 | AP79: 17.78 | AQ79: 41.26 | AR79: 18.475 | AS79: 52.04 | AT79: 50.01 | AU79: 61.44 | AV79: 12.4325 | AW79: 29.93 | AX79: 48.76 | AY79: 23.185272 | AZ79: 85.36 | BA79: 127.16 | BB79: 36.945007 | BC79: 26.03 | BD79: 36.01 | BE79: 18.213335 | BF79: 72.33 | BG79: 33.11 | BH79: 19.835 | BI79: 70.07 | BJ79: 33.17 | BK79: 40.38 | BL79: 18.481047 | BM79: 20.28 | BN79: 73.32 | BO79: 36.55 | BP79: 54.35 | BQ79: 13.92 | BR79: 51.82 | BS79: 53.98 | BT79: 62.558983 | BU79: 11.985 | BV79: 48.18 | BW79: 47.83 | BX79: 46.89 | BY79: 20.51834 | BZ79: 10.038334 | CA79: 64.41 | CB79: 61.6 | CC79: 71.39 | CD79: 27.7 | CE79: 19.19 | CF79: 40.14 | CG79: 52.05
A80: 20110429 | B80: 65.46 | C80: 195.81 | D80: 57.722466 | E80: 282.38 | F80: 31.22 | G80: 547.01 | H80: 38.62 | I80: 34.7 | J80: 38.07 | K80: 12.44 | L80: 42.058163 | M80: 28.75 | N80: 18.57 | O80: 14.473994 | P80: 15.47 | Q80: 23.24 | R80: 34.23 | S80: 53.7 | T80: 37.26 | U80: 46.84 | V80: 37.15 | W80: 52.71 | X80: 47.01 | Y80: 26.29 | Z80: 18.666302 | AA80: 12.61 | AB80: 26.25 | AC80: 33.273346 | AD80: 78.31 | AE80: 12.66 | AF80: 60.04 | AG80: 19.06 | AH80: 20.58 | AI80: 47.55 | AJ80: 739.33 | AK80: 59.06 | AL80: 52.715 | AM80: 8.13 | AN80: 70.41 | AO80: 130.77 | AP80: 18.4225 | AQ80: 39.82 | AR80: 18.1 | AS80: 59.81 | AT80: 49.1 | AU80: 69.44 | AV80: 13.405 | AW80: 30.935 | AX80: 48.99 | AY80: 23.662954 | AZ80: 86.18 | BA80: 147.15 | BB80: 38.57007 | BC80: 26.84 | BD80: 37.02 | BE80: 19.162668 | BF80: 75.44 | BG80: 33.59 | BH80: 20.62 | BI80: 69.66 | BJ80: 33.73 | BK80: 42.175 | BL80: 19.025753 | BM80: 22.39 | BN80: 80.89 | BO80: 38.58 | BP80: 57.71 | BQ80: 14.705 | BR80: 55.1 | BS80: 57.27 | BT80: 63.31617 | BU80: 12.155 | BV80: 48.5 | BW80: 49.12 | BX80: 48.75 | BY80: 21.977392 | BZ80: 11.025001 | CA80: 68.89 | CB80: 64.9 | CC80: 75.07 | CD80: 28.91 | CE80: 19.9 | CF80: 42.72 | CG80: 54.98
A81: 20110531 | B81: 62.1 | C81: 196.69 | D81: 55.453335 | E81: 294 | F81: 31.76 | G81: 515.19 | H81: 36.255 | I81: 29.66 | J81: 38.81 | K81: 12.18 | L81: 45.35333 | M81: 31.87 | N81: 24.92 | O81: 13.118767 | P81: 14.92 | Q81: 19.4 | R81: 34.08 | S81: 54.8 | T81: 37.16 | U81: 45.74 | V81: 36.28 | W81: 53.24 | X81: 41.54 | Y81: 25.83 | Z81: 18.656471 | AA81: 13.295 | AB81: 24.14 | AC81: 35.63924 | AD81: 81.54 | AE81: 15.07 | AF81: 66.52 | AG81: 17.81 | AH81: 21.1125 | AI81: 46.83 | AJ81: 746 | AK81: 60.11 | AL81: 55.175 | AM81: 8.44 | AN81: 65.97 | AO81: 126.77 | AP81: 20.49 | AQ81: 39 | AR81: 18.395 | AS81: 63.66 | AT81: 49.53 | AU81: 75.66 | AV81: 13.255 | AW81: 31.58 | AX81: 48.65 | AY81: 23.453527 | AZ81: 83.8 | BA81: 146.52 | BB81: 39.77808 | BC81: 28.06 | BD81: 32.41 | BE81: 19.328001 | BF81: 74.45 | BG81: 34.75 | BH81: 21.025 | BI81: 70.48 | BJ81: 33.405 | BK81: 43.765 | BL81: 19.788338 | BM81: 21.96 | BN81: 82.48 | BO81: 39.77 | BP81: 55.73 | BQ81: 14.665 | BR81: 56.73 | BS81: 56.99 | BT81: 65.463135 | BU81: 12.41 | BV81: 51.255 | BW81: 50.19 | BX81: 46.65 | BY81: 22.880304 | BZ81: 11.941668 | CA81: 71.12 | CB81: 67 | CC81: 79.28 | CD81: 32.21 | CE81: 19.02 | CF81: 43.63 | CG81: 55.22
A82: 20110630 | B82: 58.49 | C82: 204.49 | D82: 56.51226 | E82: 294.85 | F82: 31.41 | G82: 511.93 | H82: 40.395 | I82: 33.07 | J82: 37.63 | K82: 11.52 | L82: 44.556396 | M82: 33.31 | N82: 25.24 | O82: 13.581733 | P82: 13.79 | Q82: 18.1 | R82: 33.03 | S82: 54.4 | T82: 40.97 | U82: 43.93 | V82: 36.22 | W82: 50.01 | X82: 42.21 | Y82: 24.38 | Z82: 17.84062 | AA82: 13.045 | AB82: 23.31 | AC82: 33.45244 | AD82: 84.32 | AE82: 13.21 | AF82: 59.99 | AG82: 15.78 | AH82: 22.495 | AI82: 46.94 | AJ82: 725.48 | AK82: 65.51 | AL82: 55.585 | AM82: 7.66 | AN82: 65.47 | AO82: 132.61 | AP82: 20.03 | AQ82: 37.64 | AR82: 19.745 | AS82: 63.93 | AT82: 46.91 | AU82: 78.52 | AV82: 13.1325 | AW82: 33.44 | AX82: 46.22 | AY82: 25.545448 | AZ82: 81.32 | BA82: 143.54 | BB82: 39.72056 | BC82: 26.41 | BD82: 30.15 | BE82: 19.917334 | BF82: 68.95 | BG82: 34.55 | BH82: 20.27 | BI82: 67.44 | BJ82: 33.645 | BK82: 43.705 | BL82: 20.084034 | BM82: 20.82 | BN82: 81.24 | BO82: 37.22 | BP82: 56.85 | BQ82: 14.905 | BR82: 55.28 | BS82: 55.32 | BT82: 63.795403 | BU82: 12.4 | BV82: 52.595 | BW82: 49.57 | BX82: 44.74 | BY82: 23.050417 | BZ82: 13.491667 | CA82: 70.43 | CB82: 63.57 | CC82: 76.44 | CD82: 31.18 | CE82: 19.42 | CF82: 42.46 | CG82: 53.14
A83: 20110729 | B83: 54.97 | C83: 222.52 | D83: 47.65904 | E83: 285.45 | F83: 27.6 | G83: 537.65 | H83: 39.81 | I83: 31.97 | J83: 33.3 | K83: 11.88 | L83: 45.48764 | M83: 33.115 | N83: 26.87 | O83: 13.783754 | P83: 12.21 | Q83: 19.29 | R83: 32.63 | S83: 53.16 | T83: 43.39 | U83: 39.56 | V83: 34.93 | W83: 54.71 | X83: 47.18 | Y83: 21.7 | Z83: 17.388462 | AA83: 12.285 | AB83: 21.58 | AC83: 30.6341 | AD83: 86.48 | AE83: 15.11 | AF83: 52.03 | AG83: 15.52 | AH83: 22.5375 | AI83: 50.16 | AJ83: 680.09 | AK83: 59.5 | AL83: 59.275 | AM83: 6.87 | AN83: 71.55 | AO83: 135.07 | AP83: 18.9425 | AQ83: 30.62 | AR83: 20.045 | AS83: 64.56 | AT83: 51.49 | AU83: 79.59 | AV83: 13.825 | AW83: 32.96 | AX83: 45.75 | AY83: 27.484419 | AZ83: 69.23 | BA83: 153.68 | BB83: 37.980442 | BC83: 26.3 | BD83: 30.38 | BE83: 19.616001 | BF83: 68.81 | BG83: 33.05 | BH83: 20.17 | BI83: 71.59 | BJ83: 34.005 | BK83: 42.19 | BL83: 19.928406 | BM83: 20.39 | BN83: 78.25 | BO83: 37.35 | BP83: 56.44 | BQ83: 14.485 | BR83: 50.89 | BS83: 55.78 | BT83: 62.64525 | BU83: 12.435 | BV83: 52.455 | BW83: 48.65 | BX83: 45.05 | BY83: 22.494276 | BZ83: 12.77 | CA83: 64.04 | CB83: 61.49 | CC83: 77.92 | CD83: 30.59 | CE83: 17.56 | CF83: 39.04 | CG83: 52.71
A84: 20110831 | B84: 60.72 | C84: 215.23 | D84: 40.21051 | E84: 307 | F84: 25.59 | G84: 537.26 | H84: 35.695 | I84: 28.11 | J84: 33.03 | K84: 10.52 | L84: 43.069992 | M84: 35.715 | N84: 27.73 | O84: 12.992504 | P84: 11.12 | Q84: 16.52 | R84: 33.53 | S84: 55.02 | T84: 38.66 | U84: 38.74 | V84: 33.38 | W84: 46.34 | X84: 46.57 | Y84: 22.19 | Z84: 14.449428 | AA84: 12.8 | AB84: 19.93 | AC84: 27.598969 | AD84: 90.41 | AE84: 11.07 | AF84: 49.55 | AG84: 13.84 | AH84: 21.6625 | AI84: 45.46 | AJ84: 636.5 | AK84: 64.88 | AL84: 54.935 | AM84: 4.8 | AN84: 66.66 | AO84: 137.11 | AP84: 19.1375 | AQ84: 25.96 | AR84: 19.31 | AS84: 56.22 | AT84: 51.67 | AU84: 71.96 | AV84: 13.655 | AW84: 30.685 | AX84: 40.43 | AY84: 27.545599 | AZ84: 62.69 | BA84: 154.72 | BB84: 39.09498 | BC84: 27.19 | BD84: 28.48 | BE84: 19.133335 | BF84: 64.71 | BG84: 31.87 | BH84: 21.77 | BI84: 69.7 | BJ84: 35.225 | BK84: 44.985 | BL84: 19.002407 | BM84: 19.77 | BN84: 78.54 | BO84: 37.91 | BP84: 58.65 | BQ84: 13.805 | BR84: 46.76 | BS84: 54.32 | BT84: 66.287415 | BU84: 11.78 | BV84: 48.83 | BW84: 47.79 | BX84: 43.75 | BY84: 22.913017 | BZ84: 14.22 | CA84: 64.43 | CB84: 63.68 | CC84: 72.09 | CD84: 27.93 | CE84: 17.47 | CF84: 35.21 | CG84: 53.19
A85: 20110930 | B85: 58.1 | C85: 216.23 | D85: 34.937473 | E85: 319.19 | F85: 23.3 | G85: 449.46 | H85: 30.265 | I85: 23.85 | J85: 30.3 | K85: 9.04 | L85: 38.279465 | M85: 37.57 | N85: 27.25 | O85: 12.411692 | P85: 9.67 | Q85: 16.24 | R85: 31.77 | S85: 50.8 | T85: 34.33 | U85: 32.61 | V85: 32.87 | W85: 49.1 | X85: 38.34 | Y85: 19.79 | Z85: 13.3092 | AA85: 12.08 | AB85: 19.34 | AC85: 25.676088 | AD85: 87.82 | AE85: 9.29 | AF85: 42.91 | AG85: 11.87 | AH85: 21.3775 | AI85: 45.68 | AJ85: 603.98 | AK85: 66.63 | AL85: 49.97 | AM85: 3.95 | AN85: 58.24 | AO85: 129.7 | AP85: 19.6725 | AQ85: 21.64 | AR85: 18.645 | AS85: 51.83 | AT85: 49.04 | AU85: 60.82 | AV85: 13.8675 | AW85: 31.265 | AX85: 37.79 | AY85: 28.595089 | AZ85: 49.91 | BA85: 115.08 | BB85: 35.514088 | BC85: 26.81 | BD85: 24.81 | BE85: 18.704 | BF85: 58.29 | BG85: 32.37 | BH85: 22.1 | BI85: 66.33 | BJ85: 33.78 | BK85: 44.34 | BL85: 18.846777 | BM85: 18 | BN85: 82.13 | BO85: 38.49 | BP85: 59.24 | BQ85: 13.51 | BR85: 39.24 | BS85: 53.19 | BT85: 68.06058 | BU85: 10.98 | BV85: 43.92 | BW85: 46.16 | BX85: 39.61 | BY85: 21.97085 | BZ85: 14.548334 | CA85: 61.9 | CB85: 63.18 | CC85: 72.89 | CD85: 25.9 | CE85: 17.36 | CF85: 32.89 | CG85: 51.9
A86: 20111031 | B86: 65.07 | C86: 213.51 | D86: 41.615215 | E86: 323.59 | F86: 26.23 | G86: 507.72 | H86: 38.245 | I86: 30.06 | J86: 35.21 | K86: 11.13 | L86: 42.873 | M86: 39.98 | N86: 32.03 | O86: 13.396546 | P86: 11.68 | Q86: 18.9 | R86: 34.39 | S86: 57.43 | T86: 38.9 | U86: 38.06 | V86: 35.8 | W86: 53.01 | X86: 46.95 | Y86: 21.9 | Z86: 16.258064 | AA86: 14.59 | AB86: 21.02 | AC86: 29.691511 | AD86: 92.85 | AE86: 11.52 | AF86: 52.65 | AG86: 14.8 | AH86: 24.0875 | AI86: 50.69 | AJ86: 642.75 | AK86: 76.05 | AL86: 63.34 | AM86: 5.18 | AN86: 74.41 | AO86: 158.79 | AP86: 21.9325 | AQ86: 29.72 | AR86: 21.18 | AS86: 65.07 | AT86: 54.75 | AU86: 79.73 | AV86: 14.7325 | AW86: 35.47 | AX86: 44.56 | AY86: 32.5248 | AZ86: 50.81 | BA86: 132.8 | BB86: 38.519733 | BC86: 27.55 | BD86: 28.94 | BE86: 19.928001 | BF86: 61.77 | BG86: 33.25 | BH86: 22.09 | BI86: 66.94 | BJ86: 34.16 | BK86: 45.185 | BL86: 19.710524 | BM86: 20.22 | BN86: 83.25 | BO86: 38.53 | BP86: 57.23 | BQ86: 14.735 | BR86: 48.5 | BS86: 54.21 | BT86: 66.81457 | BU86: 11.59 | BV86: 49.225 | BW86: 48.56 | BX86: 42.34 | BY86: 23.017702 | BZ86: 14.848333 | CA86: 62.95 | CB86: 63.99 | CC86: 77.02 | CD86: 27.72 | CE86: 19.3 | CF86: 33.2 | CG86: 56.72
A87: 20111130 | B87: 69.22 | C87: 192.29 | D87: 38.380795 | E87: 328.38 | F87: 27.09 | G87: 485.89 | H87: 32.96 | I87: 28.76 | J87: 33.2 | K87: 11.91 | L87: 42.720776 | M87: 40.745 | N87: 32.94 | O87: 12.45378 | P87: 10.6 | Q87: 18.69 | R87: 36.59 | S87: 58.5 | T87: 36.77 | U87: 35.81 | V87: 39.22 | W87: 53.8 | X87: 46.71 | Y87: 22.38 | Z87: 18.096188 | AA87: 15.265 | AB87: 24.01 | AC87: 30.62 | AD87: 95.52 | AE87: 10.29 | AF87: 54.56 | AG87: 15.3 | AH87: 24.045 | AI87: 45.28 | AJ87: 669.85 | AK87: 77.24 | AL87: 60.1 | AM87: 6.11 | AN87: 67.89 | AO87: 141.86 | AP87: 22.2725 | AQ87: 27.71 | AR87: 21.74 | AS87: 62.59 | AT87: 52.7 | AU87: 67.04 | AV87: 15.425 | AW87: 36.115 | AX87: 44.5 | AY87: 32.635395 | AZ87: 49.06 | BA87: 120.56 | BB87: 40.2958 | BC87: 28.69 | BD87: 30.12 | BE87: 21.282667 | BF87: 62.5 | BG87: 32.6 | BH87: 22.125 | BI87: 64.96 | BJ87: 33.615 | BK87: 45.75 | BL87: 19.656054 | BM87: 19.47 | BN87: 85.3 | BO87: 39.95 | BP87: 57.68 | BQ87: 15.055 | BR87: 51.99 | BS87: 49.16 | BT87: 68.501465 | BU87: 11.59 | BV87: 58.99 | BW87: 48.7 | BX87: 40.59 | BY87: 23.652359 | BZ87: 15.366667 | CA87: 64 | CB87: 64.57 | CC87: 75.98 | CD87: 28.54 | CE87: 20.14 | CF87: 33.72 | CG87: 58.9
A88: 20111230 | B88: 69.63 | C88: 173.1 | D88: 38.532074 | E88: 324.97 | F88: 23.37 | G88: 467.71 | H88: 31.87 | I88: 30.48 | J88: 32.64 | K88: 12.61 | L88: 40.81352 | M88: 41.555 | N88: 33.95 | O88: 12.765229 | P88: 10.76 | Q88: 18.55 | R88: 39.81 | S88: 61.2 | T88: 38.87 | U88: 31.89 | V88: 42.04 | W88: 49.35 | X88: 42.73 | Y88: 23.04 | Z88: 19.31505 | AA88: 15.04 | AB88: 25.38 | AC88: 29.17 | AD88: 100.33 | AE88: 10.43 | AF88: 59.85 | AG88: 16.15 | AH88: 24.0925 | AI88: 49.71 | AJ88: 686 | AK88: 79.95 | AL88: 55.98 | AM88: 6.31 | AN88: 70.49 | AO88: 138.08 | AP88: 23.765 | AQ88: 24.77 | AR88: 23.005 | AS88: 61.04 | AT88: 51.22 | AU88: 66.26 | AV88: 16.1375 | AW88: 35.075 | AX88: 42.36 | AY88: 29.882246 | AZ88: 47.45 | BA88: 110.49 | BB88: 42.43139 | BC88: 29.65 | BD88: 28.6 | BE88: 21.469336 | BF88: 57.2 | BG88: 33.24 | BH88: 22.88 | BI88: 66.56 | BJ88: 34.985 | BK88: 46.195 | BL88: 20.543142 | BM88: 20.67 | BN88: 83.32 | BO88: 40.41 | BP88: 61.78 | BQ88: 14.645 | BR88: 52.59 | BS88: 50.57 | BT88: 70.504654 | BU88: 12.11 | BV88: 56.16 | BW88: 50.42 | BX88: 43.54 | BY88: 24.444042 | BZ88: 15.356667 | CA88: 66.35 | CB88: 66.71 | CC88: 78.17 | CD88: 29.33 | CE88: 20.64 | CF88: 33.06 | CG88: 59.76
A89: 20120131 | B89: 76.64 | C89: 194.44 | D89: 45.44753 | E89: 347.88 | F89: 23.95 | G89: 529.49 | H89: 37.315 | I89: 30.43 | J89: 30.2 | K89: 13.92 | L89: 41.073193 | M89: 42.4 | N89: 32.65 | O89: 13.29764 | P89: 12.42 | Q89: 18.98 | R89: 41.7 | S89: 63.78 | T89: 44.19 | U89: 34.91 | V89: 44.39 | W89: 45.99 | X89: 49.11 | Y89: 21.46 | Z89: 21.123688 | AA89: 16.3 | AB89: 26.83 | AC89: 34.45 | AD89: 99.05 | AE89: 13.05 | AF89: 61.16 | AG89: 18.47 | AH89: 25.9975 | AI89: 49.38 | AJ89: 693.25 | AK89: 81.51 | AL89: 64.4 | AM89: 7.45 | AN89: 77.19 | AO89: 152 | AP89: 25.41 | AQ89: 27.18 | AR89: 23.96 | AS89: 70.05 | AT89: 50.81 | AU89: 63.8 | AV89: 17.035 | AW89: 40.385 | AX89: 43.61 | AY89: 30.94115 | AZ89: 54.32 | BA89: 115.23 | BB89: 45.537704 | BC89: 28.4 | BD89: 28.63 | BE89: 21.656 | BF89: 57.27 | BG89: 31.7 | BH89: 22.685 | BI89: 68.66 | BJ89: 33.765 | BK89: 45.36 | BL89: 20.753244 | BM89: 20.9 | BN89: 82.27 | BO89: 39.83 | BP89: 61.08 | BQ89: 14.39 | BR89: 55.49 | BS89: 49.52 | BT89: 68.58772 | BU89: 11.88 | BV89: 57.93 | BW89: 50.54 | BX89: 42.89 | BY89: 25.059067 | BZ89: 17.418335 | CA89: 65.67 | CB89: 63.04 | CC89: 78.78 | CD89: 30.11 | CE89: 18.64 | CF89: 33.36 | CG89: 61.36
A90: 20120229 | B90: 85.37 | C90: 179.69 | D90: 47.975994 | E90: 374.48 | F90: 24.7 | G90: 627.02 | H90: 41.42 | I90: 30.69 | J90: 30.29 | K90: 14.34 | L90: 45.657776 | M90: 44.255 | N90: 38.46 | O90: 15.04218 | P90: 12.38 | Q90: 23.36 | R90: 47.19 | S90: 62.68 | T90: 46.58 | U90: 35.32 | V90: 47.57 | W90: 49.68 | X90: 55.61 | Y90: 22.63 | Z90: 22.98147 | AA90: 15.93 | AB90: 28.38 | AC90: 35.28 | AD90: 99.28 | AE90: 13.77 | AF90: 63.51 | AG90: 18.3 | AH90: 26.98 | AI90: 53.62 | AJ90: 692 | AK90: 86.5 | AL90: 66.06 | AM90: 8.82 | AN90: 85.01 | AO90: 173.73 | AP90: 26.665 | AQ90: 28.49 | AR90: 24.28 | AS90: 74.84 | AT90: 56.69 | AU90: 65.01 | AV90: 18.305 | AW90: 42.735 | AX90: 42.1 | AY90: 34.36729 | AZ90: 75.57 | BA90: 118.54 | BB90: 47.63015 | BC90: 30.1 | BD90: 31.2 | BE90: 21.773335 | BF90: 67.32 | BG90: 33.32 | BH90: 23.87 | BI90: 67.61 | BJ90: 34.93 | BK90: 46.59 | BL90: 20.42642 | BM90: 21.84 | BN90: 86.06 | BO90: 38.31 | BP90: 60.7 | BQ90: 14.235 | BR90: 57.35 | BS90: 52.35 | BT90: 69.8529 | BU90: 11.895 | BV90: 58.54 | BW90: 50.45 | BX90: 43.94 | BY90: 24.908583 | BZ90: 19.060001 | CA90: 62.94 | CB90: 67.62 | CC90: 75.32 | CD90: 29.42 | CE90: 18.91 | CF90: 33.16 | CG90: 59.08
A91: 20120330 | B91: 88.57 | C91: 202.51 | D91: 48.30016 | E91: 371.8 | F91: 23.68 | G91: 717.5 | H91: 42.17 | I91: 34.65 | J91: 32.08 | K91: 15.17 | L91: 45.809998 | M91: 47.245 | N91: 36.3 | O91: 15.530398 | P91: 12.475 | Q91: 26.14 | R91: 46.98 | S91: 62.75 | T91: 49.08 | U91: 36.72 | V91: 50.31 | W91: 50.03 | X91: 57.57 | Y91: 23.01 | Z91: 26.716698 | AA91: 15.585 | AB91: 31.38 | AC91: 37.85 | AD91: 98.1 | AE91: 13.62 | AF91: 66.51 | AG91: 17.81 | AH91: 27.11 | AI91: 55.72 | AJ91: 726.33 | AK91: 91.35 | AL91: 72.15 | AM91: 8.85 | AN91: 89.33 | AO91: 174.33 | AP91: 29.05 | AQ91: 29.43 | AR91: 27.945 | AS91: 77.28 | AT91: 58.27 | AU91: 69.13 | AV91: 19.855 | AW91: 45.28 | AX91: 43.25 | AY91: 34.350815 | AZ91: 76.86 | BA91: 124.88 | BB91: 51.18228 | BC91: 30.87 | BD91: 31.66 | BE91: 22.237333 | BF91: 68.44 | BG91: 33.85 | BH91: 24.595 | BI91: 68.75 | BJ91: 37.005 | BK91: 48.89 | BL91: 20.434202 | BM91: 23.59 | BN91: 90.8 | BO91: 39.45 | BP91: 61.33 | BQ91: 14.76 | BR91: 57.65 | BS91: 53.63 | BT91: 70.82095 | BU91: 12.115 | BV91: 61.94 | BW91: 54.43 | BX91: 45.25 | BY91: 24.869326 | BZ91: 20.696667 | CA91: 66.35 | CB91: 67.21 | CC91: 81.36 | CD91: 29.86 | CE91: 19.15 | CF91: 33.49 | CG91: 61.2
A92: 20120430 | B92: 91.8 | C92: 231.9 | D92: 45.195404 | E92: 396.16 | F92: 22.07 | G92: 760.82 | H92: 39.52 | I92: 30.87 | J92: 32.495 | K92: 16.35 | L92: 44.842937 | M92: 50.83 | N92: 37.81 | O92: 17.264416 | P92: 11.28 | Q92: 28.5 | R92: 47.13 | S92: 64.78 | T92: 52.33 | U92: 36.74 | V92: 51.79 | W92: 50.13 | X92: 55.49 | Y92: 21.77 | Z92: 27.26715 | AA92: 16.725 | AB92: 31.47 | AC92: 39.09 | AD92: 97.45 | AE92: 13.42 | AF92: 67.02 | AG92: 18.2 | AH92: 27.9675 | AI92: 55.86 | AJ92: 783.94 | AK92: 105.505 | AL92: 79.44 | AM92: 9.84 | AN92: 88.8 | AO92: 172.27 | AP92: 30.75 | AQ92: 27.37 | AR92: 28.685 | AS92: 73.16 | AT92: 57.94 | AU92: 68.46 | AV92: 20.855 | AW92: 49.205 | AX92: 40.78 | AY92: 35.77916 | AZ92: 64.02 | BA92: 133.4 | BB92: 52.296818 | BC92: 32.21 | BD92: 30.83 | BE92: 23.026667 | BF92: 64.5 | BG92: 33.83 | BH92: 25.4 | BI92: 70.1 | BJ92: 38.16 | BK92: 49.47 | BL92: 20.091816 | BM92: 21.6 | BN92: 88.18 | BO92: 38.89 | BP92: 67.01 | BQ92: 14.53 | BR92: 57.06 | BS92: 50.57 | BT92: 75.210724 | BU92: 11.635 | BV92: 65.35 | BW92: 55.91 | BX92: 41.58 | BY92: 26.086292 | BZ92: 21.666668 | CA92: 66 | CB92: 63.64 | CC92: 79.63 | CD92: 28.9 | CE92: 18.25 | CF92: 35.06 | CG92: 58.91
A93: 20120531 | B93: 72.94 | C93: 212.91 | D93: 41.644028 | E93: 380.26 | F93: 18.72 | G93: 625.49 | H93: 35.875 | I93: 28.21 | J93: 32.09 | K93: 16.6 | L93: 46.32039 | M93: 51.59 | N93: 30.71 | O93: 16.494207 | P93: 10.56 | Q93: 26.5 | R93: 42.96 | S93: 63 | T93: 48.18 | U93: 35.42 | V93: 49.34 | W93: 45.82 | X93: 46.18 | Y93: 20.79 | Z93: 26.824823 | AA93: 18.22 | AB93: 26.72 | AC93: 38.71 | AD93: 89.34 | AE93: 10.83 | AF93: 68.1 | AG93: 18.4 | AH93: 27.045 | AI93: 47.37 | AJ93: 804.8 | AK93: 95.79 | AL93: 75.97 | AM93: 9.36 | AN93: 81 | AO93: 148.8 | AP93: 31.615 | AQ93: 23.55 | AR93: 27.445 | AS93: 67.45 | AT93: 57.91 | AU93: 55.39 | AV93: 21.23 | AW93: 45.675 | AX93: 43.47 | AY93: 33.188377 | AZ93: 61.88 | BA93: 103.04 | BB93: 50.592655 | BC93: 32.19 | BD93: 31.88 | BE93: 23.248001 | BF93: 59.5 | BG93: 31.7 | BH93: 26.62 | BI93: 68.8 | BJ93: 37.365 | BK93: 49.15 | BL93: 19.570456 | BM93: 19.29 | BN93: 86.39 | BO93: 38.28 | BP93: 66.86 | BQ93: 14.955 | BR93: 51.09 | BS93: 48.78 | BT93: 76.05417 | BU93: 11.005 | BV93: 54.15 | BW93: 56.36 | BX93: 38.45 | BY93: 25.03944 | BZ93: 24.2 | CA93: 67.85 | CB93: 62.29 | CC93: 76.56 | CD93: 27.91 | CE93: 19.37 | CF93: 30.52 | CG93: 65.82
A94: 20120629 | B94: 68.22 | C94: 228.35 | D94: 39.374893 | E94: 367.17 | F94: 20.96 | G94: 664.52 | H94: 32.795 | I94: 25.94 | J94: 34.27 | K94: 18.38 | L94: 45.335423 | M94: 53.8 | N94: 30.91 | O94: 17.681084 | P94: 9.59 | Q94: 27.36 | R94: 38.29 | S94: 60.25 | T94: 45.73 | U94: 33.87 | V94: 52.99 | W94: 45.49 | X94: 43.49 | Y94: 21.13 | Z94: 30.383116 | AA94: 16.6825 | AB94: 28.44 | AC94: 39.2 | AD94: 88.53 | AE94: 11.16 | AF94: 69.83 | AG94: 18.14 | AH94: 21.945 | AI94: 49.69 | AJ94: 850 | AK94: 83.77 | AL94: 71.48 | AM94: 10.7 | AN94: 77.79 | AO94: 140.06 | AP94: 31.235 | AQ94: 26.03 | AR94: 26.66 | AS94: 58.48 | AT94: 58.19 | AU94: 52.95 | AV94: 21.465 | AW94: 41.53 | AX94: 50.08 | AY94: 31.402359 | AZ94: 61.16 | BA94: 103.72 | BB94: 46.321472 | BC94: 34.55 | BD94: 29.52 | BE94: 25.826666 | BF94: 62.74 | BG94: 33.38 | BH94: 27.735 | BI94: 72.46 | BJ94: 39.095 | BK94: 52.05 | BL94: 20.177414 | BM94: 27.06 | BN94: 95 | BO94: 38.54 | BP94: 72.03 | BQ94: 15.21 | BR94: 49.52 | BS94: 49.33 | BT94: 80.29058 | BU94: 11.595 | BV94: 54.12 | BW94: 60.65 | BX94: 41.61 | BY94: 25.268438 | BZ94: 23.733334 | CA94: 70.66 | CB94: 61.25 | CC94: 75.52 | CD94: 29.81 | CE94: 18.83 | CF94: 29.58 | CG94: 69.72
A95: 20120731 | B95: 70.15 | C95: 233.3 | D95: 40.750782 | E95: 375.23 | F95: 18.09 | G95: 661.74 | H95: 33.55 | I95: 27.83 | J95: 33.28 | K95: 17.63 | L95: 45.827904 | M95: 50.34 | N95: 34.14 | O95: 18.644896 | P95: 9.24 | Q95: 29.49 | R95: 38.61 | S95: 64.03 | T95: 43.23 | U95: 35.82 | V95: 52.18 | W95: 49.72 | X95: 36.42 | Y95: 23.18 | Z95: 28.712093 | AA95: 17.665 | AB95: 25.37 | AC95: 36.42 | AD95: 89.36 | AE95: 9.52 | AF95: 66.43 | AG95: 17.65 | AH95: 23.3375 | AI95: 54.14 | AJ95: 773.98 | AK95: 85.74 | AL95: 75.16 | AM95: 11.3 | AN95: 79.43 | AO95: 144.34 | AP95: 33.22 | AQ95: 24.98 | AR95: 22.64 | AS95: 49.33 | AT95: 60.65 | AU95: 54.93 | AV95: 22.14 | AW95: 45.435 | AX95: 49.64 | AY95: 35.132053 | AZ95: 67.56 | BA95: 93.75 | BB95: 46.623474 | BC95: 35.97 | BD95: 26.09 | BE95: 24.949333 | BF95: 65.77 | BG95: 33.11 | BH95: 28.805 | BI95: 72.71 | BJ95: 40.4 | BK95: 53.68 | BL95: 19.21251 | BM95: 28.21 | BN95: 96.18 | BO95: 38.7 | BP95: 71.74 | BQ95: 13.955 | BR95: 51.92 | BS95: 47.7 | BT95: 83.30016 | BU95: 11.085 | BV95: 52.38 | BW95: 60.88 | BX95: 42.32 | BY95: 25.981607 | BZ95: 22.14 | CA95: 72.73 | CB95: 64.54 | CC95: 76.8 | CD95: 29.39 | CE95: 15.01 | CF95: 36.36 | CG95: 74.43
A96: 20120831 | B96: 71.12 | C96: 248.27 | D96: 42.710163 | E96: 361.64 | F96: 17.74 | G96: 604.57 | H96: 34.39 | I96: 30.59 | J96: 34.68 | K96: 18.99 | L96: 46.517384 | M96: 48.17 | N96: 35.44 | O96: 19.979078 | P96: 9.34 | Q96: 35.82 | R96: 40.35 | S96: 63.16 | T96: 41.96 | U96: 37.51 | V96: 56.75 | W96: 52.2 | X96: 42.39 | Y96: 23.74 | Z96: 31.877207 | AA96: 18.87 | AB96: 28.48 | AC96: 37.68 | AD96: 89.49 | AE96: 9.86 | AF96: 72.05 | AG96: 17.93 | AH96: 24.34 | AI96: 57.83 | AJ96: 828.18 | AK96: 84.95 | AL96: 75.19 | AM96: 13.68 | AN96: 93.9 | AO96: 158.65 | AP96: 34.595 | AQ96: 27.02 | AR96: 24.805 | AS96: 58.13 | AT96: 64.09 | AU96: 61.95 | AV96: 22.895 | AW96: 47.74 | AX96: 51.55 | AY96: 35.927406 | AZ96: 75.46 | BA96: 103.17 | BB96: 45.818134 | BC96: 33.96 | BD96: 26.75 | BE96: 25.64 | BF96: 63.65 | BG96: 35.14 | BH96: 27.37 | BI96: 72.75 | BJ96: 37.4 | BK96: 53.155 | BL96: 19.539331 | BM96: 32.94 | BN96: 97.87 | BO96: 39.33 | BP96: 71.82 | BQ96: 14.36 | BR96: 53.83 | BS96: 50.65 | BT96: 80.12764 | BU96: 11.14 | BV96: 59.95 | BW96: 61.44 | BX96: 44.54 | BY96: 27.159317 | BZ96: 19.646667 | CA96: 72.43 | CB96: 67.19 | CC96: 84.97 | CD96: 30.3 | CE96: 15.66 | CF96: 35.76 | CG96: 72.6
A97: 20120928 | B97: 68.44 | C97: 254.32 | D97: 44.640728 | E97: 369.67 | F97: 17.2 | G97: 619.07 | H97: 34.555 | I97: 28.3 | J97: 36.43 | K97: 20.625 | L97: 49.920002 | M97: 48.29 | N97: 37.7 | O97: 20.357868 | P97: 9.86 | Q97: 35.78 | R97: 41.74 | S97: 61.03 | T97: 42.37 | U97: 38.165 | V97: 60.37 | W97: 51.22 | X97: 46.37 | Y97: 25.05 | Z97: 34.17732 | AA97: 18.475 | AB97: 30.24 | AC97: 39.1 | AD97: 91.75 | AE97: 10.75 | AF97: 80.02 | AG97: 19.09 | AH97: 23.7275 | AI97: 55.18 | AJ97: 844.5 | AK97: 83.62 | AL97: 80.87 | AM97: 15.5 | AN97: 93.72 | AO97: 151.23 | AP97: 32.295 | AQ97: 30.21 | AR97: 25.355 | AS97: 56.02 | AT97: 63.47 | AU97: 61.88 | AV97: 22.395 | AW97: 49.445 | AX97: 57.65 | AY97: 37.49929 | AZ97: 82.91 | BA97: 115.44 | BB97: 47.702053 | BC97: 33.39 | BD97: 27.18 | BE97: 26.1 | BF97: 67.05 | BG97: 34.82 | BH97: 26.995 | BI97: 72.05 | BJ97: 37.93 | BK97: 53.61 | BL97: 21.469141 | BM97: 32.35 | BN97: 100.16 | BO97: 39.85 | BP97: 70.89 | BQ97: 14.62 | BR97: 55.16 | BS97: 51.66 | BT97: 82.217094 | BU97: 11.77 | BV97: 61.57 | BW97: 62.04 | BX97: 45.05 | BY97: 27.054632 | BZ97: 18.02 | CA97: 70.77 | CB97: 69.36 | CC97: 86.33 | CD97: 31.27 | CE97: 16.02 | CF97: 36.44 | CG97: 73.8
A98: 20121031 | B98: 70.94 | C98: 232.8931 | D98: 41.492752 | E98: 375 | F98: 15.21 | G98: 573.77 | H98: 32.91 | I98: 33.75 | J98: 37.87 | K98: 20.96 | L98: 47.117317 | M98: 39.87 | N98: 40.62 | O98: 20.311571 | P98: 11.16 | Q98: 35.72 | R98: 38 | S98: 62.58 | T98: 46.76 | U98: 35.99 | V98: 61.38 | W98: 53.28 | X98: 46.44 | Y98: 26.53 | Z98: 36.8313 | AA98: 20.8698 | AB98: 32.38 | AC98: 36.48 | AD98: 86.8 | AE98: 10.31 | AF98: 83.47 | AG98: 20.64 | AH98: 22.845 | AI98: 56.77 | AJ98: 903.74 | AK98: 85.8466 | AL98: 84.5 | AM98: 17.34 | AN98: 109.99 | AO98: 153.69 | AP98: 30.475 | AQ98: 33.67 | AR98: 22.95 | AS98: 56.05 | AT98: 63.75 | AU98: 63.22 | AV98: 20.815 | AW98: 48.095 | AX98: 56.78 | AY98: 36.82159 | AZ98: 97.68 | BA98: 121.06 | BB98: 50.41289 | BC98: 31.8 | BD98: 26.84 | BE98: 25.623999 | BF98: 71.03 | BG98: 35.27 | BH98: 25.38 | BI98: 72.3 | BJ98: 37.18 | BK98: 52.48 | BL98: 21.66368 | BM98: 35.34 | BN98: 98.43 | BO98: 40.08 | BP98: 68.85 | BQ98: 14.765 | BR98: 61.46 | BS98: 52.32 | BT98: 79.98387 | BU98: 12.61 | BV98: 61.62 | BW98: 61.62 | BX98: 43.14 | BY98: 26.55 | BZ98: 14.883334 | CA98: 69.24 | CB98: 69.24 | CC98: 85.64 | CD98: 31.07 | CE98: 16.81 | CF98: 35.23 | CG98: 75.02
A99: 20121130 | B99: 73.15 | C99: 252.05 | D99: 43.480946 | E99: 383.77 | F99: 13.11 | G99: 663.19 | H99: 33.15 | I99: 36.26 | J99: 38.66 | K99: 19.46 | L99: 47.35013 | M99: 41.74 | N99: 41.6 | O99: 22.230776 | P99: 11.45 | Q99: 34.46 | R99: 38.89 | S99: 65.09 | T99: 46.96 | U99: 38.46 | V99: 65.07 | W99: 44.65 | X99: 46.65 | Y99: 27.85 | Z99: 37.391582 | AA99: 21.9 | AB99: 36.09 | AC99: 36.29 | AD99: 87.04 | AE99: 10.15 | AF99: 85.99 | AG99: 21.81 | AH99: 24.37 | AI99: 54.09 | AJ99: 899.84 | AK99: 94.08 | AL99: 84.81 | AM99: 16.81 | AN99: 114.59 | AO99: 157.09 | AP99: 28.538 | AQ99: 35.25 | AR99: 25.935 | AS99: 57.84 | AT99: 63.13 | AU99: 58.98 | AV99: 22.17 | AW99: 44.81 | AX99: 56.32 | AY99: 37.769897 | AZ99: 101.84 | BA99: 112.4 | BB99: 48.234158 | BC99: 33.81 | BD99: 26.7 | BE99: 28.072 | BF99: 73.16 | BG99: 36.75 | BH99: 27.075 | BI99: 76.35 | BJ99: 37.92 | BK99: 54.25 | BL99: 23.23554 | BM99: 35.88 | BN99: 103.92 | BO99: 40.99 | BP99: 73.27 | BQ99: 15.505 | BR99: 64.95 | BS99: 55.46 | BT99: 82.15959 | BU99: 13.12 | BV99: 58.25 | BW99: 64.56 | BX99: 41.46 | BY99: 25.89 | BZ99: 17.35 | CA99: 70.21 | CB99: 69.83 | CC99: 88.46 | CD99: 31.65 | CE99: 19.17 | CF99: 33.91 | CG99: 72.02
A100: 20121231 | B100: 72.35 | C100: 250.87 | D100: 48.54508 | E100: 354.43 | F100: 11.85 | G100: 620.39 | H100: 35.81 | I100: 37.54 | J100: 36.77 | K100: 19.78 | L100: 40.35685 | M100: 40.56 | N100: 43.55 | O100: 21.46381 | P100: 12.95 | Q100: 31.04 | R100: 40.75 | S100: 63.58 | T100: 48.83 | U100: 35.9 | V100: 61.85 | W100: 42.98 | X100: 46.16 | Y100: 27.22 | Z100: 38.01084 | AA100: 21.1 | AB100: 35.52 | AC100: 37.27 | AD100: 88.21 | AE100: 11.64 | AF100: 90.47 | AG100: 22.27 | AH100: 25.8 | AI100: 53.5 | AJ100: 920 | AK100: 89.42 | AL100: 84.15 | AM100: 18.16 | AN100: 111.01 | AO100: 149.92 | AP100: 27.045 | AQ100: 34 | AR100: 26.815 | AS100: 55.51 | AT100: 59.17 | AU100: 57.34 | AV100: 21.225 | AW100: 44.18 | AX100: 54.09 | AY100: 35.525024 | AZ100: 101.75 | BA100: 112.49 | BB100: 47.7452 | BC100: 31.44 | BD100: 27.39 | BE100: 25.300001 | BF100: 72.69 | BG100: 34.89 | BH100: 26.785 | BI100: 73.22 | BJ100: 36.25 | BK100: 52.27 | BL100: 22.955406 | BM100: 35.39 | BN100: 98.73 | BO100: 40.42 | BP100: 72.22 | BQ100: 15.605 | BR100: 64.43 | BS100: 55.85 | BT100: 80.92317 | BU100: 13.01 | BV100: 59.86 | BW100: 63.53 | BX100: 42.79 | BY100: 25.4532 | BZ100: 17.613335 | CA100: 68.43 | CB100: 67.89 | CC100: 86.24 | CD100: 31.66 | CE100: 19.4 | CF100: 37.01 | CG100: 68.23
A101: 20130131 | B101: 73.52 | C101: 265.5 | D101: 47.399708 | E101: 369.7 | F101: 16.26 | G101: 685.47 | H101: 37.09 | I101: 39.42 | J101: 38.72 | K101: 23.66 | L101: 41.63731 | M101: 39.99 | N101: 46.57 | O101: 23.556541 | P101: 12.95 | Q101: 32.68 | R101: 37.89 | S101: 68.03 | T101: 52.42 | U101: 37.37 | V101: 66.92 | W101: 46.29 | X101: 55.25 | Y101: 29.44 | Z101: 40.83192 | AA101: 22.39 | AB101: 38.19 | AC101: 39.98 | AD101: 95.29 | AE101: 12.77 | AF101: 101.66 | AG101: 23.48 | AH101: 27.025 | AI101: 55.23 | AJ101: 1029.66 | AK101: 92.65 | AL101: 87.09 | AM101: 20.74 | AN101: 118.87 | AO101: 166.48 | AP101: 29.85 | AQ101: 36.2 | AR101: 28.06 | AS101: 51 | AT101: 60.41 | AU101: 65.75 | AV101: 22.59 | AW101: 51.835 | AX101: 52.85 | AY101: 34.727318 | AZ101: 115.38 | BA101: 125.22 | BB101: 46.69538 | BC101: 33.68 | BD101: 28.53 | BE101: 25.88 | BF101: 79.66 | BG101: 36.71 | BH101: 28.895 | BI101: 78.41 | BJ101: 37.24 | BK101: 53.685 | BL101: 25.437702 | BM101: 32.36 | BN101: 102.34 | BO101: 41.94 | BP101: 79.45 | BQ101: 17.305 | BR101: 66.07 | BS101: 58.5 | BT101: 85.79217 | BU101: 13.85 | BV101: 60.93 | BW101: 62.35 | BX101: 45.18 | BY101: 27.79 | BZ101: 15.966667 | CA101: 72.85 | CB101: 75.16 | CC101: 88.63 | CD101: 31.77 | CE101: 22.12 | CF101: 39.96 | CG101: 69.95
A102: 20130228 | B102: 76.34 | C102: 264.27 | D102: 46.953083 | E102: 380.15 | F102: 16.41 | G102: 689.114 | H102: 37.205 | I102: 38.41 | J102: 35.77 | K102: 22.3 | L102: 41.431362 | M102: 45.185 | N102: 47.62 | O102: 23.026234 | P102: 12.61 | Q102: 32.92 | R102: 34.36 | S102: 71.03 | T102: 52.63 | U102: 40.02 | V102: 68.5 | W102: 46.1 | X102: 51.49 | Y102: 30.58 | Z102: 37.932205 | AA102: 21.19 | AB102: 38.15 | AC102: 39.45 | AD102: 95.9 | AE102: 12.49 | AF102: 106.02 | AG102: 23.34 | AH102: 27.23 | AI102: 54.22 | AJ102: 1009.2 | AK102: 101.79 | AL102: 87.37 | AM102: 19.18 | AN102: 121.85 | AO102: 173.47 | AP102: 29 | AQ102: 34.87 | AR102: 27.425 | AS102: 48.33 | AT102: 62.96 | AU102: 67.16 | AV102: 22.485 | AW102: 51.995 | AX102: 55.24 | AY102: 37.94638 | AZ102: 112.95 | BA102: 116.9 | BB102: 47.08367 | BC102: 33.55 | BD102: 31.86 | BE102: 26.248001 | BF102: 74.11 | BG102: 41.16 | BH102: 30.98 | BI102: 84.01 | BJ102: 38.72 | BK102: 57.215 | BL102: 26.542675 | BM102: 44.24 | BN102: 101.29 | BO102: 46.25 | BP102: 83.34 | BQ102: 18.705 | BR102: 66.2 | BS102: 60.5 | BT102: 90.364044 | BU102: 14.605 | BV102: 64.1 | BW102: 67.27 | BX102: 44.21 | BY102: 27.64 | BZ102: 16.82 | CA102: 75.77 | CB102: 76.18 | CC102: 95.3 | CD102: 32.16 | CE102: 22.67 | CF102: 40.94 | CG102: 70.78
A103: 20130328 | B103: 82.65 | C103: 266.49 | D103: 49.80571 | E103: 396.77 | F103: 22.15 | G103: 688.162 | H103: 38.67 | I103: 41.7 | J103: 34.3 | K103: 24.3 | L103: 46.27562 | M103: 48.43 | N103: 51.44 | O103: 22.820005 | P103: 13.15 | Q103: 35.4 | R103: 33.05 | S103: 78 | T103: 53.3 | U103: 43.94 | V103: 69.78 | W103: 46.13 | X103: 56.35 | Y103: 33.78 | Z103: 40.77294 | AA103: 21.76 | AB103: 37.92 | AC103: 42.23 | AD103: 99.69 | AE103: 13.15 | AF103: 113.12 | AG103: 26.1 | AH103: 29.505 | AI103: 55.23 | AJ103: 1080.11 | AK103: 102.439 | AL103: 92.49 | AM103: 20.24 | AN103: 106.81 | AO103: 169.31 | AP103: 30.31 | AQ103: 33.22 | AR103: 28.475 | AS103: 49.99 | AT103: 68.45 | AU103: 69.54 | AV103: 23.375 | AW103: 52.065 | AX103: 62.32 | AY103: 39.473557 | AZ103: 118.46 | BA103: 125.16 | BB103: 51.728764 | BC103: 34.39 | BD103: 33.73 | BE103: 28.560001 | BF103: 73.83 | BG103: 45.36 | BH103: 32.315 | BI103: 88.53 | BJ103: 40.44 | BK103: 59.015 | BL103: 27.86553 | BM103: 47.64 | BN103: 106.11 | BO103: 49.31 | BP103: 87.53 | BQ103: 20.66 | BR103: 72.32 | BS103: 64.43 | BT103: 93.91037 | BU103: 16.57 | BV103: 64.03 | BW103: 73.55 | BX103: 48.93 | BY103: 30.615 | BZ103: 15.913334 | CA103: 79.11 | CB103: 77.06 | CC103: 99.16 | CD103: 35.17 | CE103: 24.82 | CF103: 47.68 | CG103: 74.83
A104: 20130430 | B104: 83.88 | C104: 253.81 | D104: 55.04993 | E104: 409.09 | F104: 25.99 | G104: 695.99 | H104: 39.085 | I104: 46.04 | J104: 34.51 | K104: 26.08 | L104: 46.230846 | M104: 47.56 | N104: 55.2 | O104: 22.049797 | P104: 13.71 | Q104: 37.99 | R104: 35.08 | S104: 76.33 | T104: 54.65 | U104: 47.37 | V104: 73.35 | W104: 47.06 | X104: 56.25 | Y104: 32.24 | Z104: 40.517376 | AA104: 24.08 | AB104: 38.42 | AC104: 43.06 | AD104: 102.14 | AE104: 14.12 | AF104: 110.88 | AG104: 26.34 | AH104: 31.8 | AI104: 56.59 | AJ104: 1030 | AK104: 107.32 | AL104: 86.19 | AM104: 20.99 | AN104: 115.41 | AO104: 181.58 | AP104: 33.035 | AQ104: 36.53 | AR104: 30.42 | AS104: 58.86 | AT104: 70.56 | AU104: 73.68 | AV104: 24.385 | AW104: 53.585 | AX104: 60.3 | AY104: 41.93727 | AZ104: 114.28 | BA104: 137.3 | BB104: 48.981976 | BC104: 36.51 | BD104: 33.94 | BE104: 28.2 | BF104: 72.21 | BG104: 46.41 | BH104: 31.945 | BI104: 86.25 | BJ104: 42.33 | BK104: 59.705 | BL104: 27.523142 | BM104: 49.35 | BN104: 108.43 | BO104: 50.42 | BP104: 89.16 | BQ104: 20.635 | BR104: 72.01 | BS104: 65.04 | BT104: 98.90397 | BU104: 17.19 | BV104: 69.35 | BW104: 71.94 | BX104: 51.6 | BY104: 31.45 | BZ104: 18.800001 | CA104: 82.47 | CB104: 76.77 | CC104: 103.23 | CD104: 34.86 | CE104: 24.63 | CF104: 49.51 | CG104: 77.72
A105: 20130531 | B105: 81.52 | C105: 269.2 | D105: 56.519466 | E105: 408.83 | F105: 27.55 | G105: 803.93 | H105: 40.535 | I105: 46.77 | J105: 33.1 | K105: 24.36 | L105: 46.383068 | M105: 48.04 | N105: 59.27 | O105: 22.769499 | P105: 15.68 | Q105: 40.55 | R105: 34.93 | S105: 77.74 | T105: 54.54 | U105: 44.48 | V105: 78.66 | W105: 51.41 | X105: 57.9 | Y105: 32 | Z105: 38.64976 | AA105: 24.48 | AB105: 42.11 | AC105: 42.01 | AD105: 96.57 | AE105: 15.17 | AF105: 111.17 | AG105: 27.04 | AH105: 30.83 | AI105: 58.82 | AJ105: 983.31 | AK105: 108.85 | AL105: 95.51 | AM105: 21.59 | AN105: 115.19 | AO105: 175.09 | AP105: 32.159 | AQ105: 35.01 | AR105: 31.57 | AS105: 58.26 | AT105: 69.5 | AU105: 77.78 | AV105: 25.305 | AW105: 55.99 | AX105: 64.05 | AY105: 43.264427 | AZ105: 127.76 | BA105: 135.89 | BB105: 48.715923 | BC105: 36.1 | BD105: 32.23 | BE105: 27.528 | BF105: 69.6 | BG105: 42.81 | BH105: 30.405 | BI105: 83.08 | BJ105: 39.99 | BK105: 57.84 | BL105: 26.21585 | BM105: 53.01 | BN105: 109.631 | BO105: 47.08 | BP105: 89.11 | BQ105: 19.91 | BR105: 68.12 | BS105: 62.05 | BT105: 92.80813 | BU105: 16.835 | BV105: 67.78 | BW105: 69.08 | BX105: 49.41 | BY105: 29.475 | BZ105: 18.196667 | CA105: 80.77 | CB105: 76.76 | CC105: 100.96 | CD105: 33.8 | CE105: 25 | CF105: 47.76 | CG105: 74.84
A106: 20130628 | B106: 81.17 | C106: 277.69 | D106: 55.74868 | E106: 423.69 | F106: 27.33 | G106: 826.67 | H106: 43.075 | I106: 46.16 | J106: 34.29 | K106: 21.28 | L106: 45.201107 | M106: 50.84 | N106: 58.15 | O106: 21.76781 | P106: 15.47 | Q106: 41.73 | R106: 36.17 | S106: 78.07 | T106: 54.82 | U106: 44.83 | V106: 77.47 | W106: 50.51 | X106: 52.93 | Y106: 31.09 | Z106: 35.425674 | AA106: 25.75 | AB106: 40.9 | AC106: 40.37 | AD106: 99 | AE106: 14.78 | AF106: 112.49 | AG106: 26.25 | AH106: 31.84 | AI106: 59.94 | AJ106: 922 | AK106: 112.62 | AL106: 95 | AM106: 18.97 | AN106: 125.05 | AO106: 173.74 | AP106: 32.405 | AQ106: 33.34 | AR106: 32.755 | AS106: 57.09 | AT106: 68.86 | AU106: 72.84 | AV106: 25.03 | AW106: 58.774 | AX106: 61.52 | AY106: 45.4293 | AZ106: 114.36 | BA106: 127.97 | BB106: 49.85922 | BC106: 34.99 | BD106: 33.91 | BE106: 27.020002 | BF106: 70.77 | BG106: 44.79 | BH106: 30.855 | BI106: 83.14 | BJ106: 40.11 | BK106: 57.29 | BL106: 27.180758 | BM106: 52.12 | BN106: 110.57 | BO106: 48.53 | BP106: 89.28 | BQ106: 19.29 | BR106: 65.62 | BS106: 64.23 | BT106: 93.105255 | BU106: 17.27 | BV106: 65.77 | BW106: 70.36 | BX106: 47.86 | BY106: 28.53 | BZ106: 20.276669 | CA106: 81.79 | CB106: 76.99 | CC106: 103.15 | CD106: 34.16 | CE106: 25.68 | CF106: 44.2 | CG106: 74.49
A107: 20130731 | B107: 82.49 | C107: 301.22 | D107: 58.90386 | E107: 448.58 | F107: 30.09 | G107: 875.67 | H107: 47.715 | I107: 49.04 | J107: 37.03 | K107: 20.1 | L107: 43.920647 | M107: 53.65 | N107: 62.58 | O107: 21.755182 | P107: 16.88 | Q107: 45.9 | R107: 40.08 | S107: 81.99 | T107: 56.77 | U107: 46 | V107: 79.03 | W107: 52.98 | X107: 55.57 | Y107: 31.41 | Z107: 33.29266 | AA107: 26.07 | AB107: 44.58 | AC107: 41.57 | AD107: 98.08 | AE107: 16.31 | AF107: 118.99 | AG107: 27.02 | AH107: 31.46 | AI107: 61.24 | AJ107: 925.6 | AK107: 125.3 | AL107: 112.14 | AM107: 16.63 | AN107: 131.79 | AO107: 182.06 | AP107: 33.745 | AQ107: 38.09 | AR107: 35.6445 | AS107: 53.13 | AT107: 71.25 | AU107: 79.51 | AV107: 26.02 | AW107: 60.575 | AX107: 66.98 | AY107: 46.356426 | AZ107: 133.94 | BA107: 133.13 | BB107: 52.433434 | BC107: 35.06 | BD107: 36.47 | BE107: 29.004002 | BF107: 76.01 | BG107: 46.8 | BH107: 31.85 | BI107: 85.94 | BJ107: 40.08 | BK107: 59.87 | BL107: 28.176788 | BM107: 52.09 | BN107: 117.42 | BO107: 52 | BP107: 94.87 | BQ107: 21.175 | BR107: 67.2 | BS107: 66.24 | BT107: 94.696304 | BU107: 19.635 | BV107: 65.65 | BW107: 71.61 | BX107: 50.06 | BY107: 31.27 | BZ107: 20.330002 | CA107: 83.54 | CB107: 80.3 | CC107: 112.52 | CD107: 34.51 | CE107: 27.62 | CF107: 50.25 | CG107: 77.94
A108: 20130830 | B108: 80.07 | C108: 280.98 | D108: 58.334778 | E108: 419.94 | F108: 36 | G108: 938.53 | H108: 48.29 | I108: 47.56 | J108: 36.09 | K108: 17.85 | L108: 41.377636 | M108: 52.7 | N108: 61.44 | O108: 21.039692 | P108: 16.19 | Q108: 40.44 | R108: 40.77 | S108: 77.01 | T108: 59.98 | U108: 45.58 | V108: 74.49 | W108: 51.31 | X108: 56.35 | Y108: 28.92 | Z108: 31.267775 | AA108: 29.24 | AB108: 45.82 | AC108: 39.99 | AD108: 94.36 | AE108: 17.69 | AF108: 117.49 | AG108: 25.3 | AH108: 31.41 | AI108: 55.73 | AJ108: 855.81 | AK108: 122.71 | AL108: 109.21 | AM108: 15.39 | AN108: 128.75 | AO108: 165.41 | AP108: 33.63 | AQ108: 36.69 | AR108: 35.26 | AS108: 52.81 | AT108: 63.31 | AU108: 77.11 | AV108: 26.36 | AW108: 61.185 | AX108: 68 | AY108: 44.052723 | AZ108: 128.65 | BA108: 141.04 | BB108: 50.348175 | BC108: 33.88 | BD108: 35.21 | BE108: 26.796 | BF108: 75.78 | BG108: 43.18 | BH108: 29.675 | BI108: 82.7 | BJ108: 38.18 | BK108: 57.77 | BL108: 26.31701 | BM108: 54.25 | BN108: 111.87 | BO108: 49.32 | BP108: 91.95 | BQ108: 20.715 | BR108: 62.94 | BS108: 60.71 | BT108: 89.597275 | BU108: 18.3 | BV108: 65.36 | BW108: 67.65 | BX108: 48.79 | BY108: 30.67 | BZ108: 19.130001 | CA108: 79.73 | CB108: 77.89 | CC108: 106.14 | CD108: 32.02 | CE108: 28.95 | CF108: 48.07 | CG108: 72.98
A109: 20130930 | B109: 82.68 | C109: 312.64 | D109: 62.952286 | E109: 422.73 | F109: 37.5 | G109: 1010.95 | H109: 50.695 | I109: 48.47 | J109: 32.64 | K109: 19.43 | L109: 41.449272 | M109: 57.16 | N109: 67.95 | O109: 23.482887 | P109: 16.87 | Q109: 40.28 | R109: 45.19 | S109: 80.89 | T109: 64.24 | U109: 47.14 | V109: 75.85 | W109: 51.75 | X109: 66.42 | Y109: 30.15 | Z109: 34.79658 | AA109: 31.87 | AB109: 47.61 | AC109: 42.06 | AD109: 96.21 | AE109: 20.44 | AF109: 130.25 | AG109: 27.5 | AH109: 36.32 | AI109: 56.2 | AJ109: 919.19 | AK109: 127.59 | AL109: 129.18 | AM109: 16.5 | AN109: 118.69 | AO109: 164.73 | AP109: 36.4 | AQ109: 38.28 | AR109: 38.485 | AS109: 54.53 | AT109: 63.98 | AU109: 76.62 | AV109: 28.195 | AW109: 67.17 | AX109: 69.38 | AY109: 46.838818 | AZ109: 146.44 | BA109: 158.01 | BB109: 51.33328 | BC109: 34.35 | BD109: 36.84 | BE109: 27.251999 | BF109: 75.91 | BG109: 40.71 | BH109: 30.025 | BI109: 81.72 | BJ109: 37.88 | BK109: 59.3 | BL109: 23.609053 | BM109: 57.4 | BN109: 115.17 | BO109: 47.92 | BP109: 92.5 | BQ109: 21.06 | BR109: 66.17 | BS109: 58.73 | BT109: 90.30654 | BU109: 20.17 | BV109: 69.9 | BW109: 64.7 | BX109: 50.13 | BY109: 31.421 | BZ109: 17.416668 | CA109: 79.5 | CB109: 75.59 | CC109: 105.04 | CD109: 31.83 | CE109: 28.28 | CF109: 53.8 | CG109: 73.96
A110: 20131031 | B110: 99.18 | C110: 364.03 | D110: 64.27775 | E110: 434.69 | F110: 42.8 | G110: 1053.83 | H110: 51.565 | I110: 46.99 | J110: 34.65 | K110: 18.95 | L110: 46.141304 | M110: 58.4 | N110: 67.06 | O110: 22.184479 | P110: 17.11 | Q110: 36.99 | R110: 46.75 | S110: 78.83 | T110: 64.04 | U110: 51.65 | V110: 77.89 | W110: 56.8 | X110: 70.22 | Y110: 29.74 | Z110: 34.944023 | AA110: 33.03 | AB110: 49.78 | AC110: 45.08 | AD110: 96.52 | AE110: 19.04 | AF110: 132.42 | AG110: 29.63 | AH110: 37.88 | AI110: 60.47 | AJ110: 917.32 | AK110: 123.81 | AL110: 130.95 | AM110: 17.65 | AN110: 124.57 | AO110: 165.64 | AP110: 38.675 | AQ110: 42.04 | AR110: 40.525 | AS110: 50.68 | AT110: 64.79 | AU110: 79.17 | AV110: 30.395 | AW110: 71.35 | AX110: 70.45 | AY110: 50.592037 | AZ110: 146.01 | BA110: 166.25 | BB110: 48.622448 | BC110: 37.23 | BD110: 40.9 | BE110: 29.192001 | BF110: 82.13 | BG110: 42.57 | BH110: 32.575 | BI110: 90.19 | BJ110: 39.57 | BK110: 64.73 | BL110: 24.752932 | BM110: 65.3 | BN110: 118 | BO110: 50.42 | BP110: 99.24 | BQ110: 21.73 | BR110: 65.76 | BS110: 63.25 | BT110: 103.514175 | BU110: 21.42 | BV110: 70.96 | BW110: 69.15 | BX110: 54 | BY110: 33.65 | BZ110: 19.076668 | CA110: 84.09 | CB110: 80.75 | CC110: 111.21 | CD110: 32.34 | CE110: 27.67 | CF110: 59.24 | CG110: 76.75
A111: 20131129 | B111: 101.01 | C111: 393.62 | D111: 66.892654 | E111: 461.6 | F111: 40.55 | G111: 1192.33 | H111: 53.585 | I111: 50.35 | J111: 36.11 | K111: 19.88 | L111: 47.75307 | M111: 55.65 | N111: 69.13 | O111: 21.262756 | P111: 17.08 | Q111: 40.97 | R111: 48.56 | S111: 82.84 | T111: 67.02 | U111: 53.82 | V111: 80.67 | W111: 55.28 | X111: 71.68 | Y111: 30.21 | Z111: 35.150444 | AA111: 33.15 | AB111: 47.48 | AC111: 47.02 | AD111: 97.37 | AE111: 19.19 | AF111: 140.02 | AG111: 30.35 | AH111: 39.57 | AI111: 62.21 | AJ111: 969.98 | AK111: 124.96 | AL111: 133.47 | AM111: 18.76 | AN111: 133.92 | AO111: 175.23 | AP111: 38.23 | AQ111: 44.05 | AR111: 40.73 | AS111: 57.9 | AT111: 63.93 | AU111: 89.14 | AV111: 31.44 | AW111: 73.21 | AX111: 75.79 | AY111: 55.199444 | AZ111: 152.76 | BA111: 165.87 | BB111: 55.856133 | BC111: 36.98 | BD111: 40.25 | BE111: 30.008 | BF111: 80.12 | BG111: 38.73 | BH111: 32.625 | BI111: 93.17 | BJ111: 40.19 | BK111: 65.81 | BL111: 25.671148 | BM111: 70.41 | BN111: 125.43 | BO111: 50.43 | BP111: 96.89 | BQ111: 22.51 | BR111: 69.16 | BS111: 60.64 | BT111: 104.626 | BU111: 20.875 | BV111: 74.96 | BW111: 69 | BX111: 52.67 | BY111: 33.53 | BZ111: 19.726667 | CA111: 84.46 | CB111: 84.22 | CC111: 104.24 | CD111: 33.63 | CE111: 31.69 | CF111: 59.2 | CG111: 81.01
A112: 20131231 | B112: 110.68 | C112: 398.79 | D112: 66.129074 | E112: 477.94 | F112: 39.88 | G112: 1162.4 | H112: 55.91 | I112: 47.02 | J112: 40.17 | K112: 22.32 | L112: 48.68431 | M112: 56.42 | N112: 69.65 | O112: 23.091473 | P112: 15.43 | Q112: 39.08 | R112: 46.19 | S112: 83.19 | T112: 69.24 | U112: 55.01 | V112: 82.34 | W112: 56.75 | X112: 78.87 | Y112: 30.94 | Z112: 38.885674 | AA112: 32.9 | AB112: 49.55 | AC112: 49.351 | AD112: 97.03 | AE112: 23.52 | AF112: 148.9 | AG112: 32.41 | AH112: 39.32 | AI112: 61.8 | AJ112: 1026.01 | AK112: 128.71 | AL112: 145.64 | AM112: 20.37 | AN112: 136.02 | AO112: 176.57 | AP112: 37.465 | AQ112: 47.42 | AR112: 39.195 | AS112: 56.13 | AT112: 63.27 | AU112: 92.78 | AV112: 31.865 | AW112: 77.58 | AX112: 75.23 | AY112: 58.677353 | AZ112: 156.86 | BA112: 194.21 | BB112: 54.36769 | BC112: 38.39 | BD112: 43.4 | BE112: 30.228 | BF112: 82.11 | BG112: 43.28 | BH112: 33.14 | BI112: 92.76 | BJ112: 41.31 | BK112: 65.21 | BL112: 26.223635 | BM112: 70.38 | BN112: 119.02 | BO112: 49.91 | BP112: 97.23 | BQ112: 22.585 | BR112: 68.46 | BS112: 61.07 | BT112: 100.121216 | BU112: 19.765 | BV112: 75.32 | BW112: 68.92 | BX112: 56.15 | BY112: 35.3 | BZ112: 22.59 | CA112: 82.94 | CB112: 81.41 | CC112: 103.62 | CD112: 36.1 | CE112: 33.46 | CF112: 57.44 | CG112: 78.69
A113: 20140131 | B113: 114.81 | C113: 358.69 | D113: 65.31506 | E113: 495.06 | F113: 23.54 | G113: 1144.89 | H113: 53.7 | I113: 45.11 | J113: 39.19 | K113: 23.48 | L113: 44.269863 | M113: 50.52 | N113: 70.61 | O113: 22.390709 | P113: 14.96 | Q113: 38.08 | R113: 45.05 | S113: 82.25 | T113: 61.69 | U113: 49.12 | V113: 76.85 | W113: 50.63 | X113: 76.52 | Y113: 30.02 | Z113: 39.475445 | AA113: 27.07 | AB113: 46.29 | AC113: 49.3 | AD113: 94.17 | AE113: 24.36 | AF113: 142.18 | AG113: 30.9 | AH113: 36.425 | AI113: 57.45 | AJ113: 1153.41 | AK113: 130.98 | AL113: 125.2 | AM113: 20.32 | AN113: 120.87 | AO113: 156.89 | AP113: 33.955 | AQ113: 49.6 | AR113: 35.56 | AS113: 47.89 | AT113: 56.64 | AU113: 83.19 | AV113: 28.68 | AW113: 66.51 | AX113: 68.15 | AY113: 55.0159 | AZ113: 133.3 | BA113: 217.42 | BB113: 48.284492 | BC113: 35.22 | BD113: 39.48 | BE113: 30.800001 | BF113: 75.76 | BG113: 41.21 | BH113: 32.29 | BI113: 88.27 | BJ113: 37.82 | BK113: 61.23 | BL113: 24.73737 | BM113: 76.67 | BN113: 112.36 | BO113: 48.02 | BP113: 99.4 | BQ113: 22.72 | BR113: 62.3 | BS113: 57.98 | BT113: 104.82728 | BU113: 18.05 | BV113: 68.74 | BW113: 64.18 | BX113: 52.64 | BY113: 32.76 | BZ113: 22.633335 | CA113: 80.36 | CB113: 76.62 | CC113: 96.39 | CD113: 35.08 | CE113: 37.4 | CF113: 57.35 | CG113: 74.68
A114: 20140228 | B114: 127.36 | C114: 362.1 | D114: 69.399506 | E114: 538.44 | F114: 26.63 | G114: 1348.84 | H114: 61.45 | I114: 48.43 | J114: 39.66 | K114: 24.56 | L114: 45.720455 | M114: 54.77 | N114: 79.06 | O114: 24.735 | P114: 15.39 | Q114: 43.75 | R114: 53.66 | S114: 88.09 | T114: 66.06 | U114: 55.16 | V114: 82.03 | W114: 56.19 | X114: 85.25 | Y114: 32.05 | Z114: 43.132034 | AA114: 27.89 | AB114: 50.03 | AC114: 54.23 | AD114: 95.15 | AE114: 27.55 | AF114: 141.53 | AG114: 32.11 | AH114: 39.15 | AI114: 61.48 | AJ114: 1192 | AK114: 150.85 | AL114: 134.03 | AM114: 20.99 | AN114: 126.43 | AO114: 161.08 | AP114: 36.4 | AQ114: 52.93 | AR114: 35.48 | AS114: 48.81 | AT114: 62.54 | AU114: 93.25 | AV114: 30.73 | AW114: 70.56 | AX114: 70.32 | AY114: 55.147675 | AZ114: 144.63 | BA114: 242.49 | BB114: 53.26754 | BC114: 36.26 | BD114: 40.6 | BE114: 33.52 | BF114: 79.61 | BG114: 43.31 | BH114: 33.99 | BI114: 87.28 | BJ114: 38.2 | BK114: 62.83 | BL114: 22.099442 | BM114: 81.03 | BN114: 116.8 | BO114: 50.03 | BP114: 105.82 | BQ114: 23.725 | BR114: 65.84 | BS114: 60.69 | BT114: 105.76657 | BU114: 20.97 | BV114: 68.84 | BW114: 66.4 | BX114: 56.83 | BY114: 34.03 | BZ114: 24.666668 | CA114: 80.07 | CB114: 78.66 | CC114: 100.01 | CD114: 36.02 | CE114: 39.45 | CF114: 67.95 | CG114: 74.7
A115: 20140331 | B115: 126.5 | C115: 336.365 | D115: 72.288155 | E115: 537.1 | F115: 26.41 | G115: 1191.89 | H115: 61.47 | I115: 46.8 | J115: 37.86 | K115: 21.65 | L115: 45.451824 | M115: 52.18 | N115: 76.97 | O115: 23.249302 | P115: 15.6 | Q115: 40.06 | R115: 55.26 | S115: 86.85 | T115: 66.61 | U115: 55.62 | V115: 79.13 | W115: 56.8 | X115: 80.78 | Y115: 32.64 | Z115: 38.94465 | AA115: 26.35 | AB115: 48.9 | AC115: 56.02 | AD115: 98.03 | AE115: 25.86 | AF115: 135.98 | AG115: 29.9 | AH115: 36.93 | AI115: 62.45 | AJ115: 1147 | AK115: 148.39 | AL115: 139.71 | AM115: 19.19 | AN115: 124.77 | AO115: 160.93 | AP115: 35.785 | AQ115: 54.56 | AR115: 36.69 | AS115: 49.66 | AT115: 60.51 | AU115: 86.15 | AV115: 30.325 | AW115: 70.63 | AX115: 69.7 | AY115: 58.24438 | AZ115: 149.46 | BA115: 222.15 | BB115: 54.209496 | BC115: 37.43 | BD115: 43.39 | BE115: 35.876003 | BF115: 79.51 | BG115: 44.88 | BH115: 34.535 | BI115: 88.01 | BJ115: 38.66 | BK115: 64.87 | BL115: 24.145975 | BM115: 84.97 | BN115: 111.68 | BO115: 51.82 | BP115: 104.4 | BQ115: 24.635 | BR115: 68.08 | BS115: 62.71 | BT115: 105.67072 | BU115: 21.825 | BV115: 66.88 | BW115: 71.74 | BX115: 58.86 | BY115: 34.55 | BZ115: 23.15 | CA115: 83.5 | CB115: 80.6 | CC115: 97.24 | CD115: 36.13 | CE115: 44.01 | CF115: 66.03 | CG115: 76.43
A116: 20140430 | B116: 121.29 | C116: 304.13 | D116: 73.46234 | E116: 533.89 | F116: 25.93 | G116: 1157.75 | H116: 62.14 | I116: 43.78 | J116: 39.31 | K116: 22.28 | L116: 44.511627 | M116: 52.07 | N116: 74.38 | O116: 21.814108 | P116: 16.15 | Q116: 39.3 | R116: 57.1 | S116: 87.12 | T116: 73.94 | U116: 55.26 | V116: 79.51 | W116: 54.79 | X116: 79.13 | Y116: 32.86 | Z116: 37.932205 | AA116: 29.12 | AB116: 45.91 | AC116: 57.93 | AD116: 101.38 | AE116: 25.23 | AF116: 132.41 | AG116: 30.11 | AH116: 36.475 | AI116: 61.28 | AJ116: 1077 | AK116: 148.79 | AL116: 134.33 | AM116: 18.39 | AN116: 125.57 | AO116: 151.37 | AP116: 34.04 | AQ116: 53.13 | AR116: 35.31 | AS116: 44.65 | AT116: 61.75 | AU116: 87.49 | AV116: 29.09 | AW116: 67.24 | AX116: 69.23 | AY116: 57.500793 | AZ116: 153.38 | BA116: 203.89 | BB116: 55.35998 | BC116: 40.11 | BD116: 43.73 | BE116: 35.888 | BF116: 79.65 | BG116: 45.49 | BH116: 34.505 | BI116: 90.7 | BJ116: 40.79 | BK116: 67.3 | BL116: 23.741337 | BM116: 79.84 | BN116: 115.68 | BO116: 53.02 | BP116: 96.24 | BQ116: 23.845 | BR116: 70.45 | BS116: 66.83 | BT116: 107.587654 | BU116: 23.02 | BV116: 72.57 | BW116: 71.2 | BX116: 59.97 | BY116: 35.65 | BZ116: 22.32 | CA116: 85.89 | CB116: 82.55 | CC116: 96.68 | CD116: 36.43 | CE116: 41.97 | CF116: 67.9 | CG116: 79.71
A117: 20140530 | B117: 124.17 | C117: 312.55 | D117: 76.35819 | E117: 532.5 | F117: 27.66 | G117: 1278.63 | H117: 62.89 | I117: 44.31 | J117: 40.03 | K117: 23.68 | L117: 44.878754 | M117: 53.03 | N117: 72.45 | O117: 21.351141 | P117: 16.44 | Q117: 41.23 | R117: 58.91 | S117: 86.33 | T117: 71.24 | U117: 53.7 | V117: 80.23 | W117: 54.44 | X117: 76.52 | Y117: 33.92 | Z117: 40.20283 | AA117: 27.74 | AB117: 47.08 | AC117: 61.62 | AD117: 101.43 | AE117: 25.75 | AF117: 135.66 | AG117: 29.28 | AH117: 38.455 | AI117: 68.06 | AJ117: 1113.64 | AK117: 147.95 | AL117: 128.92 | AM117: 19.56 | AN117: 131.63 | AO117: 153.48 | AP117: 34.225 | AQ117: 55.29 | AR117: 36.62 | AS117: 40.71 | AT117: 56.76 | AU117: 99.41 | AV117: 27.225 | AW117: 65.02 | AX117: 69.69 | AY117: 59.3174 | AZ117: 143.55 | BA117: 214.97 | BB117: 55.59008 | BC117: 41.56 | BD117: 44.94 | BE117: 37.068 | BF117: 77.71 | BG117: 45.9 | BH117: 34.615 | BI117: 89.62 | BJ117: 40.91 | BK117: 68.4 | BL117: 25.134224 | BM117: 84.13 | BN117: 116.02 | BO117: 54.93 | BP117: 97.34 | BQ117: 24.605 | BR117: 76.15 | BS117: 68.98 | BT117: 107.6835 | BU117: 23.87 | BV117: 76.62 | BW117: 72.31 | BX117: 65.73 | BY117: 37.62 | BZ117: 23.126667 | CA117: 88.33 | CB117: 80.79 | CC117: 102.6 | CD117: 37.53 | CE117: 42.46 | CF117: 71.91 | CG117: 76.77
A118: 20140630 | B118: 134.92 | C118: 324.78 | D118: 76.776 | E118: 536.24 | F118: 31.01 | G118: 1203 | H118: 65.19 | I118: 52.01 | J118: 37.65 | K118: 24.58 | L118: 41.431362 | M118: 54.46 | N118: 73.09 | O118: 21.069153 | P118: 17.24 | Q118: 41.57 | R118: 60.9 | S118: 87.8 | T118: 69.85 | U118: 53.05 | V118: 80.96 | W118: 52.68 | X118: 76.22 | Y118: 34.28 | Z118: 41.26442 | AA118: 26.69 | AB118: 47.99 | AC118: 64.1 | AD118: 100.74 | AE118: 26.4 | AF118: 138.34 | AG118: 30.99 | AH118: 38.775 | AI118: 67.93 | AJ118: 1150.6 | AK118: 150.6 | AL118: 130.24 | AM118: 20.16 | AN118: 116.6 | AO118: 160.69 | AP118: 33.065 | AQ118: 55.6 | AR118: 38.69 | AS118: 34.19 | AT118: 57.95 | AU118: 100.25 | AV118: 26.575 | AW118: 60.4 | AX118: 77.18 | AY118: 59.298576 | AZ118: 139.22 | BA118: 207.56 | BB118: 58.3872 | BC118: 41.94 | BD118: 44.11 | BE118: 37.668 | BF118: 75.64 | BG118: 45.81 | BH118: 34.975 | BI118: 91.4 | BJ118: 42.36 | BK118: 68.18 | BL118: 23.095474 | BM118: 88.13 | BN118: 115.16 | BO118: 52.54 | BP118: 97.37 | BQ118: 24.675 | BR118: 75.04 | BS118: 65.7 | BT118: 106.60043 | BU118: 24.715 | BV118: 74.26 | BW118: 71.59 | BX118: 74.16 | BY118: 37.61 | BZ118: 23.676666 | CA118: 89.34 | CB118: 78.59 | CC118: 106.57 | CD118: 37.45 | CE118: 37.54 | CF118: 74.13 | CG118: 75.07
A119: 20140731 | B119: 121.11 | C119: 312.99 | D119: 71.68305 | E119: 517.03 | F119: 29.73 | G119: 1242.45 | H119: 62.25 | I119: 48.81 | J119: 36.22 | K119: 20.7 | L119: 41.861168 | M119: 54.47 | N119: 72 | O119: 22.234985 | P119: 17.02 | Q119: 40.11 | R119: 55.0175 | S119: 82.82 | T119: 61.82 | U119: 49.95 | V119: 80.85 | W119: 53.54 | X119: 73.85 | Y119: 32.8 | Z119: 35.612434 | AA119: 26.155 | AB119: 47.85 | AC119: 64.71 | AD119: 94.56 | AE119: 26.84 | AF119: 124.77 | AG119: 32.48 | AH119: 38.565 | AI119: 69.23 | AJ119: 1126.46 | AK119: 150 | AL119: 147.54 | AM119: 17.65 | AN119: 110.18 | AO119: 155.86 | AP119: 32.2 | AQ119: 59.65 | AR119: 38.84 | AS119: 34.56 | AT119: 59.59 | AU119: 97.61 | AV119: 26.645 | AW119: 62.17 | AX119: 75.5 | AY119: 57.67022 | AZ119: 142.64 | BA119: 213.2 | BB119: 49.902363 | BC119: 40.6 | BD119: 46.4 | BE119: 34.66 | BF119: 78.84 | BG119: 41.59 | BH119: 32.09 | BI119: 86.87 | BJ119: 39.29 | BK119: 63.4 | BL119: 23.44564 | BM119: 83.26 | BN119: 117.54 | BO119: 50.15 | BP119: 88.15 | BQ119: 22.63 | BR119: 73.63 | BS119: 59.83 | BT119: 99.555725 | BU119: 24.49 | BV119: 73.46 | BW119: 65.78 | BX119: 67.53 | BY119: 36.0199 | BZ119: 21.32 | CA119: 88.1 | CB119: 77.32 | CC119: 99.64 | CD119: 35.69 | CE119: 37.21 | CF119: 68.77 | CG119: 73.58
A120: 20140829 | B120: 136.42 | C120: 339.04 | D120: 74.69416 | E120: 538.84 | F120: 31.89 | G120: 1244.31 | H120: 62.19 | I120: 52.4 | J120: 37.88 | K120: 21.68 | L120: 42.37156 | M120: 53.625 | N120: 75.45 | O120: 23.358728 | P120: 17.41 | Q120: 46.15 | R120: 54.33 | S120: 87.74 | T120: 63.56 | U120: 52.655 | V120: 93.5 | W120: 58.79 | X120: 66.51 | Y120: 35.09 | Z120: 38.51215 | AA120: 28.4 | AB120: 52.51 | AC120: 69.4 | AD120: 93.72 | AE120: 24.47 | AF120: 146.02 | AG120: 33.52 | AH120: 39.275 | AI120: 69.25 | AJ120: 1173.19 | AK120: 155.98 | AL120: 145.38 | AM120: 19.22 | AN120: 116.74 | AO120: 169.2 | AP120: 37.71 | AQ120: 63.76 | AR120: 38.905 | AS120: 36.83 | AT120: 60.07 | AU120: 100.94 | AV120: 29.805 | AW120: 66.95 | AX120: 79.49 | AY120: 60.352776 | AZ120: 153.02 | BA120: 192.88 | BB120: 52.081097 | BC120: 43.08 | BD120: 49.86 | BE120: 37.064003 | BF120: 84.65 | BG120: 44.82 | BH120: 34.12 | BI120: 88.6 | BJ120: 41.72 | BK120: 64.73 | BL120: 25.05641 | BM120: 87.09 | BN120: 121.08 | BO120: 53.38 | BP120: 91.42 | BQ120: 25.34 | BR120: 79.76 | BS120: 64.97 | BT120: 103.514175 | BU120: 25.49 | BV120: 76.83 | BW120: 69.69 | BX120: 73.95 | BY120: 36.19 | BZ120: 29.470001 | CA120: 92.49 | CB120: 83.11 | CC120: 102.6 | CD120: 37.83 | CE120: 38.06 | CF120: 60.52 | CG120: 75.5
A121: 20140930 | B121: 130.3 | C121: 322.44 | D121: 66.215515 | E121: 509.66 | F121: 33.59 | G121: 1158.58 | H121: 52.61 | I121: 46.45 | J121: 40.17 | K121: 20.52 | L121: 46.078625 | M121: 56.07 | N121: 76.96 | O121: 23.834322 | P121: 14.79 | Q121: 41.69 | R121: 51.99 | S121: 87.71 | T121: 58.2 | U121: 54.995 | V121: 91.74 | W121: 61.03 | X121: 62.21 | Y121: 34.92 | Z121: 38.168118 | AA121: 26.59 | AB121: 52.92 | AC121: 69.9 | AD121: 94.81 | AE121: 22.78 | AF121: 134.82 | AG121: 34.41 | AH121: 44.6 | AI121: 68.37 | AJ121: 1130.02 | AK121: 150.36 | AL121: 149.79 | AM121: 17.66 | AN121: 121.15 | AO121: 164.73 | AP121: 37.79 | AQ121: 67.29 | AR121: 37.73 | AS121: 35.61 | AT121: 62.68 | AU121: 96.31 | AV121: 29.585 | AW121: 61.51 | AX121: 86.76 | AY121: 62.150555 | AZ121: 145.65 | BA121: 187.08 | BB121: 51.757526 | BC121: 45.94 | BD121: 51.1 | BE121: 36.088 | BF121: 84.23 | BG121: 42.73 | BH121: 35.08 | BI121: 96.04 | BJ121: 42.66 | BK121: 65.22 | BL121: 25.710056 | BM121: 87.16 | BN121: 125.32 | BO121: 50.45 | BP121: 95.43 | BQ121: 25.695 | BR121: 75.79 | BS121: 61.6 | BT121: 103.102036 | BU121: 26 | BV121: 74.72 | BW121: 66.9 | BX121: 74.44 | BY121: 34.265 | BZ121: 30.556667 | CA121: 93.09 | CB121: 83.74 | CC121: 98.99 | CD121: 37.95 | CE121: 39.37 | CF121: 59.27 | CG121: 76.47
A122: 20141031 | B122: 146.96 | C122: 305.46 | D122: 66.08585 | E122: 553.52 | F122: 34.14 | G122: 1206.21 | H122: 57.02 | I122: 55.91 | J122: 40.15 | K122: 22.79 | L122: 46.365158 | M122: 60.57 | N122: 88.79 | O122: 22.096094 | P122: 14.09 | Q122: 37.89 | R122: 55.48 | S122: 97.08 | T122: 65.7 | U122: 57.53 | V122: 97.52 | W122: 54.22 | X122: 62.26 | Y122: 39.38 | Z122: 42.345673 | AA122: 28.57 | AB122: 57.2 | AC122: 75.75 | AD122: 93.73 | AE122: 23.25 | AF122: 142.04 | AG122: 33.33 | AH122: 46.485 | AI122: 72.61 | AJ122: 1227.58 | AK122: 175.88 | AL122: 150.86 | AM122: 19.19 | AN122: 114.35 | AO122: 164.84 | AP122: 40.36 | AQ122: 67.97 | AR122: 37.78 | AS122: 34.38 | AT122: 61.82 | AU122: 96.12 | AV122: 31.66 | AW122: 73.22 | AX122: 86.36 | AY122: 63.703613 | AZ122: 172.05 | BA122: 190.01 | BB122: 51.649666 | BC122: 48.34 | BD122: 47 | BE122: 37.068 | BF122: 88.65 | BG122: 44.17 | BH122: 36.205 | BI122: 99.5 | BJ122: 41.88 | BK122: 66.88 | BL122: 26.72943 | BM122: 91.54 | BN122: 133.37 | BO122: 51.96 | BP122: 95.91 | BQ122: 26.955 | BR122: 77.25 | BS122: 63.96 | BT122: 109.52375 | BU122: 27.855 | BV122: 75.18 | BW122: 70.72 | BX122: 74.38 | BY122: 35.26 | BZ122: 33.626667 | CA122: 96.17 | CB122: 87.27 | CC122: 104 | CD122: 38.54 | CE122: 40.35 | CF122: 64.22 | CG122: 76.27
A123: 20141128 | B123: 147.08 | C123: 338.64 | D123: 71.28685 | E123: 577.71 | F123: 39.41 | G123: 1160.19 | H123: 56.56 | I123: 56.98 | J123: 44.16 | K123: 25.49 | L123: 51.03033 | M123: 68.36 | N123: 93.85 | O123: 23.097784 | P123: 15.73 | Q123: 39.6 | R123: 57.3 | S123: 102.78 | T123: 69.68 | U123: 59.2 | V123: 99.4 | W123: 59.62 | X123: 63.69 | Y123: 42.09 | Z123: 46.43476 | AA123: 29.05 | AB123: 63.83 | AC123: 78.79 | AD123: 96.81 | AE123: 22.81 | AF123: 153.59 | AG123: 36.31 | AH123: 49.645 | AI123: 76.36 | AJ123: 1258.67 | AK123: 182.74 | AL123: 156.71 | AM123: 21.63 | AN123: 127.14 | AO123: 184.9 | AP123: 45.74 | AQ123: 73.74 | AR123: 40.605 | AS123: 37.12 | AT123: 74 | AU123: 107.92 | AV123: 33.08 | AW123: 76.93 | AX123: 87.64 | AY123: 70.753555 | AZ123: 186.17 | BA123: 178.61 | BB123: 55.54694 | BC123: 50.26 | BD123: 52.68 | BE123: 38.820004 | BF123: 90.77 | BG123: 45.28 | BH123: 38.355 | BI123: 101.62 | BJ123: 44.83 | BK123: 69.59 | BL123: 28.418015 | BM123: 96.4 | BN123: 142.12 | BO123: 52.75 | BP123: 100.28 | BQ123: 26.54 | BR123: 83.23 | BS123: 66.25 | BT123: 116.59 | BU123: 29.92 | BV123: 74.14 | BW123: 74.33 | BX123: 77.35 | BY123: 39.2 | BZ123: 37.383335 | CA123: 100.1 | CB123: 90.43 | CC123: 102.57 | CD123: 40.26 | CE123: 42.34 | CF123: 68.61 | CG123: 87.54
A124: 20141231 | B124: 159.28 | C124: 310.35 | D124: 76.44463 | E124: 619.11 | F124: 38.98 | G124: 1140.21 | H124: 54.95 | I124: 66.58 | J124: 45.33 | K124: 25.29 | L124: 52.49883 | M124: 70.38 | N124: 94.17 | O124: 23.619673 | P124: 15.5 | Q124: 42.11 | R124: 52.83 | S124: 106.57 | T124: 65.91 | U124: 54.99 | V124: 104.97 | W124: 61.04 | X124: 58.16 | Y124: 42.61 | Z124: 44.04618 | AA124: 28.12 | AB124: 68.8 | AC124: 78.03 | AD124: 93.7 | AE124: 21.38 | AF124: 155.36 | AG124: 38.09 | AH124: 48.075 | AI124: 79.39 | AJ124: 1275.33 | AK124: 192.62 | AL124: 151.24 | AM124: 21.46 | AN124: 128.17 | AO124: 185.16 | AP124: 47.13 | AQ124: 82.43 | AR124: 41.025 | AS124: 37.56 | AT124: 75.91 | AU124: 106.86 | AV124: 34.29 | AW124: 78.82 | AX124: 91.13 | AY124: 70.49942 | AZ124: 193.74 | BA124: 148.76 | BB124: 52.3831 | BC124: 49.27 | BD124: 52 | BE124: 35.135998 | BF124: 90.91 | BG124: 44 | BH124: 39.405 | BI124: 104.21 | BJ124: 42.22 | BK124: 69.19 | BL124: 28.231258 | BM124: 98.17 | BN124: 141.75 | BO124: 53.33 | BP124: 103.93 | BQ124: 26.05 | BR124: 84.84 | BS124: 65.44 | BT124: 115.54 | BU124: 32.105 | BV124: 76.2 | BW124: 74.3 | BX124: 74.52 | BY124: 36.325 | BZ124: 36.11667 | CA124: 94.56 | CB124: 91.09 | CC124: 100.98 | CD124: 39.69 | CE124: 40.09 | CF124: 76.2 | CG124: 85.88
A125: 20150130 | B125: 159 | C125: 354.53 | D125: 76.40141 | E125: 596.96 | F125: 35.2 | G125: 1009.48 | H125: 54.01 | I125: 62.1 | J125: 43.96 | K125: 24.52 | L125: 54.96125 | M125: 71.1 | N125: 99.05 | O125: 22.306534 | P125: 14.71 | Q125: 41.19 | R125: 52.36 | S125: 92.94 | T125: 61.7 | U125: 54.92 | V125: 104.42 | W125: 59.72 | X125: 54.37 | Y125: 42.63 | Z125: 44.144474 | AA125: 25.81 | AB125: 67.76 | AC125: 74.5 | AD125: 92.44 | AE125: 19.48 | AF125: 165.04 | AG125: 36.87 | AH125: 46.125 | AI125: 76.2 | AJ125: 1254.23 | AK125: 187.36 | AL125: 144.59 | AM125: 20.59 | AN125: 110.26 | AO125: 166.89 | AP125: 45.855 | AQ125: 75.55 | AR125: 43.765 | AS125: 37.19 | AT125: 73.61 | AU125: 86.64 | AV125: 32.97 | AW125: 81.17 | AX125: 87.76 | AY125: 65.29432 | AZ125: 199.08 | BA125: 147.95 | BB125: 51.97324 | BC125: 53.1 | BD125: 46.63 | BE125: 35.548 | BF125: 89.53 | BG125: 45.74 | BH125: 40.46 | BI125: 106.71 | BJ125: 41.17 | BK125: 67.52 | BL125: 27.569832 | BM125: 110.45 | BN125: 142.99 | BO125: 52.48 | BP125: 102.21 | BQ125: 25.61 | BR125: 80.64 | BS125: 65.58 | BT125: 107.96 | BU125: 34.525 | BV125: 70.59 | BW125: 71.39 | BX125: 75.93 | BY125: 35.24 | BZ125: 38.983334 | CA125: 93.78 | CB125: 84.29 | CC125: 103.15 | CD125: 39.17 | CE125: 39.04 | CF125: 73.75 | CG125: 84.98
A126: 20150227 | B126: 154.93 | C126: 380.16 | D126: 81.040535 | E126: 642.68 | F126: 38.1 | G126: 1237.48 | H126: 61.46 | I126: 67.11 | J126: 43.99 | K126: 27.31 | L126: 57.307266 | M126: 79.68 | N126: 101.53 | O126: 24.373045 | P126: 16.34 | Q126: 41.6 | R126: 49.63 | S126: 96.08 | T126: 63.57 | U126: 62.315 | V126: 114.75 | W126: 73.8 | X126: 56.9 | Y126: 45.05 | Z126: 49.354134 | AA126: 24.575 | AB126: 74.09 | AC126: 83.1 | AD126: 98.9 | AE126: 21.73 | AF126: 184.35 | AG126: 39.29 | AH126: 48.56 | AI126: 80.43 | AJ126: 1332 | AK126: 208.13 | AL126: 153.33 | AM126: 22.56 | AN126: 106.53 | AO126: 137.41 | AP126: 52.905 | AQ126: 76.42 | AR126: 46.7425 | AS126: 43.55 | AT126: 76.83 | AU126: 88.22 | AV126: 34.32 | AW126: 88.12 | AX126: 87.81 | AY126: 72.15601 | AZ126: 211.95 | BA126: 142.5 | BB126: 58.322487 | BC126: 56.29 | BD126: 47.88 | BE126: 36.676003 | BF126: 81.78 | BG126: 46.59 | BH126: 42.57 | BI126: 108.64 | BJ126: 43.3 | BK126: 70.82 | BL126: 27.219664 | BM126: 114.72 | BN126: 146.96 | BO126: 53.79 | BP126: 103.78 | BQ126: 29.255 | BR126: 82.21 | BS126: 64.48 | BT126: 109.66 | BU126: 35.575 | BV126: 82.67 | BW126: 75.38 | BX126: 75.89 | BY126: 36.935 | BZ126: 47.04 | CA126: 98.98 | CB126: 85.13 | CC126: 115.35 | CD126: 38.99 | CE126: 41.31 | CF126: 83.08 | CG126: 83.93
A127: 20150331 | B127: 149.69 | C127: 372.1 | D127: 84.83683 | E127: 682.16 | F127: 37.79 | G127: 1164.15 | H127: 60.48 | I127: 69.01 | J127: 47.84 | K127: 28.48 | L127: 62.088837 | M127: 81.145 | N127: 100.55 | O127: 24.276243 | P127: 16.14 | Q127: 43.33 | R127: 47.52 | S127: 93.19 | T127: 60.74 | U127: 63.24 | V127: 113.61 | W127: 78.25 | X127: 55.04 | Y127: 46.09 | Z127: 50.92686 | AA127: 25.56 | AB127: 74.39 | AC127: 80.32 | AD127: 97.44 | AE127: 21.03 | AF127: 185.75 | AG127: 39.07 | AH127: 50.165 | AI127: 80.32 | AJ127: 1328.66 | AK127: 216.24 | AL127: 141.1 | AM127: 22.23 | AN127: 106.56 | AO127: 131.5 | AP127: 52.68 | AQ127: 81.85 | AR127: 47.35 | AS127: 41.43 | AT127: 82.07 | AU127: 88.01 | AV127: 35.025 | AW127: 85.06 | AX127: 103.42 | AY127: 70.88532 | AZ127: 202.06 | BA127: 125.88 | BB127: 56.60395 | BC127: 50.02 | BD127: 47.4 | BE127: 36.14 | BF127: 82.36 | BG127: 46.55 | BH127: 42.71 | BI127: 110.39 | BJ127: 40.55 | BK127: 69.34 | BL127: 28.425795 | BM127: 116.21 | BN127: 151.495 | BO127: 56.6 | BP127: 100.91 | BQ127: 28.425 | BR127: 77.82 | BS127: 65.95 | BT127: 107.11 | BU127: 38.33 | BV127: 83.16 | BW127: 77.11 | BX127: 74.45 | BY127: 36.09 | BZ127: 46.131668 | CA127: 95.62 | CB127: 81.94 | CC127: 115.73 | CD127: 37.73 | CE127: 38.3 | CF127: 84.68 | CG127: 82.25
A128: 20150430 | B128: 143 | C128: 421.78 | D128: 85.52117 | E128: 672.66 | F128: 34.65 | G128: 1237.81 | H128: 59.2 | I128: 68.11 | J128: 43.97 | K128: 25.4 | L128: 57.10132 | M128: 76.41 | N128: 107.85 | O128: 24.520351 | P128: 15.8 | Q128: 39.64 | R128: 45.19 | S128: 89.85 | T128: 56.21 | U128: 70.79 | V128: 106.98 | W128: 71.65 | X128: 52.88 | Y128: 42.47 | Z128: 45.019306 | AA128: 27.07 | AB128: 68.86 | AC128: 80.05 | AD128: 96.55 | AE128: 21.15 | AF128: 173.5 | AG128: 38.13 | AH128: 49.42 | AI128: 75.56 | AJ128: 1326.49 | AK128: 217.83 | AL128: 136.96 | AM128: 19.3 | AN128: 103.35 | AO128: 133.41 | AP128: 49.44 | AQ128: 68.06 | AR128: 49.58 | AS128: 38.21 | AT128: 78.83 | AU128: 87.48 | AV128: 32.27 | AW128: 86.06 | AX128: 99.21 | AY128: 68.17454 | AZ128: 175.6 | BA128: 111.07 | BB128: 61.8099 | BC128: 50.05 | BD128: 48.88 | BE128: 36.092003 | BF128: 86.37 | BG128: 44.71 | BH128: 40.585 | BI128: 106.1 | BJ128: 40.56 | BK128: 67.28 | BL128: 28.1301 | BM128: 115.94 | BN128: 143.05 | BO128: 55.34 | BP128: 91.92 | BQ128: 27.175 | BR128: 79.4 | BS128: 63.33 | BT128: 109.69 | BU128: 34.455 | BV128: 81.29 | BW128: 75.3 | BX128: 73.51 | BY128: 38.37 | BZ128: 45.703335 | CA128: 95.12 | CB128: 79.51 | CC128: 115.92 | CD128: 37.03 | CE128: 39.5 | CF128: 82.93 | CG128: 78.05
A129: 20150529 | B129: 153.22 | C129: 429.23 | D129: 90.87345 | E129: 673.62 | F129: 34.7 | G129: 1172.04 | H129: 60.15 | I129: 71.04 | J129: 46.33 | K129: 26.12 | L129: 58.686222 | M129: 74.99 | N129: 108.66 | O129: 25.825073 | P129: 15.17 | Q129: 38.33 | R129: 45.48 | S129: 90.47 | T129: 53.49 | U129: 72.13 | V129: 111.42 | W129: 65.49 | X129: 50.83 | Y129: 47.28 | Z129: 45.83516 | AA129: 28.57 | AB129: 69.98 | AC129: 77.99 | AD129: 95.93 | AE129: 20.05 | AF129: 186.64 | AG129: 39.53 | AH129: 50.835 | AI129: 72.64 | AJ129: 1360.6 | AK129: 219.53 | AL129: 143.05 | AM129: 19.18 | AN129: 104.64 | AO129: 130.4 | AP129: 48.335 | AQ129: 75.98 | AR129: 51.96 | AS129: 35.37 | AT129: 79.32 | AU129: 93.73 | AV129: 32.19 | AW129: 87.14 | AX129: 103.74 | AY129: 66.292046 | AZ129: 184.25 | BA129: 100.69 | BB129: 64.793976 | BC129: 51.2 | BD129: 52.85 | BE129: 37.708 | BF129: 92.56 | BG129: 48.34 | BH129: 41.985 | BI129: 107.66 | BJ129: 40.96 | BK129: 66.79 | BL129: 30.044348 | BM129: 117.89 | BN129: 142.59 | BO129: 56.15 | BP129: 92.86 | BQ129: 28.61 | BR129: 81.97 | BS129: 62.77 | BT129: 108.86 | BU129: 36.4 | BV129: 87.43 | BW129: 78.5 | BX129: 73.38 | BY129: 41.59 | BZ129: 42.426666 | CA129: 96.43 | CB129: 78.39 | CC129: 118.55 | CD129: 37.16 | CE129: 42.45 | CF129: 85.84 | CG129: 74.27
A130: 20150630 | B130: 159.29 | C130: 434.09 | D130: 84.102066 | E130: 666.9 | F130: 32.61 | G130: 1151.37 | H130: 56.84 | I130: 66.21 | J130: 49.39 | K130: 27.36 | L130: 63.646885 | M130: 78.99 | N130: 113.4 | O130: 25.353691 | P130: 15.01 | Q130: 38.17 | R130: 43.93 | S130: 89.53 | T130: 56.35 | U130: 74.79 | V130: 111.13 | W130: 62.61 | X130: 52.57 | Y130: 48.68 | Z130: 50.169987 | AA130: 30.245 | AB130: 66.97 | AC130: 74.39 | AD130: 95.07 | AE130: 18.25 | AF130: 190.9 | AG130: 41.11 | AH130: 54.01 | AI130: 74.5 | AJ130: 1340 | AK130: 225.98 | AL130: 148.11 | AM130: 20.15 | AN130: 115.2 | AO130: 132.36 | AP130: 48.61 | AQ130: 78.69 | AR130: 53.615 | AS130: 34.61 | AT130: 81.63 | AU130: 91.8 | AV130: 33.085 | AW130: 89.94 | AX130: 109.2 | AY130: 65.64258 | AZ130: 173.05 | BA130: 98.67 | BB130: 64.77241 | BC130: 48.91 | BD130: 48.22 | BE130: 40.072002 | BF130: 87.8 | BG130: 47.65 | BH130: 40.565 | BI130: 104.02 | BJ130: 39.23 | BK130: 65.41 | BL130: 34.02069 | BM130: 116.02 | BN130: 135.06 | BO130: 55.72 | BP130: 88.83 | BQ130: 28.185 | BR130: 79.81 | BS130: 62.7 | BT130: 105.97 | BU130: 36.255 | BV130: 86.66 | BW130: 80.95 | BX130: 69.81 | BY130: 41.14 | BZ130: 44.673336 | CA130: 93.34 | CB130: 78.24 | CC130: 108.41 | CD130: 36.1 | CE130: 42.63 | CF130: 84.44 | CG130: 70.93
A131: 20150731 | B131: 174.21 | C131: 536.15 | D131: 75.7819 | E131: 700.94 | F131: 32.29 | G131: 1243.57 | H131: 49.71 | I131: 64.51 | J131: 53.29 | K131: 29.69 | L131: 66.04662 | M131: 78.03 | N131: 113.84 | O131: 28.12 | P131: 14.83 | Q131: 36.48 | R131: 41.91 | S131: 88.95 | T131: 58.3 | U131: 78.74 | V131: 117.03 | W131: 61.32 | X131: 56.04 | Y131: 47.81 | Z131: 52.135895 | AA131: 31.46 | AB131: 69.36 | AC131: 72.61 | AD131: 99.86 | AE131: 19.62 | AF131: 201.59 | AG131: 43.28 | AH131: 57.61 | AI131: 76.31 | AJ131: 1490.04 | AK131: 240.31 | AL131: 137.06 | AM131: 20.72 | AN131: 116.04 | AO131: 125.89 | AP131: 53.16 | AQ131: 89.85 | AR131: 57.93 | AS131: 31.2 | AT131: 81.85 | AU131: 95.7 | AV131: 34.91 | AW131: 92.52 | AX131: 109.69 | AY131: 72.560745 | AZ131: 177.73 | BA131: 103.23 | BB131: 63.1042 | BC131: 54.38 | BD131: 47.42 | BE131: 43.364002 | BF131: 79.85 | BG131: 49.31 | BH131: 43.165 | BI131: 111.94 | BJ131: 41.08 | BK131: 68.02 | BL131: 34.285263 | BM131: 120.02 | BN131: 145.3 | BO131: 58.21 | BP131: 92.89 | BQ131: 29.605 | BR131: 88.2 | BS131: 66.17 | BT131: 114.97 | BU131: 39.24 | BV131: 89.11 | BW131: 82.01 | BX131: 71.14 | BY131: 45.13 | BZ131: 51.183334 | CA131: 96.35 | CB131: 76.7 | CC131: 111.69 | CD131: 36.31 | CE131: 44.35 | CF131: 96.63 | CG131: 71.98
A132: 20150831 | B132: 175.25 | C132: 512.89 | D132: 73.5848 | E132: 715.99 | F132: 36.74 | G132: 1248.64 | H132: 43.64 | I132: 61 | J132: 49.23 | K132: 30.37 | L132: 60.897926 | M132: 76.26 | N132: 105.94 | O132: 27.11 | P132: 13.87 | Q132: 32.81 | R132: 37.61 | S132: 83.49 | T132: 56.05 | U132: 74.59 | V132: 116.46 | W132: 51.03 | X132: 46.23 | Y132: 44.42 | Z132: 50.032375 | AA132: 29.99 | AB132: 69.17 | AC132: 70.66 | AD132: 95.02 | AE132: 20.43 | AF132: 196.97 | AG132: 42.13 | AH132: 55.875 | AI132: 72.88 | AJ132: 1519.9501 | AK132: 240.07 | AL132: 129.87 | AM132: 20.69 | AN132: 118.98 | AO132: 111.19 | AP132: 48.62 | AQ132: 88.16 | AR132: 54.71 | AS132: 30.25 | AT132: 77.71 | AU132: 82.25 | AV132: 35.16 | AW132: 85.31 | AX132: 107.91 | AY132: 68.17454 | AZ132: 168.1 | BA132: 75.05 | BB132: 57.35895 | BC132: 53.58 | BD132: 44.99 | BE132: 39.24 | BF132: 72.45 | BG132: 47.99 | BH132: 43.14 | BI132: 111.17 | BJ132: 39.32 | BK132: 62.81 | BL132: 32.433266 | BM132: 128 | BN132: 140.05 | BO132: 56.76 | BP132: 89.52 | BQ132: 30.55 | BR132: 86.34 | BS132: 66.28 | BT132: 106.53 | BU132: 34.5 | BV132: 79.77 | BW132: 79.28 | BX132: 68.09 | BY132: 42.36 | BZ132: 46.153336 | CA132: 92.93 | CB132: 70.67 | CC132: 117.72 | CD132: 39.87 | CE132: 42.28 | CF132: 86.55 | CG132: 64.73
A133: 20150930 | B133: 189.53 | C133: 511.89 | D133: 78.526474 | E133: 723.83 | F133: 37.12 | G133: 1236.86 | H133: 41.59 | I133: 59.32 | J133: 49.7 | K133: 29.36 | L133: 61.3725 | M133: 66.66 | N133: 107.91 | O133: 24.44 | P133: 13.57 | Q133: 28.5 | R133: 35.88 | S133: 82.89 | T133: 54.9 | U133: 72.14 | V133: 115.49 | W133: 46.31 | X133: 37.97 | Y133: 41.25 | Z133: 47.30959 | AA133: 28.36 | AB133: 68.92 | AC133: 68.2 | AD133: 98.53 | AE133: 18.45 | AF133: 181.79 | AG133: 39.71 | AH133: 61.485 | AI133: 71.71 | AJ133: 1525.22 | AK133: 250 | AL133: 119.87 | AM133: 18.87 | AN133: 101.94 | AO133: 118.16 | AP133: 48.47 | AQ133: 89.09 | AR133: 56.84 | AS133: 28.93 | AT133: 78.66 | AU133: 77.22 | AV133: 35.71 | AW133: 84.32 | AX133: 104.68 | AY133: 64.20247 | AZ133: 147.26 | BA133: 53.12 | BB133: 57.488384 | BC133: 54.4 | BD133: 41.45 | BE133: 38.760002 | BF133: 73.3 | BG133: 50.68 | BH133: 41.95 | BI133: 115.53 | BJ133: 40.12 | BK133: 63.46 | BL133: 31.52283 | BM133: 125.21 | BN133: 144.57 | BO133: 56.13 | BP133: 91.88 | BQ133: 31.655 | BR133: 87.31 | BS133: 66.55 | BT133: 109.04 | BU133: 36.07 | BV133: 80.68 | BW133: 82.18 | BX133: 83.02 | BY133: 41.87 | BZ133: 45.04667 | CA133: 94.3 | CB133: 71.94 | CC133: 114.09 | CD133: 38.97 | CE133: 43.1 | CF133: 83.1 | CG133: 64.84
A134: 20151030 | B134: 198.43 | C134: 625.9 | D134: 87.33648 | E134: 784.41 | F134: 35.03 | G134: 1454.24 | H134: 42.82 | I134: 59.01 | J134: 54.08 | K134: 29.44 | L134: 55.417915 | M134: 65.49 | N134: 106.67 | O134: 27.9 | P134: 14.81 | Q134: 27.22 | R134: 35.47 | S134: 90.76 | T134: 49.45 | U134: 76.83 | V134: 123.64 | W134: 46.12 | X134: 49.51 | Y134: 45.03 | Z134: 49.21652 | AA134: 29.61 | AB134: 73.83 | AC134: 76.78 | AD134: 112.25 | AE134: 23.19 | AF134: 195.5 | AG134: 42.43 | AH134: 65.515 | AI134: 65.21 | AJ134: 1637.76 | AK134: 276.26 | AL134: 112.34 | AM134: 18.33 | AN134: 90.95 | AO134: 110.77 | AP134: 50.58 | AQ134: 98.35 | AR134: 62.57 | AS134: 31.2 | AT134: 77.18 | AU134: 82.44 | AV134: 36.595 | AW134: 92.39 | AX134: 114.17 | AY134: 63.55301 | AZ134: 160.14 | BA134: 69.95 | BB134: 50.988136 | BC134: 60.47 | BD134: 45.66 | BE134: 42.472 | BF134: 72.96 | BG134: 50.79 | BH134: 43.045 | BI134: 121.94 | BJ134: 42.35 | BK134: 66.35 | BL134: 31.553957 | BM134: 134.8 | BN134: 158.12 | BO134: 58.11 | BP134: 88.69 | BQ134: 33.775 | BR134: 95.06 | BS134: 70.52 | BT134: 119.71 | BU134: 37.8 | BV134: 80.46 | BW134: 83.98 | BX134: 88.1 | BY134: 46.16 | BZ134: 45.440002 | CA134: 102.19 | CB134: 76.38 | CC134: 117.39 | CD134: 41.25 | CE134: 44.36 | CF134: 84.68 | CG134: 57.24
A135: 20151130 | B135: 162.73 | C135: 664.8 | D135: 90.64294 | E135: 783.77 | F135: 31.78 | G135: 1248.85 | H135: 42.69 | I135: 57.3 | J135: 50.53 | K135: 32.31 | L135: 56.17 | M135: 75.46 | N135: 107.47 | O135: 29.59 | P135: 14.33 | Q135: 26.73 | R135: 37.85 | S135: 90.63 | T135: 48.92 | U135: 73.09 | V135: 133.88 | W135: 47.13 | X135: 44.06 | Y135: 46.6 | Z135: 50.337086 | AA135: 29.49 | AB135: 76.6 | AC135: 70.91 | AD135: 114.16 | AE135: 22.74 | AF135: 190.72 | AG135: 44.66 | AH135: 66.14 | AI135: 56.31 | AJ135: 1682.48 | AK135: 263.87 | AL135: 105.43 | AM135: 19.48 | AN135: 91.29 | AO135: 124.21 | AP135: 52.01 | AQ135: 92.61 | AR135: 61.39 | AS135: 31.77 | AT135: 72.5 | AU135: 79.68 | AV135: 35.3 | AW135: 89.35 | AX135: 120.6 | AY135: 60.898693 | AZ135: 162.52 | BA135: 62.77 | BB135: 52.138622 | BC135: 57.6 | BD135: 36.49 | BE135: 41.016003 | BF135: 66.61 | BG135: 52.24 | BH135: 42.885 | BI135: 124.3 | BJ135: 42.62 | BK135: 65.68 | BL135: 31.849653 | BM135: 140.26 | BN135: 161.42 | BO135: 57.76 | BP135: 86.31 | BQ135: 37.46 | BR135: 98.57 | BS135: 68.77 | BT135: 119.15 | BU135: 37.66 | BV135: 84.12 | BW135: 85.92 | BX135: 92.03 | BY135: 43.66 | BZ135: 51.536667 | CA135: 100.16 | CB135: 74.84 | CC135: 121.19 | CD135: 41.1 | CE135: 50 | CF135: 84.03 | CG135: 58.84
A136: 20151231 | B136: 150.51 | C136: 675.89 | D136: 89.87935 | E136: 741.91 | F136: 30.45 | G136: 1274.95 | H136: 43.23 | I136: 53.97 | J136: 54.48 | K136: 32.03 | L136: 63.64 | M136: 77.22 | N136: 111.25 | O136: 27.48 | P136: 14.09 | Q136: 24.7 | R136: 37.17 | S136: 85.89 | T136: 45.39 | U136: 67.36 | V136: 132.25 | W136: 47.63 | X136: 43.84 | Y136: 42.02 | Z136: 48.076294 | AA136: 29.63 | AB136: 76.04 | AC136: 67.04 | AD136: 118.14 | AE136: 22.72 | AF136: 189.39 | AG136: 44.08 | AH136: 62.5 | AI136: 49.81 | AJ136: 1643 | AK136: 253.42 | AL136: 85.95 | AM136: 17.82 | AN136: 73.65 | AO136: 111.48 | AP136: 53.81 | AQ136: 101.21 | AR136: 60.03 | AS136: 32.73 | AT136: 72.61 | AU136: 76.29 | AV136: 35.455 | AW136: 85.5 | AX136: 127.99 | AY136: 58.59264 | AZ136: 146.87 | BA136: 69.19 | BB136: 52.526913 | BC136: 58.21 | BD136: 36.68 | BE136: 39.712 | BF136: 68.28 | BG136: 52.55 | BH136: 42.44 | BI136: 126.83 | BJ136: 42.96 | BK136: 66.62 | BL136: 32.806778 | BM136: 142.44 | BN136: 161.5 | BO136: 57.66 | BP136: 89.27 | BQ136: 39.54 | BR136: 95.84 | BS136: 72.27 | BT136: 127.3 | BU136: 41.83 | BV136: 88.06 | BW136: 85.56 | BX136: 93.92 | BY136: 44.84 | BZ136: 49.653336 | CA136: 99.92 | CB136: 79.41 | CC136: 123.34 | CD136: 41 | CE136: 53.33 | CF136: 85.155 | CG136: 61.3
A137: 20160129 | B137: 152.05 | C137: 587 | D137: 74.03863 | E137: 767.39 | F137: 27.93 | G137: 1064.97 | H137: 29.36 | I137: 44.18 | J137: 48.13 | K137: 27.51 | L137: 63.06 | M137: 81.32 | N137: 113.93 | O137: 23.46 | P137: 11.94 | Q137: 24.72 | R137: 35.18 | S137: 86.17 | T137: 40 | U137: 74.28 | V137: 125.76 | W137: 49.75 | X137: 45.1 | Y137: 41.51 | Z137: 41.431522 | AA137: 27.4 | AB137: 71.66 | AC137: 61.28 | AD137: 123.78 | AE137: 20.08 | AF137: 166.41 | AG137: 38.78 | AH137: 62.01 | AI137: 49.1 | AJ137: 1651 | AK137: 260.9 | AL137: 73.84 | AM137: 16.76 | AN137: 73.38 | AO137: 112.5 | AP137: 56.26 | AQ137: 81.96 | AR137: 60.77 | AS137: 37.05 | AT137: 72.42 | AU137: 63.84 | AV137: 35.62 | AW137: 88.31 | AX137: 125 | AY137: 58.922073 | AZ137: 134.39 | BA137: 67.34 | BB137: 52.037956 | BC137: 61.11 | BD137: 35.35 | BE137: 39.135998 | BF137: 62.01 | BG137: 56.41 | BH137: 42 | BI137: 129.05 | BJ137: 42.92 | BK137: 67.53 | BL137: 32.402138 | BM137: 152.48 | BN137: 151.12 | BO137: 56.51 | BP137: 88.11 | BQ137: 40.205 | BR137: 100.72 | BS137: 73.44 | BT137: 128.42 | BU137: 38.81 | BV137: 85.25 | BW137: 87.97 | BX137: 90.48 | BY137: 43.1 | BZ137: 45.010002 | CA137: 99.3 | CB137: 81.69 | CC137: 128.32 | CD137: 39.81 | CE137: 53.36 | CF137: 79.72 | CG137: 66.36
A138: 20160229 | B138: 148.44 | C138: 552.52 | D138: 76.52387 | E138: 774.57 | F138: 32.39 | G138: 1265.21 | H138: 32.68 | I138: 46.26 | J138: 47.96 | K138: 26.72 | L138: 63.88 | M138: 80.25 | N138: 133.04 | O138: 23.8 | P138: 12.51 | Q138: 27.65 | R138: 40.51 | S138: 90.15 | T138: 43.17 | U138: 75.87 | V138: 124.12 | W138: 46.67 | X138: 48.28 | Y138: 44.66 | Z138: 41.2251 | AA138: 27.6 | AB138: 67.53 | AC138: 68.15 | AD138: 117.19 | AE138: 18.93 | AF138: 179.73 | AG138: 38.01 | AH138: 61.59 | AI138: 51.32 | AJ138: 1637 | AK138: 260.32 | AL138: 87.91 | AM138: 17.19 | AN138: 79.15 | AO138: 90.76 | AP138: 54.98 | AQ138: 74.37 | AR138: 58.21 | AS138: 38.94 | AT138: 78.45 | AU138: 64.98 | AV138: 37.05 | AW138: 84.57 | AX138: 127.41 | AY138: 61.284607 | AZ138: 155.32 | BA138: 82.48 | BB138: 52.10986 | BC138: 61.57 | BD138: 34.96 | BE138: 39.388 | BF138: 49.72 | BG138: 61.75 | BH138: 45.38 | BI138: 126.42 | BJ138: 43.13 | BK138: 65.64 | BL138: 32.728962 | BM138: 141.43 | BN138: 150.03 | BO138: 58.85 | BP138: 90.89 | BQ138: 42.51 | BR138: 101.22 | BS138: 74.02 | BT138: 130.3 | BU138: 39.91 | BV138: 91.33 | BW138: 93.26 | BX138: 85.27 | BY138: 40.53 | BZ138: 41.833336 | CA138: 97.82 | CB138: 80.29 | CC138: 127.57 | CD138: 44.13 | CE138: 64.75 | CF138: 78.94 | CG138: 66.34
A139: 20160331 | B139: 160.34 | C139: 593.64 | D139: 85.34829 | E139: 796.69 | F139: 32.44 | G139: 1288.96 | H139: 38.4 | I139: 51.1 | J139: 52.77 | K139: 30.23 | L139: 66.3 | M139: 82.46 | N139: 131.86 | O139: 23.86 | P139: 13.5 | Q139: 29.4 | R139: 39.96 | S139: 99.36 | T139: 51.33 | U139: 80.1 | V139: 133.43 | W139: 46.61 | X139: 51.68 | Y139: 48.4 | Z139: 47.535667 | AA139: 31.93 | AB139: 75.75 | AC139: 71.18 | AD139: 125.68 | AE139: 21.44 | AF139: 190.9 | AG139: 44.29 | AH139: 61.47 | AI139: 57.21 | AJ139: 1732.4 | AK139: 273.66 | AL139: 98.48 | AM139: 18.71 | AN139: 99.06 | AO139: 96.26 | AP139: 57.9 | AQ139: 82.15 | AR139: 59.7 | AS139: 40.09 | AT139: 82.28 | AU139: 73.38 | AV139: 39.175 | AW139: 90.46 | AX139: 133.7 | AY139: 60.955173 | AZ139: 180.34 | BA139: 93.43 | BB139: 58.854588 | BC139: 62.66 | BD139: 36.31 | BE139: 39.388 | BF139: 56.67 | BG139: 63.79 | BH139: 46.09 | BI139: 126.06 | BJ139: 46.39 | BK139: 70.65 | BL139: 34.721024 | BM139: 151.09 | BN139: 157.58 | BO139: 63.35 | BP139: 92.09 | BQ139: 43.24 | BR139: 106.79 | BS139: 76.55 | BT139: 134.51 | BU139: 38.25 | BV139: 94.31 | BW139: 99.48 | BX139: 96.18 | BY139: 40.12 | BZ139: 44.460003 | CA139: 102.48 | CB139: 82.31 | CC139: 129.84 | CD139: 46.73 | CE139: 66.66 | CF139: 84.24 | CG139: 68.49
A140: 20160429 | B140: 156.1 | C140: 659.59 | D140: 88.22253 | E140: 765.23 | F140: 32.08 | G140: 1343.66 | H140: 35.92 | I140: 52.95 | J140: 49.05 | K140: 30.06 | L140: 62.25 | M140: 79.71 | N140: 120.88 | O140: 24.43 | P140: 13.56 | Q140: 23.18 | R140: 42.63 | S140: 95.97 | T140: 47.83 | U140: 84.64 | V140: 133.89 | W140: 44.3 | X140: 45.15 | Y140: 49.29 | Z140: 44.53766 | AA140: 32.05 | AB140: 76.02 | AC140: 70.09 | AD140: 126.49 | AE140: 21.3 | AF140: 192.63 | AG140: 45.54 | AH140: 58.94 | AI140: 51.13 | AJ140: 1661.29 | AK140: 262.68 | AL140: 97.88 | AM140: 18.39 | AN140: 95.6 | AO140: 93.21 | AP140: 56.78 | AQ140: 77.4 | AR140: 56.23 | AS140: 40.27 | AT140: 79.5 | AU140: 71.35 | AV140: 37.91 | AW140: 94.66 | AX140: 129.64 | AY140: 59.34564 | AZ140: 174.14 | BA140: 88.3 | BB140: 57.20795 | BC140: 62.71 | BD140: 39.94 | BE140: 38.528 | BF140: 62.5 | BG140: 61.71 | BH140: 46.35 | BI140: 125.23 | BJ140: 44.8 | BK140: 70.92 | BL140: 34.674335 | BM140: 156.06 | BN140: 148.13 | BO140: 61.34 | BP140: 93.11 | BQ140: 38.55 | BR140: 115.09 | BS140: 76.81 | BT140: 125.19 | BU140: 35.39 | BV140: 95.87 | BW140: 93.78 | BX140: 95.63 | BY140: 42.96 | BZ140: 48.073334 | CA140: 102.96 | CB140: 80.12 | CC140: 126.98 | CD140: 46.07 | CE140: 65.82 | CF140: 79.28 | CG140: 66.87
A141: 20160531 | B141: 153.84 | C141: 722.79 | D141: 88.32337 | E141: 762.2 | F141: 32.17 | G141: 1264.33 | H141: 34.03 | I141: 53.66 | J141: 47.74 | K141: 30.56 | L141: 67.83 | M141: 90.54 | N141: 120.88 | O141: 24.46 | P141: 13.49 | Q141: 17.99 | R141: 42.52 | S141: 96.92 | T141: 46.39 | U141: 87.29 | V141: 132.12 | W141: 36.04 | X141: 46.24 | Y141: 50.26 | Z141: 44.793224 | AA141: 33.07 | AB141: 80.13 | AC141: 66.04 | AD141: 122.06 | AE141: 22.85 | AF141: 196.69 | AG141: 47.69 | AH141: 55.22 | AI141: 37.98 | AJ141: 1733 | AK141: 264.43 | AL141: 85.02 | AM141: 18.76 | AN141: 93.8 | AO141: 94.33 | AP141: 53.4 | AQ141: 77.39 | AR141: 54.89 | AS141: 39.42 | AT141: 68.78 | AU141: 61.96 | AV141: 38.06 | AW141: 96.1 | AX141: 131.25 | AY141: 58.658527 | AZ141: 174.62 | BA141: 96.18 | BB141: 59.027157 | BC141: 63.64 | BD141: 42.77 | BE141: 39.228 | BF141: 67.07 | BG141: 60.57 | BH141: 49.24 | BI141: 128.54 | BJ141: 44.6 | BK141: 70.41 | BL141: 35.561428 | BM141: 153.15 | BN141: 148.77 | BO141: 62.78 | BP141: 92.85 | BQ141: 34.41 | BR141: 117.41 | BS141: 74.37 | BT141: 127.04 | BU141: 35.76 | BV141: 91.78 | BW141: 97.07 | BX141: 99.18 | BY141: 44.49 | BZ141: 50 | CA141: 101.17 | CB141: 81.04 | CC141: 129.15 | CD141: 48.11 | CE141: 63.78 | CF141: 77.4 | CG141: 70.78
A142: 20160630 | B142: 161.63 | C142: 715.62 | D142: 77.40271 | E142: 793.84 | F142: 30.6 | G142: 1248.41 | H142: 29.52 | I142: 49.03 | J142: 44.2 | K142: 31.48 | L142: 63.34 | M142: 94.24 | N142: 131.38 | O142: 23.41 | P142: 12.57 | Q142: 21.22 | R142: 42.42 | S142: 101.25 | T142: 45.3 | U142: 83.99 | V142: 127.69 | W142: 37.92 | X142: 43.49 | Y142: 51.11 | Z142: 45.31419 | AA142: 31.7 | AB142: 79.17 | AC142: 66.46 | AD142: 120.34 | AE142: 22.63 | AF142: 189.76 | AG142: 48.57 | AH142: 55.2 | AI142: 38.05 | AJ142: 1780.34 | AK142: 271.1 | AL142: 81.76 | AM142: 19.49 | AN142: 94.23 | AO142: 89.62 | AP142: 56.69 | AQ142: 67.15 | AR142: 57.12 | AS142: 40.74 | AT142: 69.82 | AU142: 60.64 | AV142: 38.615 | AW142: 91.18 | AX142: 138.23 | AY142: 57.877293 | AZ142: 166.64 | BA142: 90.64 | BB142: 59.623974 | BC142: 68.96 | BD142: 42.89 | BE142: 39.904003 | BF142: 59.15 | BG142: 66.53 | BH142: 51.445 | BI142: 138.39 | BJ142: 45.33 | BK142: 73.2 | BL142: 37.203323 | BM142: 165.4 | BN142: 157.04 | BO142: 71.32 | BP142: 113.49 | BQ142: 36.6 | BR142: 129.41 | BS142: 81.65 | BT142: 137.48 | BU142: 36.79 | BV142: 91.02 | BW142: 106.67 | BX142: 101.13 | BY142: 45.51 | BZ142: 53.570004 | CA142: 105.94 | CB142: 84.67 | CC142: 152.41 | CD142: 50.74 | CE142: 66.79 | CF142: 83.27 | CG142: 73.02
A143: 20160729 | B143: 169.86 | C143: 758.81 | D143: 76.21412 | E143: 813.97 | F143: 33.6 | G143: 1350.81 | H143: 33.18 | I143: 58.26 | J143: 46.72 | K143: 32.88 | L143: 61.56 | M143: 96.29 | N143: 147.3 | O143: 31.16 | P143: 12.66 | Q143: 25.79 | R143: 54.33 | S143: 102.24 | T143: 52.92 | U143: 81.23 | V143: 138.24 | W143: 41.59 | X143: 50.65 | Y143: 52.57 | Z143: 46.00226 | AA143: 34.39 | AB143: 82.28 | AC143: 71.7 | AD143: 117.65 | AE143: 23.98 | AF143: 208.94 | AG143: 52.46 | AH143: 55.5 | AI143: 44.23 | AJ143: 1705 | AK143: 290.63 | AL143: 98.75 | AM143: 21.18 | AN143: 101.06 | AO143: 98.09 | AP143: 61.83 | AQ143: 72.44 | AR143: 58.05 | AS143: 43.11 | AT143: 75.33 | AU143: 64.52 | AV143: 40.86 | AW143: 91.65 | AX143: 143.07 | AY143: 58.762066 | AZ143: 192.36 | BA143: 97.95 | BB143: 64.29783 | BC143: 67.7 | BD143: 45.08 | BE143: 39.276 | BF143: 65.84 | BG143: 62.27 | BH143: 49.12 | BI143: 131.07 | BJ143: 43.63 | BK143: 74.43 | BL143: 36.386265 | BM143: 164.63 | BN143: 167.22 | BO143: 71.89 | BP143: 110.76 | BQ143: 37.35 | BR143: 133.24 | BS143: 82.71 | BT143: 129.55 | BU143: 34.19 | BV143: 92.9 | BW143: 102.25 | BX143: 102.16 | BY143: 43.98 | BZ143: 53.543335 | CA143: 108.92 | CB143: 85.59 | CC143: 154.16 | CD143: 51.79 | CE143: 73.6 | CF143: 79.25 | CG143: 72.97
A144: 20160831 | B144: 157.38 | C144: 769.16 | D144: 76.487854 | E144: 741.8 | F144: 38.48 | G144: 1416.73 | H144: 34.39 | I144: 58.95 | J144: 47.8 | K144: 32.06 | L144: 61.64 | M144: 82.7 | N144: 149.57 | O144: 32.16 | P144: 12.6 | Q144: 24.87 | R144: 49.08 | S144: 102.82 | T144: 52.7 | U144: 81.74 | V144: 134.12 | W144: 44.38 | X144: 50.21 | Y144: 52.48 | Z144: 46.493736 | AA144: 36.09 | AB144: 76.56 | AC144: 71.33 | AD144: 115.66 | AE144: 23.89 | AF144: 212.78 | AG144: 53.08 | AH144: 57.64 | AI144: 50.46 | AJ144: 1686.8 | AK144: 279.95 | AL144: 86.64 | AM144: 21.37 | AN144: 107.76 | AO144: 103.62 | AP144: 62.24 | AQ144: 71.11 | AR144: 56.23 | AS144: 38.18 | AT144: 70.19 | AU144: 71.37 | AV144: 38.72 | AW144: 83.95 | AX144: 158.43 | AY144: 58.40439 | AZ144: 178.64 | BA144: 89.32 | BB144: 65.22541 | BC144: 66.09 | BD144: 43.76 | BE144: 38.84 | BF144: 63.9 | BG144: 60.72 | BH144: 49.71 | BI144: 131.04 | BJ144: 43.43 | BK144: 74.34 | BL144: 36.269543 | BM144: 164.05 | BN144: 162.09 | BO144: 70.82 | BP144: 99.89 | BQ144: 38.26 | BR144: 136.96 | BS144: 82.21 | BT144: 128.06 | BU144: 31.99 | BV144: 89.23 | BW144: 101.96 | BX144: 102.32 | BY144: 45.02 | BZ144: 51.29667 | CA144: 106.75 | CB144: 87.31 | CC144: 141.79 | CD144: 51.86 | CE144: 75.57 | CF144: 80.71 | CG144: 71.44
A145: 20160930 | B145: 149.12 | C145: 837.31 | D145: 76.93448 | E145: 768.34 | F145: 38.18 | G145: 1471.49 | H145: 35.18 | I145: 53.35 | J145: 48.82 | K145: 30.2 | L145: 61.32 | M145: 78.93 | N145: 151.85 | O145: 32.9 | P145: 12.07 | Q145: 22.24 | R145: 48.11 | S145: 100.45 | T145: 52.59 | U145: 79.33 | V145: 128.68 | W145: 43.75 | X145: 57.54 | Y145: 45.58 | Z145: 41.618282 | AA145: 35.46 | AB145: 72.21 | AC145: 67.33 | AD145: 115.36 | AE145: 26.03 | AF145: 200.34 | AG145: 52.66 | AH145: 52.65 | AI145: 51.88 | AJ145: 1639.87 | AK145: 280.11 | AL145: 77.44 | AM145: 20.04 | AN145: 110.5 | AO145: 101.14 | AP145: 64.3 | AQ145: 74.95 | AR145: 54.14 | AS145: 36.56 | AT145: 68.68 | AU145: 72.63 | AV145: 37.39 | AW145: 67.35 | AX145: 156.88 | AY145: 52.756905 | AZ145: 162.16 | BA145: 97.42 | BB145: 65.29731 | BC145: 63.23 | BD145: 42.17 | BE145: 37.952 | BF145: 59.23 | BG145: 54.7 | BH145: 47.92 | BI145: 125.18 | BJ145: 42.32 | BK145: 74.14 | BL145: 36.65862 | BM145: 166.49 | BN145: 152.51 | BO145: 63.88 | BP145: 95.6 | BQ145: 37.93 | BR145: 133.06 | BS145: 77.47 | BT145: 126.14 | BU145: 29.68 | BV145: 88.56 | BW145: 99.92 | BX145: 109.8 | BY145: 43.9 | BZ145: 48.93667 | CA145: 108.77 | CB145: 89.75 | CC145: 135.54 | CD145: 49.01 | CE145: 74.67 | CF145: 80.62 | CG145: 72.12
A146: 20161031 | B146: 140.08 | C146: 789.82 | D146: 69.71647 | E146: 742.16 | F146: 38.91 | G146: 1474.23 | H146: 35.84 | I146: 49.94 | J146: 49.1 | K146: 28.83 | L146: 64.79 | M146: 75.55 | N146: 169.24 | O146: 28.51 | P146: 11.74 | Q146: 27.59 | R146: 48.36 | S146: 90.59 | T146: 57.02 | U146: 83.41 | V146: 122.01 | W146: 43.75 | X146: 57.88 | Y146: 45.88 | Z146: 40.979362 | AA146: 32.28 | AB146: 66.65 | AC146: 68.7 | AD146: 112.57 | AE146: 26.17 | AF146: 184.3 | AG146: 48.02 | AH146: 50.18 | AI146: 52 | AJ146: 1523 | AK146: 264.44 | AL146: 76.61 | AM146: 18.6 | AN146: 106.98 | AO146: 98.1 | AP146: 62.54 | AQ146: 76.87 | AR146: 53.07 | AS146: 35.89 | AT146: 68.73 | AU146: 73.42 | AV146: 36.875 | AW146: 62.63 | AX146: 159.44 | AY146: 51.025013 | AZ146: 149.82 | BA146: 94.55 | BB146: 62.039997 | BC146: 66.12 | BD146: 43.57 | BE146: 36.936 | BF146: 62.01 | BG146: 54.34 | BH146: 48.26 | BI146: 120.02 | BJ146: 42.4 | BK146: 71.36 | BL146: 37.491238 | BM146: 167.12 | BN146: 147.87 | BO146: 61.98 | BP146: 102.46 | BQ146: 38.5 | BR146: 131.17 | BS146: 75.13 | BT146: 114.41 | BU146: 30.98 | BV146: 87.13 | BW146: 95.87 | BX146: 103.81 | BY146: 44.94 | BZ146: 48.113335 | CA146: 107.2 | CB146: 86.8 | CC146: 131.31 | CD146: 48.12 | CE146: 70.85 | CF146: 82.73 | CG146: 70.02
A147: 20161130 | B147: 169.72 | C147: 750.57 | D147: 74.52847 | E147: 783.18 | F147: 45.7 | G147: 1503.68 | H147: 35.6 | I147: 57.79 | J147: 51.41 | K147: 27.72 | L147: 73.3 | M147: 88.16 | N147: 168.04 | O147: 27.81 | P147: 11.96 | Q147: 24.97 | R147: 52.16 | S147: 96.23 | T147: 60.89 | U147: 85.39 | V147: 129.4 | W147: 53.83 | X147: 62.67 | Y147: 48.06 | Z147: 41.814877 | AA147: 32.83 | AB147: 70.55 | AC147: 78.78 | AD147: 119.27 | AE147: 28.71 | AF147: 197.44 | AG147: 47.01 | AH147: 50.07 | AI147: 55.92 | AJ147: 1595 | AK147: 274.5 | AL147: 86.86 | AM147: 18.86 | AN147: 105.94 | AO147: 104.61 | AP147: 67.59 | AQ147: 80.97 | AR147: 57.97 | AS147: 36.39 | AT147: 77.24 | AU147: 82.48 | AV147: 39.17 | AW147: 75.07 | AX147: 158.4 | AY147: 51.307384 | AZ147: 162.44 | BA147: 101.99 | BB147: 63.39 | BC147: 63.93 | BD147: 43.23 | BE147: 36.28 | BF147: 68.28 | BG147: 56.89 | BH147: 43.79 | BI147: 115.56 | BJ147: 40.35 | BK147: 65.23 | BL147: 36.69 | BM147: 151.14 | BN147: 150.11 | BO147: 60.94 | BP147: 96.64 | BQ147: 34.24 | BR147: 117.38 | BS147: 72 | BT147: 115.61 | BU147: 32.3 | BV147: 77.7 | BW147: 91.2 | BX147: 98.03 | BY147: 41.24 | BZ147: 44.75 | CA147: 100.1 | CB147: 82.46 | CC147: 125.95 | CD147: 53.25 | CE147: 56.81 | CF147: 84.73 | CG147: 70.43
A148: 20161230 | B148: 169.12 | C148: 749.87 | D148: 81.508766 | E148: 789.79 | F148: 42.67 | G148: 1466.06 | H148: 39.44 | I148: 64.39 | J148: 52.06 | K148: 27.33 | L148: 72.72 | M148: 77.18 | N148: 159.24 | O148: 29.69 | P148: 12.13 | Q148: 22.44 | R148: 48.49 | S148: 95.54 | T148: 58.34 | U148: 77.79 | V148: 134.08 | W148: 49.38 | X148: 53.41 | Y148: 48.88 | Z148: 42.198227 | AA148: 30.65 | AB148: 71.12 | AC148: 82.68 | AD148: 121.72 | AE148: 28.83 | AF148: 199.68 | AG148: 44.65 | AH148: 50.83 | AI148: 47.93 | AJ148: 1669 | AK148: 278.41 | AL148: 82.39 | AM148: 18.38 | AN148: 90.24 | AO148: 90.32 | AP148: 65.6 | AQ148: 82.04 | AR148: 55.52 | AS148: 35.02 | AT148: 72.23 | AU148: 77.43 | AV148: 37.565 | AW148: 75.81 | AX148: 161.31 | AY148: 50.215538 | AZ148: 181.77 | BA148: 86.51 | BB148: 63.33 | BC148: 67.62 | BD148: 45.65 | BE148: 35.936 | BF148: 72.24 | BG148: 60.47 | BH148: 44.19 | BI148: 120.02 | BJ148: 41.46 | BK148: 65.44 | BL148: 39.55 | BM148: 153.31 | BN148: 160.11 | BO148: 61.77 | BP148: 103.43 | BQ148: 34.81 | BR148: 124.96 | BS148: 73.71 | BT148: 114.12 | BU148: 34.51 | BV148: 76.49 | BW148: 93.33 | BX148: 97.31 | BY148: 44.33 | BZ148: 44.34 | CA148: 104.63 | CB148: 84.08 | CC148: 128.06 | CD148: 55.37 | CE148: 61.68 | CF148: 82.76 | CG148: 69.12
A149: 20170131 | B149: 164.24 | C149: 823.48 | D149: 83.31687 | E149: 724.98 | F149: 44.52 | G149: 1575.13 | H149: 40.83 | I149: 66.71 | J149: 55.38 | K149: 29.91 | L149: 73.28 | M149: 77.19 | N149: 174.54 | O149: 31.83 | P149: 12.36 | Q149: 23.03 | R149: 48.29 | S149: 96.81 | T149: 57.04 | U149: 82.51 | V149: 137.58 | W149: 39.83 | X149: 52.58 | Y149: 47.72 | Z149: 43.88891 | AA149: 31.91 | AB149: 73.08 | AC149: 84.6 | AD149: 122.57 | AE149: 28.8 | AF149: 215.84 | AG149: 47.33 | AH149: 52.9 | AI149: 44.22 | AJ149: 1858 | AK149: 262.27 | AL149: 84.07 | AM149: 21.51 | AN149: 93.81 | AO149: 88.43 | AP149: 66.11 | AQ149: 93.63 | AR149: 55.22 | AS149: 37.35 | AT149: 64.48 | AU149: 78.72 | AV149: 37.46 | AW149: 73.67 | AX149: 171.54 | AY149: 48.455406 | AZ149: 174.89 | BA149: 101.43 | BB149: 65.53 | BC149: 71.18 | BD149: 44.26 | BE149: 36.48 | BF149: 69.21 | BG149: 62.23 | BH149: 45.22 | BI149: 120 | BJ149: 41.57 | BK149: 64.58 | BL149: 39.09 | BM149: 149.76 | BN149: 163.95 | BO149: 62.48 | BP149: 105.47 | BQ149: 36.3 | BR149: 128.19 | BS149: 72.71 | BT149: 121.13 | BU149: 33.96 | BV149: 81.21 | BW149: 95.55 | BX149: 96.52 | BY149: 44.28 | BZ149: 42.6 | CA149: 103.78 | CB149: 87.6 | CC149: 135.85 | CD149: 52.46 | CE149: 62.79 | CF149: 81.94 | CG149: 66.74
A150: 20170228 | B150: 156.61 | C150: 845.04 | D150: 75.42172 | E150: 736.55 | F150: 44.13 | G150: 1724.13 | H150: 42.19 | I150: 64.54 | J150: 55.95 | K150: 32 | L150: 74.68 | M150: 76.68 | N150: 189.81 | O150: 33.9 | P150: 12.53 | Q150: 24.82 | R150: 51.61 | S150: 95.71 | T150: 56.38 | U150: 96.87 | V150: 144.91 | W150: 42.62 | X150: 52.95 | Y150: 49.18 | Z150: 47.95834 | AA150: 31.58 | AB150: 74.37 | AC150: 86.99 | AD150: 127.65 | AE150: 26.29 | AF150: 226.36 | AG150: 49.03 | AH150: 57.16 | AI150: 46.66 | AJ150: 1934.97 | AK150: 271.71 | AL150: 85.21 | AM150: 22.05 | AN150: 91.6 | AO150: 79.33 | AP150: 68.58 | AQ150: 96.1 | AR150: 56.87 | AS150: 38.09 | AT150: 58.77 | AU150: 91.87 | AV150: 39.225 | AW150: 70.91 | AX150: 181.18 | AY150: 49.368416 | AZ150: 178.59 | BA150: 96.15 | BB150: 65.32 | BC150: 74.92 | BD150: 46.97 | BE150: 39.008 | BF150: 81.85 | BG150: 59.35 | BH150: 49.84 | BI150: 136.81 | BJ150: 41.96 | BK150: 72.98 | BL150: 41.21 | BM150: 158.81 | BN150: 177.18 | BO150: 60.37 | BP150: 108.35 | BQ150: 35.25 | BR150: 120.89 | BS150: 74.07 | BT150: 132.55 | BU150: 31.8 | BV150: 82.85 | BW150: 98.42 | BX150: 100.39 | BY150: 43.92 | BZ150: 41.44 | CA150: 110.38 | CB150: 91.07 | CC150: 141.73 | CD150: 52.72 | CE150: 62.56 | CF150: 86.38 | CG150: 70.93
A151: 20170331 | B151: 148.26 | C151: 886.54 | D151: 73.66405 | E151: 723.05 | F151: 49.15 | G151: 1779.97 | H151: 41.79 | I151: 59.22 | J151: 58.91 | K151: 33.31 | L151: 83.67 | M151: 78.46 | N151: 184.3 | O151: 33.57 | P151: 11.64 | Q151: 24.29 | R151: 51.11 | S151: 92.41 | T151: 60.5 | U151: 99.82 | V151: 146.83 | W151: 39.81 | X151: 57.07 | Y151: 50.32 | Z151: 50.31743 | AA151: 29.27 | AB151: 82.21 | AC151: 94.18 | AD151: 129.61 | AE151: 27.4 | AF151: 229.49 | AG151: 47.17 | AH151: 55.73 | AI151: 46.57 | AJ151: 2106.88 | AK151: 269.84 | AL151: 83.8 | AM151: 23.55 | AN151: 103.47 | AO151: 81.62 | AP151: 65.87 | AQ151: 98.11 | AR151: 58.39 | AS151: 41.33 | AT151: 55.19 | AU151: 95.3 | AV151: 39.54 | AW151: 68.97 | AX151: 191.9 | AY151: 51.74036 | AZ151: 171.33 | BA151: 114.61 | BB151: 63.9 | BC151: 71.42 | BD151: 46.04 | BE151: 36.944 | BF151: 79.26 | BG151: 57.24 | BH151: 49.87 | BI151: 134.83 | BJ151: 42.44 | BK151: 73.19 | BL151: 40.34 | BM151: 162.07 | BN151: 167.69 | BO151: 59.01 | BP151: 109.25 | BQ151: 34.63 | BR151: 120.43 | BS151: 72.61 | BT151: 131.63 | BU151: 29.49 | BV151: 84.79 | BW151: 97.55 | BX151: 95.71 | BY151: 43.08 | BZ151: 46.17 | CA151: 111.86 | CB151: 89.85 | CC151: 131.08 | CD151: 51.92 | CE151: 61.71 | CF151: 83.05 | CG151: 72.08
A152: 20170428 | B152: 142.14 | C152: 924.99 | D152: 72.1729 | E152: 692.19 | F152: 51.81 | G152: 1846.82 | H152: 42.28 | I152: 58.5 | J152: 61.77 | K152: 32.89 | L152: 85.19 | M152: 82.77 | N152: 181.39 | O152: 33.41 | P152: 11.47 | Q152: 26.2 | R152: 50.84 | S152: 92.02 | T152: 56.81 | U152: 99.11 | V152: 156.1 | W152: 39.03 | X152: 58.99 | Y152: 52.54 | Z152: 49.63919 | AA152: 31.24 | AB152: 84.88 | AC152: 94.42 | AD152: 139.93 | AE152: 30.71 | AF152: 234.79 | AG152: 47.74 | AH152: 55.41 | AI152: 48.27 | AJ152: 2111.25 | AK152: 248.15 | AL152: 85.26 | AM152: 22.67 | AN152: 101.03 | AO152: 80.72 | AP152: 65 | AQ152: 106.6 | AR152: 60.06 | AS152: 39.39 | AT152: 55.85 | AU152: 91.65 | AV152: 39.32 | AW152: 61.91 | AX152: 197.66 | AY152: 51.420338 | AZ152: 185.68 | BA152: 123.01 | BB152: 65.75 | BC152: 71.78 | BD152: 45.75 | BE152: 37.856 | BF152: 79.03 | BG152: 57.54 | BH152: 49.53 | BI152: 133.69 | BJ152: 43.15 | BK152: 72.04 | BL152: 38.78 | BM152: 172.54 | BN152: 177.52 | BO152: 57.51 | BP152: 108.2 | BQ152: 35.08 | BR152: 123.82 | BS152: 71 | BT152: 129.75 | BU152: 29.65 | BV152: 87.14 | BW152: 99.9 | BX152: 95.89 | BY152: 45.03 | BZ152: 45.38 | CA152: 113.28 | CB152: 87.33 | CC152: 126.72 | CD152: 52.87 | CE152: 64.26 | CF152: 86.54 | CG152: 75.18
A153: 20170531 | B153: 133.63 | C153: 994.62 | D153: 79.90236 | E153: 605.92 | F153: 59.39 | G153: 1877.09 | H153: 42.51 | I153: 62.83 | J153: 64.07 | K153: 32.69 | L153: 88.93 | M153: 77.7 | N153: 211.72 | O153: 34.3 | P153: 11.12 | Q153: 22.5 | R153: 52.04 | S153: 92.62 | T153: 53.01 | U153: 105.26 | V153: 153.51 | W153: 38.43 | X153: 59.13 | Y153: 52.02 | Z153: 50.435383 | AA153: 31.49 | AB153: 78.77 | AC153: 107.65 | AD153: 150.89 | AE153: 31.72 | AF153: 239.3 | AG153: 52.95 | AH153: 52.99 | AI153: 41.8 | AJ153: 2282.38 | AK153: 242.08 | AL153: 83.6 | AM153: 22.67 | AN153: 105.95 | AO153: 67.8 | AP153: 63.92 | AQ153: 110.18 | AR153: 63.61 | AS153: 46.21 | AT153: 55.15 | AU153: 86.96 | AV153: 37.605 | AW153: 55.15 | AX153: 213.9 | AY153: 50.6391 | AZ153: 185.54 | BA153: 128.7 | BB153: 72.64 | BC153: 75.44 | BD153: 41.58 | BE153: 41.56 | BF153: 79.97 | BG153: 57.65 | BH153: 51.66 | BI153: 135.73 | BJ153: 45.47 | BK153: 76.36 | BL153: 38.54 | BM153: 182.75 | BN153: 180.43 | BO153: 56.74 | BP153: 115.27 | BQ153: 33.63 | BR153: 114.09 | BS153: 71.6 | BT153: 129.73 | BU153: 29.78 | BV153: 94.14 | BW153: 104.15 | BX153: 94.79 | BY153: 46.59 | BZ153: 50.56 | CA153: 116.87 | CB153: 88.09 | CC153: 127.85 | CD153: 54.56 | CE153: 57.34 | CF153: 81.02 | CG153: 78.6
A154: 20170630 | B154: 116.59 | C154: 968 | D154: 79.09556 | E154: 570.46 | F154: 57.33 | G154: 1870.52 | H154: 42.36 | I154: 63.06 | J154: 65.57 | K154: 34.57 | L154: 90.44 | M154: 69.92 | N154: 211.53 | O154: 34.92 | P154: 11.19 | Q154: 21.99 | R154: 51.03 | S154: 92.76 | T154: 54.02 | U154: 111.51 | V154: 153.4 | W154: 38.67 | X154: 63.89 | Y154: 52.53 | Z154: 52.41112 | AA154: 32.95 | AB154: 77.53 | AC154: 100.31 | AD154: 153.16 | AE154: 31.29 | AF154: 241.69 | AG154: 53.62 | AH154: 59 | AI154: 47.83 | AJ154: 2410.61 | AK154: 218.74 | AL154: 92.23 | AM154: 24.53 | AN154: 114.5 | AO154: 73.8 | AP154: 57.73 | AQ154: 109.23 | AR154: 58.31 | AS154: 47.34 | AT154: 52.29 | AU154: 93.87 | AV154: 36.085 | AW154: 54.21 | AX154: 202.83 | AY154: 54.21584 | AZ154: 191.62 | BA154: 134.12 | BB154: 73.76 | BC154: 74.47 | BD154: 41.38 | BE154: 38.88 | BF154: 74.6 | BG154: 52.15 | BH154: 51.88 | BI154: 133.24 | BJ154: 44.85 | BK154: 74.13 | BL154: 35.76 | BM154: 193.73 | BN154: 159.93 | BO154: 55.4 | BP154: 107.37 | BQ154: 34.11 | BR154: 119.21 | BS154: 69.46 | BT154: 129.11 | BU154: 23.32 | BV154: 95.98 | BW154: 97.51 | BX154: 86.34 | BY154: 43.19 | BZ154: 49.68 | CA154: 115.49 | CB154: 87.15 | CC154: 118.33 | CD154: 50.33 | CE154: 62.63 | CF154: 78.31 | CG154: 75.68
A155: 20170731 | B155: 112.01 | C155: 987.78 | D155: 78.07985 | E155: 539.82 | F155: 58.34 | G155: 2028.5 | H155: 46.74 | I155: 66.25 | J155: 66.78 | K155: 35.69 | L155: 83.88 | M155: 72.08 | N155: 186.5 | O155: 35.73 | P155: 11.22 | Q155: 23.83 | R155: 50.19 | S155: 84.93 | T155: 48.67 | U155: 105.88 | V155: 149.6 | W155: 41.35 | X155: 61.61 | Y155: 48.18 | Z155: 51.54612 | AA155: 34.56 | AB155: 77.4 | AC155: 104.19 | AD155: 155.14 | AE155: 32.93 | AF155: 248.99 | AG155: 52.72 | AH155: 59.05 | AI155: 48.57 | AJ155: 2610.44 | AK155: 204.3 | AL155: 89.66 | AM155: 24.42 | AN155: 119.29 | AO155: 75.65 | AP155: 55.32 | AQ155: 113.07 | AR155: 53.98 | AS155: 47.14 | AT155: 56.67 | AU155: 95.51 | AV155: 35.155 | AW155: 56.12 | AX155: 210.76 | AY155: 58.536163 | AZ155: 177.88 | BA155: 129.34 | BB155: 75.48 | BC155: 64.97 | BD155: 42.18 | BE155: 39.52 | BF155: 78.39 | BG155: 52.83 | BH155: 53.35 | BI155: 133.49 | BJ155: 45.84 | BK155: 72.2 | BL155: 34.24 | BM155: 193.35 | BN155: 158.51 | BO155: 55.66 | BP155: 105.31 | BQ155: 34.17 | BR155: 123.32 | BS155: 68 | BT155: 123.16 | BU155: 24.52 | BV155: 98.99 | BW155: 95.3 | BX155: 88.98 | BY155: 44.02 | BZ155: 52.75 | CA155: 116.61 | CB155: 90.82 | CC155: 121.9 | CD155: 52.62 | CE155: 63.36 | CF155: 80.67 | CG155: 79.99
A156: 20170831 | B156: 97.9 | C156: 980.6 | D156: 78.24554 | E156: 528.44 | F156: 54.26 | G156: 1852.08 | H156: 46.41 | I156: 67.15 | J156: 69.48 | K156: 36.15 | L156: 82.09 | M156: 79.64 | N156: 182.26 | O156: 36.13 | P156: 11.03 | Q156: 23.62 | R156: 51.5 | S156: 82.83 | T156: 47.01 | U156: 98.25 | V156: 149.87 | W156: 39.78 | X156: 62.21 | Y156: 45.97 | Z156: 50.877712 | AA156: 34.65 | AB156: 73.89 | AC156: 103.58 | AD156: 159.97 | AE156: 32.96 | AF156: 253.12 | AG156: 48.28 | AH156: 52.81 | AI156: 44.62 | AJ156: 2720.85 | AK156: 196.13 | AL156: 93.23 | AM156: 25.82 | AN156: 125.89 | AO156: 87.89 | AP156: 58.45 | AQ156: 124.46 | AR156: 54.86 | AS156: 41.7 | AT156: 54.53 | AU156: 91.4 | AV156: 36.15 | AW156: 59.51 | AX156: 227.95 | AY156: 59.176212 | AZ156: 171.62 | BA156: 138.99 | BB156: 76.82 | BC156: 63.4 | BD156: 41.32 | BE156: 42.432003 | BF156: 74.63 | BG156: 46.2 | BH156: 50.17 | BI156: 138.53 | BJ156: 45.55 | BK156: 71.64 | BL156: 32.46 | BM156: 200.1 | BN156: 156.74 | BO156: 53.26 | BP156: 104.92 | BQ156: 30.74 | BR156: 123.82 | BS156: 65.46 | BT156: 123.29 | BU156: 21.87 | BV156: 106.99 | BW156: 95.13 | BX156: 89.75 | BY156: 40.66 | BZ156: 55.82 | CA156: 115.73 | CB156: 92.27 | CC156: 104.76 | CD156: 52.67 | CE156: 63.3 | CF156: 81.5 | CG156: 78.07
A157: 20170929 | B157: 99.2 | C157: 961.35 | D157: 89.03653 | E157: 595.11 | F157: 56.96 | G157: 1830.82 | H157: 51.23 | I157: 75.81 | J157: 64.57 | K157: 39.93 | L157: 78.78 | M157: 86.82 | N157: 198.55 | O157: 38.46 | P157: 11.97 | Q157: 29.53 | R157: 53.97 | S157: 95.65 | T157: 48.21 | U157: 97.67 | V157: 163.56 | W157: 45.65 | X157: 64.16 | Y157: 47.73 | Z157: 51.899986 | AA157: 35.99 | AB157: 79.94 | AC157: 110.26 | AD157: 156.68 | AE157: 32.59 | AF157: 247.51 | AG157: 42.67 | AH157: 51.85 | AI157: 47.15 | AJ157: 2855 | AK157: 215.37 | AL157: 104.63 | AM157: 27.33 | AN157: 126.06 | AO157: 88.29 | AP157: 64.57 | AQ157: 118.54 | AR157: 53.71 | AS157: 40.28 | AT157: 59.01 | AU157: 91.78 | AV157: 36.865 | AW157: 63.29 | AX157: 228.12 | AY157: 59.835087 | AZ157: 184.44 | BA157: 148.92 | BB157: 73.61 | BC157: 63.42 | BD157: 42.51 | BE157: 43.44 | BF157: 69.46 | BG157: 46.82 | BH157: 48.45 | BI157: 131.91 | BJ157: 45.01 | BK157: 72.85 | BL157: 33.74 | BM157: 199.45 | BN157: 164.29 | BO157: 51.76 | BP157: 109.17 | BQ157: 32.14 | BR157: 120.64 | BS157: 62.37 | BT157: 117.68 | BU157: 20.06 | BV157: 107.84 | BW157: 102.64 | BX157: 81.64 | BY157: 40.66 | BZ157: 55.25 | CA157: 111.43 | CB157: 90.98 | CC157: 104.93 | CD157: 53.95 | CE157: 70.45 | CF157: 77.22 | CG157: 78.14
A158: 20171031 | B158: 81.74 | C158: 1105.28 | D158: 89.94418 | E158: 589.5 | F158: 55.98 | G158: 1911.96 | H158: 52.72 | I158: 75.1 | J158: 66.39 | K158: 44.21 | L158: 82.27 | M158: 91.25 | N158: 183 | O158: 37.64 | P158: 12.27 | Q158: 25.99 | R158: 56.61 | S158: 88.23 | T158: 47.34 | U158: 92.59 | V158: 165.78 | W158: 41.76 | X158: 63.38 | Y158: 47.26 | Z158: 54.72106 | AA158: 37.69 | AB158: 79.95 | AC158: 119.48 | AD158: 166.91 | AE158: 31.35 | AF158: 261.76 | AG158: 40.78 | AH158: 54.99 | AI158: 39.65 | AJ158: 3281.37 | AK158: 210.95 | AL158: 118.43 | AM158: 30.23 | AN158: 126.81 | AO158: 89.43 | AP158: 63.49 | AQ158: 123.77 | AR158: 54.84 | AS158: 40.95 | AT158: 59.04 | AU158: 93.62 | AV158: 34.9 | AW158: 60.26 | AX158: 229.02 | AY158: 65.55787 | AZ158: 163.93 | BA158: 147.49 | BB158: 74.45 | BC158: 64.22 | BD158: 40.87 | BE158: 45.616 | BF158: 68.78 | BG158: 47.37 | BH158: 45.17 | BI158: 126.53 | BJ158: 45.98 | BK158: 70.45 | BL158: 34.16 | BM158: 219.09 | BN158: 161.08 | BO158: 51.92 | BP158: 106.18 | BQ158: 31.16 | BR158: 125.35 | BS158: 62.53 | BT158: 112.51 | BU158: 20.7 | BV158: 111.81 | BW158: 99.53 | BX158: 80.87 | BY158: 41.43 | BZ158: 57.93 | CA158: 110.23 | CB158: 86.34 | CC158: 106.05 | CD158: 55.62 | CE158: 72.91 | CF158: 66.27 | CG158: 87.31
A159: 20171130 | B159: 101 | C159: 1176.75 | D159: 92.14848 | E159: 686.76 | F159: 59.61 | G159: 1739.71 | H159: 55.68 | I159: 68.91 | J159: 65.64 | K159: 51 | L159: 84.32 | M159: 102.76 | N159: 186.16 | O159: 34.67 | P159: 12.52 | Q159: 32.31 | R159: 62.08 | S159: 92.97 | T159: 50.2 | U159: 93.02 | V159: 179.82 | W159: 47.97 | X159: 69.29 | Y159: 48.24 | Z159: 62.78 | AA159: 39.42 | AB159: 83.37 | AC159: 127 | AD159: 171.97 | AE159: 34.12 | AF159: 282.61 | AG159: 30.97 | AH159: 60.42 | AI159: 45.45 | AJ159: 3475 | AK159: 236.21 | AL159: 127.01 | AM159: 34.13 | AN159: 134.55 | AO159: 95.15 | AP159: 76.03 | AQ159: 123.88 | AR159: 57.82 | AS159: 41.69 | AT159: 59.9 | AU159: 94.5 | AV159: 37.775 | AW159: 68.24 | AX159: 225.16 | AY159: 68.67339 | AZ159: 168.57 | BA159: 158.08 | BB159: 83.47 | BC159: 67.83 | BD159: 39.88 | BE159: 47.84 | BF159: 66.91 | BG159: 49.3 | BH159: 47.09 | BI159: 139.29 | BJ159: 45.77 | BK159: 72.45 | BL159: 37.33 | BM159: 217.59 | BN159: 184.43 | BO159: 56.56 | BP159: 110.93 | BQ159: 36.45 | BR159: 138.48 | BS159: 66.16 | BT159: 119.76 | BU159: 25.86 | BV159: 124.83 | BW159: 102.18 | BX159: 78.1 | BY159: 42.94 | BZ159: 62.67 | CA159: 116.52 | CB159: 89.99 | CC159: 116.67 | CD159: 57.73 | CE159: 82.25 | CF159: 72.76 | CG159: 97.23
A160: 20171229 | B160: 99.69 | C160: 1169.47 | D160: 91.54339 | E160: 711.37 | F160: 68.47 | G160: 1737.74 | H160: 51.09 | I160: 64.13 | J160: 66.37 | K160: 51.07 | L160: 96.02 | M160: 107.31 | N160: 188.96 | O160: 37.74 | P160: 12.49 | Q160: 34.06 | R160: 59.57 | S160: 95.01 | T160: 50.88 | U160: 90.89 | V160: 189.53 | W160: 54.23 | X160: 69.49 | Y160: 47.73 | Z160: 63.24 | AA160: 40.67 | AB160: 92.94 | AC160: 135.73 | AD160: 172.12 | AE160: 33.39 | AF160: 275.9 | AG160: 30.9 | AH160: 62.55 | AI160: 47.38 | AJ160: 3508.22 | AK160: 240.54 | AL160: 123.99 | AM160: 33.25 | AN160: 137.21 | AO160: 103.69 | AP160: 80.25 | AQ160: 119.28 | AR160: 57.43 | AS160: 44.23 | AT160: 65.25 | AU160: 103.95 | AV160: 38.23 | AW160: 74.75 | AX160: 212.47 | AY160: 69.6523 | AZ160: 168.64 | BA160: 168.59 | BB160: 81.61 | BC160: 71.41 | BD160: 40.08 | BE160: 54.936 | BF160: 67.08 | BG160: 48.11 | BH160: 50.17 | BI160: 148.74 | BJ160: 45.88 | BK160: 75.45 | BL160: 37.67 | BM160: 228.57 | BN160: 186.12 | BO160: 59.29 | BP160: 113.51 | BQ160: 36.39 | BR160: 139.8 | BS160: 67.98 | BT160: 120.66 | BU160: 27.45 | BV160: 127.24 | BW160: 101.91 | BX160: 82.07 | BY160: 42.8 | BZ160: 63.29 | CA160: 119.92 | CB160: 91.88 | CC160: 124.24 | CD160: 60.73 | CE160: 81.07 | CF160: 72.62 | CG160: 98.75
A161: 20180131 | B161: 116.99 | C161: 1450.89 | D161: 109.64604 | E161: 765.44 | F161: 73.06 | G161: 1912.05 | H161: 56.26 | I161: 71.37 | J161: 71.61 | K161: 49.05 | L161: 95.85 | M161: 115 | N161: 216.85 | O161: 40.58 | P161: 10.97 | Q161: 33.24 | R161: 62.94 | S161: 104.07 | T161: 48.46 | U161: 94.57 | V161: 200.9 | W161: 64.77 | X161: 77.52 | Y161: 46.51 | Z161: 62.66 | AA161: 42.03 | AB161: 104.73 | AC161: 147.34 | AD161: 171.14 | AE161: 36.45 | AF161: 281.06 | AG161: 26.44 | AH161: 68.22 | AI161: 49.31 | AJ161: 3178.17 | AK161: 264.69 | AL161: 113.01 | AM161: 31.83 | AN161: 155.08 | AO161: 114.31 | AP161: 82.39 | AQ161: 133.55 | AR161: 56.81 | AS161: 47.04 | AT161: 75.22 | AU161: 106.65 | AV161: 40.16 | AW161: 76.25 | AX161: 218.56 | AY161: 76.3728 | AZ161: 181.42 | BA161: 165.59 | BB161: 84.59 | BC161: 70.34 | BD161: 42.95 | BE161: 55.440002 | BF161: 79.43 | BG161: 46.55 | BH161: 48.85 | BI161: 141.69 | BJ161: 47.59 | BK161: 74.24 | BL161: 38 | BM161: 219.47 | BN161: 194.87 | BO161: 58.49 | BP161: 110.33 | BQ161: 34.33 | BR161: 143.64 | BS161: 68.11 | BT161: 117 | BU161: 30.36 | BV161: 134.96 | BW161: 108.77 | BX161: 84.02 | BY161: 44.4 | BZ161: 68.23 | CA161: 120.3 | CB161: 86.34 | CC161: 126.89 | CD161: 62.87 | CE161: 76.11 | CF161: 75.26 | CG161: 106.6
A162: 20180228 | B162: 114.25 | C162: 1512.45 | D162: 103.32848 | E162: 664.72 | F162: 72.44 | G162: 2034.04 | H162: 49.08 | I162: 61.92 | J162: 66.91 | K162: 41.9 | L162: 92.19 | M162: 102.64 | N162: 222.41 | O162: 42.86 | P162: 10.61 | Q162: 31.58 | R162: 59.24 | S162: 91.84 | T162: 45.38 | U162: 95.57 | V162: 182.27 | W162: 66.09 | X162: 72.81 | Y162: 43.46 | Z162: 56.58 | AA162: 39.48 | AB162: 89.59 | AC162: 141.21 | AD162: 157.74 | AE162: 34.23 | AF162: 239.88 | AG162: 25.69 | AH162: 67.03 | AI162: 51.31 | AJ162: 2843.17 | AK162: 244.19 | AL162: 113.99 | AM162: 28.07 | AN162: 144.28 | AO162: 105.84 | AP162: 78.09 | AQ162: 126.6 | AR162: 57.1 | AS162: 50.91 | AT162: 75.41 | AU162: 101.04 | AV162: 41.34 | AW162: 64.93 | AX162: 205.87 | AY162: 70.188805 | AZ162: 162.43 | BA162: 167.5 | BB162: 81.38 | BC162: 62.95 | BD162: 41.52 | BE162: 55.832 | BF162: 75.43 | BG162: 43.05 | BH162: 49.19 | BI162: 129.08 | BJ162: 43.22 | BK162: 68.97 | BL162: 36.13 | BM162: 215.48 | BN162: 190.9 | BO162: 50.55 | BP162: 98.26 | BQ162: 32.46 | BR162: 130.64 | BS162: 66.2 | BT162: 110.92 | BU162: 27.12 | BV162: 138.44 | BW162: 106.78 | BX162: 76.25 | BY162: 43.9 | BZ162: 63.37 | CA162: 109.73 | CB162: 78.52 | CC162: 126.3 | CD162: 59.65 | CE162: 74.38 | CF162: 68.89 | CG162: 90.01
A163: 20180329 | B163: 118.55 | C163: 1447.34 | D163: 105.12938 | E163: 648.69 | F163: 69.99 | G163: 2080.39 | H163: 50.23 | I163: 61.94 | J163: 65.58 | K163: 43.84 | L163: 85.25 | M163: 94.9 | N163: 233.56 | O163: 40.24 | P163: 11.08 | Q163: 31.2 | R163: 58.93 | S163: 89.84 | T163: 42.88 | U163: 84.3 | V163: 178.24 | W163: 65.51 | X163: 71.9 | Y163: 44.36 | Z163: 58.94 | AA163: 37.95 | AB163: 87.75 | AC163: 135.98 | AD163: 156.38 | AE163: 35.02 | AF163: 232.22 | AG163: 25.48 | AH163: 66.44 | AI163: 48.41 | AJ163: 2800 | AK163: 247.38 | AL163: 114.52 | AM163: 29.49 | AN163: 151.43 | AO163: 111.8 | AP163: 77.98 | AQ163: 117.74 | AR163: 57.89 | AS163: 52.61 | AT163: 69.43 | AU163: 97.66 | AV163: 40.78 | AW163: 63.02 | AX163: 221.7 | AY163: 69.76524 | AZ163: 153.11 | BA163: 182.36 | BB163: 85.13 | BC163: 62.32 | BD163: 43.37 | BE163: 54.4 | BF163: 73.94 | BG163: 43.31 | BH163: 50.36 | BI163: 133.11 | BJ163: 43.43 | BK163: 71.68 | BL163: 36.88 | BM163: 227.92 | BN163: 188.43 | BO163: 45.06 | BP163: 98.96 | BQ163: 34.32 | BR163: 128.92 | BS163: 65.01 | BT163: 110.13 | BU163: 23.94 | BV163: 149.72 | BW163: 106.39 | BX163: 75.33 | BY163: 41.73 | BZ163: 57.21 | CA163: 109.15 | CB163: 79.28 | CC163: 124.01 | CD163: 59.96 | CE163: 73.19 | CF163: 65.47 | CG163: 88.97
A164: 20180430 | B164: 114.45 | C164: 1566.13 | D164: 96.5643 | E164: 624.52 | F164: 76.53 | G164: 2178 | H164: 48.94 | I164: 62.5 | J164: 63.06 | K164: 44.14 | L164: 92.86 | M164: 95.89 | N164: 241.73 | O164: 37.88 | P164: 11.24 | Q164: 29.24 | R164: 58.67 | S164: 88.32 | T164: 41.13 | U164: 88.09 | V164: 184.8 | W164: 62.12 | X164: 73.33 | Y164: 40.55 | Z164: 52.89 | AA164: 31.02 | AB164: 82.43 | AC164: 136.68 | AD164: 167.44 | AE164: 31.42 | AF164: 209.88 | AG164: 27.63 | AH164: 68.39 | AI164: 50.56 | AJ164: 3100 | AK164: 256.07 | AL164: 104.82 | AM164: 30.36 | AN164: 159.67 | AO164: 109.85 | AP164: 80.85 | AQ164: 108.19 | AR164: 57.57 | AS164: 53.77 | AT164: 72.6 | AU164: 102.83 | AV164: 42.425 | AW164: 68 | AX164: 229.31 | AY164: 76.11867 | AZ164: 154.95 | BA164: 186.19 | BB164: 87.1 | BC164: 56.11 | BD164: 45.38 | BE164: 56.04 | BF164: 72.23 | BG164: 40.78 | BH164: 46.2 | BI164: 117.2 | BJ164: 43.21 | BK164: 65.23 | BL164: 37.07 | BM164: 233.13 | BN164: 197.16 | BO164: 43.74 | BP164: 91.94 | BQ164: 36.25 | BR164: 121.09 | BS164: 58.9 | BT164: 103.54 | BU164: 25.19 | BV164: 148.09 | BW164: 105.41 | BX164: 71.24 | BY164: 39.5 | BZ164: 55 | CA164: 100.94 | CB164: 72.34 | CC164: 114.08 | CD164: 62.54 | CE164: 70.1 | CF164: 66.45 | CG164: 88.46
A165: 20180531 | B165: 128.62 | C165: 1629.62 | D165: 106.59171 | E165: 649.32 | F165: 68.25 | G165: 2108.92 | H165: 48.78 | I165: 68.92 | J165: 62.28 | K165: 42.21 | L165: 87.41 | M165: 82.59 | N165: 251.48 | O165: 37.72 | P165: 11.55 | Q165: 27.98 | R165: 60.09 | S165: 90.79 | T165: 41.08 | U165: 86.75 | V165: 186.55 | W165: 66.75 | X165: 80.61 | Y165: 41.3 | Z165: 51.74 | AA165: 31.77 | AB165: 95.01 | AC165: 135.36 | AD165: 160.01 | AE165: 31.45 | AF165: 204.04 | AG165: 23.58 | AH165: 71.8 | AI165: 49.03 | AJ165: 2990.54 | AK165: 269.41 | AL165: 111.9 | AM165: 30.25 | AN165: 160 | AO165: 134.58 | AP165: 78.88 | AQ165: 104.98 | AR165: 56.67 | AS165: 43.72 | AT165: 72.89 | AU165: 130.78 | AV165: 45.16 | AW165: 74.31 | AX165: 240.79 | AY165: 76.391624 | AZ165: 144.75 | BA165: 196.01 | BB165: 81.33 | BC165: 55.74 | BD165: 43.72 | BE165: 56.56 | BF165: 69.55 | BG165: 33.64 | BH165: 46.95 | BI165: 120.83 | BJ165: 43 | BK165: 63.09 | BL165: 37.06 | BM165: 223.08 | BN165: 198.24 | BO165: 42.29 | BP165: 90.04 | BQ165: 35.89 | BR165: 111.39 | BS165: 64.39 | BT165: 100.85 | BU165: 24.33 | BV165: 149.44 | BW165: 101 | BX165: 61.65 | BY165: 39.27 | BZ165: 51.16 | CA165: 100.25 | CB165: 73.17 | CC165: 107.5 | CD165: 65.03 | CE165: 67.47 | CF165: 62.39 | CG165: 82.54
A166: 20180629 | B166: 135.7 | C166: 1699.8 | D166: 103.17 | E166: 670.93 | F166: 74.58 | G166: 2027.09 | H166: 43.16 | I166: 72.87 | J166: 57.31 | K166: 41 | L166: 107.06 | M166: 85 | N166: 282.17 | O166: 36.26 | P166: 11.07 | Q166: 32.39 | R166: 61 | S166: 91.79 | T166: 42.08 | U166: 92.31 | V166: 195.1 | W166: 72.9 | X166: 76.36 | Y166: 44.64 | Z166: 52.5 | AA166: 31.9 | AB166: 95.57 | AC166: 126.6 | AD166: 156.69 | AE166: 29.03 | AF166: 214.27 | AG166: 25.79 | AH166: 79.68 | AI166: 51.78 | AJ166: 2970.35 | AK166: 273.57 | AL166: 122.18 | AM166: 28.75 | AN166: 149.72 | AO166: 125.72 | AP166: 84.75 | AQ166: 103.6 | AR166: 48.85 | AS166: 46.71 | AT166: 76.12 | AU166: 131.6 | AV166: 47.59 | AW166: 76.49 | AX166: 274.19 | AY166: 76.73047 | AZ166: 146.23 | BA166: 167.34 | BB166: 78.22 | BC166: 56.79 | BD166: 45.83 | BE166: 49.01 | BF166: 69.71 | BG166: 40.54 | BH166: 53.16 | BI166: 135.25 | BJ166: 43.86 | BK166: 64.81 | BL166: 35.73 | BM166: 218.87 | BN166: 208.98 | BO166: 44.26 | BP166: 93.06 | BQ166: 37.21 | BR166: 110.7 | BS166: 69.87 | BT166: 105.34 | BU166: 28.45 | BV166: 142.69 | BW166: 116.09 | BX166: 68.04 | BY166: 41 | BZ166: 57.3 | CA166: 108.87 | CB166: 78.06 | CC166: 107.48 | CD166: 68.29 | CE166: 68.85 | CF166: 60.015 | CG166: 85.65
A167: 20180731 | B167: 141.23 | C167: 1777.44 | D167: 102.46 | E167: 705.53 | F167: 75.03 | G167: 2028.72 | H167: 46.02 | I167: 74.68 | J167: 59.24 | K167: 43.7 | L167: 106.94 | M167: 91.28 | N167: 262.66 | O167: 33.45 | P167: 10.04 | Q167: 30.17 | R167: 62.45 | S167: 97.31 | T167: 42.89 | U167: 99.61 | V167: 197.52 | W167: 73.87 | X167: 71.9 | Y167: 43.57 | Z167: 52.27 | AA167: 33.52 | AB167: 99.34 | AC167: 127.84 | AD167: 157.54 | AE167: 31.37 | AF167: 188.36 | AG167: 26.19 | AH167: 76.91 | AI167: 52.41 | AJ167: 2759.43 | AK167: 306 | AL167: 105.42 | AM167: 28.49 | AN167: 153.52 | AO167: 134.98 | AP167: 87.43 | AQ167: 112.76 | AR167: 52.39 | AS167: 47.12 | AT167: 80.68 | AU167: 137.56 | AV167: 48.63 | AW167: 78.04 | AX167: 276.87 | AY167: 86.66063 | AZ167: 131.1 | BA167: 166.78 | BB167: 79.29 | BC167: 58.68 | BD167: 48.26 | BE167: 53.22 | BF167: 69.13 | BG167: 40.9 | BH167: 55.9 | BI167: 135.17 | BJ167: 46.63 | BK167: 67.01 | BL167: 36.71 | BM167: 210.23 | BN167: 218.71 | BO167: 46.06 | BP167: 98.21 | BQ167: 35.97 | BR167: 101.3 | BS167: 71.03 | BT167: 113.86 | BU167: 29 | BV167: 134.94 | BW167: 117.54 | BX167: 67 | BY167: 43.38 | BZ167: 60.02 | CA167: 115 | CB167: 80.88 | CC167: 111.12 | CD167: 67.21 | CE167: 57.65 | CF167: 67.62 | CG167: 89.23
A168: 20180831 | B168: 164.03 | C168: 2012.71 | D168: 89.09 | E168: 766.88 | F168: 79.56 | G168: 1951.55 | H168: 43.77 | I168: 78.05 | J168: 61.49 | K168: 44.51 | L168: 116.04 | M168: 80.51 | N168: 298.56 | O168: 34.61 | P168: 9.48 | Q168: 30.35 | R168: 68.14 | S168: 99.85 | T168: 42.62 | U168: 99.31 | V168: 200.77 | W168: 79.11 | X168: 65.42 | Y168: 45.44 | Z168: 51.67 | AA168: 34.52 | AB168: 108.75 | AC168: 126.47 | AD168: 162.23 | AE168: 28.99 | AF168: 191.59 | AG168: 21.72 | AH168: 82.2 | AI168: 62.85 | AJ168: 2668.45 | AK168: 335.42 | AL168: 108.45 | AM168: 27.95 | AN168: 143.16 | AO168: 132.81 | AP168: 95.78 | AQ168: 122.58 | AR168: 53.45 | AS168: 50.69 | AT168: 87.5 | AU168: 122.65 | AV168: 54.985 | AW168: 88.28 | AX168: 298.05 | AY168: 86.7171 | AZ168: 124.98 | BA168: 148.34 | BB168: 86.89 | BC168: 58.52 | BD168: 50.4 | BE168: 52.22 | BF168: 64.98 | BG168: 39.45 | BH168: 56.58 | BI168: 144.98 | BJ168: 44.57 | BK168: 66.41 | BL168: 36.75 | BM168: 208.2 | BN168: 233.13 | BO168: 46.01 | BP168: 100.52 | BQ168: 39.15 | BR168: 101.07 | BS168: 71.79 | BT168: 115.54 | BU168: 31.5 | BV168: 140.12 | BW168: 124.88 | BX168: 66.74 | BY168: 42.72 | BZ168: 60.89 | CA168: 112.01 | CB168: 82.95 | CC168: 103.38 | CD168: 74.82 | CE168: 62.81 | CF168: 68.56 | CG168: 95.86
A169: 20180928 | B169: 168.33 | C169: 2003 | D169: 86.68 | E169: 775.7 | F169: 79.36 | G169: 1984 | H169: 42.78 | I169: 74.67 | J169: 63.77 | K169: 42.18 | L169: 111.19 | M169: 81.55 | N169: 294.8 | O169: 33.02 | P169: 9.25 | Q169: 28.85 | R169: 70.05 | S169: 99.4 | T169: 45.3 | U169: 105.12 | V169: 207.15 | W169: 74.55 | X169: 59.33 | Y169: 43.79 | Z169: 46.69 | AA169: 31.67 | AB169: 114.82 | AC169: 132.03 | AD169: 167.29 | AE169: 27.91 | AF169: 175.35 | AG169: 20.3 | AH169: 84.72 | AI169: 59.81 | AJ169: 2470.8 | AK169: 347.32 | AL169: 100.95 | AM169: 24.77 | AN169: 144.4 | AO169: 137.55 | AP169: 99.1 | AQ169: 129.94 | AR169: 56.84 | AS169: 50.27 | AT169: 88.21 | AU169: 128.97 | AV169: 56.01 | AW169: 90.88 | AX169: 274.42 | AY169: 87.95955 | AZ169: 118.75 | BA169: 127.06 | BB169: 90.91 | BC169: 60.31 | BD169: 50.27 | BE169: 50.55 | BF169: 68.71 | BG169: 36.63 | BH169: 59.37 | BI169: 150.41 | BJ169: 46.19 | BK169: 66.95 | BL169: 33.97 | BM169: 215.62 | BN169: 234.88 | BO169: 42.92 | BP169: 102 | BQ169: 39.4 | BR169: 104.96 | BS169: 70.02 | BT169: 113.64 | BU169: 29.11 | BV169: 145.32 | BW169: 131.75 | BX169: 61.5 | BY169: 42.96 | BZ169: 58.28 | CA169: 111.8 | CB169: 83.23 | CC169: 102.61 | CD169: 73.25 | CE169: 59.53 | CF169: 72.9 | CG169: 93.91
A170: 20181031 | B170: 159.76 | C170: 1598.01 | D170: 83.34 | E170: 733.47 | F170: 70.16 | G170: 1874.58 | H170: 39.41 | I170: 67.91 | J170: 56.04 | K170: 35.96 | L170: 106.55 | M170: 84.3 | N170: 268.79 | O170: 29.03 | P170: 9.55 | Q170: 27.3 | R170: 66.16 | S170: 97.92 | T170: 38.22 | U170: 91.71 | V170: 175.88 | W170: 75.73 | X170: 51.03 | Y170: 36.31 | Z170: 42.98 | AA170: 27.27 | AB170: 95.22 | AC170: 116.89 | AD170: 176.9 | AE170: 26.68 | AF170: 124.73 | AG170: 15.88 | AH170: 75.04 | AI170: 65.77 | AJ170: 2239.03 | AK170: 320.75 | AL170: 88.98 | AM170: 24.57 | AN170: 120.79 | AO170: 129.61 | AP170: 99 | AQ170: 104.73 | AR170: 58.27 | AS170: 42.31 | AT170: 83.63 | AU170: 111.3 | AV170: 54.94 | AW170: 91.89 | AX170: 251.32 | AY170: 78.01057 | AZ170: 109.76 | BA170: 100.6 | BB170: 90.41 | BC170: 65.04 | BD170: 47.25 | BE170: 46.34 | BF170: 61.8 | BG170: 37.41 | BH170: 59.37 | BI170: 148.45 | BJ170: 47.88 | BK170: 59.55 | BL170: 35.6 | BM170: 199.23 | BN170: 228.63 | BO170: 43.8 | BP170: 107.15 | BQ170: 43.64 | BR170: 101.18 | BS170: 65.48 | BT170: 104.3 | BU170: 29.76 | BV170: 137.44 | BW170: 144 | BX170: 64 | BY170: 41.98 | BZ170: 52.85 | CA170: 112.38 | CB170: 88.68 | CC170: 108.32 | CD170: 71.33 | CE170: 59.92 | CF170: 79.77 | CG170: 100.28
A171: 20181130 | B171: 177.71 | C171: 1690.17 | D171: 85.91 | E171: 809.07 | F171: 64.59 | G171: 1891.88 | H171: 39.58 | I171: 66.07 | J171: 60.29 | K171: 37.22 | L171: 110.54 | M171: 86.77 | N171: 277.32 | O171: 29.85 | P171: 9.41 | Q171: 27.29 | R171: 66.66 | S171: 103.71 | T171: 42.29 | U171: 91 | V171: 180.32 | W171: 67.17 | X171: 54.94 | Y171: 38.74 | Z171: 42.73 | AA171: 27.84 | AB171: 94.37 | AC171: 115.03 | AD171: 188.51 | AE171: 26.96 | AF171: 128.06 | AG171: 23.4 | AH171: 75.12 | AI171: 52.87 | AJ171: 2450 | AK171: 346.78 | AL171: 97 | AM171: 26.52 | AN171: 110.51 | AO171: 111.4 | AP171: 87.6 | AQ171: 113.07 | AR171: 66.72 | AS171: 38.93 | AT171: 70.96 | AU171: 91 | AV171: 48.85 | AW171: 95.13 | AX171: 279.18 | AY171: 76.513985 | AZ171: 126.13 | BA171: 109.4 | BB171: 92.22 | BC171: 54.83 | BD171: 46.02 | BE171: 47.72 | BF171: 57.07 | BG171: 39.2 | BH171: 66.19 | BI171: 165.62 | BJ171: 50.4 | BK171: 63.52 | BL171: 32.34 | BM171: 195.76 | BN171: 231.28 | BO171: 42.31 | BP171: 108.3 | BQ171: 45.09 | BR171: 104.46 | BS171: 63.65 | BT171: 115.37 | BU171: 29.66 | BV171: 142.66 | BW171: 150 | BX171: 65.77 | BY171: 44.98 | BZ171: 59.68 | CA171: 121.94 | CB171: 94.51 | CC171: 104.51 | CD171: 67.4 | CE171: 58.95 | CF171: 84.67 | CG171: 97.65
A172: 20181231 | B172: 157.46 | C172: 1501.97 | D172: 70.23 | E172: 838.34 | F172: 52.96 | G172: 1722.42 | H172: 34.74 | I172: 62.73 | J172: 49.3 | K172: 34.66 | L172: 99.86 | M172: 90.32 | N172: 247.99 | O172: 28.07 | P172: 7.65 | Q172: 25.76 | R172: 63.32 | S172: 96.02 | T172: 34.12 | U172: 81.25 | V172: 171.82 | W172: 66.34 | X172: 52.05 | Y172: 35.84 | Z172: 39.15 | AA172: 23.73 | AB172: 92.36 | AC172: 108.56 | AD172: 177.57 | AE172: 24.26 | AF172: 116.96 | AG172: 18.59 | AH172: 74.14 | AI172: 46.61 | AJ172: 2436.99 | AK172: 344.33 | AL172: 76.68 | AM172: 25.99 | AN172: 92.95 | AO172: 103.46 | AP172: 83.2 | AQ172: 97.79 | AR172: 64.4 | AS172: 33.75 | AT172: 66.09 | AU172: 80.51 | AV172: 44.74 | AW172: 83.44 | AX172: 210.82 | AY172: 67.148575 | AZ172: 106.87 | BA172: 98.91 | BB172: 91.92 | BC172: 49.39 | BD172: 40.97 | BE172: 47.58 | BF172: 53.44 | BG172: 32.99 | BH172: 65.76 | BI172: 154.14 | BJ172: 47.35 | BK172: 59.52 | BL172: 21.36 | BM172: 160.82 | BN172: 203.71 | BO172: 38.94 | BP172: 107.18 | BQ172: 42.68 | BR172: 91.4 | BS172: 57.01 | BT172: 113.94 | BU172: 27.5 | BV172: 130.1 | BW172: 139.24 | BX172: 56.16 | BY172: 40.03 | BZ172: 49.22 | CA172: 110.48 | CB172: 91.92 | CC172: 93.49 | CD172: 62.66 | CE172: 53.4 | CF172: 68.33 | CG172: 93.15
A173: 20190131 | B173: 159.2 | C173: 1718.73 | D173: 79.85 | E173: 847.34 | F173: 59.24 | G173: 1832.81 | H173: 40.9 | I173: 58.78 | J173: 57.58 | K173: 38.45 | L173: 104.93 | M173: 96.83 | N173: 283.73 | O173: 33.65 | P173: 8.8 | Q173: 25.44 | R173: 69.18 | S173: 99.82 | T173: 36.86 | U173: 90.56 | V173: 183.53 | W173: 68.69 | X173: 58.36 | Y173: 40.96 | Z173: 47.42 | AA173: 26.22 | AB173: 96.16 | AC173: 114.53 | AD173: 178.78 | AE173: 29.44 | AF173: 128.79 | AG173: 21.21 | AH173: 81.88 | AI173: 46.41 | AJ173: 2660 | AK173: 344.66 | AL173: 83.88 | AM173: 27.81 | AN173: 109.11 | AO173: 116.14 | AP173: 92.12 | AQ173: 120.05 | AR173: 68.14 | AS173: 38.71 | AT173: 73 | AU173: 88.73 | AV173: 49.73 | AW173: 85.4 | AX173: 188.26 | AY173: 79.22478 | AZ173: 133.01 | BA173: 123.01 | BB173: 93.98 | BC173: 49.35 | BD173: 44.9 | BE173: 47.25 | BF173: 55.07 | BG173: 35.43 | BH173: 64.61 | BI173: 148.38 | BJ173: 48.13 | BK173: 64.68 | BL173: 21.64 | BM173: 173.66 | BN173: 214.63 | BO173: 44.44 | BP173: 106.1 | BQ173: 42.32 | BR173: 99 | BS173: 59.01 | BT173: 111.38 | BU173: 28.33 | BV173: 136.42 | BW173: 123.64 | BX173: 66.61 | BY173: 46.26 | BZ173: 57.24 | CA173: 112.67 | CB173: 96.47 | CC173: 104.88 | CD173: 63.85 | CE173: 61.92 | CF173: 72.26 | CG173: 95.83
A174: 20190228 | B174: 161.78 | C174: 1639.83 | D174: 81.81 | E174: 938.97 | F174: 68.84 | G174: 1697.04 | H174: 40.61 | I174: 62.1 | J174: 57.76 | K174: 38.89 | L174: 112.11 | M174: 96.33 | N174: 250.94 | O174: 37.15 | P174: 8.77 | Q174: 25.4 | R174: 83.97 | S174: 108.78 | T174: 37.12 | U174: 84.9 | V174: 185.14 | W174: 67.53 | X174: 61.43 | Y174: 45.42 | Z174: 47.98 | AA174: 27.7 | AB174: 105.09 | AC174: 125.27 | AD174: 183.84 | AE174: 26.75 | AF174: 136.12 | AG174: 16.23 | AH174: 85.73 | AI174: 47.28 | AJ174: 2620 | AK174: 371.96 | AL174: 85.23 | AM174: 27 | AN174: 114.84 | AO174: 125.17 | AP174: 94.83 | AQ174: 118.48 | AR174: 70.26 | AS174: 34.94 | AT174: 72.64 | AU174: 95.04 | AV174: 51.29 | AW174: 95.35 | AX174: 208.39 | AY174: 82.227356 | AZ174: 141.51 | BA174: 126.54 | BB174: 94.5 | BC174: 52.41 | BD174: 42.5 | BE174: 49.49 | BF174: 53.08 | BG174: 36.02 | BH174: 65.8 | BI174: 158.03 | BJ174: 45.34 | BK174: 65.87 | BL174: 23.37 | BM174: 169.16 | BN174: 218.74 | BO174: 47.13 | BP174: 110.68 | BQ174: 43.36 | BR174: 92.45 | BS174: 56.26 | BT174: 116.83 | BU174: 29.33 | BV174: 156.94 | BW174: 135.98 | BX174: 61.66 | BY174: 47.16 | BZ174: 63.83 | CA174: 115.64 | CB174: 98.55 | CC174: 105.91 | CD174: 67.55 | CE174: 61.66 | CF174: 71.19 | CG174: 98.99
A175: 20190329 | B175: 170.53 | C175: 1780.75 | D175: 73.53 | E175: 1024.12 | F175: 71.06 | G175: 1744.91 | H175: 38.41 | I175: 69.8 | J175: 50.72 | K175: 41.38 | L175: 121.47 | M175: 105.04 | N175: 258.1 | O175: 37.14 | P175: 8.78 | Q175: 26.18 | R175: 86.35 | S175: 112.03 | T175: 35.66 | U175: 85.02 | V175: 191.89 | W175: 68.77 | X175: 60.96 | Y175: 42.22 | Z175: 49.09 | AA175: 28.38 | AB175: 109.47 | AC175: 125.09 | AD175: 189.9 | AE175: 25.66 | AF175: 126.15 | AG175: 15.34 | AH175: 84.21 | AI175: 44.38 | AJ175: 2767 | AK175: 388.3 | AL175: 84.43 | AM175: 27.96 | AN175: 121.95 | AO175: 129.68 | AP175: 93.1 | AQ175: 114.62 | AR175: 74.34 | AS175: 32.49 | AT175: 80.26 | AU175: 105.55 | AV175: 53.21 | AW175: 97.76 | AX175: 217.3 | AY175: 81.8038 | AZ175: 132.89 | BA175: 119.32 | BB175: 99.81 | BC175: 57.43 | BD175: 43.13 | BE175: 52.78 | BF175: 53.07 | BG175: 38.13 | BH175: 71.23 | BI175: 160.46 | BJ175: 46.86 | BK175: 68.54 | BL175: 27.74 | BM175: 175.33 | BN175: 242.14 | BO175: 51.75 | BP175: 114.83 | BQ175: 44.76 | BR175: 94.69 | BS175: 57.38 | BT175: 123.9 | BU175: 24.6 | BV175: 165.55 | BW175: 150.63 | BX175: 59.65 | BY175: 49.92 | BZ175: 54.58 | CA175: 122.55 | CB175: 104.05 | CC175: 116.5 | CD175: 66.76 | CE175: 69.43 | CF175: 63.27 | CG175: 97.53
A176: 20190430 | B176: 166.32 | C176: 1926.52 | D176: 78.49 | E176: 1028.31 | F176: 74.41 | G176: 1854.99 | H176: 41.77 | I176: 77.86 | J176: 54.86 | K176: 44.31 | L176: 117.6 | M176: 111.28 | N176: 270.58 | O176: 38.75 | P176: 10.45 | Q176: 26.08 | R176: 85.74 | S176: 102.54 | T176: 37.23 | U176: 101.86 | V176: 203.7 | W176: 71.1 | X176: 67.05 | Y176: 39.36 | Z176: 52.03 | AA176: 30.1 | AB176: 113.14 | AC176: 136.42 | AD176: 197.57 | AE176: 26.63 | AF176: 136.25 | AG176: 14.38 | AH176: 87.83 | AI176: 41.02 | AJ176: 3152.48 | AK176: 378.57 | AL176: 96.4 | AM176: 31.46 | AN176: 128.99 | AO176: 131.58 | AP176: 97.66 | AQ176: 120.94 | AR176: 77.68 | AS176: 32.27 | AT176: 77.42 | AU176: 107.82 | AV176: 54.88 | AW176: 103.5 | AX176: 228.85 | AY176: 88.86315 | AZ176: 138.82 | BA176: 144.45 | BB176: 104.39 | BC176: 54.33 | BD176: 44.6 | BE176: 53.29 | BF176: 52.41 | BG176: 38.69 | BH176: 74.95 | BI176: 159.73 | BJ176: 49.06 | BK176: 72.79 | BL176: 30.78 | BM176: 211.67 | BN176: 245.53 | BO176: 51.47 | BP176: 124.85 | BQ176: 39.94 | BR176: 94.75 | BS176: 60.3 | BT176: 128.38 | BU176: 25.78 | BV176: 171.81 | BW176: 153.97 | BX176: 64.19 | BY176: 50.85 | BZ176: 59.6 | CA176: 128.05 | CB176: 106.48 | CC176: 122.63 | CD176: 70.37 | CE176: 75.01 | CF176: 53.57 | CG176: 102.84
A177: 20190531 | B177: 155 | C177: 1775.07 | D177: 61.57 | E177: 1027.11 | F177: 62.67 | G177: 1656.22 | H177: 35.48 | I177: 78.28 | J177: 51.19 | K177: 42.76 | L177: 116.32 | M177: 101.59 | N177: 279.5 | O177: 35.93 | P177: 9.52 | Q177: 18.68 | R177: 76.48 | S177: 98.9 | T177: 32.72 | U177: 95.14 | V177: 189.85 | W177: 49.32 | X177: 55 | Y177: 35.51 | Z177: 49.66 | AA177: 25.65 | AB177: 93.28 | AC177: 124.84 | AD177: 198.27 | AE177: 24.82 | AF177: 135.55 | AG177: 13.42 | AH177: 77.14 | AI177: 31.3 | AJ177: 3201.57 | AK177: 371.37 | AL177: 79.88 | AM177: 31 | AN177: 85.19 | AO177: 105.13 | AP177: 92.99 | AQ177: 121.76 | AR177: 76.06 | AS177: 28.56 | AT177: 80.45 | AU177: 89.11 | AV177: 50.29 | AW177: 100.78 | AX177: 215.11 | AY177: 81.88 | AZ177: 114.88 | BA177: 107.33 | BB177: 102.35 | BC177: 49.06 | BD177: 38.32 | BE177: 49.98 | BF177: 52.29 | BG177: 36.31 | BH177: 74.41 | BI177: 148.81 | BJ177: 49.13 | BK177: 69.62 | BL177: 26.77 | BM177: 176.45 | BN177: 239.58 | BO177: 49.44 | BP177: 131.96 | BQ177: 39.49 | BR177: 76.16 | BS177: 52.56 | BT177: 127.89 | BU177: 22.81 | BV177: 161.03 | BW177: 156.04 | BX177: 54.98 | BY177: 50.85 | BZ177: 61.86 | CA177: 128 | CB177: 102.91 | CC177: 121.56 | CD177: 68.82 | CE177: 75.89 | CF177: 49.34 | CG177: 101.44
A178: 20190628 | B178: 154.14 | C178: 1893.63 | D178: 70.51 | E178: 1099.47 | F178: 69.73 | G178: 1874.71 | H178: 41.98 | I178: 86.83 | J178: 46.55 | K178: 43.13 | L178: 121.73 | M178: 107.39 | N178: 278.28 | O178: 39.5 | P178: 10.23 | Q178: 17.97 | R178: 79.8 | S178: 103.58 | T178: 35.83 | U178: 105.68 | V178: 207.97 | W178: 47.55 | X178: 59.09 | Y178: 38.37 | Z178: 48.46 | AA178: 26.61 | AB178: 100.91 | AC178: 140.29 | AD178: 207.66 | AE178: 28.57 | AF178: 147.47 | AG178: 15.42 | AH178: 83.95 | AI178: 31.86 | AJ178: 3370.25 | AK178: 369.32 | AL178: 91.23 | AM178: 31.62 | AN178: 94.64 | AO178: 113.59 | AP178: 99.12 | AQ178: 121.21 | AR178: 83.83 | AS178: 31.73 | AT178: 86.61 | AU178: 93.64 | AV178: 52.88 | AW178: 108.8 | AX178: 223.18 | AY178: 87.35 | AZ178: 142.36 | BA178: 123.99 | BB178: 110.67 | BC178: 47.35 | BD178: 40.8 | BE178: 55.43 | BF178: 55.71 | BG178: 40.07 | BH178: 73.06 | BI178: 153.11 | BJ178: 50.92 | BK178: 71.67 | BL178: 26.52 | BM178: 196.94 | BN178: 264.26 | BO178: 52.52 | BP178: 134.03 | BQ178: 40.54 | BR178: 82.49 | BS178: 53.57 | BT178: 133.28 | BU178: 21.71 | BV178: 183.11 | BW178: 155.01 | BX178: 56 | BY178: 53.9 | BZ178: 63.83 | CA178: 131.13 | CB178: 109.65 | CC178: 115.19 | CD178: 70.72 | CE178: 80.74 | CF178: 54.67 | CG178: 110.49
A179: 20190731 | B179: 150.64 | C179: 1866.78 | D179: 72.15 | E179: 1123.04 | F179: 76.53 | G179: 1886.61 | H179: 37.8 | I179: 87.76 | J179: 47.23 | K179: 45.93 | L179: 121.56 | M179: 101.75 | N179: 244.53 | O179: 41.19 | P179: 9.53 | Q179: 19.5 | R179: 78.59 | S179: 97.12 | T179: 35.78 | U179: 121.16 | V179: 213.69 | W179: 53.86 | X179: 60.44 | Y179: 39.97 | Z179: 47.57 | AA179: 26.93 | AB179: 101.4 | AC179: 139.06 | AD179: 210.72 | AE179: 30.02 | AF179: 124.69 | AG179: 14.19 | AH179: 86.03 | AI179: 33.11 | AJ179: 3344.14 | AK179: 380.76 | AL179: 94.67 | AM179: 31.51 | AN179: 88.92 | AO179: 104.23 | AP179: 106.03 | AQ179: 116.34 | AR179: 94.69 | AS179: 30.93 | AT179: 86.4 | AU179: 93.92 | AV179: 54.56 | AW179: 108.81 | AX179: 246.52 | AY179: 87.39 | AZ179: 145.48 | BA179: 130.07 | BB179: 112.52 | BC179: 47.07 | BD179: 41.08 | BE179: 54.81 | BF179: 58.43 | BG179: 41.34 | BH179: 75.44 | BI179: 162.6 | BJ179: 52.63 | BK179: 71.74 | BL179: 28.87 | BM179: 196.82 | BN179: 275.63 | BO179: 53.11 | BP179: 151.74 | BQ179: 40.99 | BR179: 77.29 | BS179: 58.22 | BT179: 135.65 | BU179: 21.16 | BV179: 184.19 | BW179: 158.54 | BX179: 53.99 | BY179: 53.49 | BZ179: 64.47 | CA179: 127.81 | CB179: 118.04 | CC179: 111.19 | CD179: 68.57 | CE179: 79.5 | CF179: 54.49 | CG179: 110.38
A180: 20190830 | B180: 137.95 | C180: 1776.29 | D180: 68.4 | E180: 1101.69 | F180: 63.65 | G180: 1966.41 | H180: 32.63 | I180: 83.28 | J180: 44.08 | K180: 49.47 | L180: 120.98 | M180: 101.53 | N180: 226.84 | O180: 40.29 | P180: 9.17 | Q180: 15.79 | R180: 81.57 | S180: 90.29 | T180: 31.9 | U180: 110.47 | V180: 227.91 | W180: 47.26 | X180: 55.47 | Y180: 37.19 | Z180: 51 | AA180: 26.27 | AB180: 112.2 | AC180: 126.06 | AD180: 217.97 | AE180: 28.06 | AF180: 118.89 | AG180: 16.6 | AH180: 84.5 | AI180: 28.97 | AJ180: 3599 | AK180: 383.76 | AL180: 82.02 | AM180: 33.8 | AN180: 75.8 | AO180: 88.34 | AP180: 106.01 | AQ180: 104.28 | AR180: 96.56 | AS180: 20.65 | AT180: 107.04 | AU180: 84.87 | AV180: 54.97 | AW180: 101.88 | AX180: 236.28 | AY180: 81.95 | AZ180: 139.09 | BA180: 110.15 | BB180: 116.78 | BC180: 43.74 | BD180: 38.05 | BE180: 58.99 | BF180: 53.41 | BG180: 45 | BH180: 79.78 | BI180: 158.16 | BJ180: 55.04 | BK180: 74.15 | BL180: 28.36 | BM180: 204.35 | BN180: 294.76 | BO180: 53.8 | BP180: 158.48 | BQ180: 42.61 | BR180: 77.27 | BS180: 62.8 | BT180: 141.11 | BU180: 23.68 | BV180: 197.99 | BW180: 162.87 | BX180: 51.36 | BY180: 55.22 | BZ180: 58.67 | CA180: 136.73 | CB180: 120.23 | CC180: 105.16 | CD180: 74.33 | CE180: 93.04 | CF180: 51.19 | CG180: 114.26
A181: 20190930 | B181: 165.4 | C181: 1735.91 | D181: 78.88 | E181: 1084.62 | F181: 68.99 | G181: 1962.61 | H181: 36.68 | I181: 88 | J181: 43.71 | K181: 52.71 | L181: 118.22 | M181: 114.16 | N181: 244.59 | O181: 38.98 | P181: 9.16 | Q181: 17.36 | R181: 84.69 | S181: 99.59 | T181: 35.97 | U181: 118.69 | V181: 232.02 | W181: 49.66 | X181: 57.76 | Y181: 40.94 | Z181: 55.85 | AA181: 31.45 | AB181: 109.96 | AC181: 124.37 | AD181: 214.71 | AE181: 27.72 | AF181: 124.07 | AG181: 18.72 | AH181: 93.92 | AI181: 33.67 | AJ181: 3717.35 | AK181: 398.51 | AL181: 88.01 | AM181: 36.55 | AN181: 88.23 | AO181: 95.47 | AP181: 109.85 | AQ181: 108.33 | AR181: 88.42 | AS181: 26.05 | AT181: 106.91 | AU181: 92.63 | AV181: 55.74 | AW181: 90.44 | AX181: 227.56 | AY181: 88.99 | AZ181: 158.36 | BA181: 108.72 | BB181: 113.43 | BC181: 40.9 | BD181: 41.07 | BE181: 62.78 | BF181: 56.62 | BG181: 46.92 | BH181: 75.24 | BI181: 151.87 | BJ181: 54.44 | BK181: 73.51 | BL181: 30.68 | BM181: 207.28 | BN181: 288.11 | BO181: 55.12 | BP181: 154.99 | BQ181: 43.73 | BR181: 81.74 | BS181: 64.35 | BT181: 142.05 | BU181: 25.78 | BV181: 198.95 | BW181: 156.3 | BX181: 57.5 | BY181: 55.32 | BZ181: 58.06 | CA181: 137.1 | CB181: 124.38 | CC181: 110.02 | CD181: 79.4 | CE181: 86.14 | CF181: 55.31 | CG181: 118.68
A182: 20191031 | B182: 162.48 | C182: 1776.66 | D182: 77.84 | E182: 1144.38 | F182: 71.83 | G182: 2048.77 | H182: 41.68 | I182: 93.17 | J182: 42.89 | K182: 52.37 | L182: 112.27 | M182: 110.4 | N182: 271.62 | O182: 35.25 | P182: 8.59 | Q182: 16.26 | R182: 93.75 | S182: 102.58 | T182: 38.91 | U182: 97.31 | V182: 234.58 | W182: 51.26 | X182: 61.84 | Y182: 51.3 | Z182: 59.6 | AA182: 33.99 | AB182: 111.61 | AC182: 126.55 | AD182: 196.7 | AE182: 28.5 | AF182: 143.38 | AG182: 18.97 | AH182: 89.55 | AI182: 35.9 | AJ182: 3636.59 | AK182: 435.51 | AL182: 98.65 | AM182: 39.24 | AN182: 87.16 | AO182: 96.06 | AP182: 109.67 | AQ182: 108.83 | AR182: 84.56 | AS182: 25.86 | AT182: 106.91 | AU182: 124.51 | AV182: 57.65 | AW182: 95.02 | AX182: 232.37 | AY182: 82.29 | AZ182: 152.12 | BA182: 121.34 | BB182: 101.71 | BC182: 44.79 | BD182: 42.04 | BE182: 65.52 | BF182: 54 | BG182: 46.31 | BH182: 69.94 | BI182: 147.69 | BJ182: 54.43 | BK182: 68.6 | BL182: 27.05 | BM182: 190.33 | BN182: 297.11 | BO182: 50.86 | BP182: 146.87 | BQ182: 40.89 | BR182: 79 | BS182: 63.53 | BT182: 132.88 | BU182: 24.64 | BV182: 186.27 | BW182: 160.69 | BX182: 52.72 | BY182: 52.45 | BZ182: 56.13 | CA182: 137.17 | CB182: 124.51 | CC182: 105.68 | CD182: 79.87 | CE182: 82.79 | CF182: 54.78 | CG182: 117.26
A183: 20191129 | B183: 157.08 | C183: 1800.8 | D183: 81.72 | E183: 1177.92 | F183: 80.64 | G183: 1904.03 | H183: 42.05 | I183: 97.26 | J183: 45.08 | K183: 55.35 | L183: 118.44 | M183: 91.46 | N183: 294.3 | O183: 35.52 | P183: 9.06 | Q183: 16.61 | R183: 97.69 | S183: 104.37 | T183: 36.38 | U183: 101.7 | V183: 220.51 | W183: 47.01 | X183: 62.75 | Y183: 52.32 | Z183: 59.65 | AA183: 35.28 | AB183: 117.31 | AC183: 140.36 | AD183: 194.48 | AE183: 31.95 | AF183: 139.37 | AG183: 19.22 | AH183: 93.49 | AI183: 38.17 | AJ183: 3791.89 | AK183: 442.28 | AL183: 97.7 | AM183: 39.65 | AN183: 96.96 | AO183: 107.34 | AP183: 116.15 | AQ183: 120.02 | AR183: 85.43 | AS183: 26.89 | AT183: 125.01 | AU183: 133.8 | AV183: 61.13 | AW183: 94.44 | AX183: 242.67 | AY183: 88.54 | AZ183: 143.1 | BA183: 120.85 | BB183: 100.67 | BC183: 49.7 | BD183: 42.93 | BE183: 67.82 | BF183: 53.38 | BG183: 46.57 | BH183: 70.24 | BI183: 148.23 | BJ183: 53.4 | BK183: 67.82 | BL183: 28.87 | BM183: 186.06 | BN183: 299.81 | BO183: 53.32 | BP183: 148.16 | BQ183: 44.53 | BR183: 83.17 | BS183: 65.12 | BT183: 136.34 | BU183: 27.34 | BV183: 195.47 | BW183: 169.25 | BX183: 50.48 | BY183: 52.54 | BZ183: 59.82 | CA183: 135.83 | CB183: 122.06 | CC183: 105.09 | CD183: 80.55 | CE183: 89.89 | CF183: 59.6 | CG183: 119.09
A184: 20191231 | B184: 160.16 | C184: 1847.84 | D184: 84.41 | E184: 1191.31 | F184: 87.8 | G184: 2053.73 | H184: 43.38 | I184: 87.67 | J184: 50.83 | K184: 52.75 | L184: 109.01 | M184: 94.05 | N184: 293.78 | O184: 36.11 | P184: 9.3 | Q184: 17.68 | R184: 97.56 | S184: 106.23 | T184: 37.19 | U184: 105.61 | V184: 218.38 | W184: 50.95 | X184: 69.04 | Y184: 50.83 | Z184: 55.79 | AA184: 35.7 | AB184: 119.76 | AC184: 151.43 | AD184: 197.61 | AE184: 33.27 | AF184: 136.38 | AG184: 19.22 | AH184: 101.31 | AI184: 40.93 | AJ184: 3808.41 | AK184: 438.26 | AL184: 101.7 | AM184: 38.8 | AN184: 105.15 | AO184: 117.22 | AP184: 116.42 | AQ184: 133.51 | AR184: 87.92 | AS184: 26.97 | AT184: 128.21 | AU184: 133.65 | AV184: 61.06 | AW184: 93.44 | AX184: 239.83 | AY184: 99.66 | AZ184: 147.53 | BA184: 138.87 | BB184: 100.73 | BC184: 49.91 | BD184: 46.35 | BE184: 67.6 | BF184: 57.55 | BG184: 49.42 | BH184: 70.34 | BI184: 153.54 | BJ184: 55.35 | BK184: 68.84 | BL184: 34.24 | BM184: 189.75 | BN184: 293.92 | BO184: 53.56 | BP184: 146.98 | BQ184: 45.11 | BR184: 92.95 | BS184: 69.16 | BT184: 137.55 | BU184: 28.99 | BV184: 206.54 | BW184: 169.73 | BX184: 53.9 | BY184: 55.08 | BZ184: 63.55 | CA184: 136.67 | CB184: 124.9 | CC184: 104.13 | CD184: 85.54 | CE184: 91.04 | CF184: 58.96 | CG184: 118.84
A185: 20200131 | B185: 131.75 | C185: 2008.72 | D185: 76.63 | E185: 1057.96 | F185: 84.69 | G185: 1830.55 | H185: 34.29 | I185: 97.04 | J185: 43.53 | K185: 59.2 | L185: 116.43 | M185: 87.07 | N185: 281.75 | O185: 33.56 | P185: 8.82 | Q185: 17.41 | R185: 96.95 | S185: 93.57 | T185: 33.4 | U185: 101.87 | V185: 228.1 | W185: 42.75 | X185: 65.31 | Y185: 47.59 | Z185: 66.36 | AA185: 32.685 | AB185: 116.24 | AC185: 140.06 | AD185: 213.97 | AE185: 31.06 | AF185: 131.68 | AG185: 19.53 | AH185: 96.3 | AI185: 36.86 | AJ185: 3816.97 | AK185: 406.1 | AL185: 91.84 | AM185: 44.65 | AN185: 87.17 | AO185: 113.5 | AP185: 112.19 | AQ185: 117.08 | AR185: 84.83 | AS185: 25.77 | AT185: 110.74 | AU185: 134.02 | AV185: 59.04 | AW185: 92.95 | AX185: 234.51 | AY185: 82.97 | AZ185: 146.17 | BA185: 126.16 | BB185: 105.77 | BC185: 47.53 | BD185: 44.76 | BE185: 67.64 | BF185: 52.43 | BG185: 48.39 | BH185: 74.22 | BI185: 157.31 | BJ185: 58.4 | BK185: 73.78 | BL185: 32.92 | BM185: 188.3 | BN185: 305.52 | BO185: 52.22 | BP185: 155.17 | BQ185: 47.26 | BR185: 88 | BS185: 68.21 | BT185: 143.24 | BU185: 26.86 | BV185: 195.16 | BW185: 163.37 | BX185: 55.58 | BY185: 57.38 | BZ185: 66.6 | CA185: 142.02 | CB185: 124.62 | CC185: 103.61 | CD185: 82.14 | CE185: 82.63 | CF185: 50.85 | CG185: 114.49
A186: 20200228 | B186: 132.98 | C186: 1883.75 | D186: 66.73 | E186: 1032.51 | F186: 75.65 | G186: 1695.66 | H186: 31.6 | I186: 87.31 | J186: 33.46 | K186: 53.27 | L186: 97.5 | M186: 83.03 | N186: 339.46 | O186: 34.64 | P186: 6.96 | Q186: 14.33 | R186: 88.39 | S186: 87.24 | T186: 30.47 | U186: 77.25 | V186: 217.84 | W186: 39.15 | X186: 58.31 | Y186: 39.66 | Z186: 60.34 | AA186: 29.58 | AB186: 106.57 | AC186: 124 | AD186: 194.17 | AE186: 24.56 | AF186: 121.15 | AG186: 15.43 | AH186: 89.38 | AI186: 34.7 | AJ186: 3667.18 | AK186: 368.72 | AL186: 82.53 | AM186: 40.2 | AN186: 74.11 | AO186: 105.51 | AP186: 108.78 | AQ186: 80.41 | AR186: 78.43 | AS186: 23.45 | AT186: 103 | AU186: 133.59 | AV186: 59.8 | AW186: 88.51 | AX186: 212.61 | AY186: 72 | AZ186: 127.86 | BA186: 107.98 | BB186: 89.25 | BC186: 40.37 | BD186: 37.65 | BE186: 61.41 | BF186: 46.95 | BG186: 45.12 | BH186: 69.52 | BI186: 159.42 | BJ186: 53.49 | BK186: 67.57 | BL186: 26.69 | BM186: 172.38 | BN186: 281.14 | BO186: 49 | BP186: 143.99 | BQ186: 41.6 | BR186: 83.3 | BS186: 60.47 | BT186: 131.19 | BU186: 28.13 | BV186: 183.6 | BW186: 146.19 | BX186: 49.61 | BY186: 52.8 | BZ186: 62.41 | CA186: 132.03 | CB186: 113.23 | CC186: 102.99 | CD186: 66.65 | CE186: 67.83 | CF186: 45.76 | CG186: 107.68
A191: 15 ÅRS HISTORISK AVKASTNING FOR DEFINERT UNIVERS
A193: Dato | B193: Advance Auto Parts Inc | C193: Amazon Com Inc | D193: Autoliv Inc | E193: Autozone Inc | F193: Best Buy Inc | G193: Booking Hldgs Inc | H193: Borgwarner Inc | I193: Carmax Inc | J193: Carnival Corp | K193: D R Horton Inc | L193: Darden Restaurants Inc | M193: Dollar Tree Inc | N193: Dominos Pizza Inc | O193: Ebay Inc | P193: Ford Mtr Co Del | Q193: Gap Inc | R193: Garmin Ltd | S193: Genuine Parts Co | T193: Harley Davidson Inc | U193: Hasbro Inc | V193: Home Depot Inc | W193: Kohls Corp | X193: Las Vegas Sands Corp | Y193: Leggett & Platt Inc | Z193: Lennar Corp | AA193: Lkq Corp | AB193: Lowes Cos Inc | AC193: Marriott Intl Inc New | AD193: Mcdonalds Corp | AE193: Mgm Resorts International | AF193: Mohawk Inds Inc | AG193: Newell Brands Inc | AH193: Nike Inc | AI193: Nordstrom Inc | AJ193: Nvr Inc | AK193: O Reilly Automotive Inc New | AL193: Polaris Inc | AM193: Pulte Group Inc | AN193: Pvh Corporation | AO193: Ralph Lauren Corp | AP193: Ross Stores Inc | AQ193: Royal Caribbean Cruises Ltd | AR193: Starbucks Corp | AS193: Tapestry Inc | AT193: Target Corp | AU193: Tiffany & Co New | AV193: Tjx Cos Inc New | AW193: Tractor Supply Co | AX193: Vail Resorts Inc | AY193: V F Corp | AZ193: Whirlpool Corp | BA193: Wynn Resorts Ltd | BB193: Yum Brands Inc | BC193: Altria Group Inc | BD193: Archer Daniels Midland Co | BE193: Brown Forman Corp | BF193: Bunge Limited | BG193: Campbell Soup Co | BH193: Church & Dwight Inc | BI193: Clorox Co Del | BJ193: Coca Cola Co | BK193: Colgate Palmolive Co | BL193: Conagra Brands Inc | BM193: Constellation Brands Inc | BN193: Costco Whsl Corp New | BO193: General Mls Inc | BP193: Hershey Co | BQ193: Hormel Foods Corp | BR193: Ingredion Inc | BS193: Kellogg Co | BT193: Kimberly Clark Corp | BU193: Kroger Co | BV193: Lauder Estee Cos Inc | BW193: Mccormick & Co Inc | BX193: Molson Coors Beverage Co | BY193: Mondelez Intl Inc | BZ193: Monster Beverage Corp New | CA193: Pepsico Inc | CB193: Procter & Gamble Co | CC193: Smucker J M Co | CD193: Sysco Corp | CE193: Tyson Foods Inc | CF193: Walgreens Boots Alliance In | CG193: Walmart Inc
A194: 20050228 | B194: =LN(B6/B5) -> 0.1560713004 | C194: -0.2058256118 | D194: 0.05748818274 | E194: 0.08223809824 | F194: 0.004266735056 | G194: -0.005326244283 | H194: -0.01766299208 | I194: 0.1316284425 | J194: -0.0575261285 | K194: 0.09535588469 | L194: -0.09802025463 | M194: -0.01033597184 | N194: 0.02311213988 | O194: 0.05001640621 | P194: -0.04028430058 | Q194: -0.03138236306 | R194: -0.07061756721 | S194: 0.02219458001 | T194: 0.02902080865 | U194: 0.0746908926 | V194: -0.03051417849 | W194: 0.01812865837 | X194: 0.09865606331 | Y194: -0.02955529348 | Z194: 0.07420919158 | AA194: 0.08366847753 | AB194: 0.03092584714 | AC194: 0.01445662549 | AD194: 0.02107913697 | AE194: 0.03233601363 | AF194: 0.01380106057 | AG194: 0.0351554121 | AH194: 0.003687064898 | AI194: 0.1081338684 | AJ194: 0.001263025113 | AK194: 0.1071083859 | AL194: 0.03336313515 | AM194: 0.1660990749 | AN194: 0.01893030683 | AO194: 0.01148704399 | AP194: -0.02190126395 | AQ194: -0.1148392596 | AR194: -0.04140086574 | AS194: -0.01021239728 | AT194: 0.0009843489327 | AU194: -0.04157792764 | AV194: -0.02507207755 | AW194: 0.1736715905 | AX194: 0.01531803911 | AY194: 0.1172183577 | AZ194: -0.06835475944 | BA194: 0.08771023787 | BB194: 0.05109899238 | BC194: 0.0281142728 | BD194: -0.004140792666 | BE194: 0.05388168778 | BF194: -0.03290184419 | BG194: -0.05683746383 | BH194: 0.02693572587 | BI194: 0.01038013673 | BJ194: 0.03108566824 | BK194: 0.007206554989 | BL194: -0.07677124765 | BM194: 0.03053817201 | BN194: =LN(BN6/BN5) -> -0.01448991898 | BO194: -0.01176930821 | BP194: 0.07427892694 | BQ194: -0.0111733006 | BR194: -0.04850069653 | BS194: -0.01444068415 | BT194: 0.007148888498 | BU194: 0.05073758445 | BV194: -0.02603378626 | BW194: 0.02182098289 | BX194: -0.0703821931 | BY194: -0.01572026686 | BZ194: 0.06781850991 | CA194: 0.002975085869 | CB194: -0.002633560589 | CC194: 0.0524073574 | CD194: -0.01585276029 | CE194: -0.008774551764 | CF194: 0.005149824115 | CG194: -0.01519113917
A195: 20050331 | B195: 0.001388545278 | C195: -0.02620740342 | D195: -0.04693956666 | E195: -0.1228266933 | F195: -0.0001851707967 | G195: 0.1146629083 | H195: -0.08029550424 | I195: -0.04652001563 | J195: -0.04841325838 | K195: -0.1155004508 | L195: 0.1352090923 | M195: 0.06395853623 | N195: 0.09066608466 | O195: -0.1395519332 | P195: -0.1102031401 | Q195: 0.02362861839 | R195: -0.1011417848 | S195: 0.004840392071 | T195: -0.06890053112 | U195: -0.03223757635 | V195: -0.04549724097 | W195: 0.07561389549 | X195: -0.06245301465 | Y195: 0.04280052023 | Z195: -0.07049725367 | AA195: 0.09835417028 | AB195: -0.02917269101 | AC195: 0.04215651807 | AD195: -0.06043570375 | AE195: -0.04621830906 | AF195: -0.06253473554 | AG195: -0.01582669255 | AH195: -0.04276465081 | AI195: 0.02968882153 | AJ195: -0.009193280789 | AK195: -0.02728437696 | AL195: 0.006284837142 | AM195: -0.0579126527 | AN195: -0.04010101396 | AO195: -0.01534556967 | AP195: 0.03990729059 | AQ195: -0.05570289099 | AR195: -0.002899393159 | AS195: 0.01961546487 | AT195: -0.01586705244 | AU195: 0.135353943 | AV195: 0.00856274345 | AW195: 0.02458379835 | AX195: 0.03670506816 | AY195: -0.01042900382 | AZ195: 0.06056002919 | BA195: -0.05499914436 | BB195: 0.06026289247 | BC195: -0.00396822686 | BD195: 0.01972126364 | BE195: 0.07291441444 | BF195: -0.01528715653 | BG195: 0.04655283426 | BH195: 0.002823265568 | BI195: 0.04796497687 | BJ195: -0.02675665715 | BK195: -0.01427372221 | BL195: -0.01104161645 | BM195: -0.01240617416 | BN195: -0.05311372784 | BO195: -0.0634570617 | BP195: -0.04115273704 | BQ195: -0.001284934324 | BR195: -0.07342065856 | BS195: -0.01673007968 | BT195: -0.003796284294 | BU195: -0.1153540813 | BV195: 0.0224829614 | BW195: -0.09839468985 | BX195: 0.1042524664 | BY195: -0.01203019684 | BZ195: 0.3145956709 | CA195: -0.01553029623 | CB195: -0.001696673043 | CC195: 0.02292479241 | CD195: 0.03931010262 | CE195: -0.02017872621 | CF195: 0.03645102684 | CG195: -0.02949486319
A196: 20050429 | B196: 0.05589116265 | C196: -0.0573472437 | D196: -0.07402734832 | E196: -0.03201221781 | F196: -0.07036915084 | G196: 0.006329135052 | H196: -0.06273242919 | I196: -0.1438337129 | J196: -0.05821486596 | K196: 0.04218904873 | L196: -0.02241353203 | M196: -0.1600854502 | N196: -0.02876724829 | O196: -0.1612882235 | P196: -0.2180813638 | Q196: -0.0226914112 | R196: -0.1592731614 | S196: -0.01365920068 | T196: -0.2057234515 | U196: -0.07776331887 | V196: -0.07801808497 | W196: -0.08127013765 | X196: -0.1836557798 | Y196: -0.06879502798 | Z196: -0.09642226304 | AA196: 0.003481724482 | AB196: -0.09127210106 | AC196: -0.06344234761 | AD196: -0.06056441168 | AE196: -0.0143641807 | AF196: -0.08011190738 | AG196: -0.009617660579 | AH196: -0.08123374998 | AI196: -0.08573178628 | AJ196: -0.08872680233 | AK196: 0.03550199315 | AL196: -0.1989476882 | AM196: -0.030054647 | AN196: -0.02894337604 | AO196: -0.1002191162 | AP196: -0.0866994521 | AQ196: -0.06160406753 | AR196: -0.04230715929 | AS196: -0.05498981205 | AT196: -0.0749079722 | AU196: -0.135353943 | AV196: -0.0838053602 | AW196: -0.08183889794 | AX196: 0.02425784048 | AY196: -0.04407514094 | AZ196: -0.08742755421 | BA196: -0.2465176506 | BB196: -0.09828709274 | BC196: -0.006135940809 | BD196: -0.3121170562 | BE196: 0.01360573652 | BF196: 0.05277697418 | BG196: 0.02450769358 | BH196: 0.01538707096 | BI196: 0.004909345516 | BJ196: 0.04159923019 | BK196: -0.04669345638 | BL196: -0.01004289089 | BM196: -0.00303087938 | BN196: -0.08376548799 | BO196: 0.005073577601 | BP196: 0.05533737203 | BQ196: 0.0009638554963 | BR196: -0.1657607174 | BS196: 0.03809120668 | BT196: -0.05118918933 | BU196: -0.01635256565 | BV196: -0.1579001042 | BW196: 0.004636345599 | BX196: -0.222916805 | BY196: -0.01955451988 | BZ196: -0.05612293552 | CA196: 0.04804457591 | CB196: 0.02146605989 | CC196: -0.01361109884 | CD196: -0.03409421134 | CE196: 0.01251133389 | CF196: -0.03109532653 | CG196: -0.06109869146
A197: 20050531 | B197: 0.1052292831 | C197: 0.09289125476 | D197: 0.04765957624 | E197: 0.08673021297 | F197: 0.07811549193 | G197: -0.05720480571 | H197: 0.1563978718 | I197: -0.06629960172 | J197: 0.079035024 | K197: 0.1252595703 | L197: 0.07942707706 | M197: 0.01298711488 | N197: 0.2314787608 | O197: 0.1809540371 | P197: 0.09121037905 | Q197: -0.01652930195 | R197: 0.1158120368 | S197: 0.001397624267 | T197: 0.04185931255 | U197: 0.0644724513 | V197: 0.1066319716 | W197: 0.02264090896 | X197: -0.03229150464 | Y197: -0.01194044037 | Z197: 0.1196161836 | AA197: 0.2089418925 | AB197: 0.09337183936 | AC197: 0.07356147398 | AD197: 0.05412109042 | AE197: 0.08732169507 | AF197: 0.06961813114 | AG197: 0.04762804899 | AH197: 0.06782046205 | AI197: 0.1830426555 | AJ197: 0.05504486194 | AK197: 0.07938297814 | AL197: -0.09258630432 | AM197: 0.067639028 | AN197: 0.1801941022 | AO197: 0.09892962533 | AP197: 0.05355495646 | AQ197: 0.0928841508 | AR197: 0.1011310672 | AS197: 0.08027230244 | AT197: 0.1458980483 | AU197: 0.03198706128 | AV197: 0.01228624494 | AW197: 0.09932543412 | AX197: 0.06110200847 | AY197: -0.002831404999 | AZ197: 0.1031020859 | BA197: -0.1222081881 | BB197: 0.08819966459 | BC197: 0.03254650928 | BD197: 0.09838795917 | BE197: 0.07160795683 | BF197: 0.08824301258 | BG197: 0.04246153743 | BH197: 0.003879195776 | BI197: -0.0803982211 | BJ197: 0.02702560302 | BK197: 0.003608664702 | BL197: -0.02268530102 | BM197: =LN(BM9/BM8) -> 0.05373765794 | BN197: 0.1105647694 | BO197: 0.002022245381 | BP197: 0.004839600422 | BQ197: -0.05004335757 | BR197: 0.003173886137 | BS197: 0.01194176066 | BT197: 0.02965984025 | BU197: 0.06148217486 | BV197: 0.01754883745 | BW197: -0.02192108821 | BX197: -0.05458017332 | BY197: 0.0009250936465 | BZ197: 0.2739145933 | CA197: 0.01108143601 | CB197: 0.01829877225 | CC197: 0.003821788822 | CD197: 0.07137923188 | CE197: 0.08888449825 | CF197: 0.05159515314 | CG197: 0.0019073864
A198: 20050630 | B198: =LN(B10/B9) -> 0.08533696044 | C198: -0.07058322502 | D198: -0.05788115814 | E198: 0.02120529779 | F198: 0.2306479244 | G198: -0.02622823782 | H198: 0.003920475478 | I198: 0.04293491936 | J198: 0.03071437341 | K198: 0.08428371855 | L198: 0.01527680157 | M198: -0.03278974218 | N198: -0.02790878812 | O198: -0.1407756075 | P198: 0.02571852929 | Q198: -0.06136894638 | R198: -0.03674351337 | S198: -0.04450466731 | T198: 0.01155847807 | U198: 0.02978008694 | V198: -0.01150172424 | W198: 0.1382695848 | X198: -0.01416493619 | Y198: -0.002254792387 | Z198: 0.08963684846 | AA198: 0.0897272666 | AB198: 0.01750023004 | AC198: 0.01001766026 | AD198: -0.108814005 | AE198: 0.03837215968 | AF198: -0.01108979543 | AG198: 0.04504299894 | AH198: 0.05214451351 | AI198: 0.1075370444 | AJ198: 0.06503247027 | AK198: 0.0711982612 | AL198: 0.02874246887 | AM198: 0.09715163686 | AN198: 0.05340464894 | AO198: 0.106624233 | AP198: 0.0252202509 | AQ198: 0.04764317953 | AR198: -0.05882390788 | AS198: 0.144958621 | AT198: 0.01313495898 | AU198: 0.05103627453 | AV198: 0.06008575266 | AW198: 0.1001692163 | AX198: 0.02158357167 | AY198: 0.01390249394 | AZ198: 0.01886169228 | BA198: 0.008924836121 | BB198: 0.01528528144 | BC198: -0.03763710473 | BD198: 0.07425189846 | BE198: 0.013990979 | BF198: 0.02168452313 | BG198: -0.008414289126 | BH198: 0.001105583308 | BI198: -0.04714795914 | BJ198: -0.06670682734 | BK198: -0.001201441875 | BL198: -0.1214226147 | BM198: 0.0589945951 | BN198: -0.01442706191 | BO198: -0.0563031647 | BP198: -0.03341297287 | BQ198: -0.00983892585 | BR198: 0.07287847706 | BS198: -0.02335255681 | BT198: -0.02742059006 | BU198: 0.1264251055 | BV198: 0.001022756417 | BW198: -0.03488026475 | BX198: 0.05862058286 | BY198: -0.0196114396 | BZ198: 0.128015778 | CA198: -0.04229689371 | CB198: -0.04449297334 | CC198: -0.05934557666 | CD198: -0.02645007637 | CE198: -0.03640777178 | CF198: 0.01423433647 | CG198: 0.02032973715
A199: 20050729 | B199: 0.06608635135 | C199: 0.3107591579 | D199: 0.01697836183 | E199: 0.0524606854 | F199: 0.1110336577 | G199: 0.06271517103 | H199: 0.08051557173 | I199: 0.09206425571 | J199: -0.04021112095 | K199: 0.08825141258 | L199: 0.05083837796 | M199: 0.0404219145 | N199: 0.1168841592 | O199: 0.2356072186 | P199: 0.04767346947 | Q199: 0.06659337051 | R199: 0.2499619872 | S199: 0.1083009438 | T199: 0.06987957502 | U199: 0.05383935298 | V199: 0.1119965461 | W199: 0.007838985447 | X199: 0.1178141152 | Y199: -0.0497499926 | Z199: 0.05846209612 | AA199: 0.1261376436 | AB199: 0.1287535938 | AC199: 0.00365798428 | AD199: 0.1162202536 | AE199: 0.1382888804 | AF199: 0.06249097179 | AG199: 0.04229741562 | AH199: -0.03286680808 | AI199: 0.0852688956 | AJ199: 0.1467157013 | AK199: 0.07831347417 | AL199: 0.02378886196 | AM199: 0.1054554666 | AN199: 0.03634579365 | AO199: 0.1329513126 | AP199: -0.08704282304 | AQ199: -0.06206020512 | AR199: 0.01708130966 | AS199: 0.04485317919 | AT199: 0.07674319253 | AU199: 0.03803422953 | AV199: -0.03510598698 | AW199: 0.1354135307 | AX199: 0.01097161953 | AY199: 0.03131173084 | AZ199: 0.1317111662 | BA199: 0.1748186903 | BB199: 0.005170815861 | BC199: 0.03495258589 | BD199: 0.0704262061 | BE199: -0.03381021946 | BF199: -0.032216906 | BG199: 0.002596561017 | BH199: 0.03661425938 | BI199: 0.002330376604 | BJ199: 0.04702070682 | BK199: 0.05893781332 | BL199: -0.0196212293 | BM199: -0.07384724995 | BN199: 0.02734459237 | BO199: 0.01295272382 | BP199: 0.02810377863 | BQ199: 0.009501259124 | BR199: 0.0129627573 | BS199: 0.01938779391 | BT199: 0.01852048745 | BU199: 0.04218732583 | BV199: 0.0002555257456 | BW199: 0.06227923893 | BX199: 0.01122706259 | BY199: -0.0404160421 | BZ199: 0.08677527265 | CA199: 0.01106409959 | CB199: 0.05315885173 | CC199: 0.01333212002 | CD199: -0.0035986198 | CE199: 0.04611135196 | CF199: 0.03985610093 | CG199: 0.02357874482
A200: 20050831 | B200: -0.1238008896 | C200: -0.05579135963 | D200: -0.001122901934 | E200: -0.03063696946 | F200: -0.06903948391 | G200: -0.1448675464 | H200: 0.00497300176 | I200: 0.08649789816 | J200: -0.06017148023 | K200: -0.1067679754 | L200: -0.09961335151 | M200: -0.09303186477 | N200: -0.08418128911 | O200: -0.03136263254 | P200: -0.07439450511 | Q200: -0.1047817054 | R200: 0.05338620202 | S200: 0.0006549503563 | T200: -0.07675801606 | U200: -0.05817775458 | V200: -0.07614317297 | W200: -0.07172190564 | X200: -0.1307647467 | Y200: -0.04364328973 | Z200: -0.07996832923 | AA200: 0.0154642257 | AB200: -0.02926739197 | AC200: -0.07993313431 | AD200: 0.04024434937 | AE200: -0.07277180844 | AF200: -0.0281773838 | AG200: -0.0596450053 | AH200: -0.06012504496 | AI200: -0.09725749475 | AJ200: -0.058162304 | AK200: -0.1570998477 | AL200: -0.04853703165 | AM200: -0.0825738582 | AN200: -0.01216812758 | AO200: 0.00627595946 | AP200: -0.06509213347 | AQ200: -0.06194562597 | AR200: -0.06933274166 | AS200: -0.05623736445 | AT200: -0.08894748602 | AU200: 0.09496283233 | AV200: -0.1171983491 | AW200: -0.08846775862 | AX200: 0.0101559269 | AY200: 0.004562803776 | AZ200: -0.05038558471 | BA200: -0.1653439379 | BB200: -0.09975164337 | BC200: 0.05435009768 | BD200: -0.01892245678 | BE200: -0.03163291386 | BF200: -0.04446657113 | BG200: -0.04814207601 | BH200: 0.01611446837 | BI200: 0.03033207317 | BJ200: 0.005469475805 | BK200: -0.008346027201 | BL200: 0.005270108737 | BM200: 0.004369999671 | BN200: -0.05752956871 | BO200: -0.0273755333 | BP200: -0.07778806222 | BQ200: 0.07418033891 | BR200: -0.06656244852 | BS200: 0.0004413062737 | BT200: -0.02284361611 | BU200: -0.005556973128 | BV200: 0.03143726761 | BW200: -0.02533255279 | BX200: 0.02223891036 | BY200: 0.01462253396 | BZ200: 0.07201858879 | CA200: 0.005851177783 | CB200: -0.002700028641 | CC200: 0.003148286786 | CD200: -0.07722729954 | CE200: -0.04723557917 | CF200: -0.03249038305 | CG200: -0.09316456029
A201: 20050930 | B201: -0.04893788557 | C201: 0.05910811225 | D201: -0.02272830486 | E201: -0.1267517056 | F201: -0.09064211611 | G201: -0.1064468819 | H201: -0.03481033686 | I201: -0.01869213301 | J201: 0.01288781431 | K201: -0.01914195718 | L201: -0.03367099462 | M201: -0.05043842101 | N201: 0.01381714555 | O201: 0.01738320361 | P201: -0.01109441536 | Q201: -0.08677229697 | R201: 0.1582871904 | S201: -0.06584885109 | T201: -0.01678647401 | U201: -0.05205636196 | V201: -0.05558402359 | W201: -0.0442437939 | X201: -0.06982307473 | Y201: -0.1810831665 | Z201: -0.03840949943 | AA201: -0.0351369913 | AB201: 0.001398492964 | AC201: -0.003327796088 | AD201: 0.03154644366 | AE201: 0.03510763901 | AF201: -0.06196511932 | AG201: -0.03385740059 | AH201: 0.03450121132 | AI201: 0.02179762297 | AJ201: -5.649877117e-05 | AK201: 0.02188428143 | AL201: -0.0612536161 | AM201: -0.004185079347 | AN201: -0.07661472906 | AO201: 0.01502281633 | AP201: -0.04657755138 | AQ201: 0.0111733006 | AR201: 0.02158865243 | AS201: -0.05671543025 | AT201: -0.03444700915 | AU201: 0.06090753837 | AV201: -0.02077871327 | AW201: -0.1198011998 | AX201: 0.001740644478 | AY201: -0.02285230239 | AZ201: -0.003688582762 | BA201: -0.05536031737 | BB201: 0.02150615151 | BC201: 0.04169288588 | BD201: 0.09122284282 | BE201: 0.05010947411 | BF201: -0.1096841087 | BG201: 0.01183445765 | BH201: -0.03249287181 | BI201: -0.03589811681 | BJ201: -0.01858064695 | BK201: 0.005508609238 | BL201: 0.08075003987 | BM201: =LN(BM13/BM12) -> -0.05681647504 | BN201: -0.007168489479 | BO201: 0.04411232566 | BP201: -0.04818956609 | BQ201: 0.03391200422 | BR201: -0.1102074513 | BS201: 0.01749443262 | BT201: -0.04580204525 | BU201: 0.04215848703 | BV201: -0.1481031452 | BW201: -0.03847784553 | BX201: -0.001561036845 | BY201: -0.01331407893 | BZ201: -0.05315008847 | CA201: 0.0333483753 | CB201: 0.06928122212 | CC201: 0.01703760307 | CD201: -0.06210489603 | CE201: 0.01507145469 | CF201: -0.06417884772 | CG201: -0.02568287142
A202: 20051031 | B202: =LN(B14/B13) -> -0.03098173761 | C202: -0.1279337177 | D202: -0.01249153478 | E202: -0.0286343048 | F202: 0.01663097906 | G202: -0.01828204484 | H202: 0.02673815906 | I202: -0.1516487488 | J202: -0.006221796288 | K202: -0.1656745838 | L202: 0.06532011804 | M202: -0.003701998666 | N202: 0.0254035676 | O202: -0.03935670258 | P202: -0.1698239138 | Q202: -0.008643096156 | R202: -0.1664377601 | S202: 0.03369173946 | T202: 0.02225262792 | U202: -0.04209506917 | V202: 0.07328360069 | W202: -0.04171085762 | X202: 0.04136879122 | Y202: -0.00795232819 | Z202: -0.07251303183 | AA202: 0.003305788134 | AB202: -0.05801738696 | AC202: -0.05514368562 | AD202: -0.05808976621 | AE202: -0.1580804077 | AF202: -0.02779711505 | AG202: 0.01489948685 | AH202: 0.028602686 | AI202: 0.009569451016 | AJ202: -0.2553826472 | AK202: 0.0007094714735 | AL202: -0.09432176834 | AM202: -0.1272934004 | AN202: -0.08648399718 | AO202: -0.02211145361 | AP202: 0.131842203 | AQ202: -0.0415938973 | AR202: 0.1212810135 | AS202: 0.02581194608 | AT202: 0.06990393975 | AU202: -0.009347042916 | AV202: 0.0499985112 | AW202: 0.0605601909 | AX202: 0.1529076716 | AY202: -0.1038857778 | AZ202: 0.03539618885 | BA202: 0.03225383096 | BB202: 0.04956702758 | BC202: 0.0180162091 | BD202: -0.0118296301 | BE202: 0.06186870862 | BF202: -0.01300706938 | BG202: -0.02209095781 | BH202: -0.05251936129 | BI202: -0.02589967858 | BJ202: -0.009538283318 | BK202: 0.003215132793 | BL202: -0.06166050766 | BM202: -0.09939543619 | BN202: 0.1155888352 | BO202: 0.00124403914 | BP202: 0.009192216043 | BQ202: -0.03673819545 | BR202: 0.1659093085 | BS202: -0.04341767196 | BT202: -0.04624001602 | BU202: -0.03408578931 | BV202: -0.04883323142 | BW202: -0.07441448557 | BX202: -0.03675539024 | BY202: -0.07781136464 | BZ202: 0.07052094712 | CA202: 0.04094189564 | CB202: -0.06013071421 | CC202: -0.06007110795 | CD202: 0.01706741809 | CE202: -0.01394722748 | CF202: 0.04456182806 | CG202: 0.07663135548
A203: 20051130 | B203: 0.1213913327 | C203: 0.1953654006 | D203: 0.01845070177 | E203: 0.09609647583 | F203: 0.0861072178 | G203: 0.2360280327 | H203: 0.03407398033 | I203: 0.02026225151 | J203: 0.09261606948 | K203: 0.1439042571 | L203: 0.0986135223 | M203: 0.0624500675 | N203: 0.04416089579 | O203: 0.1233497424 | P203: -0.02310133127 | Q203: 0.005770356461 | R203: -0.04141709872 | S203: -0.001353180179 | T203: 0.08380954078 | U203: 0.08053254359 | V203: 0.01787055527 | W203: -0.04526428683 | X203: 0.195595554 | Y203: 0.1584187187 | Z203: 0.03708706813 | AA203: 0.07285778033 | AB203: 0.1047350115 | AC203: 0.08037814644 | AD203: 0.06878187877 | AE203: 0.01960847139 | AF203: 0.119759869 | AG203: 0.003473733411 | AH203: 0.01476259464 | AI203: 0.06237167305 | AJ203: 0.002549628043 | AK203: 0.07676401621 | AL203: 0.09209932072 | AM203: 0.09677654385 | AN203: 0.174971825 | AO203: 0.08565544458 | AP203: 0.0168687535 | AQ203: 0.1013466795 | AR203: 0.07393115313 | AS203: 0.06758313579 | AT203: -0.03993204528 | AU203: 0.03246227614 | AV203: 0.04005997644 | AW203: 0.1048242894 | AX203: 0.1063749263 | AY203: 0.08085209979 | AZ203: 0.04178967903 | BA203: 0.1800672485 | BB203: -0.04174801772 | BC203: -0.0305760541 | BD203: -0.03337815069 | BE203: 0.08355841284 | BF203: 0.02959244767 | BG203: 0.03743482122 | BH203: -0.0536235093 | BI203: 0.002952031664 | BJ203: -0.002106002884 | BK203: 0.0290306952 | BL203: -0.07911207822 | BM203: 0.003392708937 | BN203: 0.03214271826 | BO203: -0.01524196957 | BP203: -0.04701451124 | BQ203: 0.0309622256 | BR203: -0.06776365189 | BS203: -0.002266546755 | BT203: 0.03695807673 | BU203: -0.02235865497 | BV203: -0.004835307094 | BW203: 0.03024129005 | BX203: 0.07627048521 | BY203: 0.02236299064 | BZ203: 0.4298423551 | CA203: 0.002029084227 | CB203: 0.02120595457 | CC203: -0.007906915783 | CD203: 0.01276679336 | CE203: -0.0560354491 | CF203: 0.005487885576 | CG203: 0.02607845711
A204: 20051230 | B204: 0.02610870912 | C204: -0.02740470631 | D204: 0.0372323176 | E204: 0.02975718704 | F204: -0.1038874902 | G204: -0.07340367914 | H204: 0.01044525786 | I204: 0.009437456615 | J204: -0.01889644963 | K204: 0.008149546298 | L204: 0.08309109102 | M204: 0.04179723489 | N204: -0.03252319171 | O204: -0.036127922 | P204: -0.05174655952 | Q204: 0.01484893074 | R204: 0.1857940446 | S204: -0.00884058801 | T204: -0.04500047333 | U204: -0.01182279781 | V204: -0.03160973115 | W204: 0.05498213442 | X204: -0.05520001853 | Y204: -0.02239542351 | Z204: 0.05629116363 | AA204: 0.0604260569 | AB204: -0.0122261848 | AC204: 0.03587563041 | AD204: -0.003847866225 | AE204: -0.0385177328 | AF204: -0.01143130875 | AG204: 0.03031181908 | AH204: 0.01731695316 | AI204: 0.01400130573 | AJ204: 0.02123527698 | AK204: 0.04996235983 | AL204: 0.01525521355 | AM204: -0.05607098902 | AN204: -0.04496156282 | AO204: 0.04629950286 | AP204: 0.04965559045 | AQ204: -0.01759834243 | AR204: -0.0145553347 | AS204: -0.03217040003 | AT204: 0.02691902955 | AU204: -0.06103932696 | AV204: 0.03593725897 | AW204: -0.01722889058 | AX204: -0.1205041258 | AY204: -0.023395977 | AZ204: 0.02306726275 | BA204: -0.0177091726 | BB204: -0.0399342409 | BC204: 0.02616921267 | BD204: 0.04520778079 | BE204: 0.006658051717 | BF204: 0.05650399415 | BG204: -0.01467182037 | BH204: -0.005735864782 | BI204: 0.0469637438 | BJ204: -0.05736512364 | BK204: 0.006034579893 | BL204: -0.0584177117 | BM204: 0.1048099831 | BN204: -0.009656079855 | BO204: 0.03696858767 | BP204: 0.01881849633 | BQ204: -0.003665245398 | BR204: 0.07111795273 | BS204: -0.01947592778 | BT204: 0.01129579252 | BU204: -0.03025791604 | BV204: 0.01413769976 | BW204: -0.009655691368 | BX204: 0.005988938398 | BY204: -0.02696721954 | BZ204: 0.01482823974 | CA204: -0.002029084227 | CB204: 0.01199284384 | CC204: -0.03022054264 | CD204: -0.04008742527 | CE204: 0.01591545531 | CF204: -0.03157923072 | CG204: -0.03691694383
A205: 20060131 | B205: 0.002527865301 | C205: -0.05067954071 | D205: 0.07566377539 | E205: 0.06334571193 | F205: 0.1528355823 | G205: -0.01217053562 | H205: -0.09509578748 | I205: 0.07681384555 | J205: -0.03250309877 | K205: 0.04353870394 | L205: 0.04476478827 | M205: 0.03529280974 | N205: 0.02891669611 | O205: -0.002780444249 | P205: 0.1056195495 | Q205: 0.02519024883 | R205: -0.06442800225 | S205: -0.03216008794 | T205: 0.03885463035 | U205: 0.04930916675 | V205: 0.001727755582 | W205: -0.09060931206 | X205: 0.2631240467 | Y205: 0.0698055493 | Z205: 0.02492442366 | AA205: 0.2617863968 | AB205: -0.04777807524 | AC205: -0.004939860675 | AD205: 0.03754260183 | AE205: 0.01057923877 | AF205: -0.02255647314 | AG205: -0.005904698725 | AH205: -0.06965972753 | AI205: 0.1093099257 | AJ205: 0.1234648691 | AK205: 0.02498973168 | AL205: 0.08310268558 | AM205: 0.01362625171 | AN205: 0.1089651224 | AO205: 0.008866878452 | AP205: -0.01393750784 | AQ205: -0.09686487196 | AR205: 0.05478602143 | AS205: 0.07537120684 | AT205: -0.004010213176 | AU205: -0.01552867104 | AV205: 0.09440968447 | AW205: -0.03576616563 | AX205: -0.08330263247 | AY205: 0.002526570954 | AZ205: -0.03746485348 | BA205: 0.1633025786 | BB205: 0.05377532385 | BC205: -0.0323706406 | BD205: 0.2448050481 | BE205: 0.02281899229 | BF205: 0.04067359983 | BG205: 0.005360146837 | BH205: 0.1080816058 | BI205: 0.05072185324 | BJ205: 0.02619809519 | BK205: 0.0007289958406 | BL205: 0.02194676492 | BM205: =LN(BM17/BM16) -> 0.01738516954 | BN205: 0.008454156633 | BO205: -0.01450040724 | BP205: -0.07612880835 | BQ205: 0.02567729049 | BR205: 0.1323272355 | BS205: -0.007431525145 | BT205: -0.04333989278 | BU205: -0.0257524961 | BV205: 0.0855417592 | BW205: -0.02323022832 | BX205: -0.06937679778 | BY205: 0.04409674562 | BZ205: 0.1080216538 | CA205: -0.03268827077 | CB205: 0.02305626853 | CC205: -0.01142869582 | CD205: -0.01198783188 | CE205: -0.1767232217 | CF205: -0.02239070008 | CG205: -0.0148533567
... 877 more rows

Sheet Black Litterman jan 15
A1: Black Litterman
B2: Advance Auto Parts Inc | C2: Amazon Com Inc | D2: Autoliv Inc | E2: Autozone Inc | F2: Best Buy Inc | G2: Booking Hldgs Inc | H2: Borgwarner Inc | I2: Carmax Inc | J2: Carnival Corp | K2: D R Horton Inc | L2: Darden Restaurants Inc | M2: Dollar Tree Inc | N2: Dominos Pizza Inc | O2: Ebay Inc | P2: Ford Mtr Co Del | Q2: Gap Inc | R2: Garmin Ltd | S2: Genuine Parts Co | T2: Harley Davidson Inc | U2: Hasbro Inc | V2: Home Depot Inc | W2: Kohls Corp | X2: Las Vegas Sands Corp | Y2: Leggett & Platt Inc | Z2: Lennar Corp | AA2: Lkq Corp | AB2: Lowes Cos Inc | AC2: Marriott Intl Inc New | AD2: Mcdonalds Corp | AE2: Mgm Resorts International | AF2: Mohawk Inds Inc | AG2: Newell Brands Inc | AH2: Nike Inc | AI2: Nordstrom Inc | AJ2: Nvr Inc | AK2: O Reilly Automotive Inc New | AL2: Polaris Inc | AM2: Pulte Group Inc | AN2: Pvh Corporation | AO2: Ralph Lauren Corp | AP2: Ross Stores Inc | AQ2: Royal Caribbean Cruises Ltd | AR2: Starbucks Corp | AS2: Tapestry Inc | AT2: Target Corp | AU2: Tiffany & Co New | AV2: Tjx Cos Inc New | AW2: Tractor Supply Co | AX2: Vail Resorts Inc | AY2: V F Corp | AZ2: Whirlpool Corp | BA2: Wynn Resorts Ltd | BB2: Yum Brands Inc | BC2: Altria Group Inc | BD2: Archer Daniels Midland Co | BE2: Brown Forman Corp | BF2: Bunge Limited | BG2: Campbell Soup Co | BH2: Church & Dwight Inc | BI2: Clorox Co Del | BJ2: Coca Cola Co | BK2: Colgate Palmolive Co | BL2: Conagra Brands Inc | BM2: Constellation Brands Inc | BN2: Costco Whsl Corp New | BO2: General Mls Inc | BP2: Hershey Co | BQ2: Hormel Foods Corp | BR2: Ingredion Inc | BS2: Kellogg Co | BT2: Kimberly Clark Corp | BU2: Kroger Co | BV2: Lauder Estee Cos Inc | BW2: Mccormick & Co Inc | BX2: Molson Coors Beverage Co | BY2: Mondelez Intl Inc | BZ2: Monster Beverage Corp New | CA2: Pepsico Inc | CB2: Procter & Gamble Co | CC2: Smucker J M Co | CD2: Sysco Corp | CE2: Tyson Foods Inc | CF2: Walgreens Boots Alliance In | CG2: Walmart Inc
A3: Markedsverdi | B3: =Input!B688:CH688 -> 11639.22672 | C3: 144312.75 | D3: 9412.844 | E3: 19703.79486 | F3: 13658.86486 | G3: 59214.60917 | H3: 12442.33306 | I3: 14042.93915 | J3: 35221.41 | K3: 9239.465721 | L3: 7272.815104 | M3: 14477.166 | N3: 5231.440041 | O3: 68690.88 | P3: 62139.5 | Q3: 17854.64 | R3: 10133.58645 | S3: 16317.25689 | T3: 13964.80074 | U3: 6847.693098 | V3: 138350.46 | W3: 12391.12 | X3: 46426.69528 | Y3: 5871.658 | Z3: 9187.813049 | AA3: 8533.088659 | AB3: 67011.2 | AC3: 21840.597 | AD3: 90223.73 | AE3: 10503.82546 | AF3: 11327.76368 | AG3: 10253.828 | AH3: 83073.6 | AI3: 15092.039 | AJ3: 5163.939978 | AK3: 19570.75734 | AL3: 10028.27068 | AM3: 7928.580054 | AN3: 10567.03679 | AO3: 16164.468 | AP3: 19778.76432 | AQ3: 18076.67941 | AR3: 61570.32 | AS3: 10355.292 | AT3: 48155.65956 | AU3: 13822.76844 | AV3: 47244.78539 | AW3: 10749.62924 | AX3: 3309.445184 | AY3: 32421.20584 | AZ3: 15111.72 | BA3: 15090.10982 | BB3: 31616.9 | BC3: 97134.54975 | BD3: 33124 | BE3: 18570.60576 | BF3: 13245.87773 | BG3: 13772 | BH3: 10509.44007 | BI3: 13648.24312 | BJ3: 184332.52 | BK3: 62735.41331 | BL3: 15452.26702 | BM3: 18985.3862 | BN3: 62440.73325 | BO3: 31822.011 | BP3: 22973.20248 | BQ3: 13734.24777 | BR3: 6050.981387 | BS3: 23296.82035 | BT3: 42210.92144 | BU3: 31206.06 | BV3: 28867.6083 | BW3: 9540.12 | BX3: 13823.46 | BY3: 60431.75929 | BZ3: 18172.68038 | CA3: 140705.28 | CB3: 245989.4444 | CC3: 10283.04979 | CD3: 23459.37878 | CE3: 14736.38782 | CF3: 72057.94311 | CG3: 277134.76 | CH3: 3109078.919
A4: Markedsandel | B4: =B3/$B$5 -> 0.003743625371 | C4: =C3/$B$5 -> 0.04641656059 | D4: 0.0030275346 | E4: 0.00633750232 | F4: 0.004393219091 | G4: 0.01904570798 | H4: 0.004001935424 | I4: 0.004516752233 | J4: 0.01132856737 | K4: 0.002971769441 | L4: 0.002339218558 | M4: 0.004656416379 | N4: 0.001682633403 | O4: 0.0220936431 | P4: 0.01998646597 | Q4: 0.005742742615 | R4: 0.003259353241 | S4: 0.005248260759 | T4: 0.004491619901 | U4: 0.002202482883 | V4: 0.04449885758 | W4: 0.003985463324 | X4: 0.0149326204 | Y4: 0.001888552254 | Z4: 0.002955155945 | AA4: 0.002744571264 | AB4: 0.02155339306 | AC4: 0.007024780513 | AD4: 0.02901944028 | AE4: 0.003378436423 | AF4: 0.003643446814 | AG4: 0.003298027573 | AH4: 0.02671968199 | AI4: 0.004854183311 | AJ4: 0.001660922773 | AK4: 0.006294712309 | AL4: 0.003225479617 | AM4: 0.002550137922 | AN4: 0.00339876763 | AO4: 0.005199117946 | AP4: 0.006361615397 | AQ4: 0.005814159074 | AR4: 0.01980339567 | AS4: 0.003330662319 | AT4: 0.01548872217 | AU4: 0.00444593682 | AV4: 0.01519574981 | AW4: 0.003457496423 | AX4: 0.001064445539 | AY4: 0.01042791344 | AZ4: 0.004860513482 | BA4: 0.004853562813 | BB4: 0.01016921758 | BC4: 0.03124222713 | BD4: 0.01065395922 | BE4: 0.005973024888 | BF4: 0.004260386461 | BG4: 0.004429607727 | BH4: 0.003380242298 | BI4: 0.004389802729 | BJ4: 0.05928846608 | BK4: 0.02017813473 | BL4: 0.004970046571 | BM4: 0.006106434315 | BN4: 0.02008335423 | BO4: =BO3/$B$5 -> 0.01023518921 | BP4: 0.007389070232 | BQ4: 0.00441746515 | BR4: 0.001946229589 | BS4: 0.007493158251 | BT4: 0.01357666452 | BU4: 0.01003707555 | BV4: 0.009284939064 | BW4: 0.003068471483 | BX4: 0.004446159252 | BY4: 0.01943719052 | BZ4: 0.005845036698 | CA4: 0.04525625875 | CB4: 0.07911971708 | CC4: 0.00330742643 | CD4: 0.007545443327 | CE4: 0.004739792139 | CF4: 0.02317662079 | CG4: 0.08913725488
A5: Total Markedsverdi | B5: =SUM(B3:CG3) -> 3109078.919
A6: Pris | B6: =Input!B124:CH124 -> 159.28 | C6: 310.35 | D6: 76.44463 | E6: 619.11 | F6: 38.98 | G6: 1140.21 | H6: 54.95 | I6: 66.58 | J6: 45.33 | K6: 25.29 | L6: 52.49883 | M6: 70.38 | N6: 94.17 | O6: 23.619673 | P6: 15.5 | Q6: 42.11 | R6: 52.83 | S6: 106.57 | T6: 65.91 | U6: 54.99 | V6: 104.97 | W6: 61.04 | X6: 58.16 | Y6: 42.61 | Z6: 44.04618 | AA6: 28.12 | AB6: 68.8 | AC6: 78.03 | AD6: 93.7 | AE6: 21.38 | AF6: 155.36 | AG6: 38.09 | AH6: 48.075 | AI6: 79.39 | AJ6: 1275.33 | AK6: 192.62 | AL6: 151.24 | AM6: 21.46 | AN6: 128.17 | AO6: 185.16 | AP6: 47.13 | AQ6: 82.43 | AR6: 41.025 | AS6: 37.56 | AT6: 75.91 | AU6: 106.86 | AV6: 34.29 | AW6: 78.82 | AX6: 91.13 | AY6: 70.49942 | AZ6: 193.74 | BA6: 148.76 | BB6: 52.3831 | BC6: 49.27 | BD6: 52 | BE6: 35.135998 | BF6: 90.91 | BG6: 44 | BH6: 39.405 | BI6: 104.21 | BJ6: 42.22 | BK6: 69.19 | BL6: 28.231258 | BM6: 98.17 | BN6: 141.75 | BO6: 53.33 | BP6: 103.93 | BQ6: 26.05 | BR6: 84.84 | BS6: 65.44 | BT6: 115.54 | BU6: 32.105 | BV6: 76.2 | BW6: 74.3 | BX6: 74.52 | BY6: 36.325 | BZ6: 36.11667 | CA6: 94.56 | CB6: 91.09 | CC6: 100.98 | CD6: 39.69 | CE6: 40.09 | CF6: 76.2 | CG6: 85.88 | CH6: 0
A7: Kursmål | B7: =Input!B1343:CG1343 -> 161.1579 | C7: 355.6757 | D7: 71.12119 | E7: 630.35 | F7: 41.45 | G7: 1347.037 | H7: 64.76471 | I7: 66.13333 | J7: 47.4458 | K7: 25.441177 | L7: 55.869564 | M7: 70.40952 | N7: 89.21429 | O7: 58.027027 | P7: 17.194445 | Q7: 42.37613 | R7: 58.615383 | S7: 95.5 | T7: 73.4 | U7: 62.25 | V7: 105.19592 | W7: 60.47619 | X7: 71 | Y7: 38.333332 | Z7: 46.01772 | AA7: 36.166668 | AB7: 68.84 | AC7: 76.666664 | AD7: 95.635 | AE7: 28.578947 | AF7: 161.16667 | AG7: 40 | AH7: 51.208332 | AI7: 74.181816 | AJ7: 1140.75 | AK7: 187.3 | AL7: 169.9375 | AM7: 22.368422 | AN7: 145.10527 | AO7: 187.25 | AP7: 43.8125 | AQ7: 81.054245 | AR7: 45.404762 | AS7: 36.411 | AT7: 70.32455 | AU7: 111.008 | AV7: 33.645832 | AW7: 77.2056 | AX7: 100.57143 | AY7: 69.12514 | AZ7: 210.66667 | BA7: 211.55556 | BB7: 78.63158 | BC7: 48.3 | BD7: 53.923077 | BE7: 38.925 | BF7: 90.442856 | BG7: 41.333332 | BH7: 38.63889 | BI7: 92.85714 | BJ7: 44.095238 | BK7: 69.47369 | BL7: 34.272728 | BM7: 99.6875 | BN7: 145.84459 | BO7: 51.866665 | BP7: 102.5 | BQ7: 26.944445 | BR7: 78.85714 | BS7: 62.8 | BT7: 112.41123 | BU7: 32.105263 | BV7: 81.9 | BW7: 72.57143 | BX7: 81 | BY7: 41.375 | BZ7: 37.733234 | CA7: 100.52273 | CB7: 91.8 | CC7: 104.181816 | CD7: 37 | CE7: 48.666668 | CF7: 75.31579 | CG7: 82.68609
A8: Differanse fra kursmål | B8: =(B7-B6)/B6 -> 0.01178992968 | C8: =(C7-C6)/C6 -> 0.1460470437 | D8: =(D7-D6)/D6 -> -0.06963785422 | E8: 0.0181550936 | F8: 0.06336582863 | G8: 0.1813937783 | H8: 0.178611647 | I8: -0.006708771403 | J8: 0.04667549084 | K8: 0.005977738236 | L8: 0.06420588802 | M8: 0.0004194373402 | N8: -0.05262514601 | O8: 1.456724401 | P8: 0.1093190323 | Q8: 0.006319876514 | R8: 0.1095094265 | S8: -0.1038753871 | T8: 0.1136398119 | U8: 0.1320240044 | V8: 0.002152233972 | W8: -0.009236730013 | X8: 0.2207702889 | Y8: -0.1003677071 | Z8: 0.04476074883 | AA8: 0.286154623 | AB8: 0.0005813953488 | AC8: -0.01747194669 | AD8: 0.02065101387 | AE8: 0.3367140786 | AF8: 0.0373755793 | AG8: 0.05014439485 | AH8: 0.06517591264 | AI8: -0.06560251921 | AJ8: -0.1055256287 | AK8: -0.02761914651 | AL8: 0.1236280085 | AM8: 0.04233094129 | AN8: 0.13213131 | AO8: 0.0112875351 | AP8: -0.07039040951 | AQ8: -0.01668997938 | AR8: 0.1067583668 | AS8: -0.03059105431 | AT8: -0.07357989725 | AU8: 0.03881714393 | AV8: -0.0187858851 | AW8: -0.02048211114 | AX8: 0.1036039723 | AY8: -0.01949349371 | AZ8: 0.08736796738 | BA8: 0.4221266469 | BB8: 0.5010868009 | BC8: -0.01968743657 | BD8: 0.03698225 | BE8: 0.1078381778 | BF8: -0.005138532615 | BG8: -0.06060609091 | BH8: -0.01944194899 | BI8: -0.1089421361 | BJ8: 0.04441586926 | BK8: 0.004100158983 | BL8: 0.2139993195 | BM8: 0.01545787919 | BN8: 0.02888599647 | BO8: =(BO7-BO6)/BO6 -> -0.0274392462 | BP8: -0.01375926104 | BQ8: 0.03433570058 | BR8: -0.0705193305 | BS8: -0.04034229829 | BT8: -0.02707953955 | BU8: 8.191870425e-06 | BV8: 0.07480314961 | BW8: -0.02326473755 | BX8: 0.08695652174 | BY8: 0.1390227116 | BZ8: 0.04475949748 | CA8: 0.06305763536 | CB8: 0.007794488967 | CC8: 0.03170742721 | CD8: -0.06777525825 | CE8: 0.2139353455 | CF8: -0.01160380577 | CG8: -0.03719038193
A9: Poeng (mening) | B9: =IF(AND(B8>=0%,B8<=5.999%),0%,IF(AND(B8>=6%,B8<=10.9999%),0.25%,IF(AND(B8>=11%,B8<=19.9999%),0.5%,IF(AND(B8>=-5.9999%,B8<=0%),0%,IF(AND(B8>=-10.9999%,B8<=-6%),-0.5%,IF(AND(B8>=19.9999%,B8<=11%),-1%,IF(AND(B8>=-100%,B8<-20%),-1.5%,IF(AND(B8>=20%,B8<300%),0.75%,0)))))))) -> 0 | C9: =IF(AND(C8>=0%,C8<=5.999%),0%,IF(AND(C8>=6%,C8<=10.9999%),0.25%,IF(AND(C8>=11%,C8<=19.9999%),0.5%,IF(AND(C8>=-5.9999%,C8<=0%),0%,IF(AND(C8>=-10.9999%,C8<=-6%),-0.5%,IF(AND(C8>=19.9999%,C8<=11%),-1%,IF(AND(C8>=-100%,C8<-20%),-1.5%,IF(AND(C8>=20%,C8<300%),0.75%,0)))))))) -> 0.005 | D9: -0.005 | E9: 0 | F9: 0.0025 | G9: 0.005 | H9: 0.005 | I9: 0 | J9: 0 | K9: 0 | L9: 0.0025 | M9: 0 | N9: 0 | O9: 0.0075 | P9: 0.0025 | Q9: 0 | R9: 0.0025 | S9: -0.005 | T9: 0.005 | U9: 0.005 | V9: 0 | W9: 0 | X9: 0.0075 | Y9: -0.005 | Z9: 0 | AA9: 0.0075 | AB9: 0 | AC9: 0 | AD9: 0 | AE9: 0.0075 | AF9: 0 | AG9: 0 | AH9: 0.0025 | AI9: -0.005 | AJ9: -0.005 | AK9: 0 | AL9: 0.005 | AM9: 0 | AN9: 0.005 | AO9: 0 | AP9: -0.005 | AQ9: 0 | AR9: 0.0025 | AS9: 0 | AT9: -0.005 | AU9: 0 | AV9: 0 | AW9: 0 | AX9: 0.0025 | AY9: 0 | AZ9: 0.0025 | BA9: 0.0075 | BB9: 0.0075 | BC9: 0 | BD9: 0 | BE9: 0.0025 | BF9: 0 | BG9: -0.005 | BH9: 0 | BI9: -0.005 | BJ9: 0 | BK9: 0 | BL9: 0.0075 | BM9: 0 | BN9: 0 | BO9: =IF(AND(BO8>=0%,BO8<=5.999%),0%,IF(AND(BO8>=6%,BO8<=10.9999%),0.25%,IF(AND(BO8>=11%,BO8<=19.9999%),0.5%,IF(AND(BO8>=-5.9999%,BO8<=0%),0%,IF(AND(BO8>=-10.9999%,BO8<=-6%),-0.5%,IF(AND(BO8>=19.9999%,BO8<=11%),-1%,IF(AND(BO8>=-100%,BO8<-20%),-1.5%,IF(AND(BO8>=20%,BO8<300%),0.75%,0)))))))) -> 0 | BP9: 0 | BQ9: 0 | BR9: -0.005 | BS9: 0 | BT9: 0 | BU9: 0 | BV9: 0.0025 | BW9: 0 | BX9: 0.0025 | BY9: 0.005 | BZ9: 0 | CA9: 0.0025 | CB9: 0 | CC9: 0 | CD9: -0.005 | CE9: 0.0075 | CF9: 0 | CG9: 0
A10: Gj. analytikeranbefaling | B10: =Input!B1413:CG1413 -> 1.48 | C10: 1.46 | D10: 1.84 | E10: 1.75 | F10: 1.43 | G10: 1.21 | H10: 1.25 | I10: 1.64 | J10: 1.69 | K10: 1.52 | L10: 1.75 | M10: 1.44 | N10: 1.71 | O10: 1.69 | P10: 1.62 | Q10: 1.77 | R10: 1.83 | S10: 1.86 | T10: 1.43 | U10: 1.58 | V10: 1.47 | W10: 1.68 | X10: 1.33 | Y10: 2.07 | Z10: 1.54 | AA10: 1.18 | AB10: 1.53 | AC10: 1.63 | AD10: 1.84 | AE10: 1.27 | AF10: 1.21 | AG10: 1.16 | AH10: 1.38 | AI10: 1.76 | AJ10: 2.09 | AK10: 1.48 | AL10: 1.09 | AM10: 1.66 | AN10: 1.3 | AO10: 1.43 | AP10: 1.53 | AQ10: 1.35 | AR10: 1.17 | AS10: 1.93 | AT10: 1.79 | AU10: 1.55 | AV10: 1.43 | AW10: 1.55 | AX10: 1.4 | AY10: 1.35 | AZ10: 1.44 | BA10: 1.43 | BB10: 1.79 | BC10: 1.65 | BD10: 1.47 | BE10: 1.72 | BF10: 1.66 | BG10: 2.21 | BH10: 1.63 | BI10: 2.34 | BJ10: 1.62 | BK10: 1.81 | BL10: 1.89 | BM10: 1.59 | BN10: 1.4 | BO10: 2 | BP10: 1.71 | BQ10: 1.75 | BR10: 1.72 | BS10: 2.16 | BT10: 1.97 | BU10: 1.39 | BV10: 1.44 | BW10: 1.83 | BX10: 1.45 | BY10: 1.45 | BZ10: 1.47 | CA10: 1.46 | CB10: 1.63 | CC10: 1.75 | CD10: 2.19 | CE10: 1.19 | CF10: 1.58 | CG10: 1.8
A11: Gj. analytikeranbefaling total | B11: =AVERAGE(B10:CG10) -> 1.603452381
A12: Gj. vektet avkastning per måned | B12: ='Black Litterman jan 15'!$B$4:$CG$4*Input!B948:CG948 -> 5.387692931e-05 | C12: 0.0007689536484 | D12: 2.063904428e-05 | E12: 0.0001031490569 | F12: 3.079913347e-06 | G12: 0.0006276217623 | H12: 4.740078213e-05 | I12: 5.794622262e-05 | J12: -2.280502517e-05 | K12: -4.127341746e-06 | L12: 1.346179844e-05 | M12: 8.014522437e-05 | N12: 2.447441559e-05 | O12: 5.941824077e-05 | P12: 2.735937386e-05 | Q12: 3.130944947e-05 | R12: 1.788243352e-05 | S12: 4.072059332e-05 | T12: 3.476814176e-06 | U12: 1.909352371e-05 | V12: 0.0003491780808 | W12: 8.746887713e-06 | X12: 3.673404442e-05 | Y12: 6.382749262e-06 | Z12: -5.743387861e-06 | AA12: 5.993588024e-05 | AB12: 0.0001596536097 | AC12: 5.75145968e-05 | AD12: 0.0002590408036 | AE12: -1.471807754e-05 | AF12: 1.722613891e-05 | AG12: 1.582413155e-05 | AH12: 0.0003346825764 | AI12: 4.858767327e-05 | AJ12: 6.66248149e-06 | AK12: 0.0001127288807 | AL12: 4.065425847e-05 | AM12: -9.247533249e-06 | AN12: 4.426317776e-05 | AO12: 6.811026014e-05 | AP12: 0.0001007753828 | AQ12: 2.157871566e-05 | AR12: 0.0001849690328 | AS12: 8.171346799e-06 | AT12: 5.235484839e-05 | AU12: 4.572054656e-05 | AV12: 0.0002171681534 | AW12: 6.320864911e-05 | AX12: 1.194579829e-05 | AY12: 0.0001515403789 | AZ12: 4.260885864e-05 | BA12: 3.341896265e-05 | BB12: 9.78747366e-05 | BC12: 0.0003162138957 | BD12: 6.84799868e-05 | BE12: 6.164484498e-05 | BF12: 1.700293936e-05 | BG12: 1.510979237e-05 | BH12: 4.321196073e-05 | BI12: 2.072345538e-05 | BJ12: 0.0003540312545 | BK12: 0.0001642108033 | BL12: 8.640210434e-06 | BM12: 6.825576142e-05 | BN12: 0.0001853388291 | BO12: 6.016768781e-05 | BP12: 3.569490912e-05 | BQ12: 4.440942988e-05 | BR12: 1.735470794e-05 | BS12: 2.408536399e-05 | BT12: 6.957602153e-05 | BU12: 0.0001115954531 | BV12: 9.493576107e-05 | BW12: 1.785925097e-05 | BX12: 2.585774952e-05 | BY12: 8.019038085e-05 | BZ12: 0.0001840364031 | CA12: 0.000215184593 | CB12: 0.0003571862165 | CC12: 2.146351742e-05 | CD12: 8.027889825e-06 | CE12: 3.377453407e-05 | CF12: 0.0001132095143 | CG12: 0.0003700652098
A17: Forventet avkastning | B17: =SUM(_xlfn.ANCHORARRAY(B12)) -> 0.007808167831
A18: Risikofri rente | B18: =Input!C1482/12 -> 1.666666667e-05
A19: Normaliseringsfaktor | B19: =(B17-B18)/MMULT(MMULT(B4:CG4,B116:CG199),TRANSPOSE(B4:CG4)) -> 4.545775166
A20: Usikkerhetsfaktor | B20: =(B11-1)/2+0.5 -> 0.8017261905
B22: Marked | D22: Black Litterman | I22: Faktisk avkastning portefølje | O22: Resultat
N23: Forventet | R23: Faktisk
B24: E(r) | C24: Vekt | D24: Mening | E24: E(r) | F24: Optimal vekt | G24: Justert for usikkerhet | H24: Uten shorting | I24: Faktisk avkastning | J24: Marked | K24: BL | L24: BL u/short | O24: Marked | P24: BL | Q24: BL u/short | R24: Marked | S24: BL | T24: BL u/short
A25: Advance Auto Parts Inc | B25: =B19*MMULT(B116:CG199,TRANSPOSE(B4:CG4))+B18 -> 0.006296591859 | C25: =MMULT(MINVERSE(B116:CG199),B25:B108-B18)/SUM(MMULT(MINVERSE(B116:CG199),B25:B108-B18)) -> 0.003743625371 | D25: =TRANSPOSE(B9:CG9) -> 0 | E25: =B25:B108+MMULT(B4:CG4,D25:D108) -> 0.007401067075 | F25: =MMULT(MINVERSE(B116:CG199),_xlfn.ANCHORARRAY(E25)-B18)/SUM(MMULT(MINVERSE(B116:CG199),_xlfn.ANCHORARRAY(E25)-B18)) -> -0.04395724122 | G25: =B20*F25:F108+(1-B20)*C25:C108 -> -0.03449940868 | H25: 0 | I25: =TRANSPOSE(Input!B313:CG313) -> -0.001759457536 | J25: =I25*C25 -> -6.58674987e-06 | K25: =I25*G25 -> 6.070024458e-05 | L25: =H25*I25 -> 0 | N25: Avkastning | O25: =MMULT(TRANSPOSE(_xlfn.ANCHORARRAY(C25)),_xlfn.ANCHORARRAY(B25)) -> 0.007808167831 | P25: =MMULT(TRANSPOSE(_xlfn.ANCHORARRAY(G25)),_xlfn.ANCHORARRAY(E25)) -> 0.005235401903 | Q25: =MMULT(TRANSPOSE(H25:H108),_xlfn.ANCHORARRAY(E25)) -> 0.006986042297 | R25: =J109 -> -0.01821683324 | S25: =K109 -> -0.04410678732 | T25: -0.01375504628
A26: Amazon Com Inc | B26: 0.01182354206 | C26: 0.04641656059 | D26: 0.005 | E26: 0.01292801728 | F26: -0.04623009258 | G26: -0.02786068772 | H26: 0.01905381913 | I26: 0.1330922758 | J26: =I26*C26 -> 0.006177685682 | K26: =I26*G26 -> -0.003708042333 | L26: =H26*I26 -> 0.00253591615 | N26: Varians | O26: =MMULT(MMULT(TRANSPOSE(_xlfn.ANCHORARRAY($C$25)),B116:CG199),_xlfn.ANCHORARRAY($C$25)) -> 0.001714009356 | P26: =MMULT(MMULT(TRANSPOSE(_xlfn.ANCHORARRAY($G$25)),B116:CG199),_xlfn.ANCHORARRAY($G$25)) -> 0.0005110389659 | Q26: =MMULT(MMULT(TRANSPOSE(H25:H108),B116:CG199),H25:H108) -> 0.001004790591 | R26: =MMULT(MMULT(TRANSPOSE(_xlfn.ANCHORARRAY($C$25)),_xlfn.ANCHORARRAY(B298)),_xlfn.ANCHORARRAY($C$25)) -> 0.001705156411 | S26: =MMULT(MMULT(TRANSPOSE(_xlfn.ANCHORARRAY($G$25)),_xlfn.ANCHORARRAY(B298)),_xlfn.ANCHORARRAY($G$25)) -> 0.0005287339701 | T26: =MMULT(MMULT(TRANSPOSE(H25:H108),_xlfn.ANCHORARRAY(B298)),H25:H108) -> 0.001000102103
A27: Autoliv Inc | B27: 0.01410737833 | C27: 0.0030275346 | D27: -0.005 | E27: 0.01521185355 | F27: -0.1611195952 | G27: -0.1285735184 | H27: 0 | I27: -0.0005655364202 | J27: -1.71218108e-06 | K27: 7.271300734e-05 | L27: 0 | N27: Sharpe Ratio | O27: =(O25-$B$18)/SQRT(O26) -> 0.1881978015 | P27: =(P25-$B$18)/SQRT(P26) -> 0.2308544531 | Q27: =(Q25-$B$18)/SQRT(Q26) -> 0.2198649962 | R27: =(R25-$B$18)/SQRT(R26) -> -0.4415581735 | S27: =(S25-$B$18)/SQRT(S26) -> -1.918893602 | T27: -0.4354775706
A28: Autozone Inc | B28: 0.004458736997 | C28: 0.00633750232 | D28: 0 | E28: 0.005563212212 | F28: 0.1121318939 | G28: 0.09115563688 | H28: 0.03542472016 | I28: -0.0364328534 | J28: -0.000230893293 | K28: -0.003321059955 | L28: -0.001290623636 | N28: Beta | O28: 1 | P28: =SUMPRODUCT(TRANSPOSE(_xlfn.ANCHORARRAY(G25)),Input!$B$1086:$CG$1086) -> 0.567682662 | Q28: =SUMPRODUCT(TRANSPOSE(H25:H108),Input!$B$1086:$CG$1086) -> 0.8741739201 | R28: 1 | S28: =SUMPRODUCT(TRANSPOSE(_xlfn.ANCHORARRAY(G25)),Input!$B$1087:$CG$1087) -> 0.5993439524 | T28: =SUMPRODUCT((TRANSPOSE(H25:H108)),Input!$B$1087:$CG$1087) -> 0.8769411207
A29: Best Buy Inc | B29: 0.01417229844 | C29: 0.004393219091 | D29: 0.0025 | E29: 0.01527677366 | F29: -0.05080206604 | G29: -0.03985828659 | H29: 0 | I29: -0.1020026115 | J29: -0.0004481198201 | K29: 0.004065649321 | L29: 0 | N29: Treynor Ratio | O29: =(O25-$B$18)/O28 -> 0.007791501164 | P29: =(P25-$B$18)/P28 -> 0.009193050248 | Q29: =(Q25-$B$18)/Q28 -> 0.007972527514 | R29: =(R25-$B$18)/R28 -> -0.01823349991 | S29: =(S25-$B$18)/S28 -> -0.07361958656 | T29: -0.0157042618
A30: Booking Hldgs Inc | B30: 0.01013461749 | C30: 0.01904570798 | D30: 0.005 | E30: 0.01123909271 | F30: 0.01600210516 | G30: 0.01660557189 | H30: 0.01217208908 | I30: -0.1217771092 | J30: -0.00231933126 | K30: -0.002022178541 | L30: -0.00148228182
A31: Borgwarner Inc | B31: 0.01163127118 | C31: 0.004001935424 | D31: 0.005 | E31: 0.01273574639 | F31: 0.04887856133 | G31: 0.03998070176 | H31: 0.0143769172 | I31: -0.01725446624 | J31: -6.905125969e-05 | K31: -0.0006898456689 | L31: -0.0002480660325
A32: Carmax Inc | B32: 0.01145525603 | C32: 0.004516752233 | D32: 0 | E32: 0.01255973125 | F32: 0.03313758358 | G32: 0.02746282232 | H32: 8.648504556e-05 | I32: -0.06965824321 | J32: -0.0003146290256 | K32: -0.001913011956 | L32: -6.024396337e-06
A33: Carnival Corp | B33: 0.01257486581 | C33: 0.01132856737 | D33: 0 | E33: 0.01367934103 | F33: 0.01582487266 | G33: 0.01493337308 | H33: 0 | I33: -0.03068893542 | J33: -0.0003476616725 | K33: -0.0004582893221 | L33: 0
A34: D R Horton Inc | B34: 0.01305628987 | C34: 0.002971769441 | D34: 0 | E34: 0.01416076509 | F34: -0.03234936447 | G34: -0.02534610869 | H34: 0.0001502227895 | I34: -0.03091994961 | J34: -9.188696139e-05 | K34: 0.0007837004037 | L34: -4.644881083e-06
A35: Darden Restaurants Inc | B35: 0.008687924728 | C35: 0.002339218558 | D35: 0.0025 | E35: 0.009792399943 | F35: 0.05878564152 | G35: 0.0475937942 | H35: 0.009849169688 | I35: 0.04583750783 | J35: 0.000107223949 | K35: 0.002181580915 | L35: 0.0004514613927
A36: Dollar Tree Inc | B36: 0.004187249541 | C36: 0.004656416379 | D36: 0 | E36: 0.005291724756 | F36: -0.04036718082 | G36: -0.03144018068 | H36: 0.001592768327 | I36: 0.01017820492 | J36: 4.739396008e-05 | K36: -0.0003200046016 | L36: 1.621152241e-05
A37: Dominos Pizza Inc | B37: 0.0131380531 | C37: 0.001682633403 | D37: 0 | E37: 0.01424252831 | F37: -0.05236484753 | G37: -0.04164864759 | H37: 6.125107924e-05 | I37: 0.05052311362 | J37: 8.501187861e-05 | K37: -0.002104219354 | L37: 3.094595236e-06
A38: Ebay Inc | B38: 0.01328401211 | C38: 0.0220936431 | D38: 0.0075 | E38: 0.01438848733 | F38: 0.008077693103 | G38: 0.0108566889 | H38: 0.009675811255 | I38: -0.05720032644 | J38: -0.001263763598 | K38: -0.0006210061493 | L38: -0.0005534595624
A39: Ford Mtr Co Del | B39: 0.01916957228 | C39: 0.01998646597 | D39: 0.0025 | E39: 0.02027404749 | F39: 0.08755120554 | G39: 0.07415488724 | H39: 0.01117420149 | I39: -0.05231248931 | J39: -0.001045541787 | K39: -0.003879226746 | L39: -0.0005845502962
A40: Gap Inc | B40: 0.01051799074 | C40: 0.005742742615 | D40: 0 | E40: 0.01162246596 | F40: -0.05316569208 | G40: -0.04148569232 | H40: 0.000158034206 | I40: -0.02208973373 | J40: -0.0001268556552 | K40: 0.0009164078968 | L40: -3.490933531e-06
A41: Garmin Ltd | B41: 0.01191205959 | C41: 0.003259353241 | D41: 0.0025 | E41: 0.01301653481 | F41: 0.006729611112 | G41: 0.006041549864 | H41: 0.0005024757025 | I41: -0.008936270135 | J41: -2.912646103e-05 | K41: -5.398892162e-05 | L41: -4.490258614e-06
A42: Genuine Parts Co | B42: 0.005950140554 | C42: 0.005248260759 | D42: -0.005 | E42: 0.00705461577 | F42: 0.023190438 | G42: 0.01963297417 | H42: 0.003021825684 | I42: -0.1368479226 | J42: -0.000718213582 | K42: -0.002686731729 | L42: -0.0004135305673
A43: Harley Davidson Inc | B43: 0.01740492522 | C43: 0.004491619901 | D43: 0.005 | E43: 0.01850940044 | F43: -0.04511499152 | G43: -0.03527929969 | H43: 0 | I43: -0.06600624415 | J43: -0.0002964749598 | K43: 0.002328654069 | L43: 0
A44: Hasbro Inc | B44: 0.008596326121 | C44: 0.002202482883 | D44: 0.005 | E44: 0.009700801337 | F44: -0.01296059365 | G44: -0.009954152701 | H44: 0 | I44: -0.00127376962 | J44: -2.805455784e-06 | K44: 1.26792973e-05 | L44: 0
A45: Home Depot Inc | B45: 0.007843651572 | C45: 0.04449885758 | D45: 0 | E45: 0.008948126788 | F45: -0.02055303052 | G45: -0.007654944846 | H45: 0.02654742179 | I45: -0.005253367065 | J45: -0.0002337688329 | K45: 4.021423514e-05 | L45: -0.0001394633513
A46: Kohls Corp | B46: 0.007752722653 | C46: 0.003985463324 | D46: 0 | E46: 0.008857197869 | F46: 0.0225226933 | G46: 0.0188472461 | H46: 0.02089825489 | I46: -0.02186241431 | J46: -8.713185038e-05 | K46: -0.0004120463027 | L46: -0.0004568863067
A47: Las Vegas Sands Corp | B47: 0.02936110708 | C47: 0.0149326204 | D47: 0.0075 | E47: 0.0304655823 | F47: 0.02000632431 | G47: 0.01900034171 | H47: 0 | I47: -0.06738530207 | J47: -0.001006239136 | K47: -0.001280343766 | L47: 0
A48: Leggett & Platt Inc | B48: 0.009966770487 | C48: 0.001888552254 | D48: -0.005 | E48: 0.0110712457 | F48: -0.08246084811 | G48: -0.06573657117 | H48: 0 | I48: 0.0004692632653 | J48: 8.862281975e-07 | K48: -3.084775804e-05 | L48: 0
A49: Lennar Corp | B49: 0.01578645989 | C49: 0.002955155945 | D49: 0 | E49: 0.0168909351 | F49: -0.1015250919 | G49: -0.08080939514 | H49: 1e-06 | I49: 0.002229126018 | J49: 6.587415005e-06 | K49: -0.0001801343252 | L49: 2.229126018e-09
A50: Lkq Corp | B50: 0.007959623337 | C50: 0.002744571264 | D50: 0.0075 | E50: 0.009064098553 | F50: 0.01556304684 | G50: 0.01302147886 | H50: 0.008937479297 | I50: -0.08571905321 | J50: -0.0002352620503 | K50: -0.001116188839 | L50: -0.0007661122635
A51: Lowes Cos Inc | B51: 0.009411531694 | C51: 0.02155339306 | D51: 0 | E51: 0.01051600691 | F51: 0.07112425186 | G51: 0.06129564885 | H51: 0.007108443932 | I51: -0.0152316946 | J51: -0.0003282947007 | K51: -0.0009336366033 | L51: -0.000108273647
A52: Marriott Intl Inc New | B52: 0.01189821284 | C52: 0.007024780513 | D52: 0 | E52: 0.01300268805 | F52: 0.02453823016 | G52: 0.02106577178 | H52: 0.001855698981 | I52: -0.04629424274 | J52: -0.0003252068943 | K52: -0.0009752239524 | L52: -8.590817907e-05
A53: Mcdonalds Corp | B53: 0.004178885399 | C53: 0.02901944028 | D53: 0 | E53: 0.005283360615 | F53: 0.115969232 | G53: 0.09872936555 | H53: 0.07279048672 | I53: -0.01353840384 | J53: -0.0003928769017 | K53: -0.001336638021 | L53: -0.0009854670048
A54: Mgm Resorts International | B54: 0.02435008373 | C54: 0.003378436423 | D54: 0.0075 | E54: 0.02545455895 | F54: 0.06787110047 | G54: 0.05508389428 | H54: 0.00418845173 | I54: -0.09306760738 | J54: -0.0003144229946 | K54: -0.005126526246 | L54: -0.0003898091812
A55: Mohawk Inds Inc | B55: 0.01726312883 | C55: 0.003643446814 | D55: 0 | E55: 0.01836760404 | F55: -0.03861281124 | G55: -0.03023450198 | H55: 0 | I55: 0.06044286422 | J55: 0.0002202203611 | K55: -0.001827459898 | L55: 0
A56: Newell Brands Inc | B56: 0.01204871388 | C56: 0.003298027573 | D56: 0 | E56: 0.0131531891 | F56: -0.08973314297 | G56: -0.07128749838 | H56: 0.0002637941085 | I56: -0.03255356824 | J56: -0.0001073625657 | K56: 0.002320662443 | L56: -8.587439515e-06
A57: Nike Inc | B57: 0.007762056861 | C57: 0.02671968199 | D57: 0.0025 | E57: 0.008866532076 | F57: 0.0135019665 | G57: 0.01612269331 | H57: 0.02172766642 | I57: -0.04140718911 | J57: -0.001106386925 | K57: -0.0006675954108 | L57: -0.0008996815924
A58: Nordstrom Inc | B58: 0.01447695147 | C58: 0.004854183311 | D58: -0.005 | E58: 0.01558142668 | F58: -0.02111301731 | G58: -0.01596440152 | H58: 0 | I58: -0.04101095304 | J58: -0.0001990746838 | K58: 0.0006547153212 | L58: 0
A59: Nvr Inc | B59: 0.008141004272 | C59: 0.001660922773 | D59: -0.005 | E59: 0.009245479487 | F59: 0.1240642605 | G59: 0.09979488446 | H59: 0.01654655492 | I59: -0.01668313018 | J59: -2.770939084e-05 | K59: -0.001664891049 | L59: -0.0002760483298
A60: O Reilly Automotive Inc New | B60: 0.005703633305 | C60: 0.006294712309 | D60: 0 | E60: 0.00680810852 | F60: 0.09705729184 | G60: 0.07906144943 | H60: 0.0105769639 | I60: -0.02768743628 | J60: -0.000174284446 | K60: -0.002189008844 | L60: -0.0002928490141
A61: Polaris Inc | B61: 0.01395493371 | C61: 0.003225479617 | D61: 0.005 | E61: 0.01505940893 | F61: 0.02001883039 | G61: 0.01668914875 | H61: 5.524442707e-05 | I61: -0.04496582798 | J61: -0.0001450363616 | K61: -0.000750441392 | L61: -2.484111405e-06
A62: Pulte Group Inc | B62: 0.01147609054 | C62: 0.002550137922 | D62: 0 | E62: 0.01258056576 | F62: 0.05116485603 | G62: 0.04152583068 | H62: 0 | I62: -0.04138521616 | J62: -0.0001055380092 | K62: -0.001718555479 | L62: 0
A63: Pvh Corporation | B63: 0.01599697233 | C63: 0.00339876763 | D63: 0.005 | E63: 0.01710144755 | F63: 0.007367368119 | G63: 0.006580498581 | H63: 0.0001147197595 | I63: -0.1505162946 | J63: -0.0005115699098 | K63: -0.000990472263 | L63: -1.726719312e-05
A64: Ralph Lauren Corp | B64: 0.01248660526 | C64: 0.005199117946 | D64: 0 | E64: 0.01359108048 | F64: 0.05477709514 | G64: 0.04494708073 | H64: 3.748179306e-05 | I64: -0.1038854034 | J64: -0.0005401124652 | K64: -0.004669345614 | L64: -3.893811192e-06
A65: Ross Stores Inc | B65: 0.006796600732 | C65: 0.006361615397 | D65: -0.005 | E65: 0.007901075947 | F65: 0.0838502769 | G65: 0.06848630479 | H65: 0 | I65: -0.02742549692 | J65: -0.0001744704635 | K65: -0.001878270941 | L65: 0
A66: Royal Caribbean Cruises Ltd | B66: 0.0220994202 | C66: 0.005814159074 | D66: 0 | E66: 0.02320389542 | F66: -0.07648627683 | G66: -0.06016825588 | H66: 0 | I66: -0.08715475961 | J66: -0.0005067316364 | K66: 0.005243949877 | L66: 0
A67: Starbucks Corp | B67: 0.01011702414 | C67: 0.01980339567 | D67: 0.0025 | E67: 0.01122149936 | F67: 0.07729493894 | G67: 0.06589587164 | H67: 0.01335612849 | I67: 0.06465277421 | J67: 0.001280344469 | K67: 0.004260350911 | L67: 0.0008635107597
A68: Tapestry Inc | B68: 0.0125537526 | C68: 0.003330662319 | D68: 0 | E68: 0.01365822782 | F68: -0.005608988526 | G68: -0.003836489897 | H68: 0.011389055 | I68: -0.009899746403 | J68: -3.297271231e-05 | K68: 3.798027706e-05 | L68: -0.0001127487563
A69: Target Corp | B69: 0.009170582706 | C69: 0.01548872217 | D69: -0.005 | E69: 0.01027505792 | F69: -0.09389626005 | G69: -0.07220808292 | H69: 0.0005794637543 | I69: -0.03076754196 | J69: -0.0004765499091 | K69: 0.002221665221 | L69: -1.782867537e-05
A70: Tiffany & Co New | B70: 0.01439705103 | C70: 0.00444593682 | D70: 0 | E70: 0.01550152625 | F70: -0.05355827628 | G70: -0.04205755998 | H70: 0 | I70: -0.2097579638 | J70: -0.0009325706547 | K70: 0.008821908145 | L70: 0
A71: Tjx Cos Inc New | B71: 0.006055289711 | C71: 0.01519574981 | D71: 0 | E71: 0.007159764926 | F71: 0.05778183037 | G71: 0.04933812595 | H71: 0.02983594019 | I71: -0.03925570939 | J71: -0.0005965199385 | K71: -0.001936803134 | L71: -0.001171230997
A72: Tractor Supply Co | B72: 0.008224360255 | C72: 0.003457496423 | D72: 0 | E72: 0.009328835471 | F72: -0.04867375549 | G72: -0.03833749358 | H72: 0.0002277385352 | I72: 0.02937894901 | J72: 0.0001015776111 | K72: -0.001126315269 | L72: 6.690718813e-06
A73: Vail Resorts Inc | B73: 0.01130869524 | C73: 0.001064445539 | D73: 0.0025 | E73: 0.01241317046 | F73: 0.1121274159 | G73: 0.09010653764 | H73: 0.000397595944 | I73: -0.03768124254 | J73: -4.010963052e-05 | K73: -0.003395326299 | L73: -1.49819092e-05
A74: V F Corp | B74: 0.008148057619 | C74: 0.01042791344 | D74: 0 | E74: 0.009252532835 | F74: 0.09443894942 | G74: 0.07778176127 | H74: 0.007775744394 | I74: -0.07669943349 | J74: -0.0007998150532 | K74: -0.005965817025 | L74: -0.00059639519
A75: Whirlpool Corp | B75: 0.01681513538 | C75: 0.004860513482 | D75: 0.0025 | E75: 0.0179196106 | F75: -0.006116761045 | G75: -0.003940255007 | H75: 0 | I75: 0.02718969999 | J75: 0.0001321559034 | K75: -0.0001071343515 | L75: 0
A76: Wynn Resorts Ltd | B76: 0.01845518054 | C76: 0.004853562813 | D76: 0.0075 | E76: 0.01955965575 | F76: -0.05335616085 | G76: -0.04181469719 | H76: 0.003909637097 | I76: -0.005459890211 | J76: -2.649992009e-05 | K76: 0.0002283036558 | L76: -2.134618931e-05
A77: Yum Brands Inc | B77: 0.008274556407 | C77: 0.01016921758 | D77: 0.0075 | E77: 0.009379031622 | F77: -0.05389694367 | G77: -0.04119430181 | H77: 0.0001571270427 | I77: -0.007855049486 | J77: -7.987970733e-05 | K77: 0.0003235832793 | L77: -1.234240696e-06
A78: Altria Group Inc | B78: 0.003720355106 | C78: 0.03124222713 | D78: 0 | E78: 0.004824830321 | F78: 0.05925382449 | G78: 0.05369985837 | H78: 0.05594447728 | I78: 0.07486155169 | J78: 0.002338841601 | K78: 0.004020054724 | L78: 0.004188090378
A79: Archer Daniels Midland Co | B79: 0.00306367616 | C79: 0.01065395922 | D79: 0 | E79: 0.004168151375 | F79: 0.05298446748 | G79: 0.04459143634 | H79: 0.01764341486 | I79: -0.1089996078 | J79: -0.001161277376 | K79: -0.004860449071 | L79: -0.001923125299
A80: Brown Forman Corp | B80: 0.006019007978 | C80: 0.005973024888 | D80: 0.0025 | E80: 0.007123483193 | F80: -0.01464892459 | G80: -0.01056013211 | H80: 0.009340160147 | I80: 0.01165770691 | J80: 6.963177352e-05 | K80: -0.0001231069251 | L80: 0.0001088848495
A81: Bunge Limited | B81: 0.007915711298 | C81: 0.004260386461 | D81: 0 | E81: 0.009020186514 | F81: 0.02435009309 | G81: 0.02036683043 | H81: 0.003061575451 | I81: -0.01529624149 | J81: -6.516790014e-05 | K81: -0.0003115359565 | L81: -4.683059744e-05
A82: Campbell Soup Co | B82: 0.003055205628 | C82: 0.004429607727 | D82: -0.005 | E82: 0.004159680843 | F82: 0.06564399365 | G82: 0.05350678415 | H82: 0.006104477115 | I82: 0.03878355468 | J82: 0.0001717959335 | K82: 0.002075183289 | L82: 0.000236753322
A83: Church & Dwight Inc | B83: 0.003569968331 | C83: 0.003380242298 | D83: 0 | E83: 0.004674443546 | F83: -0.122940883 | G83: -0.09789471229 | H83: 0 | I83: 0.02642111993 | J83: 8.930978717e-05 | K83: -0.002586487934 | L83: 0
A84: Clorox Co Del | B84: 0.003577348371 | C84: 0.004389802729 | D84: -0.005 | E84: 0.004681823587 | F84: 0.07893973506 | G84: 0.06415843598 | H84: 0.03582848714 | I84: 0.02370678062 | J84: 0.0001040680903 | K84: 0.001520989967 | L84: 0.0008493780848
A85: Coca Cola Co | B85: 0.004921655568 | C85: 0.05928846608 | D85: 0 | E85: 0.006026130784 | F85: 0.05519810731 | G85: 0.05600911832 | H85: 0.02604970008 | I85: -0.02518420664 | J85: -0.001493132981 | K85: -0.001410545209 | L85: -0.0006560410296
A86: Colgate Palmolive Co | B86: 0.004558355049 | C86: 0.02017813473 | D86: 0 | E86: 0.005662830265 | F86: -0.02193272915 | G86: -0.01358324774 | H86: 0.000370181384 | I86: -0.02443249322 | J86: -0.0004930021401 | K86: 0.0003318726084 | L86: -9.044454155e-06
A87: Conagra Brands Inc | B87: 0.005644245878 | C87: 0.004970046571 | D87: 0.0075 | E87: 0.006748721093 | F87: -0.1096100179 | G87: -0.08689179202 | H87: 0 | I87: -0.02370767236 | J87: -0.0001178282357 | K87: 0.002060002136 | L87: 0
A88: Constellation Brands Inc | B88: 0.008882960068 | C88: 0.006106434315 | D88: 0 | E88: 0.009987435284 | F88: 0.03768148632 | G88: 0.03142098048 | H88: 6.534035481e-05 | I88: 0.1178622602 | J88: 0.0007197181499 | K88: 0.003703347775 | L88: 7.701161898e-06
A89: Costco Whsl Corp New | B89: 0.00633395582 | C89: 0.02008335423 | D89: 0 | E89: 0.007438431035 | F89: 0.09753689691 | G89: 0.08217988794 | H89: 0.04612359923 | I89: 0.008709755137 | J89: 0.0001749210977 | K89: 0.0007157667011 | L89: 0.0004017252553
A90: General Mls Inc | B90: 0.002556041173 | C90: 0.01023518921 | D90: 0 | E90: 0.003660516389 | F90: -0.05756939114 | G90: -0.04412551869 | H90: 0.01362086239 | I90: -0.01606687998 | J90: =I90*C90 -> -0.0001644475566 | K90: =I90*G90 -> 0.0007089594127 | L90: =H90*I90 -> -0.0002188447611
A91: Hershey Co | B91: 0.003119860223 | C91: 0.007389070232 | D91: 0 | E91: 0.004224335438 | F91: 0.1257116788 | G91: 0.1022514044 | H91: 0.03376288666 | I91: -0.01668807526 | J91: -0.0001233093601 | K91: -0.001706379132 | L91: -0.0005634375936
A92: Hormel Foods Corp | B92: 0.00444339175 | C92: 0.00441746515 | D92: 0 | E92: 0.005547866965 | F92: 0.05526878554 | G92: 0.04518630053 | H92: 0.03253861216 | I92: -0.01703486799 | J92: -7.525093568e-05 | K92: -0.0007697426644 | L92: -0.0005542909626
A93: Ingredion Inc | B93: 0.008900012419 | C93: 0.001946229589 | D93: -0.005 | E93: 0.01000448763 | F93: 0.03851382283 | G93: 0.03126342682 | H93: 0.0002884682526 | I93: -0.05077232537 | J93: -9.881460196e-05 | K93: -0.001587316879 | L93: -1.464620398e-05
A94: Kellogg Co | B94: 0.004630838604 | C94: 0.007493158251 | D94: 0 | E94: 0.005735313819 | F94: 0.2332352387 | G94: 0.1884764964 | H94: 0.06002779573 | I94: 0.002137079122 | J94: 1.601347206e-05 | K94: 0.0004027891855 | L94: 0.000128284149
A95: Kimberly Clark Corp | B95: 0.003667400496 | C95: 0.01357666452 | D95: 0 | E95: 0.004771875712 | F95: -0.04796946447 | G95: -0.03576647901 | H95: 0.03052585615 | I95: -0.0678560022 | J95: -0.0009212581775 | K95: 0.002426970279 | L95: -0.002071362562
A96: Kroger Co | B96: 0.004082147337 | C96: 0.01003707555 | D96: 0 | E96: 0.005186622553 | F96: -0.1268274775 | G96: -0.09969082117 | H96: 9.487442439e-05 | I96: 0.07267191805 | J96: 0.0007294135319 | K96: -0.007244723187 | L96: 6.894706394e-06
A97: Lauder Estee Cos Inc | B97: 0.01036645302 | C97: 0.009284939064 | D97: 0.0025 | E97: 0.01147092824 | F97: 0.05773874623 | G97: 0.04813162529 | H97: 0.000226433498 | I97: -0.07647297129 | J97: -0.0007100468784 | K97: -0.003680768399 | L97: -1.731604239e-05
A98: Mccormick & Co Inc | B98: 0.004338180035 | C98: 0.003068471483 | D98: 0 | E98: 0.005442655251 | F98: -0.1108703625 | G98: -0.08827927583 | H98: 0 | I98: -0.03995314821 | J98: -0.0001225950959 | K98: 0.003527034991 | L98: 0
A99: Molson Coors Beverage Co | B99: 0.006017458346 | C99: 0.004446159252 | D99: 0.0025 | E99: 0.007121933561 | F99: 0.03009681698 | G99: 0.02501096335 | H99: 0.003702184733 | I99: 0.01874431749 | J99: 8.334022064e-05 | K99: 0.0004688134379 | L99: 6.939492605e-05
A100: Mondelez Intl Inc | B100: 0.005111275569 | C100: 0.01943719052 | D100: 0.005 | E100: 0.006215750785 | F100: -0.005468817634 | G100: -0.0005306085171 | H100: 0 | I100: -0.03032440839 | J100: -0.0005894213033 | K100: 1.609038937e-05 | L100: 0
A101: Monster Beverage Corp New | B101: 0.005395652934 | C101: 0.005845036698 | D101: 0 | E101: 0.00650012815 | F101: -0.03347034214 | G101: -0.0256751322 | H101: 0.003268673252 | I101: 0.07637968986 | J101: 0.0004464420902 | K101: -0.001961058635 | L101: 0.0002496602493
A102: Pepsico Inc | B102: 0.004509237134 | C102: 0.04525625875 | D102: 0.0025 | E102: 0.005613712349 | F102: 0.1595179154 | G102: 0.1368628214 | H102: 0.03264978525 | I102: -0.008282939996 | J102: -0.0003748548757 | K102: -0.001133626538 | L102: -0.0002704362121
A103: Procter & Gamble Co | B103: 0.004572957092 | C103: 0.07911971708 | D103: 0 | E103: 0.005677432308 | F103: 0.04861014671 | G103: 0.05465939545 | H103: 0.05503233805 | I103: -0.07758479475 | J103: -0.00613848701 | K103: -0.004240737977 | L103: -0.004269672652
A104: Smucker J M Co | B104: 0.005427342535 | C104: 0.00330742643 | D104: 0 | E104: 0.006531817751 | F104: -0.1470212662 | G104: -0.1172150236 | H104: 0 | I104: 0.02126176209 | J104: 7.032171387e-05 | K104: -0.002492197945 | L104: 0
A105: Sysco Corp | B105: 0.006491378331 | C105: 0.007545443327 | D105: -0.005 | E105: 0.007595853546 | F105: 0.1432022419 | G105: 0.1163050516 | H105: 0.02190195217 | I105: -0.01318811912 | J105: -9.951020539e-05 | K105: -0.001533844875 | L105: -0.0002888455541
A106: Tyson Foods Inc | B106: 0.008032349181 | C106: 0.004739792139 | D106: 0.0075 | E106: 0.009136824397 | F106: -0.02761542504 | G106: -0.02120023287 | H106: 7.478121337e-05 | I106: -0.02654016511 | J106: -0.0001257948659 | K106: 0.0005626576807 | L106: -1.98470575e-06
A107: Walgreens Boots Alliance In | B107: 0.007959997185 | C107: 0.02317662079 | D107: 0 | E107: 0.0090644724 | F107: 0.08192871422 | G107: 0.07027971284 | H107: 0.02660081215 | I107: -0.03268046747 | J107: -0.0007574228019 | K107: -0.00229677387 | L107: -0.0008693269763
A108: Walmart Inc | B108: 0.004091919634 | C108: 0.08913725488 | D108: 0 | E108: 0.005196394849 | F108: 0.1232058546 | G108: 0.1164509436 | H108: 0.1085743891 | I108: -0.01053503832 | J108: -0.0009390643962 | K108: -0.001226815153 | L108: -0.001143835351
A109: Sum | C109: =SUM(_xlfn.ANCHORARRAY(C25)) -> 1 | F109: =SUM(_xlfn.ANCHORARRAY(F25)) -> 1 | G109: =SUM(_xlfn.ANCHORARRAY(G25)) -> 1 | H109: =SUM(H25:H108) -> 1.000000002 | J109: =SUM(J25:J108) -> -0.01821683324 | K109: =SUM(K25:K108) -> -0.04410678732 | L109: =SUM(L25:L108) -> -0.01375504628
A113: VARIANS-KOVARANSMATRISE
A114: VBA VarCovar (Benninga, 2014)
B115: Advance Auto Parts Inc | C115: Amazon Com Inc | D115: Autoliv Inc | E115: Autozone Inc | F115: Best Buy Inc | G115: Booking Hldgs Inc | H115: Borgwarner Inc | I115: Carmax Inc | J115: Carnival Corp | K115: D R Horton Inc | L115: Darden Restaurants Inc | M115: Dollar Tree Inc | N115: Dominos Pizza Inc | O115: Ebay Inc | P115: Ford Mtr Co Del | Q115: Gap Inc | R115: Garmin Ltd | S115: Genuine Parts Co | T115: Harley Davidson Inc | U115: Hasbro Inc | V115: Home Depot Inc | W115: Kohls Corp | X115: Las Vegas Sands Corp | Y115: Leggett & Platt Inc | Z115: Lennar Corp | AA115: Lkq Corp | AB115: Lowes Cos Inc | AC115: Marriott Intl Inc New | AD115: Mcdonalds Corp | AE115: Mgm Resorts International | AF115: Mohawk Inds Inc | AG115: Newell Brands Inc | AH115: Nike Inc | AI115: Nordstrom Inc | AJ115: Nvr Inc | AK115: O Reilly Automotive Inc New | AL115: Polaris Inc | AM115: Pulte Group Inc | AN115: Pvh Corporation | AO115: Ralph Lauren Corp | AP115: Ross Stores Inc | AQ115: Royal Caribbean Cruises Ltd | AR115: Starbucks Corp | AS115: Tapestry Inc | AT115: Target Corp | AU115: Tiffany & Co New | AV115: Tjx Cos Inc New | AW115: Tractor Supply Co | AX115: Vail Resorts Inc | AY115: V F Corp | AZ115: Whirlpool Corp | BA115: Wynn Resorts Ltd | BB115: Yum Brands Inc | BC115: Altria Group Inc | BD115: Archer Daniels Midland Co | BE115: Brown Forman Corp | BF115: Bunge Limited | BG115: Campbell Soup Co | BH115: Church & Dwight Inc | BI115: Clorox Co Del | BJ115: Coca Cola Co | BK115: Colgate Palmolive Co | BL115: Conagra Brands Inc | BM115: Constellation Brands Inc | BN115: Costco Whsl Corp New | BO115: General Mls Inc | BP115: Hershey Co | BQ115: Hormel Foods Corp | BR115: Ingredion Inc | BS115: Kellogg Co | BT115: Kimberly Clark Corp | BU115: Kroger Co | BV115: Lauder Estee Cos Inc | BW115: Mccormick & Co Inc | BX115: Molson Coors Beverage Co | BY115: Mondelez Intl Inc | BZ115: Monster Beverage Corp New | CA115: Pepsico Inc | CB115: Procter & Gamble Co | CC115: Smucker J M Co | CD115: Sysco Corp | CE115: Tyson Foods Inc | CF115: Walgreens Boots Alliance In | CG115: Walmart Inc
A116: Advance Auto Parts Inc | B116: =varcovar(Input!B1155:CG1273) -> 0.005767334562 | C116: 0.001672721478 | D116: 0.002295943878 | E116: 0.00244942679 | F116: 0.003420696041 | G116: 0.002578112142 | H116: 0.002542587254 | I116: 0.002442408408 | J116: 0.002338571044 | K116: 0.004340767084 | L116: 0.001450942909 | M116: 0.000841451689 | N116: 0.003412660123 | O116: 0.002282747636 | P116: 0.003527160136 | Q116: 0.002052286852 | R116: 0.001694600319 | S116: 0.001258014656 | T116: 0.003116790719 | U116: 0.002638740918 | V116: 0.001812064587 | W116: 0.001220156171 | X116: 0.0032855041 | Y116: 0.002260409375 | Z116: 0.003565332432 | AA116: 0.002251026498 | AB116: 0.002168889474 | AC116: 0.001735145037 | AD116: 0.0006081495043 | AE116: 0.002535800187 | AF116: 0.003462810343 | AG116: 0.001569123675 | AH116: 0.001144320858 | AI116: 0.003567371651 | AJ116: 0.002350486555 | AK116: 0.002921366857 | AL116: 0.002538394315 | AM116: 0.003427337785 | AN116: 0.002933996134 | AO116: 0.00282979143 | AP116: 0.001645218083 | AQ116: 0.003803476171 | AR116: 0.001579343303 | AS116: 0.002169412056 | AT116: 0.001479239322 | AU116: 0.002622012416 | AV116: 0.001637358958 | AW116: 0.002212387321 | AX116: 0.001132235958 | AY116: 0.001562375508 | AZ116: 0.003038661541 | BA116: 0.002500473209 | BB116: 0.001758518444 | BC116: 0.0006969674402 | BD116: 0.0004191961108 | BE116: 0.001585765421 | BF116: 0.002755884252 | BG116: 0.0003929048877 | BH116: 0.0007096029673 | BI116: 0.0007929768442 | BJ116: 0.0007973660625 | BK116: 0.0007601008301 | BL116: 0.0003007351879 | BM116: 0.002546620811 | BN116: 0.0006042919408 | BO116: 0.0002573172157 | BP116: 0.000991898476 | BQ116: 0.001056152634 | BR116: 0.001538481247 | BS116: 0.0004921011809 | BT116: 0.0004972106434 | BU116: 0.0004173242285 | BV116: 0.001826899348 | BW116: 0.001203586798 | BX116: 0.0009314541717 | BY116: 0.0008551452303 | BZ116: 0.00132396163 | CA116: 0.0005972122767 | CB116: 0.0005298831443 | CC116: 0.000618333837 | CD116: 0.001048027802 | CE116: 0.001542104371 | CF116: 0.001120605111 | CG116: 0.0005175522874
A117: Amazon Com Inc | B117: 0.001672721478 | C117: 0.01266336675 | D117: 0.003458787185 | E117: 0.001764276348 | F117: 0.005917281171 | G117: 0.003929214469 | H117: 0.003292556892 | I117: 0.004119114918 | J117: 0.00375584562 | K117: 0.003359988051 | L117: 0.003300462585 | M117: 0.0007027325643 | N117: 0.004396631912 | O117: 0.005685349577 | P117: 0.004330875367 | Q117: 0.002583386521 | R117: 0.005326588838 | S117: 0.0008049617841 | T117: 0.004897731395 | U117: 0.002401840193 | V117: 0.001768060947 | W117: 0.002370010818 | X117: 0.008874549669 | Y117: 0.00239489081 | Z117: 0.002800526821 | AA117: 0.002347685353 | AB117: 0.002043846326 | AC117: 0.003074008389 | AD117: 0.001575079582 | AE117: 0.005192726742 | AF117: 0.004280579888 | AG117: 0.001229248183 | AH117: 0.001895555609 | AI117: 0.005470067189 | AJ117: 0.002452330841 | AK117: 0.002295925274 | AL117: 0.004724687809 | AM117: 0.001334704039 | AN117: 0.005022112773 | AO117: 0.003752669434 | AP117: 0.001805072518 | AQ117: 0.005238275808 | AR117: 0.003415596249 | AS117: 0.003690509211 | AT117: 0.002433933751 | AU117: 0.005188324844 | AV117: 0.001659177336 | AW117: 0.001881959252 | AX117: 0.003976736813 | AY117: 0.002478058751 | AZ117: 0.00374755314 | BA117: 0.005164139664 | BB117: 0.002848778235 | BC117: 0.00100702907 | BD117: 2.66530486e-05 | BE117: 0.001464461807 | BF117: 0.001717223201 | BG117: 0.0009679466688 | BH117: 0.0008256146604 | BI117: 0.0009184907896 | BJ117: 0.001438995462 | BK117: 0.001313250577 | BL117: 0.002022666121 | BM117: 0.002870733491 | BN117: 0.002021497647 | BO117: 0.0006783444753 | BP117: 0.0005296439286 | BQ117: 0.00124173676 | BR117: 0.001391318013 | BS117: 0.00171901355 | BT117: 0.001006920977 | BU117: 0.0004318629818 | BV117: 0.002758049587 | BW117: 0.00144528078 | BX117: 0.0006175464666 | BY117: 0.001087400697 | BZ117: 0.0007338915111 | CA117: 0.001079665438 | CB117: 0.0009714064975 | CC117: 0.001660981865 | CD117: 0.002214363516 | CE117: 0.002621434781 | CF117: 0.002343338718 | CG117: 0.0009471387522
